Workbook

Sheet 平成27年分 (hidden)
A1: 1 | B1: 2 | C1: 75 | D1: 76 | E1: 77 | F1: 78 | G1: 79 | H1: 80 | I1: 81 | J1: 82 | K1: 83 | L1: 84 | M1: 85 | N1: 86 | P1: 78
C2: 平成27年 | P2: H22
C3: 世帯数 | D3: 男 | E3: 女 | F3: 人口計 | G3: 増減率 | H3: 1世帯当りの人数 | I3: 年少人口 | J3: 生産年齢人口 | K3: 高齢人口 | L3: 年少人口構成比 | M3: 生産年齢人口構成比 | N3: 高齢人口構成比 | P3: 人口計
A4: 1 | B4: 北海道 | C4: 2444810 | D4: 2537089 | E4: 2844644 | F4: =SUM(D4:E4) -> 5381733 | G4: =((1-(P4/F4))*100)/100 -> -0.02316837346 | H4: =F4/C4 -> 2.201288853 | I4: 657312 | J4: 3482169 | K4: 1358068 | L4: =I4/F4 -> 0.1221376088 | M4: =J4/F4 -> 0.6470348863 | N4: =K4/F4 -> 0.2523477103 | P4: 5506419
A5: 2 | B5: 市部 | C5: 2021698 | D5: 2063947 | E5: 2331225 | F5: =SUM(D5:E5) -> 4395172 | G5: =((1-(P5/F5))*100)/100 -> -0.0123289828 | H5: =F5/C5 -> 2.174000271 | I5: 528071 | J5: 2865334 | K5: 1047327 | L5: =I5/F5 -> 0.1201479715 | M5: =J5/F5 -> 0.6519276151 | N5: =K5/F5 -> 0.2382903331 | P5: 4449360
A6: 3 | B6: 郡部 | C6: 423112 | D6: 473142 | E6: 513419 | F6: 986561 | G6: -0.07145832848 | H6: =F6/C6 -> 2.331678137 | I6: 129241 | J6: 616835 | K6: 310741 | L6: 0.1310015296 | M6: 0.6252375677 | N6: 0.3149739347 | P6: 1057059
A7: 4 | B7: 札幌市 | C7: 921837 | D7: 910614 | E7: 1041742 | F7: 1952356 | G7: 0.01987905894 | H7: =F7/C7 -> 2.117897199 | I7: 224212 | J7: 1292313 | K7: 391796 | L7: 0.1148417604 | M7: 0.6619248744 | N7: 0.2006785648 | P7: 1913545
A8: 5 | B8: 江別市 | C8: 51983 | D8: 57391 | E8: 63245 | F8: 120636 | G8: -0.02558108691 | H8: 2.320681761 | I8: 15041 | J8: 81565 | K8: 27008 | L8: 0.1246808581 | M8: 0.6761248715 | N8: 0.2238801021 | P8: 123722
A9: 6 | B9: 千歳市 | C9: 40638 | D9: 48588 | E9: 47060 | F9: 95648 | G9: 0.02137002342 | H9: 2.353659137 | I9: 13883 | J9: 63261 | K9: 16293 | L9: 0.1451467882 | M9: 0.6613938608 | N9: 0.1703433423 | P9: 93604
A10: 7 | B10: 恵庭市 | C10: 28846 | D10: 33781 | E10: 35921 | F10: 69702 | G10: 0.004562279418 | H10: 2.416348887 | I10: 9690 | J10: 45110 | K10: 14427 | L10: 0.1390204011 | M10: 0.647183725 | N10: 0.2069811483 | P10: 69384
A11: 8 | B11: 北広島市 | C11: 23551 | D11: 28273 | E11: 30791 | F11: 59064 | G11: -0.02182378437 | H11: 2.507918984 | I11: 8083 | J11: 38693 | K11: 13547 | L11: 0.1368515509 | M11: 0.6551029392 | N11: 0.2293613707 | P11: 60353
A12: 9 | B12: 石狩市 | C12: 22632 | D12: 27548 | E12: 29888 | F12: 57436 | G12: -0.03504770527 | H12: 2.537822552 | I12: 7732 | J12: 35684 | K12: 12161 | L12: 0.1346194025 | M12: 0.6212828191 | N12: 0.2117313183 | P12: 59449
A13: 10 | B13: 当別町 | C13: 7327 | D13: 8314 | E13: 8964 | F13: 17278 | G13: -0.08612107883 | H13: 2.358127474 | I13: 2158 | J13: 11931 | K13: 4594 | L13: 0.1248987151 | M13: 0.6905313115 | N13: 0.2658872555 | P13: 18766
A14: 11 | B14: 新篠津村 | C14: 1070 | D14: 1604 | E14: 1725 | F14: 3329 | G14: -0.05587263442 | H14: 3.111214953 | I14: 402 | J14: 2059 | K14: 1054 | L14: 0.1207569841 | M14: 0.6185040553 | N14: 0.3166115951 | P14: 3515
A15: 12 | B15: 函館市 | C15: 123950 | D15: 120376 | E15: 145603 | F15: 265979 | G15: -0.1012034785 | H15: 2.1458572 | I15: 29131 | J15: 163815 | K15: 71802 | L15: 0.1095236842 | M15: 0.6158944879 | N15: 0.269953643 | P15: 292897
A16: 13 | B16: 北斗市 | C16: 18508 | D16: 21641 | E16: 24749 | F16: =SUM(D16:E16) -> 46390 | G16: =((1-(P16/F16))*100)/100 -> -0.263052382 | H16: =F16/C16 -> 2.506483683 | I16: 5716 | J16: 23515 | K16: 8212 | L16: 0.1232162104 | M16: 0.5068980384 | N16: 0.1770209097 | P16: 58593
A17: 14 | B17: 松前町 | C17: 3571 | D17: 3283 | E17: 4054 | F17: 7337 | G17: -0.1923129344 | H17: 2.054606553 | I17: 791 | J17: 4633 | K17: 3324 | L17: 0.1078097315 | M17: 0.6314569988 | N17: 0.4530462042 | P17: 8748
A18: 15 | B18: 福島町 | C18: 2039 | D18: 2047 | E18: 2375 | F18: 4422 | G18: -0.1564902759 | H18: 2.168710152 | I18: 446 | J18: 2796 | K18: 1872 | L18: 0.1008593397 | M18: 0.6322930801 | N18: 0.4233378562 | P18: 5114
A19: 16 | B19: 知内町 | C19: 2003 | D19: 2306 | E19: 2347 | F19: 4653 | G19: -0.09047926069 | H19: 2.323015477 | I19: 636 | J19: 2936 | K19: 1502 | L19: 0.136686009 | M19: 0.6309907587 | N19: 0.322802493 | P19: 5074
A20: 17 | B20: 木古内町 | C20: 2140 | D20: 2150 | E20: 2397 | F20: 4547 | G20: -0.174620629 | H20: 2.124766355 | I20: 442 | J20: 2830 | K20: 2069 | L20: 0.09720694964 | M20: 0.6223883879 | N20: 0.4550252914 | P20: 5341
A21: 18 | B21: 七飯町 | C21: 11141 | D21: 12820 | E21: 15300 | F21: 28120 | G21: -0.01219772404 | H21: 2.524010412 | I21: 3607 | J21: 16924 | K21: 7922 | L21: 0.1282716927 | M21: 0.6018492176 | N21: 0.2817211949 | P21: 28463
A22: 19 | B22: 鹿部町 | C22: 1660 | D22: 2053 | E22: 2173 | F22: 4226 | G22: -0.1280170374 | H22: 2.545783133 | I22: 536 | J22: 2911 | K22: 1320 | L22: 0.1268338855 | M22: 0.6888310459 | N22: 0.312352106 | P22: 4767
A23: 20 | B23: 森町 | C23: 6628 | D23: 7324 | E23: 8622 | F23: 15946 | G23: -0.1199673899 | H23: 2.405853953 | I23: 1600 | J23: 7713 | K23: 4003 | L23: 0.1003386429 | M23: 0.4836949705 | N23: 0.2510347423 | P23: 17859
A24: 21 | B24: 八雲町 | C24: 7523 | D24: 8401 | E24: 8851 | F24: 17252 | G24: -0.09529329933 | H24: 2.293234082 | I24: 2108 | J24: 9987 | K24: 3902 | L24: 0.1221887317 | M24: 0.5788894041 | N24: 0.2261766752 | P24: 18896
A25: 22 | B25: 長万部町 | C25: 2685 | D25: 2869 | E25: 3057 | F25: 5926 | G25: -0.0776240297 | H25: 2.20707635 | I25: 582 | J25: 3572 | K25: 2232 | L25: 0.09821127236 | M25: 0.6027674654 | N25: 0.3766452919 | P25: 6386
A26: 23 | B26: 江差町 | C26: 3752 | D26: 3910 | E26: 4338 | F26: 8248 | G26: -0.0916585839 | H26: 2.198294243 | I26: 1041 | J26: 5221 | K26: 2742 | L26: 0.1262124151 | M26: 0.6330019399 | N26: 0.3324442289 | P26: 9004
A27: 24 | B27: 上ノ国町 | C27: 2173 | D27: 2193 | E27: 2683 | F27: 4876 | G27: -0.1132075472 | H27: 2.243902439 | I27: 625 | J27: 2962 | K27: 1841 | L27: 0.1281788351 | M27: 0.6074651354 | N27: 0.3775635767 | P27: 5428
A28: 25 | B28: 厚沢部町 | C28: 1765 | D28: 1918 | E28: 2131 | F28: 4049 | G28: -0.08891084218 | H28: 2.294050992 | I28: 484 | J28: 2393 | K28: 1532 | L28: 0.1195356878 | M28: 0.591010126 | N28: 0.3783650284 | P28: 4409
A29: 26 | B29: 乙部町 | C29: 1729 | D29: 1791 | E29: 2115 | F29: 3906 | G29: -0.1285202253 | H29: 2.259109312 | I29: 495 | J29: 2397 | K29: 1516 | L29: 0.1267281106 | M29: 0.613671275 | N29: 0.3881208397 | P29: 4408
A30: 27 | B30: 奥尻町 | C30: 1270 | D30: 1372 | E30: 1318 | F30: 2690 | G30: -0.1275092937 | H30: 2.118110236 | I30: 317 | J30: 1723 | K30: 993 | L30: 0.1178438662 | M30: 0.6405204461 | N30: 0.3691449814 | P30: 3033
A31: 28 | B31: 今金町 | C31: 2280 | D31: 2680 | E31: 2948 | F31: 5628 | G31: -0.09914712154 | H31: 2.468421053 | I31: 659 | J31: 3480 | K31: 2047 | L31: 0.1170931059 | M31: 0.618336887 | N31: 0.3637171286 | P31: 6186
A32: 29 | B32: せたな町 | C32: 3862 | D32: 3952 | E32: 4521 | F32: =SUM(D32:E32) -> 8473 | G32: =((1-(P32/F32))*100)/100 -> -0.1318305205 | H32: =F32/C32 -> 2.193940963 | I32: 579 | J32: 2944 | K32: 1876 | L32: 0.06833471026 | M32: 0.3474566269 | N32: 0.2214091821 | P32: 9590
A33: 30 | B33: 小樽市 | C33: 55466 | D33: 54985 | E33: 66939 | F33: 121924 | G33: -0.08205111381 | H33: 2.198175459 | I33: 13105 | J33: 77215 | K33: 41607 | L33: 0.1074849906 | M33: 0.6333043535 | N33: 0.3412535678 | P33: 131928
A34: 31 | B34: 島牧村 | C34: 661 | D34: 734 | E34: 765 | F34: 1499 | G34: -0.1881254169 | H34: 2.267776097 | I34: 179 | J34: 926 | K34: 676 | L34: 0.119412942 | M34: 0.6177451634 | N34: 0.4509673115 | P34: 1781
A35: 32 | B35: 寿都町 | C35: 1420 | D35: 1528 | E35: 1609 | F35: 3137 | G35: -0.09754542557 | H35: 2.20915493 | I35: 336 | J35: 1892 | K35: 1215 | L35: 0.1071087026 | M35: 0.6031240038 | N35: 0.3873127192 | P35: 3443
A36: 33 | B36: 黒松内町 | C36: 1336 | D36: 1415 | E36: 1667 | F36: 3082 | G36: -0.0545100584 | H36: 2.306886228 | I36: 398 | J36: 1699 | K36: 1153 | L36: 0.1291369241 | M36: 0.5512654121 | N36: 0.3741077223 | P36: 3250
A37: 34 | B37: 蘭越町 | C37: 2086 | D37: 2322 | E37: 2521 | F37: 4843 | G37: -0.09271112947 | H37: 2.321668265 | I37: 641 | J37: 2905 | K37: 1746 | L37: 0.1323559777 | M37: 0.5998348131 | N37: 0.3605203386 | P37: 5292
A38: 35 | B38: ニセコ町 | C38: 2274 | D38: 2512 | E38: 2446 | F38: 4958 | G38: 0.02722872126 | H38: 2.180299033 | I38: 589 | J38: 3027 | K38: 1207 | L38: 0.1187979024 | M38: 0.6105284389 | N38: 0.2434449375 | P38: 4823
A39: 36 | B39: 真狩村 | C39: 855 | D39: 1037 | E39: 1066 | F39: 2103 | G39: -0.04089396101 | H39: 2.459649123 | I39: 235 | J39: 1288 | K39: 666 | L39: 0.111745126 | M39: 0.6124583928 | N39: 0.3166904422 | P39: 2189
A40: 37 | B40: 留寿都村 | C40: 915 | D40: 951 | E40: 956 | F40: 1907 | G40: -0.06659674882 | H40: 2.084153005 | I40: 261 | J40: 1252 | K40: 502 | L40: 0.1368641846 | M40: 0.6565285789 | N40: 0.2632406922 | P40: 2034
A41: 38 | B41: 喜茂別町 | C41: 1123 | D41: 1171 | E41: 1123 | F41: 2294 | G41: -0.08544027899 | H41: 2.042742654 | I41: 230 | J41: 1452 | K41: 808 | L41: 0.1002615519 | M41: 0.6329555362 | N41: 0.3522231909 | P41: 2490
A42: 39 | B42: 京極町 | C42: 1281 | D42: 1553 | E42: 1634 | F42: 3187 | G42: -0.1957954189 | H42: 2.487900078 | I42: 441 | J42: 2267 | K42: 1100 | L42: 0.138374647 | M42: 0.711327267 | N42: 0.3451521807 | P42: 3811
A43: 40 | B43: 倶知安町 | C43: 6974 | D43: 7538 | E43: 7480 | F43: 15018 | G43: -0.0366227194 | H43: 2.153427015 | I43: 2181 | J43: 10045 | K43: 3342 | L43: 0.1452257291 | M43: 0.6688640298 | N43: 0.2225329604 | P43: 15568
A44: 41 | B44: 共和町 | C44: 2854 | D44: 3243 | E44: 2981 | F44: 6224 | G44: -0.03277634961 | H44: 2.180798879 | I44: 835 | J44: 3814 | K44: 1779 | L44: 0.1341580977 | M44: 0.6127892031 | N44: 0.2858290488 | P44: 6428
A45: 42 | B45: 岩内町 | C45: 6228 | D45: 6174 | E45: 6868 | F45: 13042 | G45: -0.1080355774 | H45: 2.094091201 | I45: 1667 | J45: 8396 | K45: 4384 | L45: 0.1278178194 | M45: 0.6437662935 | N45: 0.3361447631 | P45: 14451
A46: 43 | B46: 泊 村 | C46: 886 | D46: 888 | E46: 883 | F46: 1771 | G46: -0.06324110672 | H46: 1.998871332 | I46: 256 | J46: 1016 | K46: 611 | L46: 0.1445511011 | M46: 0.5736871824 | N46: 0.3450028233 | P46: 1883
A47: 44 | B47: 神恵内村 | C47: 434 | D47: 462 | E47: 542 | F47: 1004 | G47: -0.1175298805 | H47: 2.313364055 | I47: 100 | J47: 538 | K47: 484 | L47: 0.09960159363 | M47: 0.5358565737 | N47: 0.4820717131 | P47: 1122
A48: 45 | B48: 積丹町 | C48: 994 | D48: 1004 | E48: 1111 | F48: 2115 | G48: -0.1895981087 | H48: 2.1277666 | I48: 218 | J48: 1285 | K48: 1013 | L48: 0.1030732861 | M48: 0.6075650118 | N48: 0.4789598109 | P48: 2516
A49: 46 | B49: 古平町 | C49: 1446 | D49: 1518 | E49: 1670 | F49: 3188 | G49: -0.132685069 | H49: 2.204702628 | I49: 279 | J49: 2002 | K49: 1330 | L49: 0.08751568381 | M49: 0.6279799247 | N49: 0.4171894605 | P49: 3611
A50: 47 | B50: 仁木町 | C50: 1480 | D50: 1625 | E50: 1873 | F50: 3498 | G50: -0.0863350486 | H50: 2.363513514 | I50: 396 | J50: 2141 | K50: 1263 | L50: 0.1132075472 | M50: 0.6120640366 | N50: 0.3610634648 | P50: 3800
A51: 48 | B51: 余市町 | C51: 8769 | D51: 9063 | E51: 10544 | F51: 19607 | G51: -0.0842046208 | H51: 2.235944806 | I51: 2371 | J51: 12215 | K51: 6672 | L51: 0.1209261998 | M51: 0.6229917886 | N51: 0.3402866323 | P51: 21258
A52: 49 | B52: 赤井川村 | C52: 534 | D52: 566 | E52: 555 | F52: 1121 | G52: -0.1257805531 | H52: 2.099250936 | I52: 170 | J52: 746 | K52: 346 | L52: 0.1516503122 | M52: 0.6654772525 | N52: 0.3086529884 | P52: 1262
A53: 50 | B53: 夕張市 | C53: 4539 | D53: 4092 | E53: 4751 | F53: 8843 | G53: -0.23510121 | H53: 1.948226482 | I53: 719 | J53: 5417 | K53: 4786 | L53: 0.08130724867 | M53: 0.612574918 | N53: 0.5412190433 | P53: 10922
A54: 51 | B54: 岩見沢市 | C54: 36155 | D54: 39319 | E54: 45180 | F54: 84499 | G54: -0.06681735879 | H54: 2.337131794 | I54: 9318 | J54: 49732 | K54: 21646 | L54: 0.1102734944 | M54: 0.5885513438 | N54: 0.2561687121 | P54: 90145
A55: 52 | B55: 美唄市 | C55: 10173 | D55: 10753 | E55: 12282 | F55: 23035 | G55: -0.1301931843 | H55: 2.26432714 | I55: 2573 | J55: 14887 | K55: 8555 | L55: 0.1116995876 | M55: 0.646277404 | N55: 0.371391361 | P55: 26034
A56: 53 | B56: 芦別市 | C56: 6862 | D56: 6667 | E56: 8009 | F56: 14676 | G56: -0.1330062687 | H56: 2.138735063 | I56: 1429 | J56: 8791 | K56: 6407 | L56: =I56/F56 -> 0.09736985555 | M56: =J56/F56 -> 0.5990051785 | N56: =K56/F56 -> 0.4365630962 | P56: 16628
A57: 54 | B57: 赤平市 | C57: 4980 | D57: 5025 | E57: 6080 | F57: 11105 | G57: -0.1379558757 | H57: 2.229919679 | I57: 1072 | J57: 6655 | K57: 4909 | L57: 0.0965330932 | M57: 0.5992796038 | N57: 0.4420531292 | P57: 12637
A58: 55 | B58: 三笠市 | C58: 4254 | D58: 4075 | E58: 5001 | F58: =SUM(D58:E58) -> 9076 | G58: =((1-(P58/F58))*100)/100 -> -0.1261568973 | H58: 2.133521392 | I58: 773 | J58: 5121 | K58: 4327 | L58: 0.08516967827 | M58: 0.564235346 | N58: 0.4767518731 | P58: 10221
A59: 56 | B59: 滝川市 | C59: 18651 | D59: 19475 | E59: 21717 | F59: 41192 | G59: -0.04801903282 | H59: 2.208567905 | I59: 5132 | J59: 26067 | K59: 11912 | L59: 0.1245872985 | M59: 0.6328170519 | N59: 0.2891823655 | P59: 43170
A60: 57 | B60: 砂川市 | C60: 7858 | D60: 8216 | E60: 9478 | F60: 17694 | G60: -0.07697524585 | H60: =F60/C60 -> 2.251717994 | I60: 2147 | J60: 10977 | K60: 5932 | L60: 0.1213405674 | M60: 0.6203797898 | N60: 0.3352548887 | P60: 19056
A61: 58 | B61: 歌志内市 | C61: 1665 | D61: 1652 | E61: 1933 | F61: 3585 | G61: -0.2237099024 | H61: 2.153153153 | I61: 337 | J61: 2242 | K61: 1808 | L61: 0.0940027894 | M61: 0.6253835425 | N61: 0.5043235704 | P61: 4387
A62: 59 | B62: 深川市 | C62: 9669 | D62: 10118 | E62: 11791 | F62: 21909 | G62: -0.08215801725 | H62: 2.265901334 | I62: 2295 | J62: 13128 | K62: 8284 | L62: 0.104751472 | M62: 0.5992058058 | N62: 0.3781094527 | P62: 23709
A63: 60 | B63: 南幌町 | C63: 2973 | D63: 3739 | E63: 4188 | F63: 7927 | G63: -0.1073546108 | H63: 2.666330306 | I63: 1025 | J63: 5679 | K63: 2074 | L63: 0.1293049073 | M63: 0.7164122619 | N63: 0.2616374417 | P63: 8778
A64: 61 | B64: 奈井江町 | C64: 2466 | D64: 2659 | E64: 3015 | F64: 5674 | G64: -0.09164610504 | H64: 2.300892133 | I64: 656 | J64: 3358 | K64: 2180 | L64: 0.1156150864 | M64: 0.5918223476 | N64: 0.3842086711 | P64: 6194
A65: 62 | B65: 上砂川町 | C65: 1744 | D65: 1575 | E65: 1904 | F65: 3479 | G65: -0.174475424 | H65: 1.99483945 | I65: 355 | J65: 1996 | K65: 1735 | L65: 0.1020408163 | M65: 0.5737280828 | N65: 0.4987065249 | P65: 4086
A66: 63 | B66: 由仁町 | C66: 2149 | D66: 2536 | E66: 2778 | F66: 5314 | G66: -0.1095220173 | H66: 2.472778036 | I66: 621 | J66: 3269 | K66: 2006 | L66: 0.1168611216 | M66: 0.6151674821 | N66: 0.3774934136 | P66: 5896
A67: 64 | B67: 長沼町 | C67: 4257 | D67: 5293 | E67: 5783 | F67: 11076 | G67: -0.05552546046 | H67: 2.601832276 | I67: 1338 | J67: 6877 | K67: 3476 | L67: 0.1208017335 | M67: 0.6208920188 | N67: 0.3138317082 | P67: 11691
A68: 65 | B68: 栗山町 | C68: 5186 | D68: 5740 | E68: 6604 | F68: 12344 | G68: -0.08068697343 | H68: 2.380254531 | I68: 1484 | J68: 7481 | K68: 4366 | L68: 0.12022035 | M68: 0.6060434219 | N68: 0.3536941024 | P68: 13340
A69: 66 | B69: 月形町 | C69: 1466 | D69: 2841 | E69: 1736 | F69: 4577 | G69: -0.06161240988 | H69: 3.122100955 | I69: 327 | J69: 3188 | K69: 1343 | L69: 0.07144417741 | M69: 0.6965261088 | N69: 0.2934236399 | P69: 4859
A70: 67 | B70: 浦臼町 | C70: 850 | D70: 956 | E70: 1029 | F70: 1985 | G70: -0.1113350126 | H70: 2.335294118 | I70: 227 | J70: 1173 | K70: 806 | L70: 0.1143576826 | M70: 0.5909319899 | N70: 0.4060453401 | P70: 2206
A71: 68 | B71: 新十津川町 | C71: 2570 | D71: 3096 | E71: 3735 | F71: 6831 | G71: -0.06119162641 | H71: 2.657976654 | I71: 858 | J71: 3936 | K71: 2455 | L71: 0.1256038647 | M71: 0.5761967501 | N71: 0.3593910116 | P71: 7249
A72: 69 | B72: 妹背牛町 | C72: 1269 | D72: 1451 | E72: 1640 | F72: 3091 | G72: -0.1200258816 | H72: 2.435776202 | I72: 347 | J72: 1820 | K72: 1295 | L72: 0.1122614041 | M72: 0.5888062116 | N72: 0.4189582659 | P72: 3462
A73: 70 | B73: 秩父別町 | C73: 1017 | D73: 1177 | E73: 1336 | F73: 2513 | G73: -0.08635097493 | H73: 2.470993117 | I73: 253 | J73: 1454 | K73: 1023 | L73: 0.1006764823 | M73: 0.5785913251 | N73: 0.4070831675 | P73: 2730
A74: 71 | B74: 雨竜町 | C74: 1005 | D74: 1323 | E74: 1426 | F74: 2749 | G74: -0.1091305929 | H74: 2.735323383 | I74: 323 | J74: 1700 | K74: 1026 | L74: 0.1174972717 | M74: 0.6184066933 | N74: 0.3732266279 | P74: 3049
A75: 72 | B75: 北竜町 | C75: 782 | D75: 938 | E75: 1043 | F75: 1981 | G75: -0.1070166583 | H75: 2.533248082 | I75: 215 | J75: 1123 | K75: 855 | L75: 0.1085310449 | M75: 0.5668854114 | N75: 0.4316002019 | P75: 2193
A76: 73 | B76: 沼田町 | C76: 1333 | D76: 1501 | E76: 1680 | F76: 3181 | G76: -0.1354919837 | H76: 2.386346587 | I76: 357 | J76: 1984 | K76: 1271 | L76: 0.1122288588 | M76: 0.623703238 | N76: 0.3995598868 | P76: 3612
A77: 74 | B77: 旭川市 | C77: 155747 | D77: 156402 | E77: 183203 | F77: 339605 | G77: -0.02205503453 | H77: 2.180491438 | I77: 40260 | J77: 213269 | K77: 91937 | L77: 0.1185494913 | M77: 0.6279913429 | N77: 0.2707174512 | P77: 347095
A78: 75 | B78: 士別市 | C78: 8650 | D78: 9382 | E78: 10532 | F78: 19914 | G78: -0.09405443407 | H78: 2.302196532 | I78: 2443 | J78: 11370 | K78: 6427 | L78: 0.1226775133 | M78: 0.570955107 | N78: 0.3227377724 | P78: 21787
A79: 76 | B79: 名寄市 | C79: 13086 | D79: 14072 | E79: 14976 | F79: 29048 | G79: -0.05311897549 | H79: 2.219776861 | I79: 3308 | J79: 16186 | K79: 6549 | L79: 0.1138804737 | M79: 0.5572156431 | N79: 0.2254544203 | P79: 30591
A80: 77 | B80: 富良野市 | C80: 9929 | D80: 10783 | E80: 12153 | F80: 22936 | G80: -0.05768224625 | H80: 2.310001007 | I80: 3155 | J80: 14591 | K80: 6512 | L80: 0.1375566795 | M80: 0.6361614928 | N80: 0.2839204744 | P80: 24259
A81: 78 | B81: 鷹栖町 | C81: 2717 | D81: 3309 | E81: 3709 | F81: 7018 | G81: -0.04659447136 | H81: 2.582995951 | I81: 1159 | J81: 4214 | K81: 1972 | L81: 0.1651467655 | M81: 0.6004559704 | N81: 0.2809917355 | P81: 7345
A82: 79 | B82: 東神楽町 | C82: 3657 | D82: 4772 | E82: 5461 | F82: 10233 | G82: 0.09195739275 | H82: 2.798195242 | I82: 1583 | J82: 5618 | K82: 2091 | L82: 0.1546955927 | M82: 0.549008111 | N82: 0.2043389035 | P82: 9292
A83: 80 | B83: 当麻町 | C83: 2698 | D83: 3076 | E83: 3613 | F83: 6689 | G83: -0.05950067275 | H83: 2.479243884 | I83: 809 | J83: 3773 | K83: 2505 | L83: 0.1209448348 | M83: 0.5640603977 | N83: 0.3744954403 | P83: 7087
A84: 81 | B84: 比布町 | C84: 1586 | D84: 1787 | E84: 1990 | F84: 3777 | G84: -0.07016150384 | H84: 2.381462799 | I84: 402 | J84: 2162 | K84: 1478 | L84: 0.1064336775 | M84: 0.5724119672 | N84: 0.3913158591 | P84: 4042
A85: 82 | B85: 愛別町 | C85: 1305 | D85: 1393 | E85: 1583 | F85: 2976 | G85: -0.1182795699 | H85: 2.28045977 | I85: 342 | J85: 1731 | K85: 1255 | L85: 0.1149193548 | M85: 0.5816532258 | N85: 0.4217069892 | P85: 3328
A86: 83 | B86: 上川町 | C86: 2102 | D86: 1936 | E86: 2108 | F86: 4044 | G86: -0.1206726014 | H86: 1.923882017 | I86: 444 | J86: 2496 | K86: 1592 | L86: 0.1097922849 | M86: 0.6172106825 | N86: 0.393669634 | P86: 4532
A87: 84 | B87: 東川町 | C87: 3148 | D87: 3719 | E87: 4392 | F87: 8111 | G87: 0.03106891875 | H87: 2.576556544 | I87: 1070 | J87: 4592 | K87: 2197 | L87: 0.1319196153 | M87: 0.5661447417 | N87: 0.2708667242 | P87: 7859
A88: 85 | B88: 美瑛町 | C88: 4288 | D88: 4826 | E88: 5466 | F88: 10292 | G88: -0.06451612903 | H88: 2.400186567 | I88: 1265 | J88: 6025 | K88: 3666 | L88: 0.1229109988 | M88: 0.5854061407 | N88: 0.3561989895 | P88: 10956
A89: 86 | B89: 上富良野町 | C89: 4363 | D89: 5442 | E89: 5384 | F89: 10826 | G89: -0.06641418807 | H89: 2.481320193 | I89: 1639 | J89: 6970 | K89: 2936 | L89: 0.1513947903 | M89: 0.6438204323 | N89: 0.2711989655 | P89: 11545
A90: 87 | B90: 中富良野町 | C90: 2025 | D90: 2405 | E90: 2664 | F90: 5069 | G90: -0.08048924837 | H90: 2.503209877 | I90: 772 | J90: 3096 | K90: 1609 | L90: 0.1522982837 | M90: 0.6107713553 | N90: 0.3174196094 | P90: 5477
A91: 88 | B91: 南富良野町 | C91: 1132 | D91: 1273 | E91: 1282 | F91: 2555 | G91: -0.101369863 | H91: 2.257067138 | I91: 324 | J91: 1637 | K91: 853 | L91: 0.1268101761 | M91: 0.640704501 | N91: 0.3338551859 | P91: 2814
A92: 89 | B92: 占冠村 | C92: 704 | D92: 604 | E92: 607 | F92: 1211 | G92: -0.1511147812 | H92: 1.720170455 | I92: 130 | J92: 964 | K92: 294 | L92: 0.1073492981 | M92: 0.7960363336 | N92: 0.2427745665 | P92: 1394
A93: 90 | B93: 和寒町 | C93: 1533 | D93: 1656 | E93: 1940 | F93: 3596 | G93: -0.06562847608 | H93: 2.345727332 | I93: 400 | J93: 1927 | K93: 1505 | L93: 0.1112347052 | M93: 0.5358731924 | N93: 0.4185205784 | P93: 3832
A94: 91 | B94: 剣淵町 | C94: 1330 | D94: 1567 | E94: 1661 | F94: 3228 | G94: -0.1043990087 | H94: 2.427067669 | I94: 385 | J94: 1978 | K94: 1202 | L94: 0.1192688971 | M94: 0.6127633209 | N94: 0.3723667906 | P94: 3565
A95: 92 | B95: 下川町 | C95: 1674 | D95: 1718 | E95: 1829 | F95: 3547 | G95: -0.06427967296 | H95: 2.118876941 | I95: 365 | J95: 2032 | K95: 1378 | L95: 0.1029038624 | M95: 0.5728784889 | N95: 0.3884973217 | P95: 3775
A96: 93 | B96: 美深町 | C96: 2041 | D96: 2287 | E96: 2372 | F96: 4659 | G96: -0.1113972956 | H96: 2.282704557 | I96: 548 | J96: 2870 | K96: 1760 | L96: 0.1176218073 | M96: 0.6160120197 | N96: 0.3777634686 | P96: 5178
A97: 94 | B97: 音威子府村 | C97: 405 | D97: 435 | E97: 397 | F97: 832 | G97: -0.1959134615 | H97: 2.054320988 | I97: 53 | J97: 696 | K97: 246 | L97: 0.06370192308 | M97: 0.8365384615 | N97: 0.2956730769 | P97: 995
A98: 95 | B98: 中川町 | C98: 897 | D98: 938 | E98: 829 | F98: 1767 | G98: -0.0792303339 | H98: 1.969899666 | I98: 53 | J98: 696 | K98: 246 | L98: 0.02999434069 | M98: 0.3938879457 | N98: 0.1392190153 | P98: 1907
A99: 96 | B99: 幌加内町 | C99: 690 | D99: 754 | E99: 771 | F99: =SUM(D99:E99) -> 1525 | G99: =((1-(P99/F99))*100)/100 -> -0.1213114754 | H99: =F99/C99 -> 2.210144928 | I99: 193 | J99: 897 | K99: 620 | L99: 0.126557377 | M99: 0.5881967213 | N99: 0.406557377 | P99: 1710
A100: 97 | B100: 留萌市 | C100: 10402 | D100: 10516 | E100: 11705 | F100: 22221 | G100: -0.1006255344 | H100: 2.136223803 | I100: 2751 | J100: 14807 | K100: 6899 | L100: 0.1238018091 | M100: 0.6663516493 | N100: 0.310472076 | P100: 24457
A101: 98 | B101: 増毛町 | C101: 2051 | D101: 2024 | E101: 2473 | F101: 4497 | G101: -0.1291972426 | H101: 2.192588981 | I101: 479 | J101: 2658 | K101: 1941 | L101: 0.1065154547 | M101: 0.5910607071 | N101: 0.4316210807 | P101: 5078
A102: 99 | B102: 小平町 | C102: 1406 | D102: 1585 | E102: 1751 | F102: 3336 | G102: -0.1142086331 | H102: 2.372688478 | I102: 357 | J102: 2071 | K102: 1289 | L102: 0.1070143885 | M102: 0.6208033573 | N102: 0.3863908873 | P102: 3717
A103: 100 | B103: 苫前町 | C103: 1420 | D103: 1549 | E103: 1716 | F103: 3265 | G103: -0.119754977 | H103: 2.299295775 | I103: 392 | J103: 1927 | K103: 1337 | L103: 0.1200612557 | M103: 0.5901990812 | N103: 0.4094946401 | P103: 3656
A104: 101 | B104: 羽幌町 | C104: 3367 | D104: 3490 | E104: 3837 | F104: 7327 | G104: -0.0869387198 | H104: 2.176121176 | I104: 828 | J104: 4284 | K104: 2850 | L104: 0.1130066876 | M104: 0.5846867749 | N104: 0.3889722943 | P104: 7964
A105: 102 | B105: 初山別村 | C105: 537 | D105: 578 | E105: 639 | F105: 1217 | G105: -0.1248972884 | H105: 2.266294227 | I105: 157 | J105: 741 | K105: 471 | L105: 0.1290057518 | M105: 0.608874281 | N105: 0.3870172555 | P105: 1369
A106: 103 | B106: 遠別町 | C106: 1225 | D106: 1368 | E106: 1438 | F106: 2806 | G106: -0.09907341411 | H106: 2.290612245 | I106: 371 | J106: 1656 | K106: 1057 | L106: 0.1322166785 | M106: 0.5901639344 | N106: 0.3766928011 | P106: 3084
A107: 104 | B107: 天塩町 | C107: 1502 | D107: 1643 | E107: 1600 | F107: 3243 | G107: -0.1655874191 | H107: 2.159121172 | I107: 453 | J107: 2275 | K107: 1052 | L107: 0.1396854764 | M107: 0.7015109467 | N107: 0.324390996 | P107: 3780
A108: 105 | B108: 稚内市 | C108: 16486 | D108: 17809 | E108: 18571 | F108: 36380 | G108: -0.08837273227 | H108: 2.206720854 | I108: 4807 | J108: 25125 | K108: 9663 | L108: 0.1321330401 | M108: 0.690626718 | N108: 0.2656129742 | P108: 39595
A109: 106 | B109: 猿払村 | C109: 1174 | D109: 1282 | E109: 1402 | F109: 2684 | G109: -0.05253353204 | H109: 2.286201022 | I109: 435 | J109: 1776 | K109: 614 | L109: 0.162071535 | M109: 0.6616989568 | N109: 0.2287630402 | P109: 2825
A110: 107 | B110: 浜頓別町 | C110: 1845 | D110: 1871 | E110: 2010 | F110: 3881 | G110: -0.07395001288 | H110: 2.103523035 | I110: 504 | J110: 2516 | K110: 1148 | L110: 0.1298634373 | M110: 0.6482865241 | N110: 0.2958000515 | P110: 4168
A111: 108 | B111: 中頓別町 | C111: 775 | D111: 869 | E111: 888 | F111: 1757 | G111: -0.1235059761 | H111: 2.267096774 | I111: 207 | J111: 1057 | K111: 710 | L111: 0.1178144565 | M111: 0.6015936255 | N111: 0.4040978941 | P111: 1974
A112: 109 | B112: 枝幸町 | C112: 3772 | D112: 3983 | E112: 4454 | F112: 8437 | G112: -0.08154557307 | H112: 2.236744433 | I112: 955 | J112: 4291 | K112: 1906 | L112: 0.1131918929 | M112: 0.5085931018 | N112: 0.2259096835 | P112: 9125
A113: 110 | B113: 豊富町 | C113: 1782 | D113: 2037 | E113: 2017 | F113: 4054 | G113: -0.07992106561 | H113: 2.274971942 | I113: 528 | J113: 2658 | K113: 1192 | L113: 0.1302417366 | M113: 0.655648742 | N113: 0.2940305871 | P113: 4378
A114: 111 | B114: 礼文町 | C114: 1353 | D114: 1398 | E114: 1375 | F114: 2773 | G114: -0.1099891814 | H114: 2.049519586 | I114: 316 | J114: 1816 | K114: 946 | L114: 0.1139560043 | M114: 0.6548864046 | N114: 0.3411467724 | P114: 3078
A115: 112 | B115: 利尻町 | C115: 1154 | D115: 1122 | E115: 1181 | F115: 2303 | G115: -0.1246200608 | H115: 1.995667244 | I115: 241 | J115: 1465 | K115: 884 | L115: 0.1046461138 | M115: 0.6361267911 | N115: 0.3838471559 | P115: 2590
A116: 113 | B116: 利尻富士町 | C116: 1264 | D116: 1321 | E116: 1466 | F116: =SUM(D116:E116) -> 2787 | G116: =((1-(P116/F116))*100)/100 -> -0.08970218873 | H116: 2.204905063 | I116: 342 | J116: 1665 | K116: 1030 | L116: 0.1227125942 | M116: 0.597416577 | N116: 0.3695730176 | P116: 3037
A117: 114 | B117: 幌延町 | C117: 1138 | D117: 1279 | E117: 1168 | F117: =SUM(D117:E117) -> 2447 | G117: =((1-(P117/F117))*100)/100 -> -0.09399264405 | H117: =F117/C117 -> 2.15026362 | I117: 328 | J117: 1738 | K117: 611 | L117: =I117/F117 -> 0.1340416837 | M117: =J117/F117 -> 0.7102574581 | N117: =K117/F117 -> 0.2496935022 | P117: 2677
A118: 115 | B118: 北見市 | C118: 56202 | D118: 58020 | E118: 63206 | F118: 121226 | G118: -0.03681553462 | H118: 2.156969503 | I118: 13459 | J118: 68624 | K118: 26223 | L118: 0.1110240377 | M118: 0.5660831835 | N118: 0.2163149819 | P118: 125689
A119: 116 | B119: 網走市 | C119: 18035 | D119: 19819 | E119: 19258 | F119: 39077 | G119: -0.04915935205 | H119: =F119/C119 -> 2.166731356 | I119: 5061 | J119: 26578 | K119: 9324 | L119: 0.1295135246 | M119: 0.6801443304 | N119: 0.2386058295 | P119: 40998
A120: 117 | B120: 紋別市 | C120: 11127 | D120: 10954 | E120: 12155 | F120: 23109 | G120: -0.0710112943 | H120: 2.076840119 | I120: 2774 | J120: 14855 | K120: 7103 | L120: 0.1200398113 | M120: 0.6428231425 | N120: 0.3073694232 | P120: 24750
A121: 118 | B121: 美幌町 | C121: 8626 | D121: 9763 | E121: 10533 | F121: 20296 | G121: -0.06301734332 | H121: 2.352886622 | I121: 2720 | J121: 12903 | K121: 5950 | L121: 0.134016555 | M121: 0.6357410327 | N121: 0.293161214 | P121: 21575
A122: 119 | B122: 津別町 | C122: 2231 | D122: 2427 | E122: 2581 | F122: 5008 | G122: -0.1273961661 | H122: 2.244733303 | I122: 573 | J122: 2964 | K122: 2109 | L122: 0.1144169329 | M122: 0.5918530351 | N122: 0.4211261981 | P122: 5646
A123: 120 | B123: 斜里町 | C123: 5547 | D123: 6113 | E123: 6118 | F123: 12231 | G123: -0.06655220342 | H123: 2.204975663 | I123: 1535 | J123: 8070 | K123: 3440 | L123: 0.1255007767 | M123: 0.6597988717 | N123: 0.281252555 | P123: 13045
A124: 121 | B124: 清里町 | C124: 1671 | D124: 2049 | E124: 2172 | F124: 4221 | G124: -0.07818052594 | H124: 2.526032316 | I124: 554 | J124: 2497 | K124: 1500 | L124: 0.1312485193 | M124: 0.5915659796 | N124: 0.355366027 | P124: 4551
A125: 122 | B125: 小清水町 | C125: 2033 | D125: 2414 | E125: 2671 | F125: 5085 | G125: -0.05368731563 | H125: 2.50122971 | I125: 630 | J125: 3025 | K125: 1703 | L125: 0.1238938053 | M125: 0.5948869223 | N125: 0.334906588 | P125: 5358
A126: 123 | B126: 訓子府町 | C126: 1910 | D126: 2412 | E126: 2688 | F126: 5100 | G126: -0.06568627451 | H126: 2.670157068 | I126: 660 | J126: 3079 | K126: 1696 | L126: 0.1294117647 | M126: 0.6037254902 | N126: 0.3325490196 | P126: 5435
A127: 124 | B127: 置戸町 | C127: 1304 | D127: 1424 | E127: 1668 | F127: 3092 | G127: -0.1086675291 | H127: 2.371165644 | I127: 344 | J127: 1779 | K127: 1305 | L127: 0.1112548512 | M127: 0.5753557568 | N127: 0.4220569211 | P127: 3428
A128: 125 | B128: 佐呂間町 | C128: 2311 | D128: 2498 | E128: 2864 | F128: 5362 | G128: -0.09884371503 | H128: 2.320207702 | I128: 671 | J128: 3268 | K128: 1953 | L128: 0.1251398732 | M128: 0.6094740768 | N128: 0.364229765 | P128: 5892
A129: 126 | B129: 遠軽町 | C129: 9278 | D129: 10081 | E129: 10792 | F129: 20873 | G129: -0.0666890241 | H129: 2.249730545 | I129: 2275 | J129: 10151 | K129: 5015 | L129: 0.1089924783 | M129: 0.4863220428 | N129: 0.2402625401 | P129: 22265
A130: 127 | B130: 湧別町 | C130: 3861 | D130: 4378 | E130: 4853 | F130: 9231 | G130: -0.0877478063 | H130: 2.390831391 | I130: 634 | J130: 2931 | K130: 1862 | L130: 0.06868161629 | M130: 0.3175170621 | N130: 0.2017116239 | P130: 10041
A131: 128 | B131: 滝上町 | C131: 1295 | D131: 1292 | E131: 1429 | F131: 2721 | G131: -0.1128261669 | H131: 2.101158301 | I131: 269 | J131: 1593 | K131: 1166 | L131: 0.09886071297 | M131: 0.585446527 | N131: 0.4285189269 | P131: 3028
A132: 129 | B132: 興部町 | C132: 1757 | D132: 1895 | E132: 2014 | F132: 3909 | G132: -0.1002814019 | H132: 2.224815026 | I132: 553 | J132: 2550 | K132: 1198 | L132: 0.1414684062 | M132: 0.6523407521 | N132: 0.3064722435 | P132: 4301
A133: 130 | B133: 西興部村 | C133: 501 | D133: 542 | E133: 574 | F133: 1116 | G133: -0.01702508961 | H133: 2.22754491 | I133: 109 | J133: 643 | K133: 383 | L133: 0.0976702509 | M133: 0.5761648746 | N133: 0.3431899642 | P133: 1135
A134: 131 | B134: 雄武町 | C134: 2062 | D134: 2136 | E134: 2389 | F134: 4525 | G134: -0.09149171271 | H134: 2.194471387 | I134: 534 | J134: 2964 | K134: 1441 | L134: 0.1180110497 | M134: 0.6550276243 | N134: 0.3184530387 | P134: 4939
A135: 132 | B135: 大空町 | C135: 2874 | D135: 3552 | E135: 3808 | F135: =SUM(D135:E135) -> 7360 | G135: =((1-(P135/F135))*100)/100 -> -0.07785326087 | H135: =F135/C135 -> 2.560890745 | I135: 744 | J135: 3156 | K135: 1589 | L135: 0.1010869565 | M135: 0.4288043478 | N135: 0.2158967391 | P135: 7933
A136: 133 | B136: 室蘭市 | C136: 43616 | D136: 43143 | E136: 45421 | F136: 88564 | G136: -0.06742017072 | H136: 2.030539252 | I136: 10484 | J136: 56279 | K136: 27699 | L136: 0.1183776704 | M136: 0.6354613613 | N136: 0.3127568764 | P136: 94535
A137: 134 | B137: 苫小牧市 | C137: 78298 | D137: 84605 | E137: 88132 | F137: 172737 | G137: -0.003375073088 | H137: 2.206148305 | I137: 23476 | J137: 113284 | K137: 36515 | L137: 0.1359060306 | M137: 0.6558178039 | N137: 0.2113907269 | P137: 173320
A138: 135 | B138: 登別市 | C138: 21681 | D138: 23533 | E138: 26092 | F138: 49625 | G138: -0.03830730479 | H138: 2.28887044 | I138: 6086 | J138: 30802 | K138: 14612 | L138: 0.1226397985 | M138: 0.6206952141 | N138: 0.2944483627 | P138: 51526
A139: 136 | B139: 伊達市 | C139: 15054 | D139: 16279 | E139: 18716 | F139: 34995 | G139: -0.03666238034 | H139: 2.324631327 | I139: 4144 | J139: 20212 | K139: 10386 | L139: 0.1184169167 | M139: 0.577568224 | N139: 0.296785255 | P139: 36278
A140: 137 | B140: 豊浦町 | C140: 1973 | D140: 2000 | E140: 2291 | F140: 4291 | G140: -0.05523188068 | H140: 2.174860618 | I140: 447 | J140: 2525 | K140: 1556 | L140: 0.1041715218 | M140: 0.5884409229 | N140: 0.362619436 | P140: 4528
A141: 138 | B141: 壮瞥町 | C141: 1168 | D141: 1370 | E141: 1552 | F141: 2922 | G141: -0.106091718 | H141: 2.501712329 | I141: 350 | J141: 1633 | K141: 1249 | L141: 0.1197809719 | M141: 0.5588637919 | N141: 0.4274469541 | P141: 3232
A142: 139 | B142: 白老町 | C142: 7955 | D142: 8489 | E142: 9251 | F142: 17740 | G142: -0.09222096956 | H142: 2.230043997 | I142: 1917 | J142: 10852 | K142: 6600 | L142: 0.1080608794 | M142: 0.6117249154 | N142: 0.3720405862 | P142: 19376
A143: 140 | B143: 厚真町 | C143: 2126 | D143: 2482 | E143: 2356 | F143: 4838 | G143: -0.01074824308 | H143: 2.275634995 | I143: 554 | J143: 2751 | K143: 1585 | L143: 0.1145101282 | M143: 0.5686233981 | N143: 0.3276147168 | P143: 4890
A144: 141 | B144: 洞爺湖町 | C144: 4240 | D144: 4280 | E144: 5019 | F144: =SUM(D144:E144) -> 9299 | G144: =((1-(P144/F144))*100)/100 -> -0.08957952468 | H144: =F144/C144 -> 2.193160377 | I144: 833 | J144: 4615 | K144: 2864 | L144: 0.08957952468 | M144: 0.4962899236 | N144: 0.3079901065 | P144: 10132
A145: 142 | B145: 安平町 | C145: 3651 | D145: 4049 | E145: 4099 | F145: =SUM(D145:E145) -> 8148 | G145: =((1-(P145/F145))*100)/100 -> -0.07093765341 | H145: =F145/C145 -> 2.231717338 | I145: 642 | J145: 2970 | K145: 1403 | L145: 0.07879234168 | M145: 0.3645066274 | N145: 0.1721894944 | P145: 8726
A146: 143 | B146: むかわ町 | C146: 3784 | D146: 4211 | E146: 4385 | F146: 8596 | G146: -0.133783155 | H146: 2.27167019 | I146: 710 | J146: 3674 | K146: 1987 | L146: 0.08259655654 | M146: 0.4274080968 | N146: 0.2311540251 | P146: 9746
A147: 144 | B147: 日高町 | C147: 5781 | D147: 6174 | E147: 6204 | F147: =SUM(D147:E147) -> 12378 | G147: =((1-(P147/F147))*100)/100 -> -0.0999353692 | H147: =F147/C147 -> 2.14115205 | I147: 1507 | J147: 7062 | K147: 3248 | L147: 0.121748263 | M147: 0.5705283568 | N147: 0.2624010341 | P147: 13615
A148: 145 | B148: 平取町 | C148: 2373 | D148: 2630 | E148: 2685 | F148: 5315 | G148: -0.05286923801 | H148: 2.239780868 | I148: 719 | J148: 3263 | K148: 1614 | L148: 0.1352775165 | M148: 0.6139228598 | N148: 0.3036688617 | P148: 5596
A149: 146 | B149: 新冠町 | C149: 2405 | D149: 2717 | E149: 2875 | F149: 5592 | G149: -0.03272532189 | H149: 2.325155925 | I149: 755 | J149: 3458 | K149: 1562 | L149: 0.1350143062 | M149: 0.6183834049 | N149: 0.2793276109 | P149: 5775
A150: 147 | B150: 浦河町 | C150: 6178 | D150: 6368 | E150: 6707 | F150: 13075 | G150: -0.1004971319 | H150: 2.116380706 | I150: 1794 | J150: 8979 | K150: 3616 | L150: 0.137208413 | M150: 0.6867304015 | N150: 0.2765583174 | P150: 14389
A151: 148 | B151: 様似町 | C151: 2044 | D151: 2139 | E151: 2379 | F151: 4518 | G151: -0.1319167773 | H151: 2.21037182 | I151: 589 | J151: 2949 | K151: 1576 | L151: 0.1303674192 | M151: 0.6527224436 | N151: 0.3488269146 | P151: 5114
A152: 149 | B152: えりも町 | C152: 1929 | D152: 2449 | E152: 2457 | F152: 4906 | G152: -0.1033428455 | H152: 2.543286677 | I152: 767 | J152: 3330 | K152: 1316 | L152: 0.1563391765 | M152: 0.6787607012 | N152: 0.2682429678 | P152: 5413
A153: 150 | B153: 新ひだか町 | C153: 10443 | D153: 11188 | E153: 12043 | F153: =SUM(D153:E153) -> 23231 | G153: =((1-(P153/F153))*100)/100 -> -0.09418449486 | H153: =F153/C153 -> 2.224552332 | I153: 2767 | J153: 12668 | K153: 5430 | L153: 0.1191080883 | M153: 0.5453058413 | N153: 0.2337393999 | P153: 25419
A154: 151 | B154: 帯広市 | C154: 77707 | D154: 80994 | E154: 88333 | F154: 169327 | G154: 0.007500280522 | H154: 2.179044359 | I154: 21472 | J154: 109040 | K154: 37544 | L154: 0.1268078924 | M154: 0.643961093 | N154: 0.2217248283 | P154: 168057
A155: 152 | B155: 音更町 | C155: 18019 | D155: 21080 | E155: 23727 | F155: 44807 | G155: -0.006204387707 | H155: 2.486652977 | I155: 7213 | J155: 27537 | K155: 10295 | L155: 0.1609793113 | M155: 0.6145691521 | N155: 0.2297632066 | P155: 45085
A156: 153 | B156: 士幌町 | C156: 2479 | D156: 2939 | E156: 3193 | F156: 6132 | G156: -0.04631441618 | H156: 2.473578056 | I156: 911 | J156: 3774 | K156: 1731 | L156: 0.1485649054 | M156: 0.6154598826 | N156: 0.2822896282 | P156: 6416
A157: 154 | B157: 上士幌町 | C157: 2177 | D157: 2300 | E157: 2465 | F157: 4765 | G157: -0.06610703043 | H157: 2.188791915 | I157: 609 | J157: 2836 | K157: 1633 | L157: 0.1278069255 | M157: 0.5951731375 | N157: 0.3427072403 | P157: 5080
A158: 155 | B158: 鹿追町 | C158: 2258 | D158: 2718 | E158: 2824 | F158: 5542 | G158: -0.02887044388 | H158: 2.454384411 | I158: 809 | J158: 3415 | K158: 1478 | L158: 0.1459761819 | M158: 0.6162035366 | N158: 0.2666907254 | P158: 5702
A159: 156 | B159: 新得町 | C159: 3043 | D159: 3123 | E159: 3165 | F159: 6288 | G159: -0.05804707379 | H159: 2.06638186 | I159: 693 | J159: 3849 | K159: 2111 | L159: 0.1102099237 | M159: 0.6121183206 | N159: 0.3357188295 | P159: 6653
A160: 157 | B160: 清水町 | C160: 4131 | D160: 4683 | E160: 4916 | F160: 9599 | G160: -0.03771226169 | H160: 2.323650448 | I160: 1160 | J160: 5722 | K160: 3077 | L160: 0.1208459215 | M160: 0.5961037608 | N160: 0.3205542244 | P160: 9961
A161: 158 | B161: 芽室町 | C161: 7169 | D161: 8773 | E161: 9711 | F161: 18484 | G161: -0.02277645531 | H161: 2.578323337 | I161: 3080 | J161: 11458 | K161: 4361 | L161: 0.1666305994 | M161: 0.6198874702 | N161: 0.2359337806 | P161: 18905
A162: 159 | B162: 中札内村 | C162: 1609 | D162: 1932 | E162: 2034 | F162: 3966 | G162: -0.01008572869 | H162: 2.464885022 | I162: 526 | J162: 2482 | K162: 998 | L162: 0.1326273323 | M162: 0.6258194655 | N162: 0.2516389309 | P162: 4006
A163: 160 | B163: 更別村 | C163: 1239 | D163: 1567 | E163: 1618 | F163: 3185 | G163: -0.06467817896 | H163: 2.570621469 | I163: 484 | J163: 1999 | K163: 908 | L163: 0.1519623234 | M163: 0.6276295133 | N163: 0.2850863422 | P163: 3391
A164: 161 | B164: 大樹町 | C164: 2534 | D164: 2810 | E164: 2928 | F164: 5738 | G164: -0.0416521436 | H164: 2.264404104 | I164: 724 | J164: 3435 | K164: 1818 | L164: 0.1261763681 | M164: 0.5986406413 | N164: 0.3168351342 | P164: 5977
A165: 162 | B165: 広尾町 | C165: 3157 | D165: 3357 | E165: 3673 | F165: 7030 | G165: -0.1210526316 | H165: 2.226797593 | I165: 1011 | J165: 4593 | K165: 2277 | L165: 0.1438122333 | M165: 0.6533428165 | N165: 0.3238975818 | P165: 7881
A166: 163 | B166: 幕別町 | C166: 10944 | D166: 12627 | E166: 14133 | F166: =SUM(D166:E166) -> 26760 | G166: =((1-(P166/F166))*100)/100 -> 0.007959641256 | H166: 2.445175439 | I166: 3514 | J166: 15045 | K166: 6366 | L166: =I166/F166 -> 0.1313153961 | M166: =J166/F166 -> 0.5622197309 | N166: =K166/F166 -> 0.2378923767 | P166: 26547
A167: 164 | B167: 池田町 | C167: 3044 | D167: 3253 | E167: 3629 | F167: 6882 | G167: -0.09372275501 | H167: 2.260840999 | I167: 827 | J167: 4104 | K167: 2596 | L167: 0.1201685557 | M167: 0.5963382738 | N167: 0.3772159256 | P167: 7527
A168: 165 | B168: 豊頃町 | C168: 1362 | D168: 1523 | E168: 1659 | F168: 3182 | G168: -0.0666247643 | H168: =F168/C168 -> 2.336270191 | I168: 374 | J168: 1862 | K168: 1158 | L168: 0.1175361408 | M168: 0.5851665619 | N168: 0.3639220616 | P168: 3394
A169: 166 | B169: 本別町 | C169: 3260 | D169: 3615 | E169: 3743 | F169: 7358 | G169: -0.1246262571 | H169: 2.257055215 | I169: 898 | J169: 4634 | K169: 2743 | L169: 0.1220440337 | M169: 0.629790704 | N169: 0.3727915194 | P169: 8275
A170: 167 | B170: 足寄町 | C170: 3179 | D170: 3380 | E170: 3610 | F170: 6990 | G170: -0.09155937053 | H170: 2.198804656 | I170: 870 | J170: 4171 | K170: 2589 | L170: 0.1244635193 | M170: 0.5967095851 | N170: 0.3703862661 | P170: 7630
A171: 168 | B171: 陸別町 | C171: 1128 | D171: 1253 | E171: 1229 | F171: 2482 | G171: -0.06768734891 | H171: 2.20035461 | I171: 260 | J171: 1430 | K171: 960 | L171: 0.1047542305 | M171: 0.5761482675 | N171: 0.3867848509 | P171: 2650
A172: 169 | B172: 浦幌町 | C172: 2086 | D172: 2361 | E172: 2558 | F172: 4919 | G172: -0.1099817036 | H172: 2.35810163 | I172: 591 | J172: 3041 | K172: 1827 | L172: 0.1201463712 | M172: 0.6182150844 | N172: 0.3714169547 | P172: 5460
A173: 170 | B173: 釧路市 | C173: 82078 | D173: 82185 | E173: 92557 | F173: 174742 | G173: -0.03677993842 | H173: 2.128974878 | I173: 21472 | J173: 109040 | K173: 37544 | L173: 0.1228783006 | M173: 0.6240056769 | N173: 0.2148538989 | P173: 181169
A174: 171 | B174: 釧路町 | C174: 8119 | D174: 9373 | E174: 10460 | F174: 19833 | G174: -0.03494176373 | H174: 2.442788521 | I174: 2802 | J174: 13711 | K174: 4001 | L174: 0.1412796854 | M174: 0.6913225432 | N174: 0.2017344829 | P174: 20526
A175: 172 | B175: 厚岸町 | C175: 4115 | D175: 4628 | E175: 5150 | F175: 9778 | G175: -0.08713438331 | H175: 2.37618469 | I175: 1274 | J175: 6315 | K175: 3041 | L175: 0.1302924934 | M175: 0.6458375946 | N175: 0.3110042954 | P175: 10630
A176: 173 | B176: 浜中町 | C176: 2325 | D176: 2954 | E176: 3107 | F176: 6061 | G176: -0.07424517406 | H176: 2.60688172 | I176: 855 | J176: 3970 | K176: 1686 | L176: 0.1410658307 | M176: 0.6550074245 | N176: 0.2781719188 | P176: 6511
A177: 174 | B177: 標茶町 | C177: 3281 | D177: 3717 | E177: 4025 | F177: 7742 | G177: -0.07013691553 | H177: 2.359646449 | I177: 1055 | J177: 4884 | K177: 2346 | L177: 0.1362696978 | M177: 0.630844743 | N177: 0.3030224748 | P177: 8285
A178: 175 | B178: 弟子屈町 | C178: 3509 | D178: 3679 | E178: 4079 | F178: 7758 | G178: -0.06702758443 | H178: 2.210886292 | I178: 950 | J178: 4731 | K178: 2594 | L178: 0.1224542408 | M178: 0.6098221191 | N178: 0.3343645269 | P178: 8278
A179: 176 | B179: 鶴居村 | C179: 1026 | D179: 1234 | E179: 1300 | F179: 2534 | G179: -0.03670086819 | H179: 2.469785575 | I179: 364 | J179: 1499 | K179: 764 | L179: 0.1436464088 | M179: 0.591554854 | N179: 0.3014996054 | P179: 2627
A180: 177 | B180: 白糠町 | C180: 3609 | D180: 3752 | E180: 4316 | F180: 8068 | G180: -0.151958354 | H180: 2.235522305 | I180: 1034 | J180: 5399 | K180: 2861 | L180: 0.1281606346 | M180: 0.6691869113 | N180: 0.3546108081 | P180: 9294
A181: 178 | B181: 根室市 | C181: 11383 | D181: 12862 | E181: 14055 | F181: 26917 | G181: -0.08485343835 | H181: 2.364666608 | I181: 3565 | J181: 17899 | K181: 7732 | L181: 0.1324441803 | M181: 0.6649700932 | N181: 0.2872534086 | P181: 29201
A182: 179 | B182: 別海町 | C182: 5997 | D182: 7687 | E182: 7586 | F182: 15273 | G182: -0.03810646238 | H182: 2.546773387 | I182: 2511 | J182: 9985 | K182: 3359 | L182: 0.1644077784 | M182: 0.6537680875 | N182: 0.2199305965 | P182: 15855
A183: 180 | B183: 中標津町 | C183: 10437 | D183: 11628 | E183: 12146 | F183: 23774 | G183: -0.008749053588 | H183: 2.277857622 | I183: 3779 | J183: 15558 | K183: 4629 | L183: 0.1589551611 | M183: 0.6544123833 | N183: 0.1947085051 | P183: 23982
A184: 181 | B184: 標津町 | C184: 2169 | D184: 2565 | E184: 2677 | F184: 5242 | G184: -0.07706982068 | H184: 2.416781927 | I184: 815 | J184: 3447 | K184: 1384 | L184: 0.1554750095 | M184: 0.6575734452 | N184: 0.2640213659 | P184: 5646
A185: 182 | B185: 羅臼町 | C185: 2101 | D185: 2697 | E185: 2718 | F185: 5415 | G185: -0.08679593721 | H185: 2.577344122 | I185: 786 | J185: 3745 | K185: 1354 | L185: 0.1451523546 | M185: 0.6915974146 | N185: 0.2500461681 | P185: 5885

Sheet 推移 (hidden)
A1: 1 | B1: 2 | C1: 3 | D1: 4 | E1: 5 | F1: 6 | G1: 7 | H1: 8 | I1: 9 | J1: 10 | K1: 11 | L1: 12 | M1: 13 | N1: 14 | O1: 15 | P1: 16 | Q1: 17 | R1: 18 | S1: 19 | T1: 20 | U1: 21 | V1: 22 | W1: 23 | X1: 24 | Y1: 25 | Z1: 26 | AA1: 27 | AB1: 28 | AC1: 29 | AD1: 30 | AE1: 31 | AF1: 32 | AG1: 33 | AH1: 34 | AI1: 35 | AJ1: 36 | AK1: 37 | AL1: 38 | AM1: 39 | AN1: 40 | AO1: 41 | AP1: 42 | AQ1: 43 | AR1: 44 | AS1: 45 | AT1: 46 | AU1: 47 | AV1: 48 | AW1: 49 | AX1: 50 | AY1: 51 | AZ1: 52 | BA1: 53 | BB1: 54 | BC1: 55 | BD1: 56 | BE1: 57 | BF1: 58 | BG1: 59 | BH1: 60 | BI1: 61 | BJ1: 62 | BK1: 63 | BL1: 64 | BM1: 65 | BN1: 66 | BO1: 67 | BP1: 68 | BQ1: 69 | BR1: 70 | BS1: 71 | BT1: 72 | BU1: 73 | BV1: 74 | BW1: 75 | BX1: 76 | BY1: 77 | BZ1: 78 | CA1: 79 | CB1: 80 | CC1: 81 | CD1: 82 | CE1: 83 | CF1: 84 | CG1: 85 | CH1: 86 | CI1: 87 | CJ1: 88 | CK1: 89 | CL1: 90 | CM1: 91 | CN1: 92 | CO1: 93 | CP1: 94 | CQ1: 95 | CR1: 96 | CS1: 97 | CT1: 98
C2: 昭和55年 | O2: 昭和60年 | AA2: 平成２年 | AM2: 平成７年 | AY2: 平成12年 | BK2: 平成17年 | BW2: 平成22年 | CI2: 平成27年
C3: 世帯数 | D3: 男 | E3: 女 | F3: 人口計 | G3: 増減率 | H3: 1世帯当りの人数 | I3: 年少人口 | J3: 生産年齢人口 | K3: 高齢人口 | L3: 年少人口構成比 | M3: 生産年齢人口構成比 | N3: 高齢人口構成比 | O3: 世帯数 | P3: 男 | Q3: 女 | R3: 人口計 | S3: 増減率 | T3: 1世帯当りの人数 | U3: 年少人口 | V3: 生産年齢人口 | W3: 高齢人口 | X3: 年少人口構成比 | Y3: 生産年齢人口構成比 | Z3: 高齢人口構成比 | AA3: 世帯数 | AB3: 男 | AC3: 女 | AD3: 人口計 | AE3: 増減率 | AF3: 1世帯当りの人数 | AG3: 年少人口 | AH3: 生産年齢人口 | AI3: 高齢人口 | AJ3: 年少人口構成比 | AK3: 生産年齢人口構成比 | AL3: 高齢人口構成比 | AM3: 世帯数 | AN3: 男 | AO3: 女 | AP3: 人口計 | AQ3: 増減率 | AR3: 1世帯当りの人数 | AS3: 年少人口 | AT3: 生産年齢人口 | AU3: 高齢人口 | AV3: 年少人口構成比 | AW3: 生産年齢人口構成比 | AX3: 高齢人口構成比 | AY3: 世帯数 | AZ3: 男 | BA3: 女 | BB3: 人口計 | BC3: 増減率 | BD3: 1世帯当りの人数 | BE3: 年少人口 | BF3: 生産年齢人口 | BG3: 高齢人口 | BH3: 年少人口構成比 | BI3: 生産年齢人口構成比 | BJ3: 高齢人口構成比 | BK3: 世帯数 | BL3: 男 | BM3: 女 | BN3: 人口計 | BO3: 増減率 | BP3: 1世帯当りの人数 | BQ3: 年少人口 | BR3: 生産年齢人口 | BS3: 高齢人口 | BT3: 年少人口構成比 | BU3: 生産年齢人口構成比 | BV3: 高齢人口構成比 | BW3: 世帯数 | BX3: 男 | BY3: 女 | BZ3: 人口計 | CA3: 増減率 | CB3: 1世帯当りの人数 | CC3: 年少人口 | CD3: 生産年齢人口 | CE3: 高齢人口 | CF3: 年少人口構成比 | CG3: 生産年齢人口構成比 | CH3: 高齢人口構成比 | CI3: 世帯数 | CJ3: 男 | CK3: 女 | CL3: 人口計 | CM3: 増減率 | CN3: 1世帯当りの人数 | CO3: 年少人口 | CP3: 生産年齢人口 | CQ3: 高齢人口 | CR3: 年少人口構成比 | CS3: 生産年齢人口構成比 | CT3: 高齢人口構成比
A4: 1 | B4: 北海道 | C4: 1843386 | D4: 2737089 | E4: 2838900 | F4: 5575989 | H4: 3.0248624 | I4: 1298324 | J4: 3823808 | K4: 451727 | L4: 0.2328419228 | M4: 0.6857631893 | N4: 0.08101289296 | O4: 1930078 | P4: 2766296 | Q4: 2913143 | R4: 5679439 | S4: 0.01855276257 | T4: 2.942595584 | U4: 1217959 | V4: 3910729 | W4: 549487 | X4: 0.2144505822 | Y4: 0.6885766358 | Z4: 0.0967502248 | AA4: 2031612 | AB4: 2722988 | AC4: 2920659 | AD4: 5643647 | AE4: -0.006302030887 | AF4: 2.777915763 | AG4: 1034251 | AH4: 3924717 | AI4: 674881 | AJ4: 0.1832593357 | AK4: 0.6954221269 | AL4: 0.119582426 | AM4: 2187000 | AN4: 2736844 | AO4: 2955477 | AP4: 5692321 | AQ4: 0.008624564931 | AR4: 2.602798811 | AS4: 898673 | AT4: 3942868 | AU4: 844927 | AV4: 0.1578746174 | AW4: 0.6926643807 | AX4: 0.1484327746 | AY4: 2306419 | AZ4: 2719389 | BA4: 2963673 | BB4: 5683062 | BC4: -0.001626577278 | BD4: 2.464019764 | BE4: 792352 | BF4: 3832902 | BG4: 1031552 | BH4: 0.1394234305 | BI4: 0.6744431083 | BJ4: 0.1815134165 | BK4: 2380251 | BL4: 2675033 | BM4: 2952704 | BN4: 5627737 | BO4: -0.009735068877 | BP4: 2.364346029 | BQ4: 719057 | BR4: 3696064 | BS4: 1205692 | BT4: 0.1277701854 | BU4: 0.6567584804 | BV4: 0.2142409995 | BW4: 2424317 | BX4: 2603345 | BY4: 2903074 | BZ4: 5506419 | CA4: -0.02203210471 | CB4: 2.271327966 | CC4: 657312 | CD4: 3482169 | CE4: 1358068 | CF4: 0.119564555 | CG4: 0.6334039042 | CH4: 0.2470315408 | CI4: 2444810 | CJ4: 2537089 | CK4: 2844644 | CL4: 5381733 | CM4: -0.02316837346 | CN4: 2.201288853 | CO4: 657312 | CP4: 3482169 | CQ4: 1358068 | CR4: 0.1221376088 | CS4: 0.6470348863 | CT4: 0.2523477103
A5: 2 | B5: 市部 | C5: 1359852 | D5: 1952902 | E5: 2029774 | F5: 3982676 | H5: 2.928756953 | I5: 927935 | J5: 2761966 | K5: 290714 | L5: 0.232992842 | M5: 0.693495027 | N5: 0.07299463978 | O5: 1441584 | P5: 2003360 | Q5: 2118775 | R5: 4122135 | S5: 0.03501640605 | T5: 2.859448357 | U5: 884633 | V5: 2875590 | W5: 360761 | X5: 0.2146055381 | Y5: 0.6975972403 | Z5: 0.08751799735 | AA5: 1545348 | AB5: 2007147 | AC5: 2160262 | AD5: 4167409 | AE5: 0.01098314344 | AF5: 2.696744681 | AG5: 758405 | AH5: 2947322 | AI5: 452344 | AJ5: 0.1819847776 | AK5: 0.7072312797 | AL5: 0.1085432219 | AM5: 1678719 | AN5: 2038081 | AO5: 2211040 | AP5: 4249121 | AQ5: 0.01960738675 | AR5: 2.531168707 | AS5: 662716 | AT5: 3002870 | AU5: 577774 | AV5: 0.1559654338 | AW5: 0.70670381 | AX5: 0.1359749463 | AY5: 1820723 | AZ5: 2094897 | BA5: 2294471 | BB5: 4389368 | BC5: 0.03300612056 | BD5: 2.410782969 | BE5: 606300 | BF5: 3020173 | BG5: 736850 | BH5: 0.138129225 | BI5: 0.6880655712 | BJ5: 0.1678715478 | BK5: 1901288 | BL5: 2090452 | BM5: 2320148 | BN5: 4410600 | BO5: 0.004837142842 | BP5: 2.319795844 | BQ5: 558056 | BR5: 2958726 | BS5: 886995 | BT5: 0.1265260962 | BU5: 0.6708216569 | BV5: 0.2011052918 | BW5: 1989236 | BX5: 2096303 | BY5: 2353057 | BZ5: 4449360 | CA5: 0.00871136523 | CB5: 2.236718016 | CC5: 528071 | CD5: 2865334 | CE5: 1047327 | CF5: 0.118915305 | CG5: 0.6452391182 | CH5: 0.2358455768 | CI5: 2021698 | CJ5: 2063947 | CK5: 2331225 | CL5: 4395172 | CM5: -0.0123289828 | CN5: 2.174000271 | CO5: 528071 | CP5: 2865334 | CQ5: 1047327 | CR5: 0.1201479715 | CS5: 0.6519276151 | CT5: 0.2382903331
A6: 3 | B6: 郡部 | C6: 483534 | D6: 784187 | E6: 809126 | F6: 1593313 | H6: 3.295141603 | I6: 370389 | J6: 1061842 | K6: 161013 | L6: 0.2324646821 | M6: 0.6664365382 | N6: 0.1010554737 | O6: 488494 | P6: 762936 | Q6: 794368 | R6: 1557304 | S6: -0.02260007921 | T6: 3.187969555 | U6: 333326 | V6: 1035139 | W6: 188726 | X6: 0.2140404186 | Y6: 0.6646993779 | Z6: 0.1211876422 | AA6: 486264 | AB6: 715841 | AC6: 760397 | AD6: 1476238 | AE6: -0.05205534693 | AF6: 3.03587763 | AG6: 275846 | AH6: 977395 | AI6: 222537 | AJ6: 0.1868574038 | AK6: 0.6620849755 | AL6: 0.1507460179 | AM6: 508281 | AN6: 698763 | AO6: 744437 | AP6: 1443200 | AQ6: -0.02237986016 | AR6: 2.839374283 | AS6: 235957 | AT6: 939998 | AU6: 267153 | AV6: 0.163495704 | AW6: 0.6513289911 | AX6: 0.1851115576 | AY6: 485696 | AZ6: 624492 | BA6: 669202 | BB6: 1293694 | BC6: -0.1035934035 | BD6: 2.663587923 | BE6: 186052 | BF6: 812729 | BG6: 294702 | BH6: 0.1438145342 | BI6: 0.6282235212 | BJ6: 0.2277988458 | BK6: 478963 | BL6: 584581 | BM6: 632556 | BN6: 1217137 | BO6: -0.05917705423 | BP6: 2.541192117 | BQ6: 161001 | BR6: 737338 | BS6: 318697 | BT6: 0.1322784535 | BU6: 0.6057970467 | BV6: 0.2618415183 | BW6: 435081 | BX6: 507042 | BY6: 550017 | BZ6: 1057059 | CA6: -0.1514371478 | CB6: 2.429568287 | CC6: 129241 | CD6: 616835 | CE6: 310741 | CF6: 0.1222926959 | CG6: 0.5836724807 | CH6: 0.2940348234 | CI6: 423112 | CJ6: 473142 | CK6: 513419 | CL6: 986561 | CM6: -0.07145832848 | CN6: 2.331678137 | CO6: 129241 | CP6: 616835 | CQ6: 310741 | CR6: 0.1310015296 | CS6: 0.6252375677 | CT6: 0.3149739347
A7: 4 | B7: 札幌市 | C7: 508823 | D7: 691057 | E7: 710700 | F7: 1401757 | H7: 2.754901017 | I7: 323473 | J7: 989049 | K7: 87440 | L7: 0.2307625359 | M7: 0.7055780709 | N7: 0.06237885739 | O7: 566287 | P7: 753216 | Q7: 789763 | R7: 1542979 | S7: 0.1007464204 | T7: 2.724729687 | U7: 329087 | V7: 1098074 | W7: 115081 | X7: 0.2132802844 | Y7: 0.7116584218 | Z7: 0.07458364631 | AA7: 646647 | AB7: 809185 | AC7: 862557 | AD7: 1671742 | AE7: 0.08345090892 | AF7: 2.585246665 | AG7: 303690 | AH7: 1209426 | AI7: 152053 | AJ7: 0.1816608065 | AK7: 0.7234525423 | AL7: 0.09095482437 | AM7: 718473 | AN7: 843170 | AO7: 913855 | AP7: 1757025 | AQ7: 0.05101445079 | AR7: 2.445498996 | AS7: 273276 | AT7: 1275976 | AU7: 202897 | AV7: 0.1555333589 | AW7: 0.7262139127 | AX7: 0.1154775828 | AY7: 781948 | AZ7: 868883 | BA7: 953485 | BB7: 1822368 | BC7: 0.03718956759 | BD7: 2.330548834 | BE7: 248405 | BF7: 1286323 | BG7: 262751 | BH7: 0.1363089124 | BI7: 0.7058524952 | BJ7: 0.1441810875 | BK7: 837367 | BL7: 889054 | BM7: 991809 | BN7: 1880863 | BO7: 0.03209834677 | BP7: 2.246163271 | BQ7: 234086 | BR7: 1318478 | BS7: 325401 | BT7: 0.1244566989 | BU7: 0.700996298 | BV7: 0.1730062211 | BW7: 885848 | BX7: 896850 | BY7: 1016695 | BZ7: 1913545 | CA7: 0.01707929523 | CB7: 2.160127923 | CC7: 224212 | CD7: 1292313 | CE7: 391796 | CF7: 0.1174917637 | CG7: 0.6771989618 | CH7: 0.2053092745 | CI7: 921837 | CJ7: 910614 | CK7: 1041742 | CL7: 1952356 | CM7: 0.01987905894 | CN7: 2.117897199 | CO7: 224212 | CP7: 1292313 | CQ7: 391796 | CR7: 0.1148417604 | CS7: 0.6619248744 | CT7: 0.2006785648
A8: 5 | B8: 江別市 | C8: 28513 | D8: 43301 | E8: 43048 | F8: 86349 | H8: 3.028408095 | I8: 20205 | J8: 60226 | K8: 5870 | L8: 0.2339922871 | M8: 0.6974718873 | N8: 0.06797994186 | O8: 30431 | P8: 45023 | Q8: 45305 | R8: 90328 | S8: 0.046080441 | T8: 2.968288916 | U8: 19107 | V8: 63509 | W8: 7712 | X8: 0.211529094 | Y8: 0.7030931716 | Z8: 0.08537773448 | AA8: 34421 | AB8: 48181 | AC8: 49020 | AD8: 97201 | AE8: 0.07608936321 | AF8: 2.823886581 | AG8: 17786 | AH8: 69062 | AI8: 10351 | AJ8: 0.1829816566 | AK8: 0.7105070935 | AL8: 0.106490674 | AM8: 42856 | AN8: 56778 | AO8: 58717 | AP8: 115495 | AQ8: 0.1882079402 | AR8: 2.694955199 | AS8: 19474 | AT8: 81696 | AU8: 14325 | AV8: 0.1686133599 | AW8: 0.7073552968 | AX8: 0.1240313433 | AY8: 47658 | AZ8: 60115 | BA8: 63762 | BB8: 123877 | BC8: 0.07257457033 | BD8: 2.59929078 | BE8: 19216 | BF8: 85788 | BG8: 18832 | BH8: 0.1551216126 | BI8: 0.6925256504 | BJ8: 0.1520217635 | BK8: 50425 | BL8: 60807 | BM8: 64794 | BN8: 125601 | BO8: 0.0139170306 | BP8: 2.490847794 | BQ8: 17374 | BR8: 85743 | BS8: 22481 | BT8: 0.1383269241 | BU8: 0.6826617622 | BV8: 0.1789874284 | BW8: 51170 | BX8: 59320 | BY8: 64402 | BZ8: 123722 | CA8: -0.0151872747 | CB8: 2.417862029 | CC8: 15041 | CD8: 81565 | CE8: 27008 | CF8: 0.1216771563 | CG8: 0.6598362645 | CH8: 0.2184865792 | CI8: 51983 | CJ8: 57391 | CK8: 63245 | CL8: 120636 | CM8: -0.02558108691 | CN8: 2.320681761 | CO8: 15041 | CP8: 81565 | CQ8: 27008 | CR8: 0.1246808581 | CS8: 0.6761248715 | CT8: 0.2238801021
A9: 6 | B9: 千歳市 | C9: 19907 | D9: 35544 | E9: 31244 | F9: 66788 | H9: 3.355000754 | I9: 17169 | J9: 46643 | K9: 2936 | L9: 0.2570671378 | M9: 0.6983739594 | N9: 0.04395999281 | O9: 22681 | P9: 38749 | Q9: 34861 | R9: 73610 | S9: 0.1021440977 | T9: 3.245447732 | U9: 17772 | V9: 51913 | W9: 3917 | X9: 0.2414345877 | Y9: 0.7052438527 | Z9: 0.05321287868 | AA9: 26010 | AB9: 41586 | AC9: 37360 | AD9: 78946 | AE9: 0.07249015079 | AF9: 3.035217224 | AG9: 16411 | AH9: 57063 | AI9: 5312 | AJ9: 0.2078762699 | AK9: 0.7228105287 | AL9: 0.06728649963 | AM9: 30071 | AN9: 44237 | AO9: 40629 | AP9: 84866 | AQ9: 0.07498796646 | AR9: 2.82218749 | AS9: 15873 | AT9: 61350 | AU9: 7636 | AV9: 0.1870360333 | AW9: 0.7229043433 | AX9: 0.08997714043 | AY9: 33532 | AZ9: 46155 | BA9: 42742 | BB9: 88897 | BC9: 0.04749840926 | BD9: 2.651109388 | BE9: 14990 | BF9: 63433 | BG9: 10437 | BH9: 0.1686221132 | BI9: 0.713556138 | BJ9: 0.1174055367 | BK9: 35983 | BL9: 46985 | BM9: 44452 | BN9: 91437 | BO9: 0.02857239277 | BP9: 2.541116638 | BQ9: 14373 | BR9: 63554 | BS9: 13461 | BT9: 0.1571901965 | BU9: 0.6950577994 | BV9: 0.147216116 | BW9: 38541 | BX9: 47836 | BY9: 45768 | BZ9: 93604 | CA9: 0.02315072005 | CB9: 2.428686334 | CC9: 13883 | CD9: 63261 | CE9: 16293 | CF9: 0.1485813971 | CG9: 0.6770444257 | CH9: 0.1743741773 | CI9: 40638 | CJ9: 48588 | CK9: 47060 | CL9: 95648 | CM9: 0.02137002342 | CN9: 2.353659137 | CO9: 13883 | CP9: 63261 | CQ9: 16293 | CR9: 0.1451467882 | CS9: 0.6613938608 | CT9: 0.1703433423
A10: 7 | B10: 恵庭市 | C10: 12321 | D10: 22072 | E10: 20839 | F10: 42911 | H10: 3.482753023 | I10: 11110 | J10: 29481 | K10: 2320 | L10: 0.2589079723 | M10: 0.6870266365 | N10: 0.05406539116 | O10: 14220 | P10: 24474 | Q10: 23831 | R10: 48305 | S10: 0.1257020344 | T10: 3.39697609 | U10: 11327 | V10: 33692 | W10: 3232 | X10: 0.2344891833 | Y10: 0.6974847324 | Z10: 0.06690818756 | AA10: 17528 | AB10: 27980 | AC10: 27635 | AD10: 55615 | AE10: 0.1513300901 | AF10: 3.172923323 | AG10: 11479 | AH10: 39505 | AI10: 4563 | AJ10: 0.2064011508 | AK10: 0.710329947 | AL10: 0.08204621055 | AM10: 21383 | AN10: 31376 | AO10: 30975 | AP10: 62351 | AQ10: 0.1211184033 | AR10: 2.915914512 | AS10: 11334 | AT10: 44328 | AU10: 6683 | AV10: 0.1817773572 | AW10: 0.7109428878 | AX10: 0.1071835255 | AY10: 23660 | AZ10: 32503 | BA10: 32736 | BB10: 65239 | BC10: 0.04631842312 | BD10: 2.757354184 | BE10: 10620 | BF10: 45305 | BG10: 9313 | BH10: 0.1627860636 | BI10: 0.6944465734 | BJ10: 0.1427520348 | BK10: 25662 | BL10: 33317 | BM10: 34297 | BN10: 67614 | BO10: 0.03640460461 | BP10: 2.634790741 | BQ10: 10211 | BR10: 45556 | BS10: 11847 | BT10: 0.1510190197 | BU10: 0.6737657882 | BV10: 0.1752151921 | BW10: 27634 | BX10: 33945 | BY10: 35439 | BZ10: 69384 | CA10: 0.02551020408 | CB10: 2.510820004 | CC10: 9690 | CD10: 45110 | CE10: 14427 | CF10: 0.1399742875 | CG10: 0.6516243662 | CH10: 0.2084013463 | CI10: 28846 | CJ10: 33781 | CK10: 35921 | CL10: 69702 | CM10: 0.004562279418 | CN10: 2.416348887 | CO10: 9690 | CP10: 45110 | CQ10: 14427 | CR10: 0.1390204011 | CS10: 0.647183725 | CT10: 0.2069811483
A11: 8 | B11: 北広島市 | C11: 9896 | D11: 16944 | E11: 17204 | F11: 34148 | H11: 3.450687146 | I11: 9635 | J11: 22313 | K11: 2166 | L11: 0.2821541525 | M11: 0.6534204053 | N11: 0.06342977627 | O11: 12026 | P11: 20159 | Q11: 20694 | R11: 40853 | S11: 0.1963511772 | T11: 3.397056378 | U11: 10471 | V11: 27068 | W11: 3291 | X11: 0.2563092062 | Y11: 0.6625706802 | Z11: 0.08055711943 | AA11: 14662 | AB11: 23386 | AC11: 24372 | AD11: 47758 | AE11: 0.169020635 | AF11: 3.257263675 | AG11: 10154 | AH11: 32762 | AI11: 4748 | AJ11: 0.2126135935 | AK11: 0.6860002513 | AL11: 0.09941789857 | AM11: 17521 | AN11: 26006 | AO11: 27531 | AP11: 53537 | AQ11: 0.1210059048 | AR11: 3.055590434 | AS11: 9529 | AT11: 37343 | AU11: 6616 | AV11: 0.1779890543 | AW11: 0.6975176046 | AX11: 0.1235780862 | AY11: 20305 | AZ11: 27975 | BA11: 29756 | BB11: 57731 | BC11: 0.07833834544 | BD11: 2.843191332 | BE11: 8780 | BF11: 40128 | BG11: 8723 | BH11: 0.1520846685 | BI11: 0.6950858291 | BJ11: 0.1510973307 | BK11: 22362 | BL11: 29252 | BM11: 31425 | BN11: 60677 | BO11: 0.05102977603 | BP11: 2.713397728 | BQ11: 8572 | BR11: 40553 | BS11: 11032 | BT11: 0.1412726404 | BU11: 0.6683422054 | BV11: 0.1818151853 | BW11: 22991 | BX11: 28959 | BY11: 31394 | BZ11: 60353 | CA11: -0.00536841582 | CB11: 2.62507068 | CC11: 8083 | CD11: 38693 | CE11: 13547 | CF11: 0.1339953252 | CG11: 0.6414303002 | CH11: 0.2245743746 | CI11: 23551 | CJ11: 28273 | CK11: 30791 | CL11: 59064 | CM11: -0.02182378437 | CN11: 2.507918984 | CO11: 8083 | CP11: 38693 | CQ11: 13547 | CR11: 0.1368515509 | CS11: 0.6551029392 | CT11: 0.2293613707
A12: 9 | B12: 石狩市 | C12: 11884 | D12: 20035 | E12: 20748 | F12: 40783 | H12: 3.431756984 | I12: 11101 | J12: 26642 | K12: 3016 | L12: 0.2721967486 | M12: 0.6532623887 | N12: 0.07395238212 | O12: 13977 | P12: 23443 | Q12: 24572 | R12: 48015 | S12: 0.177328789 | T12: 3.435286542 | U12: 12438 | V12: 31347 | W12: 4228 | X12: 0.2590440487 | Y12: 0.6528584817 | Z12: 0.08805581589 | AA12: 16205 | AB12: 25710 | AC12: 27433 | AD12: 53143 | AE12: 0.1067999583 | AF12: 3.279419932 | AG12: 11550 | AH12: 35822 | AI12: 5763 | AJ12: 0.2173381254 | AK12: 0.6740680805 | AL12: 0.1084432569 | AM12: 18642 | AN12: 27908 | AO12: 29798 | AP12: 57706 | AQ12: 0.08586267241 | AR12: 3.095483317 | AS12: 10117 | AT12: 39774 | AU12: 7813 | AV12: 0.1753197241 | AW12: 0.6892524174 | AX12: 0.1353932 | AY12: 20811 | AZ12: 28866 | BA12: 30868 | BB12: 59734 | BC12: 0.03514365924 | BD12: 2.870308971 | BE12: 8688 | BF12: 40934 | BG12: 9701 | BH12: 0.1454448053 | BI12: 0.6852713697 | BJ12: 0.1624033214 | BK12: 21925 | BL12: 28942 | BM12: 31162 | BN12: 60104 | BO12: 0.006194127298 | BP12: 2.741345496 | BQ12: 8284 | BR12: 40225 | BS12: 11591 | BT12: 0.1378277652 | BU12: 0.6692566219 | BV12: 0.1928490616 | BW12: 22603 | BX12: 28554 | BY12: 30895 | BZ12: 59449 | CA12: -0.01089777719 | CB12: 2.630137592 | CC12: 8063 | CD12: 37624 | CE12: 13761 | CF12: 0.1356288583 | CG12: 0.6328786018 | CH12: 0.2314757187 | CI12: 22632 | CJ12: 27548 | CK12: 29888 | CL12: 57436 | CM12: -0.03504770527 | CN12: 2.537822552 | CO12: 7732 | CP12: 35684 | CQ12: 12161 | CR12: 0.1346194025 | CS12: 0.6212828191 | CT12: 0.2117313183
A13: 10 | B13: 当別町 | C13: 5309 | D13: 8725 | E13: 8591 | F13: 17316 | H13: 3.261631192 | I13: 3781 | J13: 11939 | K13: 1596 | L13: 0.2183529684 | M13: 0.6894779395 | N13: 0.09216909217 | O13: 5283 | P13: 8291 | Q13: 8216 | R13: 16507 | S13: -0.04671979672 | T13: 3.124550445 | U13: 3245 | V13: 11418 | W13: 1844 | X13: 0.1965832677 | Y13: 0.6917065487 | Z13: 0.1117101836 | AA13: 5370 | AB13: 7866 | AC13: 7959 | AD13: 15825 | AE13: -0.04131580542 | AF13: 2.946927374 | AG13: 2582 | AH13: 11002 | AI13: 2241 | AJ13: 0.1631595577 | AK13: 0.6952290679 | AL13: 0.1416113744 | AM13: 6943 | AN13: 9677 | AO13: 9995 | AP13: 19672 | AQ13: 0.2430963665 | AR13: 2.833357338 | AS13: 3537 | AT13: 13270 | AU13: 2865 | AV13: 0.1797986987 | AW13: 0.6745628304 | AX13: 0.1456384709 | AY13: 7723 | AZ13: 10101 | BA13: 10677 | BB13: 20778 | BC13: 0.05622204148 | BD13: 2.690405283 | BE13: 3522 | BF13: 13732 | BG13: 3524 | BH13: 0.1695062085 | BI13: 0.6608913274 | BJ13: 0.1696024641 | BK13: 7579 | BL13: 9677 | BM13: 10305 | BN13: 19982 | BO13: -0.0383097507 | BP13: 2.63649558 | BQ13: 2919 | BR13: 13001 | BS13: 4052 | BT13: 0.1460814733 | BU13: 0.650635572 | BV13: 0.2027825043 | BW13: 7400 | BX13: 9078 | BY13: 9688 | BZ13: 18766 | CA13: -0.06479803901 | CB13: 2.535945946 | CC13: 2158 | CD13: 11931 | CE13: 4594 | CF13: 0.115506075 | CG13: 0.6386019376 | CH13: 0.2458919874 | CI13: 7327 | CJ13: 8314 | CK13: 8964 | CL13: 17278 | CM13: -0.08612107883 | CN13: 2.358127474 | CO13: 2158 | CP13: 11931 | CQ13: 4594 | CR13: 0.1248987151 | CS13: 0.6905313115 | CT13: 0.2658872555
A14: 11 | B14: 新篠津村 | C14: 962 | D14: 2048 | E14: 2096 | F14: 4144 | H14: 4.307692308 | I14: 945 | J14: 2750 | K14: 449 | L14: 0.2280405405 | M14: 0.6636100386 | N14: 0.1083494208 | O14: 991 | P14: 2009 | Q14: 2065 | R14: 4074 | S14: -0.01689189189 | T14: 4.110998991 | U14: 829 | V14: 2680 | W14: 565 | X14: 0.2034855179 | Y14: 0.6578301424 | Z14: 0.1386843397 | AA14: 967 | AB14: 1870 | AC14: 1941 | AD14: 3811 | AE14: -0.06455571919 | AF14: 3.941054809 | AG14: 674 | AH14: 2519 | AI14: 618 | AJ14: 0.1768564681 | AK14: 0.6609813697 | AL14: 0.1621621622 | AM14: 1079 | AN14: 1966 | AO14: 2028 | AP14: 3994 | AQ14: 0.04801889268 | AR14: 3.701575533 | AS14: 585 | AT14: 2639 | AU14: 770 | AV14: 0.1464697046 | AW14: 0.6607411117 | AX14: 0.1927891838 | AY14: 1172 | AZ14: 1941 | BA14: 1999 | BB14: 3940 | BC14: -0.01352028042 | BD14: 3.361774744 | BE14: 517 | BF14: 2519 | BG14: 904 | BH14: 0.1312182741 | BI14: 0.6393401015 | BJ14: 0.2294416244 | BK14: 1158 | BL14: 1824 | BM14: 1913 | BN14: 3737 | BO14: -0.05152284264 | BP14: 3.227115717 | BQ14: 478 | BR14: 2251 | BS14: 1008 | BT14: 0.1279100883 | BU14: 0.6023548301 | BV14: 0.2697350816 | BW14: 1086 | BX14: 1729 | BY14: 1786 | BZ14: 3515 | CA14: -0.06315789474 | CB14: 3.23664825 | CC14: 402 | CD14: 2059 | CE14: 1054 | CF14: 0.1143669986 | CG14: 0.5857752489 | CH14: 0.2998577525 | CI14: 1070 | CJ14: 1604 | CK14: 1725 | CL14: 3329 | CM14: -0.05587263442 | CN14: 3.111214953 | CO14: 402 | CP14: 2059 | CQ14: 1054 | CR14: 0.1207569841 | CS14: 0.6185040553 | CT14: 0.3166115951
A15: 12 | B15: 函館市 | C15: 120284 | D15: 176282 | E15: 193894 | F15: 370176 | H15: 3.077516544 | I15: 86332 | J15: 249371 | K15: 34392 | L15: 0.2332187932 | M15: 0.6736552343 | N15: 0.09290715768 | O15: 123251 | P15: 172477 | Q15: 193409 | R15: 365886 | S15: -0.01158908195 | T15: 2.968625001 | U15: 78538 | V15: 247485 | W15: 39581 | X15: 0.2146515581 | Y15: 0.6763992063 | Z15: 0.1081785037 | AA15: 126209 | AB15: 162625 | AC15: 187112 | AD15: 349737 | AE15: -0.04413669832 | AF15: 2.771093979 | AG15: 62778 | AH15: 240008 | AI15: 46864 | AJ15: 0.1795005962 | AK15: 0.6862528128 | AL15: 0.1339978327 | AM15: 131101 | AN15: 156061 | AO15: 181674 | AP15: 337735 | AQ15: -0.03431721551 | AR15: 2.576143584 | AS15: 50603 | AT15: 230508 | AU15: 56595 | AV15: 0.1498304884 | AW15: 0.6825114365 | AX15: 0.167572209 | AY15: 133407 | AZ15: 148577 | BA15: 174408 | BB15: 322985 | BC15: -0.04367329415 | BD15: 2.42104987 | BE15: 42017 | BF15: 214591 | BG15: 66367 | BH15: 0.1300896326 | BI15: 0.6643992755 | BJ15: 0.2054801307 | BK15: 134016 | BL15: 142244 | BM15: 167700 | BN15: 309944 | BO15: -0.04037648807 | BP15: 2.312738777 | BQ15: 36200 | BR15: 198353 | BS15: 75280 | BT15: 0.1167952921 | BU15: 0.6399639935 | BV15: 0.2428825852 | BW15: 131430 | BX15: 133434 | BY15: 159463 | BZ15: 292897 | CA15: -0.05500025811 | CB15: 2.228539907 | CC15: 31817 | CD15: 178995 | CE15: 81472 | CF15: 0.1086286305 | CG15: 0.6111192672 | CH15: 0.2781592164 | CI15: 123950 | CJ15: 120376 | CK15: 145603 | CL15: 265979 | CM15: -0.1012034785 | CN15: 2.1458572 | CO15: 29131 | CP15: 163815 | CQ15: 71802 | CR15: 0.1095236842 | CS15: 0.6158944879 | CT15: 0.269953643
A16: 13 | B16: 北斗市 | C16: 13481 | D16: 23401 | E16: 24847 | F16: 48248 | H16: 3.578962985 | I16: 11253 | J16: 32343 | K16: 4652 | L16: 0.2332324656 | M16: 0.67034903 | N16: 0.09641850439 | O16: 14296 | P16: 23507 | Q16: 25405 | R16: 48912 | S16: 0.01376222849 | T16: 3.421376609 | U16: 10602 | V16: 32844 | W16: 5450 | X16: 0.2167566241 | Y16: 0.6714916585 | Z16: 0.1114245993 | AA16: 15019 | AB16: 23124 | AC16: 25408 | AD16: 48532 | AE16: -0.007769054629 | AF16: 3.231373593 | AG16: 9108 | AH16: 33034 | AI16: 6381 | AJ16: 0.1876699909 | AK16: 0.680664304 | AL16: 0.1314802604 | AM16: 17372 | AN16: 25370 | AO16: 27713 | AP16: 53083 | AQ16: 0.09377318058 | AR16: 3.055664287 | AS16: 9157 | AT16: 35724 | AU16: 8202 | AV16: 0.172503438 | AW16: 0.6729838178 | AX16: 0.1545127442 | AY16: 20163 | AZ16: 27639 | BA16: 30192 | BB16: 57831 | BC16: 0.08944483168 | BD16: 2.868174379 | BE16: 9611 | BF16: 38170 | BG16: 10049 | BH16: 0.1661911432 | BI16: 0.6600266293 | BJ16: 0.1737649358 | BK16: 21436 | BL16: 27883 | BM16: 30971 | BN16: 58854 | BO16: 0.0176894745 | BP16: 2.745568203 | BQ16: 9239 | BR16: 37846 | BS16: 11769 | BT16: 0.1569816835 | BU16: 0.6430489007 | BV16: 0.1999694158 | BW16: 22144 | BX16: 27464 | BY16: 31129 | BZ16: 58593 | CA16: -0.004434702824 | CB16: 2.645998916 | CC16: 8718 | CD16: 36561 | CE16: 13286 | CF16: 0.1487891045 | CG16: 0.623982387 | CH16: 0.2267506357 | CI16: 18508 | CJ16: 21641 | CK16: 24749 | CL16: 46390 | CM16: -0.263052382 | CN16: 2.506483683 | CO16: 5716 | CP16: 23515 | CQ16: 8212 | CR16: 0.1232162104 | CS16: 0.5068980384 | CT16: 0.1770209097
A17: 14 | B17: 松前町 | C17: 4682 | D17: 8758 | E17: 8766 | F17: 17524 | H17: 3.742844938 | I17: 4865 | J17: 10904 | K17: 1755 | L17: 0.277619265 | M17: 0.622232367 | N17: 0.100148368 | O17: 4703 | P17: 7852 | Q17: 8164 | R17: 16016 | S17: -0.08605341246 | T17: 3.40548586 | U17: 3982 | V17: 10096 | W17: 1938 | X17: 0.2486263736 | Y17: 0.6303696304 | Z17: 0.121003996 | AA17: 4483 | AB17: 6336 | AC17: 7210 | AD17: 13546 | AE17: -0.1542207792 | AF17: 3.021637296 | AG17: 2785 | AH17: 8487 | AI17: 2274 | AJ17: 0.2055957478 | AK17: 0.6265318175 | AL17: 0.1678724347 | AM17: 4425 | AN17: 5643 | AO17: 6508 | AP17: 12151 | AQ17: -0.1029824302 | AR17: 2.745988701 | AS17: 1982 | AT17: 7571 | AU17: 2598 | AV17: 0.163114147 | AW17: 0.62307629 | AX17: 0.213809563 | AY17: 4370 | AZ17: 5183 | BA17: 5925 | BB17: 11108 | BC17: -0.08583655666 | BD17: 2.54187643 | BE17: 1460 | BF17: 6680 | BG17: 2968 | BH17: 0.1314368023 | BI17: 0.6013683831 | BJ17: 0.2671948145 | BK17: 4203 | BL17: 4769 | BM17: 5352 | BN17: 10121 | BO17: -0.08885487937 | BP17: 2.408041875 | BQ17: 1152 | BR17: 5781 | BS17: 3188 | BT17: 0.1138227448 | BU17: 0.5711886177 | BV17: 0.3149886375 | BW17: 3959 | BX17: 4028 | BY17: 4720 | BZ17: 8748 | CA17: -0.15695016 | CB17: 2.209648901 | CC17: 791 | CD17: 4633 | CE17: 3324 | CF17: 0.09042066758 | CG17: 0.5296067673 | CH17: 0.3799725652 | CI17: 3571 | CJ17: 3283 | CK17: 4054 | CL17: 7337 | CM17: -0.1923129344 | CN17: 2.054606553 | CO17: 791 | CP17: 4633 | CQ17: 3324 | CR17: 0.1078097315 | CS17: 0.6314569988 | CT17: 0.4530462042
A18: 15 | B18: 福島町 | C18: 3263 | D18: 5866 | E18: 5747 | F18: 11613 | H18: 3.55899479 | I18: 2999 | J18: 7445 | K18: 1169 | L18: 0.2582450702 | M18: 0.6410918798 | N18: 0.10066305 | O18: 3085 | P18: 5048 | Q18: 5111 | R18: 10159 | S18: -0.1252045122 | T18: 3.293030794 | U18: 2338 | V18: 6530 | W18: 1291 | X18: 0.2301407619 | Y18: 0.6427798012 | Z18: 0.127079437 | AA18: 2590 | AB18: 3841 | AC18: 4270 | AD18: 8111 | AE18: -0.2015946451 | AF18: 3.131660232 | AG18: 1585 | AH18: 5164 | AI18: 1362 | AJ18: 0.1954136358 | AK18: 0.6366662557 | AL18: 0.1679201085 | AM18: 2566 | AN18: 3526 | AO18: 3904 | AP18: 7430 | AQ18: -0.08396005425 | AR18: 2.895557288 | AS18: 1142 | AT18: 4710 | AU18: 1578 | AV18: 0.1537012113 | AW18: 0.6339165545 | AX18: 0.2123822342 | AY18: 2515 | AZ18: 3246 | BA18: 3549 | BB18: 6795 | BC18: -0.08546433378 | BD18: 2.701789264 | BE18: 840 | BF18: 4205 | BG18: 1750 | BH18: 0.1236203091 | BI18: 0.6188373804 | BJ18: 0.2575423105 | BK18: 2340 | BL18: 2763 | BM18: 3134 | BN18: 5897 | BO18: -0.1321559971 | BP18: 2.52008547 | BQ18: 607 | BR18: 3456 | BS18: 1834 | BT18: 0.1029336951 | BU18: 0.5860607088 | BV18: 0.3110055961 | BW18: 2194 | BX18: 2386 | BY18: 2728 | BZ18: 5114 | CA18: -0.1531091122 | CB18: 2.330902461 | CC18: 446 | CD18: 2796 | CE18: 1872 | CF18: 0.08721157607 | CG18: 0.5467344544 | CH18: 0.3660539695 | CI18: 2039 | CJ18: 2047 | CK18: 2375 | CL18: 4422 | CM18: -0.1564902759 | CN18: 2.168710152 | CO18: 446 | CP18: 2796 | CQ18: 1872 | CR18: 0.1008593397 | CS18: 0.6322930801 | CT18: 0.4233378562
A19: 16 | B19: 知内町 | C19: 2319 | D19: 3684 | E19: 3679 | F19: 7363 | H19: 3.175075464 | I19: 1864 | J19: 4748 | K19: 751 | L19: 0.2531576803 | M19: 0.6448458509 | N19: 0.1019964688 | O19: 2396 | P19: 3696 | Q19: 3684 | R19: 7380 | S19: 0.002308841505 | T19: 3.080133556 | U19: 1722 | V19: 4822 | W19: 836 | X19: 0.2333333333 | Y19: 0.6533875339 | Z19: 0.1132791328 | AA19: 2046 | AB19: 2976 | AC19: 3407 | AD19: 6383 | AE19: -0.1350948509 | AF19: 3.119745846 | AG19: 1420 | AH19: 4065 | AI19: 898 | AJ19: 0.2224659251 | AK19: 0.6368478772 | AL19: 0.1406861977 | AM19: 2207 | AN19: 2971 | AO19: 3179 | AP19: 6150 | AQ19: -0.03650321166 | AR19: 2.786588129 | AS19: 1142 | AT19: 3905 | AU19: 1103 | AV19: 0.1856910569 | AW19: 0.6349593496 | AX19: 0.1793495935 | AY19: 2110 | AZ19: 2770 | BA19: 3062 | BB19: 5832 | BC19: -0.05170731707 | BD19: 2.763981043 | BE19: 890 | BF19: 3596 | BG19: 1346 | BH19: 0.15260631 | BI19: 0.6165980796 | BJ19: 0.2307956104 | BK19: 2050 | BL19: 2628 | BM19: 2819 | BN19: 5447 | BO19: -0.06601508916 | BP19: 2.657073171 | BQ19: 751 | BR19: 3242 | BS19: 1454 | BT19: 0.1378740591 | BU19: 0.5951900129 | BV19: 0.266935928 | BW19: 2009 | BX19: 2461 | BY19: 2613 | BZ19: 5074 | CA19: -0.07351202207 | CB19: 2.525634644 | CC19: 636 | CD19: 2936 | CE19: 1502 | CF19: 0.1253448955 | CG19: 0.5786361845 | CH19: 0.29601892 | CI19: 2003 | CJ19: 2306 | CK19: 2347 | CL19: 4653 | CM19: -0.09047926069 | CN19: 2.323015477 | CO19: 636 | CP19: 2936 | CQ19: 1502 | CR19: 0.136686009 | CS19: 0.6309907587 | CT19: 0.322802493
A20: 17 | B20: 木古内町 | C20: 2862 | D20: 4530 | E20: 4984 | F20: 9514 | H20: 3.324248777 | I20: 2243 | J20: 6161 | K20: 1110 | L20: 0.2357578306 | M20: 0.6475719992 | N20: 0.1166701703 | O20: 2882 | P20: 4219 | Q20: 4697 | R20: 8916 | S20: -0.06285474038 | T20: 3.093684941 | U20: 1845 | V20: 5777 | W20: 1294 | X20: 0.2069313594 | Y20: 0.6479362943 | Z20: 0.1451323463 | AA20: 2662 | AB20: 3579 | AC20: 4247 | AD20: 7826 | AE20: -0.122252131 | AF20: 2.939894816 | AG20: 1403 | AH20: 4929 | AI20: 1483 | AJ20: 0.1792742142 | AK20: 0.6298236647 | AL20: 0.18949655 | AM20: 2635 | AN20: 3332 | AO20: 3839 | AP20: 7171 | AQ20: -0.08369537439 | AR20: 2.721442125 | AS20: 1048 | AT20: 4491 | AU20: 1632 | AV20: 0.1461441919 | AW20: 0.6262724864 | AX20: 0.2275833217 | AY20: 2536 | AZ20: 3124 | BA20: 3541 | BB20: 6665 | BC20: -0.07056198578 | BD20: 2.628154574 | BE20: 827 | BF20: 3958 | BG20: 1880 | BH20: 0.1240810203 | BI20: 0.5938484621 | BJ20: 0.2820705176 | BK20: 2465 | BL20: 2822 | BM20: 3202 | BN20: 6024 | BO20: -0.09617404351 | BP20: 2.443813387 | BQ20: 618 | BR20: 3384 | BS20: 2022 | BT20: 0.1025896414 | BU20: 0.561752988 | BV20: 0.3356573705 | BW20: 2317 | BX20: 2556 | BY20: 2785 | BZ20: 5341 | CA20: -0.1278786744 | CB20: 2.305135952 | CC20: 442 | CD20: 2830 | CE20: 2069 | CF20: 0.0827560382 | CG20: 0.5298633215 | CH20: 0.3873806403 | CI20: 2140 | CJ20: 2150 | CK20: 2397 | CL20: 4547 | CM20: -0.174620629 | CN20: 2.124766355 | CO20: 442 | CP20: 2830 | CQ20: 2069 | CR20: 0.09720694964 | CS20: 0.6223883879 | CT20: 0.4550252914
A21: 18 | B21: 七飯町 | C21: 6042 | D21: 9961 | E21: 11306 | F21: 21267 | H21: 3.519860973 | I21: 4938 | J21: 14057 | K21: 2272 | L21: 0.232190718 | M21: 0.6609771007 | N21: 0.1068321813 | O21: 6784 | P21: 10602 | Q21: 12005 | R21: 22607 | S21: 0.0630084168 | T21: 3.332399764 | U21: 4860 | V21: 14898 | W21: 2849 | X21: 0.2149776618 | Y21: 0.658999425 | Z21: 0.1260229133 | AA21: 7547 | AB21: 11211 | AC21: 12752 | AD21: 23963 | AE21: 0.05998142168 | AF21: 3.175168941 | AG21: 4496 | AH21: 15871 | AI21: 3596 | AJ21: 0.1876225848 | AK21: 0.6623127321 | AL21: 0.1500646831 | AM21: 9017 | AN21: 12633 | AO21: 14407 | AP21: 27040 | AQ21: 0.128406293 | AR21: 2.998780082 | AS21: 4608 | AT21: 17704 | AU21: 4728 | AV21: 0.1704142012 | AW21: 0.6547337278 | AX21: 0.174852071 | AY21: 9930 | AZ21: 13132 | BA21: 15222 | BB21: 28354 | BC21: 0.04859467456 | BD21: 2.855387714 | BE21: 4306 | BF21: 18084 | BG21: 5964 | BH21: 0.151865698 | BI21: 0.6377936094 | BJ21: 0.2103406927 | BK21: 10363 | BL21: 13031 | BM21: 15393 | BN21: 28424 | BO21: 0.002468787473 | BP21: 2.742835086 | BQ21: 3975 | BR21: 17524 | BS21: 6925 | BT21: 0.1398466085 | BU21: 0.6165212496 | BV21: 0.2436321419 | BW21: 10891 | BX21: 12977 | BY21: 15486 | BZ21: 28463 | CA21: 0.001370199909 | CB21: 2.613442292 | CC21: 3607 | CD21: 16924 | CE21: 7922 | CF21: 0.1267704636 | CG21: 0.5948054687 | CH21: 0.2784240678 | CI21: 11141 | CJ21: 12820 | CK21: 15300 | CL21: 28120 | CM21: -0.01219772404 | CN21: 2.524010412 | CO21: 3607 | CP21: 16924 | CQ21: 7922 | CR21: 0.1282716927 | CS21: 0.6018492176 | CT21: 0.2817211949
A22: 19 | B22: 鹿部町 | C22: 1249 | D22: 2532 | E22: 2479 | F22: 5011 | H22: 4.012009608 | I22: 1439 | J22: 3126 | K22: 446 | L22: 0.2871682299 | M22: 0.6238275793 | N22: 0.08900419078 | O22: 1311 | P22: 2559 | Q22: 2548 | R22: 5107 | S22: 0.01915785272 | T22: 3.895499619 | U22: 1300 | V22: 3326 | W22: 481 | X22: 0.2545525749 | Y22: 0.6512629724 | Z22: 0.09418445271 | AA22: 1367 | AB22: 2469 | AC22: 2510 | AD22: 4979 | AE22: -0.02506363814 | AF22: 3.64228237 | AG22: 1120 | AH22: 3284 | AI22: 575 | AJ22: 0.224944768 | AK22: 0.6595701948 | AL22: 0.1154850372 | AM22: 1418 | AN22: 2383 | AO22: 2439 | AP22: 4822 | AQ22: -0.03153243623 | AR22: 3.400564175 | AS22: 973 | AT22: 3134 | AU22: 715 | AV22: 0.2017834923 | AW22: 0.6499377852 | AX22: 0.1482787225 | AY22: 1519 | AZ22: 2428 | BA22: 2479 | BB22: 4907 | BC22: 0.01762754044 | BD22: 3.230414747 | BE22: 841 | BF22: 3170 | BG22: 896 | BH22: 0.1713878133 | BI22: 0.6460158957 | BJ22: 0.182596291 | BK22: 1646 | BL22: 2409 | BM22: 2510 | BN22: 4919 | BO22: 0.00244548604 | BP22: 2.988456865 | BQ22: 696 | BR22: 3106 | BS22: 1117 | BT22: 0.1414921732 | BU22: 0.6314291523 | BV22: 0.2270786745 | BW22: 1675 | BX22: 2339 | BY22: 2428 | BZ22: 4767 | CA22: -0.03188588211 | CB22: 2.845970149 | CC22: 536 | CD22: 2911 | CE22: 1320 | CF22: 0.1124396895 | CG22: 0.6106565974 | CH22: 0.276903713 | CI22: 1660 | CJ22: 2053 | CK22: 2173 | CL22: 4226 | CM22: -0.1280170374 | CN22: 2.545783133 | CO22: 536 | CP22: 2911 | CQ22: 1320 | CR22: 0.1268338855 | CS22: 0.6888310459 | CT22: 0.312352106
A23: 20 | B23: 森町 | C23: 6986 | D23: 11149 | E23: 12318 | F23: 23467 | H23: 3.359146865 | I23: 6013 | J23: 15102 | K23: 2352 | L23: 0.2562321558 | M23: 0.6435419951 | N23: 0.1002258491 | O23: 6985 | P23: 10908 | Q23: 12109 | R23: 23017 | S23: -0.01917586398 | T23: 3.295204009 | U23: 5332 | V23: 14782 | W23: 2903 | X23: 0.2316548638 | Y23: 0.6422209671 | Z23: 0.1261241691 | AA23: 7111 | AB23: 10600 | AC23: 11542 | AD23: 22142 | AE23: -0.03801537994 | AF23: 3.113767403 | AG23: 4187 | AH23: 14583 | AI23: 3372 | AJ23: 0.1890976425 | AK23: 0.6586125915 | AL23: 0.1522897661 | AM23: 7161 | AN23: 10045 | AO23: 10961 | AP23: 21006 | AQ23: -0.05130521181 | AR23: 2.933389191 | AS23: 3314 | AT23: 13713 | AU23: 3979 | AV23: 0.1577644483 | AW23: 0.6528134819 | AX23: 0.1894220699 | AY23: 7188 | AZ23: 9655 | BA23: 10578 | BB23: 20233 | BC23: -0.03679900981 | BD23: 2.814830273 | BE23: 2777 | BF23: 12802 | BG23: 4654 | BH23: 0.1372510256 | BI23: 0.6327287105 | BJ23: 0.2300202639 | BK23: 7363 | BL23: 8989 | BM23: 10160 | BN23: 19149 | BO23: -0.05357584145 | BP23: 2.600706234 | BQ23: 2491 | BR23: 11736 | BS23: 4922 | BT23: 0.1300851219 | BU23: 0.6128779571 | BV23: 0.257036921 | BW23: 7103 | BX23: 8347 | BY23: 9512 | BZ23: 17859 | CA23: -0.06736644211 | CB23: 2.514289737 | CC23: 2185 | CD23: 10462 | CE23: 5212 | CF23: 0.1223472759 | CG23: 0.5858110756 | CH23: 0.2918416485 | CI23: 6628 | CJ23: 7324 | CK23: 8622 | CL23: 15946 | CM23: -0.1199673899 | CN23: 2.405853953 | CO23: 1600 | CP23: 7713 | CQ23: 4003 | CR23: 0.1003386429 | CS23: 0.4836949705 | CT23: 0.2510347423
A24: 21 | B24: 八雲町 | C24: 7855 | D24: 12941 | E24: 13418 | F24: 26359 | H24: 3.355697008 | I24: 6353 | J24: 17160 | K24: 2846 | L24: 0.241018248 | M24: 0.6510110399 | N24: 0.1079707121 | O24: 7904 | P24: 12482 | Q24: 13139 | R24: 25621 | S24: -0.02799802724 | T24: 3.241523279 | U24: 5939 | V24: 16402 | W24: 3280 | X24: 0.2318020374 | Y24: 0.640177979 | Z24: 0.1280199836 | AA24: 7873 | AB24: 11503 | AC24: 12278 | AD24: 23781 | AE24: -0.07181608837 | AF24: 3.020576654 | AG24: 4893 | AH24: 15275 | AI24: 3612 | AJ24: 0.2057524915 | AK24: 0.6423194988 | AL24: 0.1518859594 | AM24: 7916 | AN24: 10772 | AO24: 11543 | AP24: 22315 | AQ24: -0.06164585173 | AR24: 2.818974229 | AS24: 3982 | AT24: 14154 | AU24: 4179 | AV24: 0.1784449922 | AW24: 0.6342818732 | AX24: 0.1872731347 | AY24: 8231 | AZ24: 10475 | BA24: 10963 | BB24: 21438 | BC24: -0.03930091866 | BD24: 2.604543798 | BE24: 3266 | BF24: 13602 | BG24: 4565 | BH24: 0.152346301 | BI24: 0.6344808284 | BJ24: 0.2129396399 | BK24: 8004 | BL24: 9780 | BM24: 10351 | BN24: 20131 | BO24: -0.06096650807 | BP24: 2.515117441 | BQ24: 2715 | BR24: 12546 | BS24: 4867 | BT24: 0.1348666236 | BU24: 0.6232179226 | BV24: 0.2417664299 | BW24: 7892 | BX24: 9130 | BY24: 9766 | BZ24: 18896 | CA24: -0.06134816949 | CB24: 2.394323365 | CC24: 2339 | CD24: 11519 | CE24: 5037 | CF24: 0.1237828112 | CG24: 0.6095999153 | CH24: 0.2665643522 | CI24: 7523 | CJ24: 8401 | CK24: 8851 | CL24: 17252 | CM24: -0.09529329933 | CN24: 2.293234082 | CO24: 2108 | CP24: 9987 | CQ24: 3902 | CR24: 0.1221887317 | CS24: 0.5788894041 | CT24: 0.2261766752
A25: 22 | B25: 長万部町 | C25: 3698 | D25: 5288 | E25: 5716 | F25: 11004 | H25: 2.97566252 | I25: 2353 | J25: 7475 | K25: 1176 | L25: 0.2138313341 | M25: 0.6792984369 | N25: 0.106870229 | O25: 3617 | P25: 4941 | Q25: 5311 | R25: 10252 | S25: -0.0683387859 | T25: 2.834393143 | U25: 2065 | V25: 6806 | W25: 1381 | X25: 0.2014241124 | Y25: 0.6638704643 | Z25: 0.1347054233 | AA25: 3384 | AB25: 4411 | AC25: 4716 | AD25: 9127 | AE25: -0.1097346859 | AF25: 2.697104019 | AG25: 1472 | AH25: 6102 | AI25: 1553 | AJ25: 0.1612797195 | AK25: 0.6685657938 | AL25: 0.1701544867 | AM25: 3557 | AN25: 4376 | AO25: 4431 | AP25: 8807 | AQ25: -0.03506080859 | AR25: 2.47596289 | AS25: 1260 | AT25: 5586 | AU25: 1961 | AV25: 0.1430680141 | AW25: 0.6342681958 | AX25: 0.2226637902 | AY25: 3423 | AZ25: 4020 | BA25: 4012 | BB25: 8032 | BC25: -0.08799818326 | BD25: 2.346479696 | BE25: 964 | BF25: 4822 | BG25: 2242 | BH25: 0.1200199203 | BI25: 0.6003486056 | BJ25: 0.2791334661 | BK25: 3026 | BL25: 3395 | BM25: 3608 | BN25: 7003 | BO25: -0.1281125498 | BP25: 2.314276272 | BQ25: 704 | BR25: 3944 | BS25: 2355 | BT25: 0.100528345 | BU25: 0.5631872055 | BV25: 0.3362844495 | BW25: 2847 | BX25: 3040 | BY25: 3346 | BZ25: 6386 | CA25: -0.096617601 | CB25: 2.243062873 | CC25: 582 | CD25: 3572 | CE25: 2232 | CF25: 0.09113686188 | CG25: 0.559348575 | CH25: 0.3495145631 | CI25: 2685 | CJ25: 2869 | CK25: 3057 | CL25: 5926 | CM25: -0.0776240297 | CN25: 2.20707635 | CO25: 582 | CP25: 3572 | CQ25: 2232 | CR25: 0.09821127236 | CS25: 0.6027674654 | CT25: 0.3766452919
A26: 23 | B26: 江差町 | C26: 4398 | D26: 6617 | E26: 7313 | F26: 13930 | H26: 3.167348795 | I26: 3342 | J26: 9044 | K26: 1544 | L26: 0.239913855 | M26: 0.6492462312 | N26: 0.1108399139 | O26: 4373 | P26: 6291 | Q26: 7022 | R26: 13313 | S26: -0.04429289304 | T26: 3.044363137 | U26: 2955 | V26: 8682 | W26: 1676 | X26: 0.2219634943 | Y26: 0.6521445204 | Z26: 0.1258919853 | AA26: 4332 | AB26: 5816 | AC26: 6418 | AD26: 12234 | AE26: -0.08104859911 | AF26: 2.824099723 | AG26: 2390 | AH26: 8012 | AI26: 1830 | AJ26: 0.1953572012 | AK26: 0.6548961909 | AL26: 0.149583129 | AM26: 4365 | AN26: 5362 | AO26: 5939 | AP26: 11301 | AQ26: -0.07626287396 | AR26: 2.589003436 | AS26: 1885 | AT26: 7380 | AU26: 2036 | AV26: 0.1667993983 | AW26: 0.653039554 | AX26: 0.1801610477 | AY26: 4523 | AZ26: 5197 | BA26: 5762 | BB26: 10959 | BC26: -0.0302628086 | BD26: 2.42294937 | BE26: 1540 | BF26: 7028 | BG26: 2391 | BH26: 0.1405237704 | BI26: 0.6412993886 | BJ26: 0.218176841 | BK26: 4291 | BL26: 4782 | BM26: 5349 | BN26: 10131 | BO26: -0.0755543389 | BP26: 2.360988115 | BQ26: 1285 | BR26: 6167 | BS26: 2679 | BT26: 0.1268384167 | BU26: 0.6087256934 | BV26: 0.2644358898 | BW26: 3968 | BX26: 4234 | BY26: 4770 | BZ26: 9004 | CA26: -0.1251665926 | CB26: 2.269153226 | CC26: 1041 | CD26: 5221 | CE26: 2742 | CF26: 0.1156152821 | CG26: 0.5798533985 | CH26: 0.3045313194 | CI26: 3752 | CJ26: 3910 | CK26: 4338 | CL26: 8248 | CM26: -0.0916585839 | CN26: 2.198294243 | CO26: 1041 | CP26: 5221 | CQ26: 2742 | CR26: 0.1262124151 | CS26: 0.6330019399 | CT26: 0.3324442289
A27: 24 | B27: 上ノ国町 | C27: 2699 | D27: 4239 | E27: 4564 | F27: 8803 | H27: 3.261578362 | I27: 2260 | J27: 5609 | K27: 934 | L27: 0.25673066 | M27: 0.6371691469 | N27: 0.1061001931 | O27: 2691 | P27: 4146 | Q27: 4376 | R27: 8522 | S27: -0.03192093604 | T27: 3.166852471 | U27: 1844 | V27: 5576 | W27: 1102 | X27: 0.2163811312 | Y27: 0.6543065008 | Z27: 0.129312368 | AA27: 2542 | AB27: 3698 | AC27: 4049 | AD27: 7747 | AE27: -0.09094109364 | AF27: 3.047600315 | AG27: 1398 | AH27: 5029 | AI27: 1320 | AJ27: 0.1804569511 | AK27: 0.6491545114 | AL27: 0.1703885375 | AM27: 2554 | AN27: 3459 | AO27: 3833 | AP27: 7292 | AQ27: -0.05873241255 | AR27: 2.855129209 | AS27: 1183 | AT27: 4616 | AU27: 1493 | AV27: 0.1622325837 | AW27: 0.6330224904 | AX27: 0.2047449259 | AY27: 2706 | AZ27: 3391 | BA27: 3761 | BB27: 7152 | BC27: -0.01919912233 | BD27: 2.643015521 | BE27: 1030 | BF27: 4395 | BG27: 1726 | BH27: 0.14401566 | BI27: 0.6145134228 | BJ27: 0.2413310962 | BK27: 2446 | BL27: 2950 | BM27: 3467 | BN27: 6417 | BO27: -0.1027684564 | BP27: 2.623466885 | BQ27: 865 | BR27: 3664 | BS27: 1888 | BT27: 0.1347981923 | BU27: 0.5709833255 | BV27: 0.2942184822 | BW27: 2307 | BX27: 2421 | BY27: 3007 | BZ27: 5428 | CA27: -0.1822033898 | CB27: 2.352839185 | CC27: 625 | CD27: 2962 | CE27: 1841 | CF27: 0.1151436993 | CG27: 0.5456890199 | CH27: 0.3391672808 | CI27: 2173 | CJ27: 2193 | CK27: 2683 | CL27: 4876 | CM27: -0.1132075472 | CN27: 2.243902439 | CO27: 625 | CP27: 2962 | CQ27: 1841 | CR27: 0.1281788351 | CS27: 0.6074651354 | CT27: 0.3775635767
A28: 25 | B28: 厚沢部町 | C28: 2105 | D28: 3338 | E28: 3524 | F28: 6862 | H28: 3.259857482 | I28: 1630 | J28: 4492 | K28: 740 | L28: 0.2375400758 | M28: 0.6546196444 | N28: 0.1078402798 | O28: 2090 | P28: 3124 | Q28: 3206 | R28: 6330 | S28: -0.07752841737 | T28: 3.028708134 | U28: 1273 | V28: 4194 | W28: 863 | X28: 0.2011058452 | Y28: 0.6625592417 | Z28: 0.1363349131 | AA28: 1982 | AB28: 2807 | AC28: 2948 | AD28: 5755 | AE28: -0.09083728278 | AF28: 2.903632694 | AG28: 978 | AH28: 3731 | AI28: 1046 | AJ28: 0.1699391833 | AK28: 0.648305821 | AL28: 0.1817549957 | AM28: 1999 | AN28: 2584 | AO28: 2801 | AP28: 5385 | AQ28: -0.06429192007 | AR28: 2.693846923 | AS28: 768 | AT28: 3350 | AU28: 1267 | AV28: 0.1426183844 | AW28: 0.6220984215 | AX28: 0.2352831941 | AY28: 2018 | AZ28: 2466 | BA28: 2639 | BB28: 5105 | BC28: -0.05199628598 | BD28: 2.529732408 | BE28: 636 | BF28: 3042 | BG28: 1427 | BH28: 0.1245837414 | BI28: 0.5958863859 | BJ28: 0.2795298727 | BK28: 1914 | BL28: 2284 | BM28: 2491 | BN28: 4775 | BO28: -0.06464250735 | BP28: 2.49477534 | BQ28: 541 | BR28: 2717 | BS28: 1517 | BT28: 0.1132984293 | BU28: 0.5690052356 | BV28: 0.3176963351 | BW28: 1868 | BX28: 2102 | BY28: 2307 | BZ28: 4409 | CA28: -0.08301202087 | CB28: 2.360278373 | CC28: 484 | CD28: 2393 | CE28: 1532 | CF28: 0.1097754593 | CG28: 0.5427534588 | CH28: 0.3474710819 | CI28: 1765 | CJ28: 1918 | CK28: 2131 | CL28: 4049 | CM28: -0.08891084218 | CN28: 2.294050992 | CO28: 484 | CP28: 2393 | CQ28: 1532 | CR28: 0.1195356878 | CS28: 0.591010126 | CT28: 0.3783650284
A29: 26 | B29: 乙部町 | C29: 1897 | D29: 3361 | E29: 3670 | F29: 7031 | H29: 3.706378492 | I29: 1781 | J29: 4359 | K29: 891 | L29: 0.2533067842 | M29: 0.61996871 | N29: 0.1267245058 | O29: 1945 | P29: 3207 | Q29: 3512 | R29: 6719 | S29: -0.04437491111 | T29: 3.454498715 | U29: 1424 | V29: 4321 | W29: 974 | X29: 0.2119363 | Y29: 0.643101652 | Z29: 0.1449620479 | AA29: 1879 | AB29: 2847 | AC29: 3164 | AD29: 6011 | AE29: -0.1053728233 | AF29: 3.199042044 | AG29: 1070 | AH29: 3926 | AI29: 1015 | AJ29: 0.1780069872 | AK29: 0.6531359175 | AL29: 0.1688570953 | AM29: 1838 | AN29: 2536 | AO29: 2886 | AP29: 5422 | AQ29: -0.09798702379 | AR29: 2.949945593 | AS29: 854 | AT29: 3422 | AU29: 1146 | AV29: 0.1575064552 | AW29: 0.6311324235 | AX29: 0.2113611214 | AY29: 1873 | AZ29: 2396 | BA29: 2747 | BB29: 5143 | BC29: -0.05145702693 | BD29: 2.745862253 | BE29: 689 | BF29: 3185 | BG29: 1269 | BH29: 0.1339685009 | BI29: 0.6192883531 | BJ29: 0.246743146 | BK29: 1903 | BL29: 2243 | BM29: 2573 | BN29: 4816 | BO29: -0.06358156718 | BP29: 2.530740935 | BQ29: 593 | BR29: 2776 | BS29: 1447 | BT29: 0.1231312292 | BU29: 0.5764119601 | BV29: 0.3004568106 | BW29: 1863 | BX29: 2029 | BY29: 2379 | BZ29: 4408 | CA29: -0.09255898367 | CB29: 2.366076221 | CC29: 495 | CD29: 2397 | CE29: 1516 | CF29: 0.1122958258 | CG29: 0.543784029 | CH29: 0.3439201452 | CI29: 1729 | CJ29: 1791 | CK29: 2115 | CL29: 3906 | CM29: -0.1285202253 | CN29: 2.259109312 | CO29: 495 | CP29: 2397 | CQ29: 1516 | CR29: 0.1267281106 | CS29: 0.613671275 | CT29: 0.3881208397
A30: 27 | B30: 奥尻町 | C30: 1649 | D30: 2757 | E30: 2733 | F30: 5490 | H30: 3.329290479 | I30: 1369 | J30: 3570 | K30: 551 | L30: 0.2493624772 | M30: 0.650273224 | N30: 0.1003642987 | O30: 1611 | P30: 2528 | Q30: 2541 | R30: 5069 | S30: -0.0766848816 | T30: 3.146492862 | U30: 1115 | V30: 3325 | W30: 629 | X30: 0.21996449 | Y30: 0.6559479187 | Z30: 0.1240875912 | AA30: 1567 | AB30: 2325 | AC30: 2279 | AD30: 4604 | AE30: -0.09173406984 | AF30: 2.938098277 | AG30: 921 | AH30: 2965 | AI30: 718 | AJ30: 0.2000434405 | AK30: 0.6440052129 | AL30: 0.1559513467 | AM30: 1669 | AN30: 2281 | AO30: 2020 | AP30: 4301 | AQ30: -0.0658123371 | AR30: 2.576992211 | AS30: 708 | AT30: 2811 | AU30: 782 | AV30: 0.1646128807 | AW30: 0.6535689375 | AX30: 0.1818181818 | AY30: 1589 | AZ30: 2041 | BA30: 1880 | BB30: 3921 | BC30: -0.08835154615 | BD30: 2.467589679 | BE30: 532 | BF30: 2443 | BG30: 946 | BH30: 0.1356796736 | BI30: 0.623055343 | BJ30: 0.2412649834 | BK30: 1551 | BL30: 1850 | BM30: 1793 | BN30: 3643 | BO30: -0.07090028054 | BP30: 2.348807221 | BQ30: 469 | BR30: 2175 | BS30: 999 | BT30: 0.1287400494 | BU30: 0.5970354104 | BV30: 0.2742245402 | BW30: 1364 | BX30: 1524 | BY30: 1509 | BZ30: 3033 | CA30: -0.2011210023 | CB30: 2.223607038 | CC30: 317 | CD30: 1723 | CE30: 993 | CF30: 0.1045169799 | CG30: 0.5680844049 | CH30: 0.3273986152 | CI30: 1270 | CJ30: 1372 | CK30: 1318 | CL30: 2690 | CM30: -0.1275092937 | CN30: 2.118110236 | CO30: 317 | CP30: 1723 | CQ30: 993 | CR30: 0.1178438662 | CS30: 0.6405204461 | CT30: 0.3691449814
A31: 28 | B31: 今金町 | C31: 2824 | D31: 4552 | E31: 4689 | F31: 9241 | H31: 3.272308782 | I31: 2110 | J31: 6103 | K31: 1028 | L31: 0.2283302673 | M31: 0.6604263608 | N31: 0.1112433719 | O31: 2615 | P31: 4086 | Q31: 4345 | R31: 8431 | S31: -0.08765285142 | T31: 3.224091778 | U31: 1877 | V31: 5480 | W31: 1074 | X31: 0.2226307674 | Y31: 0.6499822085 | Z31: 0.1273870241 | AA31: 2489 | AB31: 3719 | AC31: 3991 | AD31: 7710 | AE31: -0.08551773218 | AF31: 3.09762957 | AG31: 1459 | AH31: 5002 | AI31: 1249 | AJ31: 0.1892347601 | AK31: 0.648767834 | AL31: 0.161997406 | AM31: 2505 | AN31: 3459 | AO31: 3755 | AP31: 7214 | AQ31: -0.06433203632 | AR31: 2.879840319 | AS31: 1199 | AT31: 4532 | AU31: 1483 | AV31: 0.1662046022 | AW31: 0.6282228999 | AX31: 0.2055724979 | AY31: 2570 | AZ31: 3337 | BA31: 3569 | BB31: 6906 | BC31: -0.04269476019 | BD31: 2.687159533 | BE31: 920 | BF31: 4225 | BG31: 1761 | BH31: 0.133217492 | BI31: 0.611786852 | BJ31: 0.254995656 | BK31: 2470 | BL31: 3109 | BM31: 3357 | BN31: 6466 | BO31: -0.06371271358 | BP31: 2.617813765 | BQ31: 781 | BR31: 3740 | BS31: 1945 | BT31: 0.120785648 | BU31: 0.5784101454 | BV31: 0.3008042066 | BW31: 2388 | BX31: 2951 | BY31: 3235 | BZ31: 6186 | CA31: -0.04526349822 | CB31: 2.590452261 | CC31: 659 | CD31: 3480 | CE31: 2047 | CF31: 0.1065308762 | CG31: 0.5625606208 | CH31: 0.3309085031 | CI31: 2280 | CJ31: 2680 | CK31: 2948 | CL31: 5628 | CM31: -0.09914712154 | CN31: 2.468421053 | CO31: 659 | CP31: 3480 | CQ31: 2047 | CR31: 0.1170931059 | CS31: 0.618336887 | CT31: 0.3637171286
A32: 29 | B32: せたな町 | C32: 4942 | D32: 7724 | E32: 8327 | F32: 16051 | H32: 3.247875354 | I32: 3766 | J32: 10297 | K32: 1988 | L32: 0.234627126 | M32: 0.6415176625 | N32: 0.1238552115 | O32: 4863 | P32: 7261 | Q32: 7883 | R32: 15144 | S32: -0.05650738272 | T32: 3.114127082 | U32: 3085 | V32: 9726 | W32: 2333 | X32: 0.2037110407 | Y32: 0.6422345483 | Z32: 0.154054411 | AA32: 4682 | AB32: 6404 | AC32: 6985 | AD32: 13389 | AE32: -0.1158874802 | AF32: 2.859675352 | AG32: 2270 | AH32: 8607 | AI32: 2512 | AJ32: 0.1695421615 | AK32: 0.6428411382 | AL32: 0.1876167003 | AM32: 4597 | AN32: 5952 | AO32: 6494 | AP32: 12446 | AQ32: -0.07043095078 | AR32: 2.707417881 | AS32: 1817 | AT32: 7656 | AU32: 2973 | AV32: 0.1459906797 | AW32: 0.6151373935 | AX32: 0.2388719267 | AY32: 4595 | AZ32: 5608 | BA32: 6234 | BB32: 11842 | BC32: -0.04852964808 | BD32: 2.577149075 | BE32: 1465 | BF32: 6984 | BG32: 3393 | BH32: 0.1237122108 | BI32: 0.5897652424 | BJ32: 0.2865225469 | BK32: 4436 | BL32: 5094 | BM32: 5654 | BN32: 10748 | BO32: -0.0923830434 | BP32: 2.422903517 | BQ32: 1243 | BR32: 5910 | BS32: 3595 | BT32: 0.1156494231 | BU32: 0.5498697432 | BV32: 0.3344808336 | BW32: 4169 | BX32: 4478 | BY32: 5112 | BZ32: 9590 | CA32: -0.1077409751 | CB32: 2.300311825 | CC32: 1019 | CD32: 4961 | CE32: 3610 | CF32: 0.1062565172 | CG32: 0.5173096976 | CH32: 0.3764337852 | CI32: 3862 | CJ32: 3952 | CK32: 4521 | CL32: 8473 | CM32: -0.1318305205 | CN32: 2.193940963 | CO32: 579 | CP32: 2944 | CQ32: 1876 | CR32: 0.06833471026 | CS32: 0.3474566269 | CT32: 0.2214091821
A33: 30 | B33: 小樽市 | C33: 59287 | D33: 84981 | E33: 95747 | F33: 180728 | H33: 3.048357987 | I33: 37726 | J33: 123488 | K33: 19514 | L33: 0.2087446328 | M33: 0.6832809526 | N33: 0.1079744146 | O33: 58763 | P33: 80170 | Q33: 92316 | R33: 172486 | S33: -0.04560444425 | T33: 2.935282406 | U33: 32675 | V33: 117821 | W33: 21988 | X33: 0.1894356643 | Y33: 0.6830757279 | Z33: 0.1274770126 | AA33: 58932 | AB33: 75453 | AC33: 87758 | AD33: 163211 | AE33: -0.05377248009 | AF33: 2.769480079 | AG33: 25242 | AH33: 112165 | AI33: 25804 | AJ33: 0.1546586933 | AK33: 0.6872392179 | AL33: 0.1581020887 | AM33: 60416 | AN33: 71914 | AO33: 85108 | AP33: 157022 | AQ33: -0.03792023822 | AR33: 2.599013506 | AS33: 20352 | AT33: 106146 | AU33: 30524 | AV33: 0.129612411 | AW33: 0.6759944466 | AX33: 0.1943931424 | AY33: 61471 | AZ33: 68687 | BA33: 82000 | BB33: 150687 | BC33: -0.04034466508 | BD33: 2.451351044 | BE33: 17398 | BF33: 98035 | BG33: 35253 | BH33: 0.1154578696 | BI33: 0.6505869783 | BJ33: 0.2339485158 | BK33: 60400 | BL33: 64436 | BM33: 77725 | BN33: 142161 | BO33: -0.05658085966 | BP33: 2.35365894 | BQ33: 15082 | BR33: 88088 | BS33: 38984 | BT33: 0.1060909814 | BU33: 0.6196354837 | BV33: 0.274224295 | BW33: 57711 | BX33: 59514 | BY33: 72414 | BZ33: 131928 | CA33: -0.07756503547 | CB33: 2.286011332 | CC33: 13105 | CD33: 77215 | CE33: 41607 | CF33: 0.09933523843 | CG33: 0.585285802 | CH33: 0.3153789596 | CI33: 55466 | CJ33: 54985 | CK33: 66939 | CL33: 121924 | CM33: -0.08205111381 | CN33: 2.198175459 | CO33: 13105 | CP33: 77215 | CQ33: 41607 | CR33: 0.1074849906 | CS33: 0.6333043535 | CT33: 0.3412535678
A34: 31 | B34: 島牧村 | C34: 993 | D34: 1532 | E34: 1606 | F34: 3138 | H34: 3.160120846 | I34: 698 | J34: 2034 | K34: 406 | L34: 0.2224346718 | M34: 0.6481835564 | N34: 0.1293817718 | O34: 951 | P34: 1330 | Q34: 1437 | R34: 2767 | S34: -0.1182281708 | T34: 2.909568875 | U34: 531 | V34: 1800 | W34: 436 | X34: 0.1919045898 | Y34: 0.6505240332 | Z34: 0.1575713769 | AA34: 913 | AB34: 1208 | AC34: 1294 | AD34: 2502 | AE34: -0.09577159378 | AF34: 2.74041621 | AG34: 385 | AH34: 1609 | AI34: 508 | AJ34: 0.1538768985 | AK34: 0.6430855316 | AL34: 0.2030375699 | AM34: 849 | AN34: 1105 | AO34: 1196 | AP34: 2301 | AQ34: -0.08033573141 | AR34: 2.71024735 | AS34: 332 | AT34: 1359 | AU34: 610 | AV34: 0.1442850934 | AW34: 0.5906127771 | AX34: 0.2651021295 | AY34: 878 | AZ34: 1089 | BA34: 1135 | BB34: 2224 | BC34: -0.03346371143 | BD34: 2.533029613 | BE34: 275 | BF34: 1286 | BG34: 663 | BH34: 0.1236510791 | BI34: 0.5782374101 | BJ34: 0.2981115108 | BK34: 808 | BL34: 951 | BM34: 1045 | BN34: 1996 | BO34: -0.1025179856 | BP34: 2.47029703 | BQ34: 221 | BR34: 1072 | BS34: 703 | BT34: 0.1107214429 | BU34: 0.5370741483 | BV34: 0.3522044088 | BW34: 742 | BX34: 853 | BY34: 928 | BZ34: 1781 | CA34: -0.1207186974 | CB34: 2.400269542 | CC34: 179 | CD34: 926 | CE34: 676 | CF34: 0.1005053341 | CG34: 0.5199326221 | CH34: 0.3795620438 | CI34: 661 | CJ34: 734 | CK34: 765 | CL34: 1499 | CM34: -0.1881254169 | CN34: 2.267776097 | CO34: 179 | CP34: 926 | CQ34: 676 | CR34: 0.119412942 | CS34: 0.6177451634 | CT34: 0.4509673115
A35: 32 | B35: 寿都町 | C35: 1917 | D35: 2860 | E35: 3065 | F35: 5925 | H35: 3.090766823 | I35: 1305 | J35: 3794 | K35: 826 | L35: 0.2202531646 | M35: 0.6403375527 | N35: 0.1394092827 | O35: 1830 | P35: 2661 | Q35: 2836 | R35: 5497 | S35: -0.07223628692 | T35: 3.003825137 | U35: 1090 | V35: 3510 | W35: 897 | X35: 0.1982899764 | Y35: 0.6385301073 | Z35: 0.1631799163 | AA35: 1764 | AB35: 2311 | AC35: 2547 | AD35: 4858 | AE35: -0.1162452247 | AF35: 2.753968254 | AG35: 821 | AH35: 2995 | AI35: 1042 | AJ35: 0.1689995883 | AK35: 0.6165088514 | AL35: 0.2144915603 | AM35: 1699 | AN35: 2089 | AO35: 2316 | AP35: 4405 | AQ35: -0.09324825031 | AR35: 2.592701589 | AS35: 641 | AT35: 2616 | AU35: 1148 | AV35: 0.1455164586 | AW35: 0.5938706016 | AX35: 0.2606129398 | AY35: 1683 | AZ35: 2019 | BA35: 2095 | BB35: 4114 | BC35: -0.06606129398 | BD35: 2.444444444 | BE35: 467 | BF35: 2419 | BG35: 1228 | BH35: 0.1135148274 | BI35: 0.5879922217 | BJ35: 0.2984929509 | BK35: 1642 | BL35: 1797 | BM35: 1947 | BN35: 3744 | BO35: -0.08993680117 | BP35: 2.280146163 | BQ35: 376 | BR35: 2157 | BS35: 1211 | BT35: 0.1004273504 | BU35: 0.5761217949 | BV35: 0.3234508547 | BW35: 1536 | BX35: 1656 | BY35: 1787 | BZ35: 3443 | CA35: -0.08742375835 | CB35: 2.241536458 | CC35: 336 | CD35: 1892 | CE35: 1215 | CF35: 0.09758931165 | CG35: 0.5495207668 | CH35: 0.3528899216 | CI35: 1420 | CJ35: 1528 | CK35: 1609 | CL35: 3137 | CM35: -0.09754542557 | CN35: 2.20915493 | CO35: 336 | CP35: 1892 | CQ35: 1215 | CR35: 0.1071087026 | CS35: 0.6031240038 | CT35: 0.3873127192
A36: 33 | B36: 黒松内町 | C36: 1366 | D36: 2160 | E36: 2372 | F36: 4532 | H36: 3.317715959 | I36: 1011 | J36: 2862 | K36: 659 | L36: 0.2230803177 | M36: 0.6315092674 | N36: 0.1454104148 | O36: 1333 | P36: 1976 | Q36: 2238 | R36: 4214 | S36: -0.07016769638 | T36: 3.161290323 | U36: 838 | V36: 2649 | W36: 727 | X36: 0.1988609397 | Y36: 0.6286188894 | Z36: 0.1725201709 | AA36: 1355 | AB36: 1843 | AC36: 2084 | AD36: 3927 | AE36: -0.06810631229 | AF36: 2.898154982 | AG36: 636 | AH36: 2486 | AI36: 805 | AJ36: 0.1619556914 | AK36: 0.6330532213 | AL36: 0.2049910873 | AM36: 1581 | AN36: 1931 | AO36: 1944 | AP36: 3875 | AQ36: -0.0132416603 | AR36: 2.450980392 | AS36: 546 | AT36: 2418 | AU36: 911 | AV36: 0.1409032258 | AW36: 0.624 | AX36: 0.2350967742 | AY36: 1376 | AZ36: 1672 | BA36: 1936 | BB36: 3608 | BC36: -0.06890322581 | BD36: 2.622093023 | BE36: 514 | BF36: 2070 | BG36: 1024 | BH36: 0.1424611973 | BI36: 0.5737250554 | BJ36: 0.2838137472 | BK36: 1387 | BL36: 1625 | BM36: 1832 | BN36: 3457 | BO36: -0.04185144124 | BP36: 2.492429704 | BQ36: 453 | BR36: 1918 | BS36: 1086 | BT36: 0.1310384727 | BU36: 0.5548163147 | BV36: 0.3141452126 | BW36: 1353 | BX36: 1534 | BY36: 1716 | BZ36: 3250 | CA36: -0.06369230769 | CB36: 2.402069475 | CC36: 398 | CD36: 1699 | CE36: 1153 | CF36: 0.1224615385 | CG36: 0.5227692308 | CH36: 0.3547692308 | CI36: 1336 | CJ36: 1415 | CK36: 1667 | CL36: 3082 | CM36: -0.0545100584 | CN36: 2.306886228 | CO36: 398 | CP36: 1699 | CQ36: 1153 | CR36: 0.1291369241 | CS36: 0.5512654121 | CT36: 0.3741077223
A37: 34 | B37: 蘭越町 | C37: 2417 | D37: 3893 | E37: 4162 | F37: 8055 | H37: 3.332643773 | I37: 1670 | J37: 5301 | K37: 1084 | L37: 0.2073246431 | M37: 0.6581005587 | N37: 0.1345747983 | O37: 2309 | P37: 3627 | Q37: 3926 | R37: 7553 | S37: -0.06232153942 | T37: 3.271113036 | U37: 1485 | V37: 4819 | W37: 1249 | X37: 0.1966106183 | Y37: 0.638024626 | Z37: 0.1653647557 | AA37: 2289 | AB37: 3344 | AC37: 3642 | AD37: 6986 | AE37: -0.0750695088 | AF37: 3.051987768 | AG37: 1263 | AH37: 4358 | AI37: 1365 | AJ37: 0.1807901517 | AK37: 0.6238190667 | AL37: 0.1953907816 | AM37: 2276 | AN37: 3101 | AO37: 3349 | AP37: 6450 | AQ37: -0.07672487833 | AR37: 2.833919156 | AS37: 1025 | AT37: 3839 | AU37: 1586 | AV37: 0.1589147287 | AW37: 0.5951937984 | AX37: 0.2458914729 | AY37: 2390 | AZ37: 3004 | BA37: 3211 | BB37: 6215 | BC37: -0.03643410853 | BD37: 2.60041841 | BE37: 837 | BF37: 3671 | BG37: 1707 | BH37: 0.1346741754 | BI37: 0.5906677393 | BJ37: 0.2746580853 | BK37: 2242 | BL37: 2794 | BM37: 3008 | BN37: 5802 | BO37: -0.06645213194 | BP37: 2.587867975 | BQ37: 767 | BR37: 3279 | BS37: 1756 | BT37: 0.1321957946 | BU37: 0.5651499483 | BV37: 0.3026542572 | BW37: 2129 | BX37: 2539 | BY37: 2753 | BZ37: 5292 | CA37: -0.09637188209 | CB37: 2.485674025 | CC37: 641 | CD37: 2905 | CE37: 1746 | CF37: 0.1211262283 | CG37: 0.5489417989 | CH37: 0.3299319728 | CI37: 2086 | CJ37: 2322 | CK37: 2521 | CL37: 4843 | CM37: -0.09271112947 | CN37: 2.321668265 | CO37: 641 | CP37: 2905 | CQ37: 1746 | CR37: 0.1323559777 | CS37: 0.5998348131 | CT37: 0.3605203386
A38: 35 | B38: ニセコ町 | C38: 1397 | D38: 2201 | E38: 2366 | F38: 4567 | H38: 3.269148175 | I38: 928 | J38: 3062 | K38: 577 | L38: 0.2031968469 | M38: 0.6704620101 | N38: 0.126341143 | O38: 1529 | P38: 2254 | Q38: 2339 | R38: 4593 | S38: 0.005693015108 | T38: 3.003924133 | U38: 889 | V38: 3058 | W38: 646 | X38: 0.1935554104 | Y38: 0.6657957762 | Z38: 0.1406488134 | AA38: 1583 | AB38: 2202 | AC38: 2309 | AD38: 4511 | AE38: -0.01785325495 | AF38: 2.849652558 | AG38: 794 | AH38: 2912 | AI38: 805 | AJ38: 0.1760141875 | AK38: 0.6455331412 | AL38: 0.1784526712 | AM38: 1744 | AN38: 2244 | AO38: 2397 | AP38: 4641 | AQ38: 0.0288184438 | AR38: 2.661123853 | AS38: 769 | AT38: 2950 | AU38: 922 | AV38: 0.165697048 | AW38: 0.6356388709 | AX38: 0.198664081 | AY38: 1766 | AZ38: 2209 | BA38: 2344 | BB38: 4553 | BC38: -0.01896143073 | BD38: 2.578142695 | BE38: 657 | BF38: 2815 | BG38: 1081 | BH38: 0.1443004612 | BI38: 0.6182736657 | BJ38: 0.2374258731 | BK38: 1896 | BL38: 2291 | BM38: 2378 | BN38: 4669 | BO38: 0.02547770701 | BP38: 2.462552743 | BQ38: 613 | BR38: 2898 | BS38: 1158 | BT38: 0.1312914971 | BU38: 0.6206896552 | BV38: 0.2480188477 | BW38: 2054 | BX38: 2365 | BY38: 2458 | BZ38: 4823 | CA38: 0.03193033382 | CB38: 2.348101266 | CC38: 589 | CD38: 3027 | CE38: 1207 | CF38: 0.1221231599 | CG38: 0.6276176654 | CH38: 0.2502591748 | CI38: 2274 | CJ38: 2512 | CK38: 2446 | CL38: 4958 | CM38: 0.02722872126 | CN38: 2.180299033 | CO38: 589 | CP38: 3027 | CQ38: 1207 | CR38: 0.1187979024 | CS38: 0.6105284389 | CT38: 0.2434449375
A39: 36 | B39: 真狩村 | C39: 954 | D39: 1562 | E39: 1578 | F39: 3140 | H39: 3.291404612 | I39: 727 | J39: 2070 | K39: 343 | L39: 0.2315286624 | M39: 0.6592356688 | N39: 0.1092356688 | O39: 941 | P39: 1506 | Q39: 1522 | R39: 3028 | S39: -0.03566878981 | T39: 3.217853348 | U39: 634 | V39: 2003 | W39: 391 | X39: 0.2093791281 | Y39: 0.6614927345 | Z39: 0.1291281374 | AA39: 919 | AB39: 1416 | AC39: 1410 | AD39: 2826 | AE39: -0.06671070013 | AF39: 3.07508161 | AG39: 555 | AH39: 1766 | AI39: 505 | AJ39: 0.1963906582 | AK39: 0.6249115357 | AL39: 0.1786978061 | AM39: 908 | AN39: 1337 | AO39: 1312 | AP39: 2649 | AQ39: -0.06263269639 | AR39: 2.917400881 | AS39: 454 | AT39: 1633 | AU39: 562 | AV39: 0.1713854285 | AW39: 0.6164590411 | AX39: 0.2121555304 | AY39: 910 | AZ39: 1272 | BA39: 1264 | BB39: 2536 | BC39: -0.04265760664 | BD39: 2.786813187 | BE39: 369 | BF39: 1540 | BG39: 627 | BH39: 0.1455047319 | BI39: 0.6072555205 | BJ39: 0.2472397476 | BK39: 884 | BL39: 1161 | BM39: 1193 | BN39: 2354 | BO39: -0.07176656151 | BP39: 2.662895928 | BQ39: 294 | BR39: 1414 | BS39: 646 | BT39: 0.1248937978 | BU39: 0.6006796941 | BV39: 0.2744265081 | BW39: 867 | BX39: 1080 | BY39: 1109 | BZ39: 2189 | CA39: -0.07537688442 | CB39: 2.524798155 | CC39: 235 | CD39: 1288 | CE39: 666 | CF39: 0.1073549566 | CG39: 0.5883965281 | CH39: 0.3042485153 | CI39: 855 | CJ39: 1037 | CK39: 1066 | CL39: 2103 | CM39: -0.04089396101 | CN39: 2.459649123 | CO39: 235 | CP39: 1288 | CQ39: 666 | CR39: 0.111745126 | CS39: 0.6124583928 | CT39: 0.3166904422
A40: 37 | B40: 留寿都村 | C40: 608 | D40: 1020 | E40: 1055 | F40: 2075 | H40: 3.412828947 | I40: 446 | J40: 1380 | K40: 249 | L40: 0.214939759 | M40: 0.665060241 | N40: 0.12 | O40: 700 | P40: 1051 | Q40: 1120 | R40: 2171 | S40: 0.04626506024 | T40: 3.101428571 | U40: 433 | V40: 1430 | W40: 308 | X40: 0.1994472593 | Y40: 0.6586826347 | Z40: 0.1418701059 | AA40: 891 | AB40: 1170 | AC40: 1199 | AD40: 2369 | AE40: 0.09120221096 | AF40: 2.658810325 | AG40: 443 | AH40: 1602 | AI40: 324 | AJ40: 0.1869987336 | AK40: 0.6762346982 | AL40: 0.1367665682 | AM40: 947 | AN40: 1142 | AO40: 1246 | AP40: 2388 | AQ40: 0.008020261714 | AR40: 2.521647307 | AS40: 401 | AT40: 1599 | AU40: 388 | AV40: 0.1679229481 | AW40: 0.6695979899 | AX40: 0.162479062 | AY40: 877 | AZ40: 1072 | BA40: 1155 | BB40: 2227 | BC40: -0.06742043551 | BD40: 2.539338655 | BE40: 333 | BF40: 1456 | BG40: 438 | BH40: 0.1495285137 | BI40: 0.6537943422 | BJ40: 0.1966771441 | BK40: 934 | BL40: 1050 | BM40: 1115 | BN40: 2165 | BO40: -0.02784014369 | BP40: 2.317987152 | BQ40: 270 | BR40: 1411 | BS40: 484 | BT40: 0.1247113164 | BU40: 0.6517321016 | BV40: 0.223556582 | BW40: 883 | BX40: 1004 | BY40: 1030 | BZ40: 2034 | CA40: -0.06440511308 | CB40: 2.303510759 | CC40: 261 | CD40: 1252 | CE40: 502 | CF40: 0.129528536 | CG40: 0.6213399504 | CH40: 0.2491315136 | CI40: 915 | CJ40: 951 | CK40: 956 | CL40: 1907 | CM40: -0.06659674882 | CN40: 2.084153005 | CO40: 261 | CP40: 1252 | CQ40: 502 | CR40: 0.1368641846 | CS40: 0.6565285789 | CT40: 0.2632406922
A41: 38 | B41: 喜茂別町 | C41: 1355 | D41: 1946 | E41: 2139 | F41: 4085 | H41: 3.014760148 | I41: 898 | J41: 2708 | K41: 479 | L41: 0.2198286414 | M41: 0.6629130967 | N41: 0.1172582619 | O41: 1285 | P41: 1841 | Q41: 1908 | R41: 3749 | S41: -0.08225214198 | T41: 2.917509728 | U41: 699 | V41: 2553 | W41: 497 | X41: 0.1864497199 | Y41: 0.6809815951 | Z41: 0.132568685 | AA41: 1168 | AB41: 1594 | AC41: 1646 | AD41: 3240 | AE41: -0.1357695385 | AF41: 2.773972603 | AG41: 477 | AH41: 2188 | AI41: 575 | AJ41: 0.1472222222 | AK41: 0.675308642 | AL41: 0.1774691358 | AM41: 1230 | AN41: 1488 | AO41: 1541 | AP41: 3029 | AQ41: -0.06512345679 | AR41: 2.462601626 | AS41: 366 | AT41: 2038 | AU41: 625 | AV41: 0.1208319577 | AW41: 0.6728293166 | AX41: 0.2063387257 | AY41: 1228 | AZ41: 1393 | BA41: 1450 | BB41: 2843 | BC41: -0.06140640475 | BD41: 2.31514658 | BE41: 291 | BF41: 1822 | BG41: 730 | BH41: 0.1023566655 | BI41: 0.640872318 | BJ41: 0.2567710165 | BK41: 1233 | BL41: 1356 | BM41: 1351 | BN41: 2707 | BO41: -0.04783679212 | BP41: 2.195458232 | BQ41: 255 | BR41: 1651 | BS41: 801 | BT41: 0.09420022165 | BU41: 0.6099002586 | BV41: 0.2958995198 | BW41: 1207 | BX41: 1276 | BY41: 1214 | BZ41: 2490 | CA41: -0.08714859438 | CB41: 2.062966031 | CC41: 230 | CD41: 1452 | CE41: 808 | CF41: 0.09236947791 | CG41: 0.5831325301 | CH41: 0.324497992 | CI41: 1123 | CJ41: 1171 | CK41: 1123 | CL41: 2294 | CM41: -0.08544027899 | CN41: 2.042742654 | CO41: 230 | CP41: 1452 | CQ41: 808 | CR41: 0.1002615519 | CS41: 0.6329555362 | CT41: 0.3522231909
A42: 39 | B42: 京極町 | C42: 1183 | D42: 2095 | E42: 2181 | F42: 4276 | H42: 3.614539307 | I42: 908 | J42: 2832 | K42: 536 | L42: 0.2123479888 | M42: 0.6623012161 | N42: 0.1253507951 | O42: 1343 | P42: 2025 | Q42: 2100 | R42: 4125 | S42: -0.03531337699 | T42: 3.071481757 | U42: 783 | V42: 2811 | W42: 531 | X42: 0.1898181818 | Y42: 0.6814545455 | Z42: 0.1287272727 | AA42: 1235 | AB42: 1817 | AC42: 1958 | AD42: 3775 | AE42: -0.08484848485 | AF42: 3.056680162 | AG42: 641 | AH42: 2497 | AI42: 637 | AJ42: 0.1698013245 | AK42: 0.6614569536 | AL42: 0.1687417219 | AM42: 1271 | AN42: 1699 | AO42: 1790 | AP42: 3489 | AQ42: -0.0757615894 | AR42: 2.745082612 | AS42: 467 | AT42: 2300 | AU42: 722 | AV42: 0.1338492405 | AW42: 0.6592146747 | AX42: 0.2069360848 | AY42: 1311 | AZ42: 1683 | BA42: 1822 | BB42: 3505 | BC42: 0.004585841215 | BD42: 2.673531655 | BE42: 428 | BF42: 2198 | BG42: 879 | BH42: 0.1221112696 | BI42: 0.6271041369 | BJ42: 0.2507845934 | BK42: 1463 | BL42: 1799 | BM42: 1784 | BN42: 3583 | BO42: 0.02225392297 | BP42: 2.449077239 | BQ42: 409 | BR42: 2144 | BS42: 1030 | BT42: 0.1141501535 | BU42: 0.5983812448 | BV42: 0.2874686017 | BW42: 1740 | BX42: 2032 | BY42: 1779 | BZ42: 3811 | CA42: 0.05982681711 | CB42: 2.190229885 | CC42: 441 | CD42: 2267 | CE42: 1100 | CF42: 0.1158088235 | CG42: 0.5953256303 | CH42: 0.2888655462 | CI42: 1281 | CJ42: 1553 | CK42: 1634 | CL42: 3187 | CM42: -0.1957954189 | CN42: 2.487900078 | CO42: 441 | CP42: 2267 | CQ42: 1100 | CR42: 0.138374647 | CS42: 0.711327267 | CT42: 0.3451521807
A43: 40 | B43: 倶知安町 | C43: 6201 | D43: 9452 | E43: 9441 | F43: 18893 | H43: 3.046766651 | I43: 4567 | J43: 12937 | K43: 1389 | L43: 0.2417297412 | M43: 0.684750966 | N43: 0.07351929286 | O43: 6337 | P43: 9454 | Q43: 9438 | R43: 18892 | S43: -5.292965649e-05 | T43: 2.981221398 | U43: 4359 | V43: 12875 | W43: 1658 | X43: 0.2307325852 | Y43: 0.6815053991 | Z43: 0.08776201567 | AA43: 6596 | AB43: 9200 | AC43: 8830 | AD43: 18030 | AE43: -0.04562777895 | AF43: 2.733474833 | AG43: 3639 | AH43: 12427 | AI43: 1957 | AJ43: 0.2018302829 | AK43: 0.6892401553 | AL43: 0.10854132 | AM43: 6802 | AN43: 8618 | AO43: 8460 | AP43: 17078 | AQ43: -0.05280088741 | AR43: 2.510732138 | AS43: 3089 | AT43: 11608 | AU43: 2381 | AV43: 0.1808759808 | AW43: 0.6797048835 | AX43: 0.1394191357 | AY43: 6916 | AZ43: 8087 | BA43: 8097 | BB43: 16184 | BC43: -0.05234805012 | BD43: 2.340080972 | BE43: 2421 | BF43: 11038 | BG43: 2725 | BH43: 0.1495921898 | BI43: 0.6820316362 | BJ43: 0.168376174 | BK43: 7043 | BL43: 8017 | BM43: 8159 | BN43: 16176 | BO43: -0.0004943153732 | BP43: 2.296748545 | BQ43: 2226 | BR43: 10760 | BS43: 3190 | BT43: 0.137611276 | BU43: 0.6651829871 | BV43: 0.1972057369 | BW43: 7102 | BX43: 7792 | BY43: 7776 | BZ43: 15568 | CA43: -0.03905447071 | CB43: 2.192058575 | CC43: 2181 | CD43: 10045 | CE43: 3342 | CF43: 0.1400950668 | CG43: 0.6452338129 | CH43: 0.2146711202 | CI43: 6974 | CJ43: 7538 | CK43: 7480 | CL43: 15018 | CM43: -0.0366227194 | CN43: 2.153427015 | CO43: 2181 | CP43: 10045 | CQ43: 3342 | CR43: 0.1452257291 | CS43: 0.6688640298 | CT43: 0.2225329604
A44: 41 | B44: 共和町 | C44: 2313 | D44: 3867 | E44: 4064 | F44: 7931 | H44: 3.428880242 | I44: 1689 | J44: 5211 | K44: 1031 | L44: 0.2129617955 | M44: 0.6570419871 | N44: 0.1299962174 | O44: 2860 | P44: 4282 | Q44: 4000 | R44: 8282 | S44: 0.04425671416 | T44: 2.895804196 | U44: 1566 | V44: 5576 | W44: 1140 | X44: 0.1890847621 | Y44: 0.6732673267 | Z44: 0.1376479111 | AA44: 2572 | AB44: 3743 | AC44: 3948 | AD44: 7691 | AE44: -0.07135957498 | AF44: 2.990279938 | AG44: 1432 | AH44: 4974 | AI44: 1285 | AJ44: 0.1861916526 | AK44: 0.6467299441 | AL44: 0.1670784033 | AM44: 2696 | AN44: 3672 | AO44: 3758 | AP44: 7430 | AQ44: -0.03393576908 | AR44: 2.755934718 | AS44: 1238 | AT44: 4727 | AU44: 1465 | AV44: 0.1666218035 | AW44: 0.636204576 | AX44: 0.1971736205 | AY44: 2752 | AZ44: 3577 | BA44: 3672 | BB44: 7249 | BC44: -0.02436069987 | BD44: 2.634084302 | BE44: 1128 | BF44: 4512 | BG44: 1609 | BH44: 0.15560767 | BI44: 0.6224306801 | BJ44: 0.2219616499 | BK44: 2962 | BL44: 3584 | BM44: 3528 | BN44: 7112 | BO44: -0.0188991585 | BP44: 2.401080351 | BQ44: 990 | BR44: 4381 | BS44: 1741 | BT44: 0.1392013498 | BU44: 0.6160011249 | BV44: 0.2447975253 | BW44: 2698 | BX44: 3215 | BY44: 3213 | BZ44: 6428 | CA44: -0.1064094586 | CB44: 2.38250556 | CC44: 835 | CD44: 3814 | CE44: 1779 | CF44: 0.1299004356 | CG44: 0.5933416304 | CH44: 0.276757934 | CI44: 2854 | CJ44: 3243 | CK44: 2981 | CL44: 6224 | CM44: -0.03277634961 | CN44: 2.180798879 | CO44: 835 | CP44: 3814 | CQ44: 1779 | CR44: 0.1341580977 | CS44: 0.6127892031 | CT44: 0.2858290488
A45: 42 | B45: 岩内町 | C45: 7254 | D45: 10478 | E45: 11895 | F45: 22373 | H45: 3.084229391 | I45: 5248 | J45: 14794 | K45: 2331 | L45: 0.234568453 | M45: 0.6612434631 | N45: 0.1041880839 | O45: 7230 | P45: 9643 | Q45: 11249 | R45: 20892 | S45: -0.06619586108 | T45: 2.889626556 | U45: 4294 | V45: 14104 | W45: 2494 | X45: 0.2055332185 | Y45: 0.6750909439 | Z45: 0.1193758376 | AA45: 7201 | AB45: 8952 | AC45: 10420 | AD45: 19372 | AE45: -0.07275512158 | AF45: 2.690181919 | AG45: 3424 | AH45: 13197 | AI45: 2751 | AJ45: 0.1767499484 | AK45: 0.6812409663 | AL45: 0.1420090853 | AM45: 7069 | AN45: 8309 | AO45: 9586 | AP45: 17895 | AQ45: -0.0762440636 | AR45: 2.531475456 | AS45: 2839 | AT45: 11803 | AU45: 3253 | AV45: 0.1586476669 | AW45: 0.6595697122 | AX45: 0.1817826208 | AY45: 6969 | AZ45: 7785 | BA45: 8941 | BB45: 16726 | BC45: -0.06532550992 | BD45: 2.400057397 | BE45: 2366 | BF45: 10662 | BG45: 3698 | BH45: 0.1414564152 | BI45: 0.6374506756 | BJ45: 0.2210929092 | BK45: 6853 | BL45: 7284 | BM45: 8460 | BN45: 15744 | BO45: -0.05871098888 | BP45: 2.297388005 | BQ45: 2113 | BR45: 9472 | BS45: 4159 | BT45: 0.1342098577 | BU45: 0.6016260163 | BV45: 0.264164126 | BW45: 6555 | BX45: 6700 | BY45: 7751 | BZ45: 14451 | CA45: -0.08947477683 | CB45: 2.204576659 | CC45: 1667 | CD45: 8396 | CE45: 4384 | CF45: 0.1153872776 | CG45: 0.5811587181 | CH45: 0.3034540043 | CI45: 6228 | CJ45: 6174 | CK45: 6868 | CL45: 13042 | CM45: -0.1080355774 | CN45: 2.094091201 | CO45: 1667 | CP45: 8396 | CQ45: 4384 | CR45: 0.1278178194 | CS45: 0.6437662935 | CT45: 0.3361447631
A46: 43 | B46: 泊 村 | C46: 901 | D46: 1278 | E46: 1510 | F46: 2788 | H46: 3.094339623 | I46: 521 | J46: 1655 | K46: 612 | L46: 0.1868723099 | M46: 0.593615495 | N46: 0.2195121951 | O46: 927 | P46: 1238 | Q46: 1402 | R46: 2640 | S46: -0.05308464849 | T46: 2.84789644 | U46: 442 | V46: 1572 | W46: 626 | X46: 0.1674242424 | Y46: 0.5954545455 | Z46: 0.2371212121 | AA46: 933 | AB46: 1108 | AC46: 1268 | AD46: 2376 | AE46: -0.1 | AF46: 2.546623794 | AG46: 311 | AH46: 1410 | AI46: 655 | AJ46: 0.1308922559 | AK46: 0.5934343434 | AL46: 0.2756734007 | AM46: 880 | AN46: 976 | AO46: 1152 | AP46: 2128 | AQ46: -0.1043771044 | AR46: 2.418181818 | AS46: 264 | AT46: 1165 | AU46: 699 | AV46: 0.1240601504 | AW46: 0.547462406 | AX46: 0.3284774436 | AY46: 857 | AZ46: 905 | BA46: 1135 | BB46: 2040 | BC46: -0.04135338346 | BD46: 2.380396733 | BE46: 245 | BF46: 1069 | BG46: 726 | BH46: 0.1200980392 | BI46: 0.5240196078 | BJ46: 0.3558823529 | BK46: 1036 | BL46: 1092 | BM46: 1093 | BN46: 2185 | BO46: 0.07107843137 | BP46: 2.109073359 | BQ46: 276 | BR46: 1213 | BS46: 696 | BT46: 0.1263157895 | BU46: 0.5551487414 | BV46: 0.3185354691 | BW46: 855 | BX46: 919 | BY46: 964 | BZ46: 1883 | CA46: -0.1603823686 | CB46: 2.202339181 | CC46: 256 | CD46: 1016 | CE46: 611 | CF46: 0.1359532661 | CG46: 0.5395645247 | CH46: 0.3244822092 | CI46: 886 | CJ46: 888 | CK46: 883 | CL46: 1771 | CM46: -0.06324110672 | CN46: 1.998871332 | CO46: 256 | CP46: 1016 | CQ46: 611 | CR46: 0.1445511011 | CS46: 0.5736871824 | CT46: 0.3450028233
A47: 44 | B47: 神恵内村 | C47: 717 | D47: 1027 | E47: 987 | F47: 2014 | H47: 2.808926081 | I47: 388 | J47: 1308 | K47: 318 | L47: 0.1926514399 | M47: 0.6494538232 | N47: 0.1578947368 | O47: 688 | P47: 901 | Q47: 896 | R47: 1797 | S47: -0.1077457795 | T47: 2.611918605 | U47: 304 | V47: 1182 | W47: 311 | X47: 0.1691708403 | Y47: 0.6577629382 | Z47: 0.1730662215 | AA47: 628 | AB47: 774 | AC47: 822 | AD47: 1596 | AE47: -0.1118530885 | AF47: 2.541401274 | AG47: 214 | AH47: 1020 | AI47: 362 | AJ47: 0.134085213 | AK47: 0.6390977444 | AL47: 0.2268170426 | AM47: 612 | AN47: 691 | AO47: 790 | AP47: 1481 | AQ47: -0.07205513784 | AR47: 2.419934641 | AS47: 174 | AT47: 847 | AU47: 460 | AV47: 0.1174881837 | AW47: 0.571910871 | AX47: 0.3106009453 | AY47: 579 | AZ47: 611 | BA47: 714 | BB47: 1325 | BC47: -0.1053342336 | BD47: 2.288428325 | BE47: 122 | BF47: 699 | BG47: 504 | BH47: 0.0920754717 | BI47: 0.5275471698 | BJ47: 0.3803773585 | BK47: 612 | BL47: 624 | BM47: 695 | BN47: 1319 | BO47: -0.4754716981 | BP47: 1.135620915 | BQ47: 108 | BR47: 697 | BS47: 514 | BT47: 0.08188021228 | BU47: 0.5284306293 | BV47: 0.3896891585 | BW47: 473 | BX47: 503 | BY47: 619 | BZ47: 1122 | CA47: -0.1755793226 | CB47: 2.372093023 | CC47: 100 | CD47: 538 | CE47: 484 | CF47: 0.08912655971 | CG47: 0.4795008913 | CH47: 0.431372549 | CI47: 434 | CJ47: 462 | CK47: 542 | CL47: 1004 | CM47: -0.1175298805 | CN47: 2.313364055 | CO47: 100 | CP47: 538 | CQ47: 484 | CR47: 0.09960159363 | CS47: 0.5358565737 | CT47: 0.4820717131
A48: 45 | B48: 積丹町 | C48: 1560 | D48: 2309 | E48: 2601 | F48: 4910 | H48: 3.147435897 | I48: 1065 | J48: 3151 | K48: 694 | L48: 0.216904277 | M48: 0.6417515275 | N48: 0.1413441955 | O48: 1467 | P48: 1981 | Q48: 2290 | R48: 4271 | S48: -0.1301425662 | T48: 2.911383776 | U48: 808 | V48: 2725 | W48: 738 | X48: 0.1891828612 | Y48: 0.638023882 | Z48: 0.1727932568 | AA48: 1489 | AB48: 1870 | AC48: 2142 | AD48: 4012 | AE48: -0.06064153594 | AF48: 2.694425789 | AG48: 579 | AH48: 2554 | AI48: 879 | AJ48: 0.1443170489 | AK48: 0.6365902293 | AL48: 0.2190927218 | AM48: 1417 | AN48: 1720 | AO48: 1928 | AP48: 3648 | AQ48: -0.09072781655 | AR48: 2.57445307 | AS48: 418 | AT48: 2203 | AU48: 1027 | AV48: 0.1145833333 | AW48: 0.6038925439 | AX48: 0.2815241228 | AY48: 1290 | AZ48: 1458 | BA48: 1691 | BB48: 3149 | BC48: -0.1367872807 | BD48: 2.441085271 | BE48: 323 | BF48: 1765 | BG48: 1061 | BH48: 0.1025722452 | BI48: 0.5604953954 | BJ48: 0.3369323595 | BK48: 1253 | BL48: 1318 | BM48: 1542 | BN48: 2860 | BO48: -0.09177516672 | BP48: 2.282521947 | BQ48: 275 | BR48: 1516 | BS48: 1069 | BT48: 0.09615384615 | BU48: 0.5300699301 | BV48: 0.3737762238 | BW48: 1175 | BX48: 1180 | BY48: 1336 | BZ48: 2516 | CA48: -0.1367249603 | CB48: 2.141276596 | CC48: 218 | CD48: 1285 | CE48: 1013 | CF48: 0.086645469 | CG48: 0.5107313196 | CH48: 0.4026232114 | CI48: 994 | CJ48: 1004 | CK48: 1111 | CL48: 2115 | CM48: -0.1895981087 | CN48: 2.1277666 | CO48: 218 | CP48: 1285 | CQ48: 1013 | CR48: 0.1030732861 | CS48: 0.6075650118 | CT48: 0.4789598109
A49: 46 | B49: 古平町 | C49: 1834 | D49: 2780 | E49: 3121 | F49: 5901 | H49: 3.217557252 | I49: 1264 | J49: 3918 | K49: 719 | L49: 0.2142009829 | M49: 0.6639552618 | N49: 0.1218437553 | O49: 1792 | P49: 2514 | Q49: 2942 | R49: 5456 | S49: -0.0754109473 | T49: 3.044642857 | U49: 1011 | V49: 3667 | W49: 778 | X49: 0.1853005865 | Y49: 0.6721041056 | Z49: 0.1425953079 | AA49: 1810 | AB49: 2303 | AC49: 2664 | AD49: 4967 | AE49: -0.08962609971 | AF49: 2.744198895 | AG49: 774 | AH49: 3312 | AI49: 881 | AJ49: 0.1558284679 | AK49: 0.6668008858 | AL49: 0.1773706463 | AM49: 1760 | AN49: 2192 | AO49: 2462 | AP49: 4654 | AQ49: -0.06301590497 | AR49: 2.644318182 | AS49: 596 | AT49: 3030 | AU49: 1028 | AV49: 0.1280618823 | AW49: 0.6510528578 | AX49: 0.22088526 | AY49: 1763 | AZ49: 2048 | BA49: 2270 | BB49: 4318 | BC49: -0.07219596046 | BD49: 2.44923426 | BE49: 439 | BF49: 2682 | BG49: 1197 | BH49: 0.1016674386 | BI49: 0.6211208893 | BJ49: 0.2772116721 | BK49: 1679 | BL49: 1891 | BM49: 2130 | BN49: 4021 | BO49: -0.06878184345 | BP49: 2.394877904 | BQ49: 355 | BR49: 2352 | BS49: 1314 | BT49: 0.0882864959 | BU49: 0.5849291221 | BV49: 0.326784382 | BW49: 1588 | BX49: 1687 | BY49: 1924 | BZ49: 3611 | CA49: -0.1135419551 | CB49: 2.273929471 | CC49: 279 | CD49: 2002 | CE49: 1330 | CF49: 0.07726391581 | CG49: 0.554417059 | CH49: 0.3683190252 | CI49: 1446 | CJ49: 1518 | CK49: 1670 | CL49: 3188 | CM49: -0.132685069 | CN49: 2.204702628 | CO49: 279 | CP49: 2002 | CQ49: 1330 | CR49: 0.08751568381 | CS49: 0.6279799247 | CT49: 0.4171894605
A50: 47 | B50: 仁木町 | C50: 1519 | D50: 2695 | E50: 2772 | F50: 5467 | H50: 3.599078341 | I50: 1222 | J50: 3608 | K50: 637 | L50: 0.2235229559 | M50: 0.6599597586 | N50: 0.1165172855 | O50: 1415 | P50: 2387 | Q50: 2572 | R50: 4959 | S50: -0.09292116334 | T50: 3.50459364 | U50: 954 | V50: 3269 | W50: 736 | X50: 0.1923774955 | Y50: 0.659205485 | Z50: 0.1484170196 | AA50: 1394 | AB50: 2165 | AC50: 2430 | AD50: 4595 | AE50: -0.07340189554 | AF50: 3.296269727 | AG50: 791 | AH50: 2968 | AI50: 836 | AJ50: 0.1721436344 | AK50: 0.6459194777 | AL50: 0.1819368879 | AM50: 1425 | AN50: 2026 | AO50: 2267 | AP50: 4293 | AQ50: -0.06572361262 | AR50: 3.012631579 | AS50: 587 | AT50: 2715 | AU50: 991 | AV50: 0.1367342185 | AW50: 0.6324248777 | AX50: 0.2308409038 | AY50: 1447 | AZ50: 1973 | BA50: 2138 | BB50: 4111 | BC50: -0.04239459585 | BD50: 2.841050449 | BE50: 513 | BF50: 2445 | BG50: 1153 | BH50: 0.1247871564 | BI50: 0.5947458039 | BJ50: 0.2804670396 | BK50: 1499 | BL50: 1895 | BM50: 2072 | BN50: 3967 | BO50: -0.03502797373 | BP50: 2.646430954 | BQ50: 459 | BR50: 2289 | BS50: 1219 | BT50: 0.1157045626 | BU50: 0.5770103353 | BV50: 0.3072851021 | BW50: 1493 | BX50: 1795 | BY50: 2005 | BZ50: 3800 | CA50: -0.04394736842 | CB50: 2.545210985 | CC50: 396 | CD50: 2141 | CE50: 1263 | CF50: 0.1042105263 | CG50: 0.5634210526 | CH50: 0.3323684211 | CI50: 1480 | CJ50: 1625 | CK50: 1873 | CL50: 3498 | CM50: -0.0863350486 | CN50: 2.363513514 | CO50: 396 | CP50: 2141 | CQ50: 1263 | CR50: 0.1132075472 | CS50: 0.6120640366 | CT50: 0.3610634648
A51: 48 | B51: 余市町 | C51: 8180 | D51: 12746 | E51: 13886 | F51: 26632 | H51: 3.255745721 | I51: 5857 | J51: 17893 | K51: 2882 | L51: 0.2199234004 | M51: 0.6718609192 | N51: 0.1082156804 | O51: 8487 | P51: 12517 | Q51: 13696 | R51: 26213 | S51: -0.01573295284 | T51: 3.088606103 | U51: 5208 | V51: 17579 | W51: 3426 | X51: 0.1986800443 | Y51: 0.6706214474 | Z51: 0.1306985084 | AA51: 8798 | AB51: 11980 | AC51: 13286 | AD51: 25266 | AE51: -0.0361271125 | AF51: 2.871789043 | AG51: 4268 | AH51: 16896 | AI51: 4102 | AJ51: 0.1689226629 | AK51: 0.6687247685 | AL51: 0.1623525687 | AM51: 9043 | AN51: 11565 | AO51: 12920 | AP51: 24485 | AQ51: -0.03091110583 | AR51: 2.707619153 | AS51: 3635 | AT51: 16008 | AU51: 4842 | AV51: 0.1484582397 | AW51: 0.6537880335 | AX51: 0.1977537268 | AY51: 9397 | AZ51: 11089 | BA51: 12596 | BB51: 23685 | BC51: -0.03267306514 | BD51: 2.520485261 | BE51: 3052 | BF51: 14973 | BG51: 5660 | BH51: 0.128857927 | BI51: 0.6321722609 | BJ51: 0.2389698121 | BK51: 9310 | BL51: 10521 | BM51: 12213 | BN51: 22734 | BO51: -0.04015199493 | BP51: 2.44189044 | BQ51: 2722 | BR51: 13617 | BS51: 6394 | BT51: 0.1197325592 | BU51: 0.5989707047 | BV51: 0.2812527492 | BW51: 9051 | BX51: 9778 | BY51: 11480 | BZ51: 21258 | CA51: -0.06943268417 | CB51: 2.348690752 | CC51: 2371 | CD51: 12215 | CE51: 6672 | CF51: 0.1115344811 | CG51: 0.5746072067 | CH51: 0.3138583122 | CI51: 8769 | CJ51: 9063 | CK51: 10544 | CL51: 19607 | CM51: -0.0842046208 | CN51: 2.235944806 | CO51: 2371 | CP51: 12215 | CQ51: 6672 | CR51: 0.1209261998 | CS51: 0.6229917886 | CT51: 0.3402866323
A52: 49 | B52: 赤井川村 | C52: 473 | D52: 732 | E52: 753 | F52: 1485 | H52: 3.139534884 | I52: 314 | J52: 988 | K52: 183 | L52: 0.2114478114 | M52: 0.6653198653 | N52: 0.1232323232 | O52: 583 | P52: 793 | Q52: 667 | R52: 1460 | S52: -0.01683501684 | T52: 2.504288165 | U52: 251 | V52: 1012 | W52: 197 | X52: 0.1719178082 | Y52: 0.6931506849 | Z52: 0.1349315068 | AA52: 658 | AB52: 811 | AC52: 659 | AD52: 1470 | AE52: 0.006849315068 | AF52: 2.234042553 | AG52: 222 | AH52: 1007 | AI52: 241 | AJ52: 0.1510204082 | AK52: 0.6850340136 | AL52: 0.1639455782 | AM52: 743 | AN52: 772 | AO52: 780 | AP52: 1552 | AQ52: 0.05578231293 | AR52: 2.088829071 | AS52: 226 | AT52: 1043 | AU52: 283 | AV52: 0.1456185567 | AW52: 0.6720360825 | AX52: 0.1823453608 | AY52: 723 | AZ52: 774 | BA52: 738 | BB52: 1512 | BC52: -0.02577319588 | BD52: 2.091286307 | BE52: 184 | BF52: 1017 | BG52: 311 | BH52: 0.1216931217 | BI52: 0.6726190476 | BJ52: 0.2056878307 | BK52: 606 | BL52: 652 | BM52: 658 | BN52: 1310 | BO52: -0.1335978836 | BP52: 2.161716172 | BQ52: 159 | BR52: 815 | BS52: 336 | BT52: 0.1213740458 | BU52: 0.6221374046 | BV52: 0.2564885496 | BW52: 619 | BX52: 641 | BY52: 621 | BZ52: 1262 | CA52: -0.03803486529 | CB52: 2.038772213 | CC52: 170 | CD52: 746 | CE52: 346 | CF52: 0.1347068146 | CG52: 0.5911251981 | CH52: 0.2741679873 | CI52: 534 | CJ52: 566 | CK52: 555 | CL52: 1121 | CM52: -0.1257805531 | CN52: 2.099250936 | CO52: 170 | CP52: 746 | CQ52: 346 | CR52: 0.1516503122 | CS52: 0.6654772525 | CT52: 0.3086529884
A53: 50 | B53: 夕張市 | C53: 14992 | D53: 20715 | E53: 21000 | F53: 41715 | H53: 2.782483991 | I53: 8358 | J53: 29571 | K53: 3786 | L53: 0.2003595829 | M53: 0.7088816972 | N53: 0.09075871988 | O53: 12152 | P53: 15628 | Q53: 16037 | R53: 31665 | S53: -0.2409205322 | T53: 2.60574391 | U53: 5641 | V53: 22383 | W53: 3641 | X53: 0.1781462182 | Y53: 0.7068687826 | Z53: 0.1149849992 | AA53: 8791 | AB53: 10078 | AC53: 10891 | AD53: 20969 | AE53: -0.3377861993 | AF53: 2.3852804 | AG53: 2799 | AH53: 14318 | AI53: 3852 | AJ53: 0.1334827603 | AK53: 0.6828174925 | AL53: 0.1836997472 | AM53: 7593 | AN53: 8127 | AO53: 8989 | AP53: 17116 | AQ53: -0.1837474367 | AR53: 2.254181483 | AS53: 1800 | AT53: 10879 | AU53: 4437 | AV53: 0.1051647581 | AW53: 0.6356041131 | AX53: 0.2592311288 | AY53: 6878 | AZ53: 6952 | BA53: 7839 | BB53: 14791 | BC53: -0.1358378126 | BD53: 2.150479791 | BE53: 1320 | BF53: 8502 | BG53: 4969 | BH53: 0.08924345886 | BI53: 0.5748090055 | BJ53: 0.3359475357 | BK53: 6275 | BL53: 6114 | BM53: 6887 | BN53: 13001 | BO53: -0.1210195389 | BP53: 2.07187251 | BQ53: 1022 | BR53: 6819 | BS53: 5160 | BT53: 0.07860933774 | BU53: 0.5244981155 | BV53: 0.3968925467 | BW53: 5558 | BX53: 5179 | BY53: 5743 | BZ53: 10922 | CA53: -0.1903497528 | CB53: 1.965095358 | CC53: 719 | CD53: 5417 | CE53: 4786 | CF53: 0.06583043399 | CG53: 0.4959714338 | CH53: 0.4381981322 | CI53: 4539 | CJ53: 4092 | CK53: 4751 | CL53: 8843 | CM53: -0.23510121 | CN53: 1.948226482 | CO53: 719 | CP53: 5417 | CQ53: 4786 | CR53: 0.08130724867 | CS53: 0.612574918 | CT53: 0.5412190433
A54: 51 | B54: 岩見沢市 | C54: 30476 | D54: 45781 | E54: 47559 | F54: 93340 | H54: 3.062737892 | I54: 19983 | J54: 64653 | K54: 8704 | L54: 0.2140882794 | M54: 0.6926612385 | N54: 0.09325048211 | O54: 31914 | P54: 46754 | Q54: 49108 | R54: 95862 | S54: 0.02701949861 | T54: 3.003760105 | U54: 19093 | V54: 66194 | W54: 10575 | X54: 0.199171726 | Y54: 0.6905134464 | Z54: 0.1103148276 | AA54: 32478 | AB54: 44602 | AC54: 48710 | AD54: 93312 | AE54: -0.02660073856 | AF54: 2.873083318 | AG54: 16128 | AH54: 64188 | AI54: 12866 | AJ54: 0.1728395062 | AK54: 0.6878858025 | AL54: 0.1378815158 | AM54: 35731 | AN54: 46229 | AO54: 50813 | AP54: 97042 | AQ54: 0.0399734225 | AR54: 2.715904956 | AS54: 14876 | AT54: 65787 | AU54: 16379 | AV54: 0.1532944498 | AW54: 0.6779229612 | AX54: 0.168782589 | AY54: 36941 | AZ54: 45603 | BA54: 50699 | BB54: 96302 | BC54: -0.007625564189 | BD54: 2.606913727 | BE54: 13267 | BF54: 63236 | BG54: 19793 | BH54: 0.1377645324 | BI54: 0.656642645 | BJ54: 0.2055305186 | BK54: 37322 | BL54: 44199 | BM54: 49478 | BN54: 93677 | BO54: -0.02725800087 | BP54: 2.509967312 | BQ54: 11558 | BR54: 59582 | BS54: 22537 | BT54: 0.1233814063 | BU54: 0.6360365938 | BV54: 0.2405819999 | BW54: 36723 | BX54: 42111 | BY54: 48034 | BZ54: 90145 | CA54: -0.03770402553 | CB54: 2.454728644 | CC54: 10253 | CD54: 54834 | CE54: 25032 | CF54: 0.1137389761 | CG54: 0.6082866493 | CH54: 0.2776859504 | CI54: 36155 | CJ54: 39319 | CK54: 45180 | CL54: 84499 | CM54: -0.06681735879 | CN54: 2.337131794 | CO54: 9318 | CP54: 49732 | CQ54: 21646 | CR54: 0.1102734944 | CS54: 0.5885513438 | CT54: 0.2561687121
A55: 52 | B55: 美唄市 | C55: 12734 | D55: 18883 | E55: 19669 | F55: 38552 | H55: 3.027485472 | I55: 7776 | J55: 26286 | K55: 4488 | L55: 0.2017015978 | M55: 0.6818323304 | N55: 0.1164141938 | O55: 12820 | P55: 18459 | Q55: 18955 | R55: 37414 | S55: -0.02951857232 | T55: 2.918408736 | U55: 6867 | V55: 25336 | W55: 5211 | X55: 0.1835409205 | Y55: 0.6771796654 | Z55: 0.1392794141 | AA55: 12552 | AB55: 17002 | AC55: 18174 | AD55: 35176 | AE55: -0.05981718073 | AF55: 2.802421925 | AG55: 5607 | AH55: 23546 | AI55: 6012 | AJ55: 0.1593984535 | AK55: 0.6693768479 | AL55: 0.1709119854 | AM55: 12771 | AN55: 16145 | AO55: 17289 | AP55: 33434 | AQ55: -0.04952240164 | AR55: 2.617962571 | AS55: 4497 | AT55: 21932 | AU55: 7005 | AV55: 0.1345037985 | AW55: 0.6559789436 | AX55: 0.2095172579 | AY55: 12437 | AZ55: 14952 | BA55: 16231 | BB55: 31183 | BC55: -0.06732667345 | BD55: 2.507276674 | BE55: 3717 | BF55: 19644 | BG55: 7820 | BH55: 0.1191995639 | BI55: 0.6299586313 | BJ55: 0.2507776673 | BK55: 11894 | BL55: 13850 | BM55: 15233 | BN55: 29083 | BO55: -0.06734438636 | BP55: 2.445182445 | BQ55: 3178 | BR55: 17528 | BS55: 8377 | BT55: 0.1092734587 | BU55: 0.602688856 | BV55: 0.2880376852 | BW55: 10992 | BX55: 12215 | BY55: 13819 | BZ55: 26034 | CA55: -0.117116079 | CB55: 2.368449782 | CC55: 2573 | CD55: 14887 | CE55: 8555 | CF55: 0.09890447819 | CG55: 0.5722467807 | CH55: 0.3288487411 | CI55: 10173 | CJ55: 10753 | CK55: 12282 | CL55: 23035 | CM55: -0.1301931843 | CN55: 2.26432714 | CO55: 2573 | CP55: 14887 | CQ55: 8555 | CR55: 0.1116995876 | CS55: 0.646277404 | CT55: 0.371391361
A56: 53 | B56: 芦別市 | C56: 11063 | D56: 16005 | E56: 16941 | F56: 32946 | H56: 2.978034891 | I56: 6865 | J56: 22460 | K56: 3621 | L56: 0.2083712742 | M56: 0.6817216051 | N56: 0.1099071207 | O56: 10537 | P56: 14592 | Q56: 15425 | R56: 30017 | S56: -0.08890305348 | T56: 2.848723546 | U56: 5521 | V56: 20352 | W56: 4144 | X56: 0.1839291068 | Y56: 0.6780157911 | Z56: 0.1380551021 | AA56: 9357 | AB56: 11936 | AC56: 13142 | AD56: 25078 | AE56: -0.1645400939 | AF56: 2.680132521 | AG56: 3793 | AH56: 16774 | AI56: 4511 | AJ56: 0.1512481059 | AK56: 0.6688731159 | AL56: 0.1798787782 | AM56: 9121 | AN56: 10985 | AO56: 11946 | AP56: 22931 | AQ56: -0.08561288779 | AR56: 2.514088368 | AS56: 2956 | AT56: 14734 | AU56: 5241 | AV56: 0.1289084645 | AW56: 0.6425363046 | AX56: 0.2285552309 | AY56: 8692 | AZ56: 9834 | BA56: 11192 | BB56: 21026 | BC56: -0.0830753129 | BD56: 2.419005983 | BE56: 2421 | BF56: 12604 | BG56: 6001 | BH56: 0.1151431561 | BI56: 0.5994483021 | BJ56: 0.2854085418 | BK56: 8222 | BL56: 8714 | BM56: 10185 | BN56: 18899 | BO56: -0.101160468 | BP56: 2.298589151 | BQ56: 1910 | BR56: 10566 | BS56: 6423 | BT56: 0.1010635483 | BU56: 0.5590771999 | BV56: 0.3398592518 | BW56: 7526 | BX56: 7585 | BY56: 9043 | BZ56: 16628 | CA56: -0.1365768583 | CB56: 2.209407388 | CC56: 1429 | CD56: 8791 | CE56: 6407 | CF56: 0.08594454802 | CG56: 0.5287183497 | CH56: 0.3853371023 | CI56: 6862 | CJ56: 6667 | CK56: 8009 | CL56: 14676 | CM56: -0.1330062687 | CN56: 2.138735063 | CO56: 1429 | CP56: 8791 | CQ56: 6407 | CR56: 0.09736985555 | CS56: 0.5990051785 | CT56: 0.4365630962
A57: 54 | B57: 赤平市 | C57: 8675 | D57: 12451 | E57: 13016 | F57: 25467 | H57: 2.935677233 | I57: 4931 | J57: 17924 | K57: 2612 | L57: 0.1936231201 | M57: 0.7038127773 | N57: 0.1025641026 | O57: 8023 | P57: 10930 | Q57: 11715 | R57: 22645 | S57: -0.1108100679 | T57: 2.822510283 | U57: 3920 | V57: 15596 | W57: 3129 | X57: 0.1731066461 | Y57: 0.6887171561 | Z57: 0.1381761978 | AA57: 7302 | AB57: 9147 | AC57: 10262 | AD57: 19409 | AE57: -0.1429013027 | AF57: 2.658038893 | AG57: 2718 | AH57: 13088 | AI57: 3601 | AJ57: 0.1400381266 | AK57: 0.6743263434 | AL57: 0.1855324849 | AM57: 6884 | AN57: 8123 | AO57: 9228 | AP57: 17351 | AQ57: -0.1060332835 | AR57: 2.520482278 | AS57: 2003 | AT57: 11158 | AU57: 4190 | AV57: 0.1154400323 | AW57: 0.6430753271 | AX57: 0.2414846407 | AY57: 6635 | AZ57: 7327 | BA57: 8426 | BB57: 15753 | BC57: -0.09209843813 | BD57: 2.374227581 | BE57: 1572 | BF57: 9472 | BG57: 4709 | BH57: 0.09979051609 | BI57: 0.6012822954 | BJ57: 0.2989271885 | BK57: 6202 | BL57: 6634 | BM57: 7767 | BN57: 14401 | BO57: -0.08582492224 | BP57: 2.321992906 | BQ57: 1390 | BR57: 8023 | BS57: 4988 | BT57: 0.09652107493 | BU57: 0.5571140893 | BV57: 0.3463648358 | BW57: 5585 | BX57: 5745 | BY57: 6892 | BZ57: 12637 | CA57: -0.1395900926 | CB57: 2.26266786 | CC57: 1072 | CD57: 6655 | CE57: 4909 | CF57: 0.08483697373 | CG57: 0.5266698322 | CH57: 0.388493194 | CI57: 4980 | CJ57: 5025 | CK57: 6080 | CL57: 11105 | CM57: -0.1379558757 | CN57: 2.229919679 | CO57: 1072 | CP57: 6655 | CQ57: 4909 | CR57: 0.0965330932 | CS57: 0.5992796038 | CT57: 0.4420531292
A58: 55 | B58: 三笠市 | C58: 8205 | D58: 11280 | E58: 12039 | F58: 23319 | H58: 2.842047532 | I58: 4225 | J58: 16192 | K58: 2902 | L58: 0.1811827265 | M58: 0.6943693983 | N58: 0.1244478751 | O58: 7941 | P58: 10349 | Q58: 11162 | R58: 21511 | S58: -0.07753334191 | T58: 2.708852789 | U58: 3510 | V58: 14725 | W58: 3276 | X58: 0.1631723304 | Y58: 0.6845334945 | Z58: 0.1522941751 | AA58: 6628 | AB58: 7893 | AC58: 9156 | AD58: 17049 | AE58: -0.2074287574 | AF58: 2.572269161 | AG58: 2102 | AH58: 11224 | AI58: 3723 | AJ58: 0.1232916887 | AK58: 0.6583377324 | AL58: 0.2183705789 | AM58: 6266 | AN58: 6985 | AO58: 8131 | AP58: 15116 | AQ58: -0.1133790838 | AR58: 2.412384296 | AS58: 1538 | AT58: 9407 | AU58: 4171 | AV58: 0.1017464938 | AW58: 0.6223207198 | AX58: 0.2759327865 | AY58: 5887 | AZ58: 6212 | BA58: 7349 | BB58: 13561 | BC58: -0.1028711299 | BD58: 2.303550195 | BE58: 1243 | BF58: 7695 | BG58: 4623 | BH58: 0.09165990709 | BI58: 0.5674360298 | BJ58: 0.3409040631 | BK58: 5422 | BL58: 5418 | BM58: 6509 | BN58: 11927 | BO58: -0.120492589 | BP58: 2.199741793 | BQ58: 975 | BR58: 6383 | BS58: 4569 | BT58: 0.08174729605 | BU58: 0.5351722981 | BV58: 0.3830804058 | BW58: 4776 | BX58: 4625 | BY58: 5596 | BZ58: 10221 | CA58: -0.1669112611 | CB58: 2.140075377 | CC58: 773 | CD58: 5121 | CE58: 4327 | CF58: 0.07562860777 | CG58: 0.5010272967 | CH58: 0.4233440955 | CI58: 4254 | CJ58: 4075 | CK58: 5001 | CL58: 9076 | CM58: -0.1261568973 | CN58: 2.133521392 | CO58: 773 | CP58: 5121 | CQ58: 4327 | CR58: 0.08516967827 | CS58: 0.564235346 | CT58: 0.4767518731
A59: 56 | B59: 滝川市 | C59: 16528 | D59: 25075 | E59: 26117 | F59: 51192 | H59: 3.097289448 | I59: 12140 | J59: 34737 | K59: 4304 | L59: 0.2371464291 | M59: 0.6785630567 | N59: 0.08407563682 | O59: 17734 | P59: 25072 | Q59: 26932 | R59: 52004 | S59: 0.01586185341 | T59: 2.932446149 | U59: 11146 | V59: 35671 | W59: 5186 | X59: 0.2143296669 | Y59: 0.6859280055 | Z59: 0.09972309822 | AA59: 17771 | AB59: 23443 | AC59: 26148 | AD59: 49591 | AE59: -0.0464002769 | AF59: 2.79055765 | AG59: 8862 | AH59: 34351 | AI59: 6372 | AJ59: 0.1787017806 | AK59: 0.6926861729 | AL59: 0.1284910568 | AM59: 18483 | AN59: 22835 | AO59: 25590 | AP59: 48425 | AQ59: -0.02351233087 | AR59: 2.619975112 | AS59: 7570 | AT59: 33093 | AU59: 7762 | AV59: 0.1563242127 | AW59: 0.6833866804 | AX59: 0.1602891069 | AY59: 18768 | AZ59: 22095 | BA59: 24766 | BB59: 46861 | BC59: -0.03229736706 | BD59: 2.496856351 | BE59: 6638 | BF59: 30867 | BG59: 9356 | BH59: 0.1416529737 | BI59: 0.6586927296 | BJ59: 0.1996542967 | BK59: 19314 | BL59: 21557 | BM59: 24005 | BN59: 45562 | BO59: -0.02772027912 | BP59: 2.359014187 | BQ59: 5813 | BR59: 28843 | BS59: 10906 | BT59: 0.1275843905 | BU59: 0.6330494711 | BV59: 0.2393661384 | BW59: 18947 | BX59: 20314 | BY59: 22856 | BZ59: 43170 | CA59: -0.05540884874 | CB59: 2.27846097 | CC59: 5132 | CD59: 26067 | CE59: 11912 | CF59: 0.1190415439 | CG59: 0.6046484656 | CH59: 0.2763099905 | CI59: 18651 | CJ59: 19475 | CK59: 21717 | CL59: 41192 | CM59: -0.04801903282 | CN59: 2.208567905 | CO59: 5132 | CP59: 26067 | CQ59: 11912 | CR59: 0.1245872985 | CS59: 0.6328170519 | CT59: 0.2891823655
A60: 57 | B60: 砂川市 | C60: 8469 | D60: 12382 | E60: 12973 | F60: 25355 | H60: 2.99385996 | I60: 5435 | J60: 17525 | K60: 2395 | L60: 0.2143561428 | M60: 0.6911851706 | N60: 0.09445868665 | O60: 8606 | P60: 12180 | Q60: 12649 | R60: 24829 | S60: -0.02074541511 | T60: 2.885080177 | U60: 5007 | V60: 16938 | W60: 2884 | X60: 0.20165935 | Y60: 0.6821861533 | Z60: 0.1161544968 | AA60: 8159 | AB60: 11050 | AC60: 12102 | AD60: 23152 | AE60: -0.06754198719 | AF60: 2.837602647 | AG60: 4045 | AH60: 15742 | AI60: 3365 | AJ60: 0.1747149274 | AK60: 0.6799412578 | AL60: 0.1453438148 | AM60: 8179 | AN60: 10357 | AO60: 11365 | AP60: 21722 | AQ60: -0.06176572218 | AR60: 2.655825896 | AS60: 3172 | AT60: 14389 | AU60: 4154 | AV60: 0.1460270693 | AW60: 0.6624159838 | AX60: 0.1912346929 | AY60: 8448 | AZ60: 9978 | BA60: 11094 | BB60: 21072 | BC60: -0.02992357978 | BD60: 2.494318182 | BE60: 2696 | BF60: 13404 | BG60: 4972 | BH60: 0.1279422931 | BI60: 0.6361047836 | BJ60: 0.2359529233 | BK60: 8348 | BL60: 9451 | BM60: 10617 | BN60: 20068 | BO60: -0.04764616553 | BP60: 2.403929085 | BQ60: 2412 | BR60: 12040 | BS60: 5616 | BT60: 0.1201913494 | BU60: 0.5999601355 | BV60: 0.279848515 | BW60: 8415 | BX60: 8925 | BY60: 10131 | BZ60: 19056 | CA60: -0.05310663308 | CB60: 2.264527629 | CC60: 2147 | CD60: 10977 | CE60: 5932 | CF60: 0.1126679261 | CG60: 0.5760390428 | CH60: 0.3112930311 | CI60: 7858 | CJ60: 8216 | CK60: 9478 | CL60: 17694 | CM60: -0.07697524585 | CN60: 2.251717994 | CO60: 2147 | CP60: 10977 | CQ60: 5932 | CR60: 0.1213405674 | CS60: 0.6203797898 | CT60: 0.3352548887
A61: 58 | B61: 歌志内市 | C61: 3648 | D61: 4863 | E61: 5315 | F61: 10178 | H61: 2.79002193 | I61: 1750 | J61: 7094 | K61: 1334 | L61: 0.1719394773 | M61: 0.6969935154 | N61: 0.1310670073 | O61: 3612 | P61: 4619 | Q61: 4993 | R61: 9612 | S61: -0.05561013952 | T61: 2.661129568 | U61: 1634 | V61: 6476 | W61: 1502 | X61: 0.1699958385 | Y61: 0.6737411569 | Z61: 0.1562630046 | AA61: 3180 | AB61: 3915 | AC61: 4364 | AD61: 8279 | AE61: -0.1386808156 | AF61: 2.603459119 | AG61: 1291 | AH61: 5370 | AI61: 1618 | AJ61: 0.1559367073 | AK61: 0.6486290615 | AL61: 0.1954342312 | AM61: 2814 | AN61: 3195 | AO61: 3672 | AP61: 6867 | AQ61: -0.170551999 | AR61: 2.440298507 | AS61: 843 | AT61: 4225 | AU61: 1799 | AV61: 0.122761031 | AW61: 0.6152613951 | AX61: 0.2619775739 | AY61: 2579 | AZ61: 2695 | BA61: 3246 | BB61: 5941 | BC61: -0.1348478229 | BD61: 2.303606049 | BE61: 564 | BF61: 3438 | BG61: 1939 | BH61: 0.09493351288 | BI61: 0.5786904562 | BJ61: 0.326376031 | BK61: 2335 | BL61: 2327 | BM61: 2894 | BN61: 5221 | BO61: -0.1211917186 | BP61: 2.235974304 | BQ61: 446 | BR61: 2854 | BS61: 1921 | BT61: 0.08542424823 | BU61: 0.546638575 | BV61: 0.3679371768 | BW61: 2000 | BX61: 1955 | BY61: 2432 | BZ61: 4387 | CA61: -0.1901071347 | CB61: 2.1935 | CC61: 337 | CD61: 2242 | CE61: 1808 | CF61: 0.07681787098 | CG61: 0.5110553909 | CH61: 0.4121267381 | CI61: 1665 | CJ61: 1652 | CK61: 1933 | CL61: 3585 | CM61: -0.2237099024 | CN61: 2.153153153 | CO61: 337 | CP61: 2242 | CQ61: 1808 | CR61: 0.0940027894 | CS61: 0.6253835425 | CT61: 0.5043235704
A62: 59 | B62: 深川市 | C62: 10911 | D62: 16917 | E62: 18459 | F62: 35376 | H62: 3.242232609 | I62: 7556 | J62: 23712 | K62: 4108 | L62: 0.2135911352 | M62: 0.6702849389 | N62: 0.1161239258 | O62: 11056 | P62: 16210 | Q62: 17623 | R62: 33833 | S62: -0.04361714156 | T62: 3.060148336 | U62: 6249 | V62: 22868 | W62: 4716 | X62: 0.1847013271 | Y62: 0.675908137 | Z62: 0.1393905359 | AA62: 10618 | AB62: 14330 | AC62: 16341 | AD62: 30671 | AE62: -0.09345904886 | AF62: 2.888585421 | AG62: 4736 | AH62: 20521 | AI62: 5395 | AJ62: 0.1544129634 | AK62: 0.6690685012 | AL62: 0.1758990577 | AM62: 10746 | AN62: 13376 | AO62: 15394 | AP62: 28770 | AQ62: -0.06198037234 | AR62: 2.677275265 | AS62: 3819 | AT62: 18727 | AU62: 6224 | AV62: 0.13274244 | AW62: 0.6509210984 | AX62: 0.2163364616 | AY62: 10945 | AZ62: 12906 | BA62: 14673 | BB62: 27579 | BC62: -0.04139728884 | BD62: 2.519780722 | BE62: 3227 | BF62: 17179 | BG62: 7173 | BH62: 0.1170093187 | BI62: 0.622901483 | BJ62: 0.2600891983 | BK62: 10554 | BL62: 12044 | BM62: 13794 | BN62: 25838 | BO62: -0.06312774212 | BP62: 2.448171309 | BQ62: 2789 | BR62: 15142 | BS62: 7905 | BT62: 0.1079417912 | BU62: 0.5860360709 | BV62: 0.3059447326 | BW62: 10100 | BX62: 10987 | BY62: 12722 | BZ62: 23709 | CA62: -0.08979712346 | CB62: 2.347425743 | CC62: 2295 | CD62: 13128 | CE62: 8284 | CF62: 0.0968068503 | CG62: 0.5537604927 | CH62: 0.349432657 | CI62: 9669 | CJ62: 10118 | CK62: 11791 | CL62: 21909 | CM62: -0.08215801725 | CN62: 2.265901334 | CO62: 2295 | CP62: 13128 | CQ62: 8284 | CR62: 0.104751472 | CS62: 0.5992058058 | CT62: 0.3781094527
A63: 60 | B63: 南幌町 | C63: 1418 | D63: 2660 | E63: 2784 | F63: 5444 | H63: 3.839210155 | I63: 1192 | J63: 3696 | K63: 556 | L63: 0.2189566495 | M63: 0.6789125643 | N63: 0.1021307862 | O63: 1516 | P63: 2831 | Q63: 2924 | R63: 5755 | S63: 0.05712711242 | T63: 3.796174142 | U63: 1264 | V63: 3750 | W63: 741 | X63: 0.2196350999 | Y63: 0.651607298 | Z63: 0.1287576021 | AA63: 1546 | AB63: 2761 | AC63: 2904 | AD63: 5665 | AE63: -0.01563857515 | AF63: 3.664294955 | AG63: 1055 | AH63: 3736 | AI63: 870 | AJ63: 0.1862312445 | AK63: 0.6594880847 | AL63: 0.1535745808 | AM63: 2618 | AN63: 4416 | AO63: 4604 | AP63: 9020 | AQ63: 0.5922330097 | AR63: 3.445378151 | AS63: 2125 | AT63: 5654 | AU63: 1241 | AV63: 0.2355875831 | AW63: 0.6268292683 | AX63: 0.1375831486 | AY63: 2992 | AZ63: 4758 | BA63: 5034 | BB63: 9792 | BC63: 0.08558758315 | BD63: 3.272727273 | BE63: 2028 | BF63: 6164 | BG63: 1600 | BH63: 0.2071078431 | BI63: 0.6294934641 | BJ63: 0.1633986928 | BK63: 3130 | BL63: 4590 | BM63: 4974 | BN63: 9564 | BO63: -0.02328431373 | BP63: 3.055591054 | BQ63: 1529 | BR63: 6108 | BS63: 1927 | BT63: 0.1598703471 | BU63: 0.6386449184 | BV63: 0.2014847344 | BW63: 3068 | BX63: 4192 | BY63: 4586 | BZ63: 8778 | CA63: -0.08954203691 | CB63: 2.861147327 | CC63: 1025 | CD63: 5679 | CE63: 2074 | CF63: 0.1167691957 | CG63: 0.6469583049 | CH63: 0.2362724994 | CI63: 2973 | CJ63: 3739 | CK63: 4188 | CL63: 7927 | CM63: -0.1073546108 | CN63: 2.666330306 | CO63: 1025 | CP63: 5679 | CQ63: 2074 | CR63: 0.1293049073 | CS63: 0.7164122619 | CT63: 0.2616374417
A64: 61 | B64: 奈井江町 | C64: 2777 | D64: 4129 | E64: 4519 | F64: 8648 | H64: 3.114151963 | I64: 1769 | J64: 5832 | K64: 1047 | L64: 0.2045559667 | M64: 0.6743755782 | N64: 0.1210684551 | O64: 2992 | P64: 4236 | Q64: 4398 | R64: 8634 | S64: -0.001618871415 | T64: 2.885695187 | U64: 1588 | V64: 5886 | W64: 1160 | X64: 0.1839240213 | Y64: 0.681723419 | Z64: 0.1343525596 | AA64: 2793 | AB64: 3846 | AC64: 4229 | AD64: 8075 | AE64: -0.06474403521 | AF64: 2.891156463 | AG64: 1337 | AH64: 5350 | AI64: 1384 | AJ64: 0.1655727554 | AK64: 0.6625386997 | AL64: 0.1713931889 | AM64: 2825 | AN64: 3685 | AO64: 3982 | AP64: 7667 | AQ64: -0.05052631579 | AR64: 2.713982301 | AS64: 1093 | AT64: 4963 | AU64: 1611 | AV64: 0.1425590192 | AW64: 0.6473196818 | AX64: 0.2101212991 | AY64: 2873 | AZ64: 3444 | BA64: 3865 | BB64: 7309 | BC64: -0.04669362202 | BD64: 2.54403063 | BE64: 923 | BF64: 4466 | BG64: 1920 | BH64: 0.1262826652 | BI64: 0.6110275003 | BJ64: 0.2626898345 | BK64: 2751 | BL64: 3206 | BM64: 3630 | BN64: 6836 | BO64: -0.06471473526 | BP64: 2.484914577 | BQ64: 802 | BR64: 3939 | BS64: 2095 | BT64: 0.1173200702 | BU64: 0.5762141603 | BV64: 0.3064657695 | BW64: 2622 | BX64: 2898 | BY64: 3296 | BZ64: 6194 | CA64: -0.1036486923 | CB64: 2.362318841 | CC64: 656 | CD64: 3358 | CE64: 2180 | CF64: 0.1059089441 | CG64: 0.5421375525 | CH64: 0.3519535034 | CI64: 2466 | CJ64: 2659 | CK64: 3015 | CL64: 5674 | CM64: -0.09164610504 | CN64: 2.300892133 | CO64: 656 | CP64: 3358 | CQ64: 2180 | CR64: 0.1156150864 | CS64: 0.5918223476 | CT64: 0.3842086711
A65: 62 | B65: 上砂川町 | C65: 3837 | D65: 5294 | E65: 5496 | F65: 10790 | H65: 2.812092781 | I65: 1980 | J65: 7666 | K65: 1144 | L65: 0.1835032437 | M65: 0.7104726599 | N65: 0.1060240964 | O65: 3484 | P65: 4604 | Q65: 4855 | R65: 9459 | S65: -0.1233549583 | T65: 2.714982778 | U65: 1575 | V65: 6526 | W65: 1358 | X65: 0.1665080875 | Y65: 0.6899249392 | Z65: 0.1435669733 | AA65: 2612 | AB65: 3021 | AC65: 3419 | AD65: 6440 | AE65: -0.319166931 | AF65: 2.465543645 | AG65: 834 | AH65: 4158 | AI65: 1448 | AJ65: 0.1295031056 | AK65: 0.6456521739 | AL65: 0.2248447205 | AM65: 2469 | AN65: 2713 | AO65: 3139 | AP65: 5852 | AQ65: -0.09130434783 | AR65: 2.37019036 | AS65: 627 | AT65: 3563 | AU65: 1662 | AV65: 0.1071428571 | AW65: 0.6088516746 | AX65: 0.2840054682 | AY65: 2368 | AZ65: 2364 | BA65: 2807 | BB65: 5171 | BC65: -0.1163704716 | BD65: 2.183699324 | BE65: 517 | BF65: 2936 | BG65: 1718 | BH65: 0.09998066138 | BI65: 0.5677818604 | BJ65: 0.3322374782 | BK65: 2203 | BL65: 2176 | BM65: 2594 | BN65: 4770 | BO65: -0.07754786308 | BP65: 2.165229233 | BQ65: 455 | BR65: 2510 | BS65: 1805 | BT65: 0.09538784067 | BU65: 0.5262054507 | BV65: 0.3784067086 | BW65: 1954 | BX65: 1833 | BY65: 2253 | BZ65: 4086 | CA65: -0.1674008811 | CB65: 2.091095189 | CC65: 355 | CD65: 1996 | CE65: 1735 | CF65: 0.08688203622 | CG65: 0.4884973079 | CH65: 0.4246206559 | CI65: 1744 | CJ65: 1575 | CK65: 1904 | CL65: 3479 | CM65: -0.174475424 | CN65: 1.99483945 | CO65: 355 | CP65: 1996 | CQ65: 1735 | CR65: 0.1020408163 | CS65: 0.5737280828 | CT65: 0.4987065249
A66: 63 | B66: 由仁町 | C66: 2536 | D66: 4316 | E66: 4684 | F66: 9000 | H66: 3.548895899 | I66: 1943 | J66: 5977 | K66: 1080 | L66: 0.2158888889 | M66: 0.6641111111 | N66: 0.12 | O66: 2440 | P66: 4019 | Q66: 4407 | R66: 8426 | S66: -0.06377777778 | T66: 3.453278689 | U66: 1654 | V66: 5519 | W66: 1253 | X66: 0.1962971754 | Y66: 0.6549964396 | Z66: 0.148706385 | AA66: 2392 | AB66: 3706 | AC66: 4103 | AD66: 7809 | AE66: -0.07322572988 | AF66: 3.264632107 | AG66: 1363 | AH66: 5040 | AI66: 1406 | AJ66: 0.1745421949 | AK66: 0.6454091433 | AL66: 0.1800486618 | AM66: 2377 | AN66: 3470 | AO66: 3780 | AP66: 7250 | AQ66: -0.07158406966 | AR66: 3.050063105 | AS66: 1088 | AT66: 4542 | AU66: 1620 | AV66: 0.1500689655 | AW66: 0.6264827586 | AX66: 0.2234482759 | AY66: 2402 | AZ66: 3302 | BA66: 3608 | BB66: 6910 | BC66: -0.04689655172 | BD66: 2.876769359 | BE66: 914 | BF66: 4236 | BG66: 1760 | BH66: 0.1322720695 | BI66: 0.613024602 | BJ66: 0.2547033285 | BK66: 2387 | BL66: 3053 | BM66: 3424 | BN66: 6477 | BO66: -0.06266280753 | BP66: 2.713447842 | BQ66: 781 | BR66: 3730 | BS66: 1966 | BT66: 0.1205805157 | BU66: 0.5758838969 | BV66: 0.3035355875 | BW66: 2258 | BX66: 2807 | BY66: 3089 | BZ66: 5896 | CA66: -0.09854138399 | CB66: 2.611160319 | CC66: 621 | CD66: 3269 | CE66: 2006 | CF66: 0.1053256445 | CG66: 0.5544436906 | CH66: 0.3402306649 | CI66: 2149 | CJ66: 2536 | CK66: 2778 | CL66: 5314 | CM66: -0.1095220173 | CN66: 2.472778036 | CO66: 621 | CP66: 3269 | CQ66: 2006 | CR66: 0.1168611216 | CS66: 0.6151674821 | CT66: 0.3774934136
A67: 64 | B67: 長沼町 | C67: 3519 | D67: 6608 | E67: 6746 | F67: 13354 | H67: 3.794828076 | I67: 2957 | J67: 8920 | K67: 1477 | L67: 0.2214317807 | M67: 0.6679646548 | N67: 0.1106035645 | O67: 3526 | P67: 6347 | Q67: 6574 | R67: 12921 | S67: -0.03242474165 | T67: 3.664492343 | U67: 2657 | V67: 8631 | W67: 1633 | X67: 0.2056342388 | Y67: 0.6679823543 | Z67: 0.1263834069 | AA67: 3517 | AB67: 6008 | AC67: 6274 | AD67: 12282 | AE67: -0.0494543766 | AF67: 3.492180836 | AG67: 2212 | AH67: 8174 | AI67: 1896 | AJ67: 0.1801009608 | AK67: 0.6655267872 | AL67: 0.1543722521 | AM67: 3779 | AN67: 6009 | AO67: 6284 | AP67: 12293 | AQ67: 0.0008956196059 | AR67: 3.252976978 | AS67: 1939 | AT67: 8003 | AU67: 2351 | AV67: 0.1577320426 | AW67: 0.6510209062 | AX67: 0.1912470512 | AY67: 4096 | AZ67: 5981 | BA67: 6471 | BB67: 12452 | BC67: 0.01293419019 | BD67: 3.040039062 | BE67: 1828 | BF67: 7832 | BG67: 2792 | BH67: 0.1468037263 | BI67: 0.628975265 | BJ67: 0.2242210087 | BK67: 4404 | BL67: 5934 | BM67: 6467 | BN67: 12401 | BO67: -0.004095727594 | BP67: 2.815849228 | BQ67: 1573 | BR67: 7594 | BS67: 3234 | BT67: 0.1268446093 | BU67: 0.6123699702 | BV67: 0.2607854205 | BW67: 4324 | BX67: 5584 | BY67: 6107 | BZ67: 11691 | CA67: -0.06073047643 | CB67: 2.703746531 | CC67: 1338 | CD67: 6877 | CE67: 3476 | CF67: 0.1144470105 | CG67: 0.5882302626 | CH67: 0.2973227269 | CI67: 4257 | CJ67: 5293 | CK67: 5783 | CL67: 11076 | CM67: -0.05552546046 | CN67: 2.601832276 | CO67: 1338 | CP67: 6877 | CQ67: 3476 | CR67: 0.1208017335 | CS67: 0.6208920188 | CT67: 0.3138317082
A68: 65 | B68: 栗山町 | C68: 5200 | D68: 8398 | E68: 9084 | F68: 17482 | H68: 3.361923077 | I68: 3999 | J68: 11524 | K68: 1959 | L68: 0.228749571 | M68: 0.6591923121 | N68: 0.1120581169 | O68: 5257 | P68: 8140 | Q68: 8720 | R68: 16860 | S68: -0.03557945315 | T68: 3.207152368 | U68: 3484 | V68: 11160 | W68: 2216 | X68: 0.2066429419 | Y68: 0.6619217082 | Z68: 0.1314353499 | AA68: 5375 | AB68: 7738 | AC68: 8363 | AD68: 16101 | AE68: -0.04501779359 | AF68: 2.995534884 | AG68: 2783 | AH68: 10720 | AI68: 2598 | AJ68: 0.1728464071 | AK68: 0.6657971555 | AL68: 0.1613564375 | AM68: 5613 | AN68: 7399 | AO68: 8205 | AP68: 15604 | AQ68: -0.03086764797 | AR68: 2.779975058 | AS68: 2170 | AT68: 10230 | AU68: 3204 | AV68: 0.1390669059 | AW68: 0.6556011279 | AX68: 0.2053319662 | AY68: 5644 | AZ68: 7026 | BA68: 7821 | BB68: 14847 | BC68: -0.04851320174 | BD68: 2.630581148 | BE68: 1911 | BF68: 9281 | BG68: 3644 | BH68: 0.1287128713 | BI68: 0.6251094497 | BJ68: 0.2454367886 | BK68: 5698 | BL68: 6778 | BM68: 7574 | BN68: 14352 | BO68: -0.0333400687 | BP68: 2.518778519 | BQ68: 1714 | BR68: 8489 | BS68: 4149 | BT68: 0.119425864 | BU68: 0.5914855072 | BV68: 0.2890886288 | BW68: 5484 | BX68: 6210 | BY68: 7130 | BZ68: 13340 | CA68: -0.07586206897 | CB68: 2.432530999 | CC68: 1484 | CD68: 7481 | CE68: 4366 | CF68: 0.1113194809 | CG68: 0.5611732053 | CH68: 0.3275073138 | CI68: 5186 | CJ68: 5740 | CK68: 6604 | CL68: 12344 | CM68: -0.08068697343 | CN68: 2.380254531 | CO68: 1484 | CP68: 7481 | CQ68: 4366 | CR68: 0.12022035 | CS68: 0.6060434219 | CT68: 0.3536941024
A69: 66 | B69: 月形町 | C69: 1556 | D69: 2676 | E69: 2751 | F69: 5427 | H69: 3.487789203 | I69: 1089 | J69: 3638 | K69: 700 | L69: 0.2006633499 | M69: 0.670351944 | N69: 0.1289847061 | O69: 1629 | P69: 3121 | Q69: 2758 | R69: 5879 | S69: 0.08328726737 | T69: 3.608962554 | U69: 1036 | V69: 4036 | W69: 807 | X69: 0.1762204457 | Y69: 0.6865113114 | Z69: 0.1372682429 | AA69: 1605 | AB69: 2962 | AC69: 2575 | AD69: 5537 | AE69: -0.0581731587 | AF69: 3.449844237 | AG69: 828 | AH69: 3752 | AI69: 957 | AJ69: 0.1495394618 | AK69: 0.6776232617 | AL69: 0.1728372765 | AM69: 1591 | AN69: 2797 | AO69: 2513 | AP69: 5310 | AQ69: -0.04099692975 | AR69: 3.33752357 | AS69: 683 | AT69: 3493 | AU69: 1134 | AV69: 0.1286252354 | AW69: 0.6578154426 | AX69: 0.213559322 | AY69: 1560 | AZ69: 2806 | BA69: 2338 | BB69: 5144 | BC69: -0.03126177024 | BD69: 3.297435897 | BE69: 562 | BF69: 3313 | BG69: 1269 | BH69: 0.1092534992 | BI69: 0.6440513219 | BJ69: 0.2466951788 | BK69: 1535 | BL69: 2654 | BM69: 2131 | BN69: 4785 | BO69: -0.06979004666 | BP69: 3.117263844 | BQ69: 464 | BR69: 2955 | BS69: 1366 | BT69: 0.09696969697 | BU69: 0.6175548589 | BV69: 0.2854754441 | BW69: 1511 | BX69: 2938 | BY69: 1921 | BZ69: 4859 | CA69: 0.01522947108 | CB69: 3.215751158 | CC69: 327 | CD69: 3188 | CE69: 1343 | CF69: 0.06731165089 | CG69: 0.6562371346 | CH69: 0.2764512145 | CI69: 1466 | CJ69: 2841 | CK69: 1736 | CL69: 4577 | CM69: -0.06161240988 | CN69: 3.122100955 | CO69: 327 | CP69: 3188 | CQ69: 1343 | CR69: 0.07144417741 | CS69: 0.6965261088 | CT69: 0.2934236399
A70: 67 | B70: 浦臼町 | C70: 1034 | D70: 1775 | E70: 1879 | F70: 3654 | H70: 3.53384913 | I70: 709 | J70: 2465 | K70: 480 | L70: 0.1940339354 | M70: 0.6746031746 | N70: 0.13136289 | O70: 990 | P70: 1656 | Q70: 1744 | R70: 3400 | S70: -0.06951286262 | T70: 3.434343434 | U70: 639 | V70: 2237 | W70: 524 | X70: 0.1879411765 | Y70: 0.6579411765 | Z70: 0.1541176471 | AA70: 940 | AB70: 1466 | AC70: 1592 | AD70: 3058 | AE70: -0.1005882353 | AF70: 3.253191489 | AG70: 541 | AH70: 1906 | AI70: 611 | AJ70: 0.176913015 | AK70: 0.6232831916 | AL70: 0.1998037933 | AM70: 956 | AN70: 1358 | AO70: 1496 | AP70: 2854 | AQ70: -0.06671026815 | AR70: 2.985355649 | AS70: 381 | AT70: 1731 | AU70: 742 | AV70: 0.1334968465 | AW70: 0.6065171689 | AX70: 0.2599859846 | AY70: 972 | AZ70: 1269 | BA70: 1374 | BB70: 2643 | BC70: -0.07393132446 | BD70: 2.719135802 | BE70: 306 | BF70: 1537 | BG70: 800 | BH70: 0.1157775255 | BI70: 0.5815361332 | BJ70: 0.3026863413 | BK70: 947 | BL70: 1152 | BM70: 1265 | BN70: 2417 | BO70: -0.08550889141 | BP70: 2.552270327 | BQ70: 259 | BR70: 1345 | BS70: 813 | BT70: 0.1071576334 | BU70: 0.556474969 | BV70: 0.3363673976 | BW70: 920 | BX70: 1057 | BY70: 1149 | BZ70: 2206 | CA70: -0.09564823209 | CB70: 2.397826087 | CC70: 227 | CD70: 1173 | CE70: 806 | CF70: 0.1029011786 | CG70: 0.531731641 | CH70: 0.3653671804 | CI70: 850 | CJ70: 956 | CK70: 1029 | CL70: 1985 | CM70: -0.1113350126 | CN70: 2.335294118 | CO70: 227 | CP70: 1173 | CQ70: 806 | CR70: 0.1143576826 | CS70: 0.5909319899 | CT70: 0.4060453401
A71: 68 | B71: 新十津川町 | C71: 2498 | D71: 4528 | E71: 4901 | F71: 9429 | H71: 3.774619696 | I71: 2031 | J71: 6123 | K71: 1275 | L71: 0.2153993 | M71: 0.6493795737 | N71: 0.1352211263 | O71: 2485 | P71: 4339 | Q71: 4772 | R71: 9111 | S71: -0.03372573974 | T71: 3.66639839 | U71: 1761 | V71: 5956 | W71: 1394 | X71: 0.1932828449 | Y71: 0.6537152892 | Z71: 0.1530018659 | AA71: 2574 | AB71: 4142 | AC71: 4645 | AD71: 8787 | AE71: -0.03556140929 | AF71: 3.413752914 | AG71: 1475 | AH71: 5688 | AI71: 1623 | AJ71: 0.1678616137 | AK71: 0.6473199044 | AL71: 0.1847046774 | AM71: 2645 | AN71: 3952 | AO71: 4411 | AP71: 8363 | AQ71: -0.04825310117 | AR71: 3.161814745 | AS71: 1292 | AT71: 5253 | AU71: 1818 | AV71: 0.1544900155 | AW71: 0.628123879 | AX71: 0.2173861055 | AY71: 2716 | AZ71: 3744 | BA71: 4323 | BB71: 8067 | BC71: -0.03539399737 | BD71: 2.97017673 | BE71: 1127 | BF71: 4905 | BG71: 2035 | BH71: 0.1397049709 | BI71: 0.6080327259 | BJ71: 0.2522623032 | BK71: 2789 | BL71: 3593 | BM71: 4091 | BN71: 7684 | BO71: -0.04747737697 | BP71: 2.755109358 | BQ71: 959 | BR71: 4468 | BS71: 2257 | BT71: 0.1248047892 | BU71: 0.5814679854 | BV71: 0.2937272254 | BW71: 2694 | BX71: 3325 | BY71: 3924 | BZ71: 7249 | CA71: -0.060008277 | CB71: 2.690794358 | CC71: 858 | CD71: 3936 | CE71: 2455 | CF71: 0.1183611533 | CG71: 0.5429714443 | CH71: 0.3386674024 | CI71: 2570 | CJ71: 3096 | CK71: 3735 | CL71: 6831 | CM71: -0.06119162641 | CN71: 2.657976654 | CO71: 858 | CP71: 3936 | CQ71: 2455 | CR71: 0.1256038647 | CS71: 0.5761967501 | CT71: 0.3593910116
A72: 69 | B72: 妹背牛町 | C72: 1715 | D72: 2962 | E72: 3174 | F72: 6136 | H72: 3.577842566 | I72: 1303 | J72: 4079 | K72: 754 | L72: 0.2123533246 | M72: 0.6647653194 | N72: 0.1228813559 | O72: 1621 | P72: 2665 | Q72: 2918 | R72: 5583 | S72: -0.09012385919 | T72: 3.444170265 | U72: 1023 | V72: 3738 | W72: 822 | X72: 0.18323482 | Y72: 0.6695325094 | Z72: 0.1472326706 | AA72: 1525 | AB72: 2338 | AC72: 2664 | AD72: 5002 | AE72: -0.1040659144 | AF72: 3.28 | AG72: 804 | AH72: 3297 | AI72: 901 | AJ72: 0.1607357057 | AK72: 0.6591363455 | AL72: 0.1801279488 | AM72: 1486 | AN72: 2128 | AO72: 2380 | AP72: 4508 | AQ72: -0.0987604958 | AR72: 3.033647376 | AS72: 590 | AT72: 2888 | AU72: 1030 | AV72: 0.1308784383 | AW72: 0.6406388642 | AX72: 0.2284826974 | AY72: 1480 | AZ72: 2029 | BA72: 2203 | BB72: 4232 | BC72: -0.0612244898 | BD72: 2.859459459 | BE72: 502 | BF72: 2561 | BG72: 1169 | BH72: 0.1186200378 | BI72: 0.6051512287 | BJ72: 0.2762287335 | BK72: 1468 | BL72: 1870 | BM72: 2073 | BN72: 3943 | BO72: -0.06828922495 | BP72: 2.685967302 | BQ72: 420 | BR72: 2258 | BS72: 1265 | BT72: 0.1065178798 | BU72: 0.5726604109 | BV72: 0.3208217094 | BW72: 1356 | BX72: 1642 | BY72: 1820 | BZ72: 3462 | CA72: -0.1389370306 | CB72: 2.553097345 | CC72: 347 | CD72: 1820 | CE72: 1295 | CF72: 0.1002310803 | CG72: 0.5257076834 | CH72: 0.3740612363 | CI72: 1269 | CJ72: 1451 | CK72: 1640 | CL72: 3091 | CM72: -0.1200258816 | CN72: 2.435776202 | CO72: 347 | CP72: 1820 | CQ72: 1295 | CR72: 0.1122614041 | CS72: 0.5888062116 | CT72: 0.4189582659
A73: 70 | B73: 秩父別町 | C73: 1134 | D73: 2011 | E73: 2152 | F73: 4163 | H73: 3.671075838 | I73: 874 | J73: 2725 | K73: 564 | L73: 0.2099447514 | M73: 0.6545760269 | N73: 0.1354792217 | O73: 1117 | P73: 1922 | Q73: 2081 | R73: 4003 | S73: -0.03843382176 | T73: 3.583706356 | U73: 714 | V73: 2608 | W73: 681 | X73: 0.1783662253 | Y73: 0.6515113665 | Z73: 0.1701224082 | AA73: 1105 | AB73: 1774 | AC73: 1961 | AD73: 3735 | AE73: -0.06694978766 | AF73: 3.380090498 | AG73: 602 | AH73: 2370 | AI73: 763 | AJ73: 0.1611780455 | AK73: 0.6345381526 | AL73: 0.2042838019 | AM73: 1169 | AN73: 1718 | AO73: 1826 | AP73: 3544 | AQ73: -0.05113788487 | AR73: 3.031650984 | AS73: 501 | AT73: 2210 | AU73: 833 | AV73: 0.1413656885 | AW73: 0.6235891648 | AX73: 0.2350451467 | AY73: 1138 | AZ73: 1565 | BA73: 1703 | BB73: 3268 | BC73: -0.07787810384 | BD73: 2.871704745 | BE73: 409 | BF73: 1894 | BG73: 965 | BH73: 0.1251529988 | BI73: 0.5795593635 | BJ73: 0.2952876377 | BK73: 1115 | BL73: 1432 | BM73: 1571 | BN73: 3003 | BO73: -0.08108935129 | BP73: 2.693273543 | BQ73: 327 | BR73: 1664 | BS73: 1012 | BT73: 0.1088911089 | BU73: 0.5541125541 | BV73: 0.336996337 | BW73: 1052 | BX73: 1301 | BY73: 1429 | BZ73: 2730 | CA73: -0.1 | CB73: 2.595057034 | CC73: 253 | CD73: 1454 | CE73: 1023 | CF73: 0.09267399267 | CG73: 0.5326007326 | CH73: 0.3747252747 | CI73: 1017 | CJ73: 1177 | CK73: 1336 | CL73: 2513 | CM73: -0.08635097493 | CN73: 2.470993117 | CO73: 253 | CP73: 1454 | CQ73: 1023 | CR73: 0.1006764823 | CS73: 0.5785913251 | CT73: 0.4070831675
A74: 71 | B74: 雨竜町 | C74: 1014 | D74: 1988 | E74: 2159 | F74: 4147 | H74: 4.08974359 | I74: 850 | J74: 2661 | K74: 636 | L74: 0.2049674463 | M74: 0.6416686762 | N74: 0.1533638775 | O74: 1067 | P74: 1944 | Q74: 2161 | R74: 4105 | S74: -0.01012780323 | T74: 3.847235239 | U74: 689 | V74: 2660 | W74: 756 | X74: 0.1678440926 | Y74: 0.6479902558 | Z74: 0.1841656516 | AA74: 1109 | AB74: 1925 | AC74: 2056 | AD74: 3981 | AE74: -0.03020706456 | AF74: 3.589720469 | AG74: 589 | AH74: 2598 | AI74: 794 | AJ74: 0.1479527757 | AK74: 0.6525998493 | AL74: 0.199447375 | AM74: 1147 | AN74: 1830 | AO74: 1995 | AP74: 3825 | AQ74: -0.03918613414 | AR74: 3.334786399 | AS74: 523 | AT74: 2404 | AU74: 898 | AV74: 0.1367320261 | AW74: 0.628496732 | AX74: 0.2347712418 | AY74: 1157 | AZ74: 1719 | BA74: 1882 | BB74: 3601 | BC74: -0.0585620915 | BD74: 3.112359551 | BE74: 470 | BF74: 2152 | BG74: 979 | BH74: 0.1305193002 | BI74: 0.5976117745 | BJ74: 0.2718689253 | BK74: 1121 | BL74: 1589 | BM74: 1727 | BN74: 3316 | BO74: -0.07914468203 | BP74: 2.958073149 | BQ74: 422 | BR74: 1877 | BS74: 1017 | BT74: 0.1272617612 | BU74: 0.5660434258 | BV74: 0.306694813 | BW74: 1067 | BX74: 1468 | BY74: 1581 | BZ74: 3049 | CA74: -0.08756969498 | CB74: 2.857544517 | CC74: 323 | CD74: 1700 | CE74: 1026 | CF74: 0.1059363726 | CG74: 0.5575598557 | CH74: 0.3365037717 | CI74: 1005 | CJ74: 1323 | CK74: 1426 | CL74: 2749 | CM74: -0.1091305929 | CN74: 2.735323383 | CO74: 323 | CP74: 1700 | CQ74: 1026 | CR74: 0.1174972717 | CS74: 0.6184066933 | CT74: 0.3732266279
A75: 72 | B75: 北竜町 | C75: 933 | D75: 1746 | E75: 1823 | F75: 3569 | H75: 3.825294748 | I75: 808 | J75: 2360 | K75: 401 | L75: 0.2263939479 | M75: 0.6612496498 | N75: 0.1123564024 | O75: 873 | P75: 1615 | Q75: 1651 | R75: 3266 | S75: -0.08489773046 | T75: 3.741122566 | U75: 635 | V75: 2142 | W75: 489 | X75: 0.1944274342 | Y75: 0.6558481323 | Z75: 0.1497244336 | AA75: 870 | AB75: 1478 | AC75: 1531 | AD75: 3009 | AE75: -0.07868952848 | AF75: 3.45862069 | AG75: 469 | AH75: 1944 | AI75: 594 | AJ75: 0.1558657361 | AK75: 0.6460618146 | AL75: 0.1974077767 | AM75: 864 | AN75: 1348 | AO75: 1437 | AP75: 2785 | AQ75: -0.07444333666 | AR75: 3.22337963 | AS75: 379 | AT75: 1714 | AU75: 692 | AV75: 0.1360861759 | AW75: 0.6154398564 | AX75: 0.2484739677 | AY75: 843 | AZ75: 1234 | BA75: 1328 | BB75: 2562 | BC75: -0.08007181329 | BD75: 3.039145907 | BE75: 317 | BF75: 1504 | BG75: 741 | BH75: 0.1237314598 | BI75: 0.5870413739 | BJ75: 0.2892271663 | BK75: 822 | BL75: 1123 | BM75: 1253 | BN75: 2376 | BO75: -0.07259953162 | BP75: 2.890510949 | BQ75: 281 | BR75: 1314 | BS75: 781 | BT75: 0.1182659933 | BU75: 0.553030303 | BV75: 0.3287037037 | BW75: 805 | BX75: 1026 | BY75: 1167 | BZ75: 2193 | CA75: -0.08344733242 | CB75: 2.724223602 | CC75: 215 | CD75: 1123 | CE75: 855 | CF75: 0.09803921569 | CG75: 0.5120839033 | CH75: 0.389876881 | CI75: 782 | CJ75: 938 | CK75: 1043 | CL75: 1981 | CM75: -0.1070166583 | CN75: 2.533248082 | CO75: 215 | CP75: 1123 | CQ75: 855 | CR75: 0.1085310449 | CS75: 0.5668854114 | CT75: 0.4316002019
A76: 73 | B76: 沼田町 | C76: 1783 | D76: 3005 | E76: 3202 | F76: 6207 | H76: 3.481211441 | I76: 1325 | J76: 4016 | K76: 866 | L76: 0.2134686644 | M76: 0.6470114387 | N76: 0.1395198969 | O76: 1753 | P76: 2739 | Q76: 2901 | R76: 5640 | S76: -0.09134847753 | T76: 3.2173417 | U76: 1067 | V76: 3636 | W76: 937 | X76: 0.1891843972 | Y76: 0.6446808511 | Z76: 0.1661347518 | AA76: 1682 | AB76: 2517 | AC76: 2689 | AD76: 5206 | AE76: -0.07695035461 | AF76: 3.095124851 | AG76: 826 | AH76: 3374 | AI76: 1006 | AJ76: 0.1586630811 | AK76: 0.6480983481 | AL76: 0.1932385709 | AM76: 1663 | AN76: 2311 | AO76: 2434 | AP76: 4745 | AQ76: -0.08855167115 | AR76: 2.85327721 | AS76: 641 | AT76: 2960 | AU76: 1144 | AV76: 0.135089568 | AW76: 0.6238145416 | AX76: 0.2410958904 | AY76: 1617 | AZ76: 2078 | BA76: 2295 | BB76: 4373 | BC76: -0.07839831401 | BD76: 2.704390847 | BE76: 548 | BF76: 2591 | BG76: 1234 | BH76: 0.1253144295 | BI76: 0.5924994283 | BJ76: 0.2821861422 | BK76: 1527 | BL76: 1899 | BM76: 2142 | BN76: 4041 | BO76: -0.07592042076 | BP76: 2.646365422 | BQ76: 470 | BR76: 2286 | BS76: 1285 | BT76: 0.1163078446 | BU76: 0.565701559 | BV76: 0.3179905964 | BW76: 1437 | BX76: 1707 | BY76: 1905 | BZ76: 3612 | CA76: -0.1187707641 | CB76: 2.513569937 | CC76: 357 | CD76: 1984 | CE76: 1271 | CF76: 0.0988372093 | CG76: 0.5492801772 | CH76: 0.3518826135 | CI76: 1333 | CJ76: 1501 | CK76: 1680 | CL76: 3181 | CM76: -0.1354919837 | CN76: 2.386346587 | CO76: 357 | CP76: 1984 | CQ76: 1271 | CR76: 0.1122288588 | CS76: 0.623703238 | CT76: 0.3995598868
A77: 74 | B77: 旭川市 | C77: 117300 | D77: 171435 | E77: 181184 | F77: 352619 | H77: 3.006129582 | I77: 82610 | J77: 243971 | K77: 26003 | L77: 0.2342755212 | M77: 0.6918827403 | N77: 0.07374248126 | O77: 123280 | P77: 175268 | Q77: 188363 | R77: 363631 | S77: 0.0312291737 | T77: 2.949634977 | U77: 78570 | V77: 252316 | W77: 32683 | X77: 0.216070687 | Y77: 0.6938792347 | Z77: 0.08987957572 | AA77: 128924 | AB77: 171182 | AC77: 187889 | AD77: 359071 | AE77: -0.01254018497 | AF77: 2.78513698 | AG77: 65064 | AH77: 251834 | AI77: 41618 | AJ77: 0.1812009324 | AK77: 0.7013487583 | AL77: 0.115904654 | AM77: 138350 | AN77: 170759 | AO77: 189809 | AP77: 360568 | AQ77: 0.004169091907 | AR77: 2.606201662 | AS77: 55253 | AT77: 251929 | AU77: 53211 | AV77: 0.1532387788 | AW77: 0.6987003838 | AX77: 0.147575492 | AY77: 146400 | AZ77: 169465 | BA77: 190071 | BB77: 359536 | BC77: -0.002862150829 | BD77: 2.455846995 | BE77: 48670 | BF77: 244817 | BG77: 65866 | BH77: 0.1353689199 | BI77: 0.6809248587 | BJ77: 0.183197232 | BK77: 150384 | BL77: 165387 | BM77: 189617 | BN77: 355004 | BO77: -0.01260513551 | BP77: 2.360650069 | BQ77: 44177 | BR77: 228860 | BS77: 78781 | BT77: 0.1244408514 | BU77: 0.6446687925 | BV77: 0.2219158094 | BW77: 154393 | BX77: 160094 | BY77: 187001 | BZ77: 347095 | CA77: -0.02278626889 | CB77: 2.248126534 | CC77: 40260 | CD77: 213269 | CE77: 91937 | CF77: 0.1165382411 | CG77: 0.617337162 | CH77: 0.2661245969 | CI77: 155747 | CJ77: 156402 | CK77: 183203 | CL77: 339605 | CM77: -0.02205503453 | CN77: 2.180491438 | CO77: 40260 | CP77: 213269 | CQ77: 91937 | CR77: 0.1185494913 | CS77: 0.6279913429 | CT77: 0.2707174512
A78: 75 | B78: 士別市 | C78: 9867 | D78: 15518 | E78: 16585 | F78: 32103 | H78: 3.253572514 | I78: 7049 | J78: 21738 | K78: 3313 | L78: 0.2195744946 | M78: 0.6771329782 | N78: 0.103199078 | O78: 9755 | P78: 14704 | Q78: 15755 | R78: 30459 | S78: -0.05121016727 | T78: 3.12239877 | U78: 6051 | V78: 20565 | W78: 3843 | X78: 0.1986604944 | Y78: 0.6751699005 | Z78: 0.126169605 | AA78: 9393 | AB78: 13347 | AC78: 14815 | AD78: 28162 | AE78: -0.07541285006 | AF78: 2.998190142 | AG78: 4884 | AH78: 18754 | AI78: 4523 | AJ78: 0.1734251829 | AK78: 0.6659328173 | AL78: 0.160606491 | AM78: 9409 | AN78: 12540 | AO78: 13863 | AP78: 26403 | AQ78: -0.06246005255 | AR78: 2.806143055 | AS78: 3885 | AT78: 17044 | AU78: 5474 | AV78: 0.1471423702 | AW78: 0.6455327046 | AX78: 0.2073249252 | AY78: 9449 | AZ78: 11832 | BA78: 13159 | BB78: 24991 | BC78: -0.05347877135 | BD78: 2.644830141 | BE78: 3291 | BF78: 15503 | BG78: 6197 | BH78: 0.1316874075 | BI78: 0.6203433236 | BJ78: 0.2479692689 | BK78: 9398 | BL78: 10978 | BM78: 12433 | BN78: 23411 | BO78: -0.06322276019 | BP78: 2.491061928 | BQ78: 2890 | BR78: 13756 | BS78: 6763 | BT78: 0.1234462432 | BU78: 0.5875870317 | BV78: 0.2888812951 | BW78: 9100 | BX78: 10205 | BY78: 11582 | BZ78: 21787 | CA78: -0.0693691 | CB78: 2.394175824 | CC78: 5751 | CD78: 27556 | CE78: 12976 | CF78: 0.2639647496 | CG78: 1.26479093 | CH78: 0.5955845229 | CI78: 8650 | CJ78: 9382 | CK78: 10532 | CL78: 19914 | CM78: -0.09405443407 | CN78: 2.302196532 | CO78: 2443 | CP78: 11370 | CQ78: 6427 | CR78: 0.1226775133 | CS78: 0.570955107 | CT78: 0.3227377724
A79: 76 | B79: 名寄市 | C79: 13092 | D79: 20982 | E79: 21240 | F79: 42222 | H79: 3.225022915 | I79: 9609 | J79: 28810 | K79: 3803 | L79: 0.2275827768 | M79: 0.6823456966 | N79: 0.09007152669 | O79: 13098 | P79: 20392 | Q79: 20677 | R79: 41069 | S79: -0.02730803846 | T79: 3.135516873 | U79: 8800 | V79: 27886 | W79: 4383 | X79: 0.2142735397 | Y79: 0.679003628 | Z79: 0.1067228323 | AA79: 12698 | AB79: 18288 | AC79: 18906 | AD79: 37194 | AE79: -0.09435340524 | AF79: 2.929122696 | AG79: 6757 | AH79: 25208 | AI79: 5180 | AJ79: 0.1816690864 | AK79: 0.6777437221 | AL79: 0.1392697747 | AM79: 12823 | AN79: 16731 | AO79: 17933 | AP79: 34664 | AQ79: -0.06802172393 | AR79: 2.703267566 | AS79: 5392 | AT79: 23166 | AU79: 6103 | AV79: 0.155550427 | AW79: 0.6683014078 | AX79: 0.1760616201 | AY79: 13130 | AZ79: 15991 | BA79: 17337 | BB79: 33328 | BC79: -0.03854142626 | BD79: 2.538309216 | BE79: 4585 | BF79: 21624 | BG79: 7119 | BH79: 0.1375720115 | BI79: 0.6488238118 | BJ79: 0.2136041767 | BK79: 13069 | BL79: 15195 | BM79: 16433 | BN79: 31628 | BO79: -0.05100816131 | BP79: 2.420078047 | BQ79: 4064 | BR79: 19682 | BS79: 7880 | BT79: 0.1284937397 | BU79: 0.6222966991 | BV79: 0.249146326 | BW79: 13348 | BX79: 14669 | BY79: 15922 | BZ79: 30591 | CA79: -0.03278740357 | CB79: 2.291804016 | CC79: 3767 | CD79: 18597 | CE79: 8227 | CF79: 0.123140793 | CG79: 0.6079238992 | CH79: 0.2689353078 | CI79: 13086 | CJ79: 14072 | CK79: 14976 | CL79: 29048 | CM79: -0.05311897549 | CN79: 2.219776861 | CO79: 3308 | CP79: 16186 | CQ79: 6549 | CR79: 0.1138804737 | CS79: 0.5572156431 | CT79: 0.2254544203
A80: 77 | B80: 富良野市 | C80: 8742 | D80: 13780 | E80: 14719 | F80: 28499 | H80: 3.260009151 | I80: 6444 | J80: 19326 | K80: 2729 | L80: 0.226113197 | M80: 0.6781290572 | N80: 0.09575774589 | O80: 8881 | P80: 13482 | Q80: 14394 | R80: 27876 | S80: -0.02186041615 | T80: 3.138835717 | U80: 5752 | V80: 18813 | W80: 3311 | X80: 0.2063423734 | Y80: 0.6748816186 | Z80: 0.118776008 | AA80: 8961 | AB80: 12861 | AC80: 13804 | AD80: 26665 | AE80: -0.04344238772 | AF80: 2.975672358 | AG80: 4963 | AH80: 17828 | AI80: 3861 | AJ80: 0.1861241328 | AK80: 0.668591787 | AL80: 0.1447965498 | AM80: 9310 | AN80: 12455 | AO80: 13591 | AP80: 26046 | AQ80: -0.02321395087 | AR80: 2.79763695 | AS80: 4394 | AT80: 17032 | AU80: 4620 | AV80: 0.1687015281 | AW80: 0.6539199877 | AX80: 0.1773784842 | AY80: 9914 | AZ80: 12400 | BA80: 13712 | BB80: 26112 | BC80: 0.002533978346 | BD80: 2.63385112 | BE80: 4067 | BF80: 16480 | BG80: 5565 | BH80: 0.1557521446 | BI80: 0.631127451 | BJ80: 0.2131204044 | BK80: 9989 | BL80: 11810 | BM80: 13266 | BN80: 25076 | BO80: -0.0396752451 | BP80: 2.510361398 | BQ80: 3568 | BR80: 15338 | BS80: 6168 | BT80: 0.1422874462 | BU80: 0.6116605519 | BV80: 0.2459722444 | BW80: 10074 | BX80: 11418 | BY80: 12841 | BZ80: 24259 | CA80: -0.03367822252 | CB80: 2.408080206 | CC80: 3155 | CD80: 14591 | CE80: 6512 | CF80: 0.1300601863 | CG80: 0.6014922912 | CH80: 0.2684475225 | CI80: 9929 | CJ80: 10783 | CK80: 12153 | CL80: 22936 | CM80: -0.05768224625 | CN80: 2.310001007 | CO80: 3155 | CP80: 14591 | CQ80: 6512 | CR80: 0.1375566795 | CS80: 0.6361614928 | CT80: 0.2839204744
A81: 78 | B81: 鷹栖町 | C81: 1912 | D81: 3684 | E81: 3825 | F81: 7509 | H81: 3.927301255 | I81: 1631 | J81: 4951 | K81: 927 | L81: 0.2172060194 | M81: 0.6593421228 | N81: 0.1234518578 | O81: 1934 | P81: 3579 | Q81: 3738 | R81: 7317 | S81: -0.02556931682 | T81: 3.783350569 | U81: 1515 | V81: 4771 | W81: 1031 | X81: 0.2070520705 | Y81: 0.6520431871 | Z81: 0.1409047424 | AA81: 1998 | AB81: 3343 | AC81: 3587 | AD81: 6930 | AE81: -0.05289052891 | AF81: 3.468468468 | AG81: 1238 | AH81: 4498 | AI81: 1194 | AJ81: 0.1786435786 | AK81: 0.6490620491 | AL81: 0.1722943723 | AM81: 2118 | AN81: 3248 | AO81: 3623 | AP81: 6871 | AQ81: -0.008513708514 | AR81: 3.244098206 | AS81: 978 | AT81: 4484 | AU81: 1409 | AV81: 0.1423373599 | AW81: 0.6525978751 | AX81: 0.205064765 | AY81: 2427 | AZ81: 3394 | BA81: 3771 | BB81: 7165 | BC81: 0.04278853151 | BD81: 2.952204368 | BE81: 969 | BF81: 4524 | BG81: 1672 | BH81: 0.1352407537 | BI81: 0.6314026518 | BJ81: 0.2333565946 | BK81: 2591 | BL81: 3421 | BM81: 3840 | BN81: 7261 | BO81: 0.01339846476 | BP81: 2.802392898 | BQ81: 1037 | BR81: 4402 | BS81: 1822 | BT81: 0.1428177937 | BU81: 0.6062525823 | BV81: 0.250929624 | BW81: 2732 | BX81: 3482 | BY81: 3863 | BZ81: 7345 | CA81: 0.01143635126 | CB81: 2.688506589 | CC81: 1159 | CD81: 4214 | CE81: 1972 | CF81: 0.157794418 | CG81: 0.5737236215 | CH81: 0.2684819605 | CI81: 2717 | CJ81: 3309 | CK81: 3709 | CL81: 7018 | CM81: -0.04659447136 | CN81: 2.582995951 | CO81: 1159 | CP81: 4214 | CQ81: 1972 | CR81: 0.1651467655 | CS81: 0.6004559704 | CT81: 0.2809917355
A82: 79 | B82: 東神楽町 | C82: 1356 | D82: 2663 | E82: 2762 | F82: 5425 | H82: 4.000737463 | I82: 1161 | J82: 3642 | K82: 622 | L82: 0.2140092166 | M82: 0.6713364055 | N82: 0.1146543779 | O82: 1477 | P82: 2764 | Q82: 2905 | R82: 5669 | S82: 0.04497695853 | T82: 3.838185511 | U82: 1184 | V82: 3701 | W82: 784 | X82: 0.2088551773 | Y82: 0.652848827 | Z82: 0.1382959958 | AA82: 1583 | AB82: 2791 | AC82: 2972 | AD82: 5763 | AE82: 0.01658140766 | AF82: 3.640555907 | AG82: 1082 | AH82: 3750 | AI82: 931 | AJ82: 0.1877494361 | AK82: 0.650702759 | AL82: 0.161547805 | AM82: 2400 | AN82: 3725 | AO82: 3951 | AP82: 7676 | AQ82: 0.3319451674 | AR82: 3.198333333 | AS82: 1509 | AT82: 5010 | AU82: 1155 | AV82: 0.1965867639 | AW82: 0.6526836894 | AX82: 0.1504689943 | AY82: 2609 | AZ82: 3857 | BA82: 4270 | BB82: 8127 | BC82: 0.05875455967 | BD82: 3.114986585 | BE82: 1535 | BF82: 5078 | BG82: 1514 | BH82: 0.1888765842 | BI82: 0.6248308109 | BJ82: 0.1862926049 | BK82: 3127 | BL82: 4327 | BM82: 4867 | BN82: 9194 | BO82: 0.1312907592 | BP82: 2.940198273 | BQ82: 1717 | BR82: 5678 | BS82: 1799 | BT82: 0.1867522297 | BU82: 0.6175766804 | BV82: 0.1956710898 | BW82: 3290 | BX82: 4345 | BY82: 4947 | BZ82: 9292 | CA82: 0.01054670684 | CB82: 2.824316109 | CC82: 1583 | CD82: 5618 | CE82: 2091 | CF82: 0.1703616014 | CG82: 0.6046061128 | CH82: 0.2250322858 | CI82: 3657 | CJ82: 4772 | CK82: 5461 | CL82: 10233 | CM82: 0.09195739275 | CN82: 2.798195242 | CO82: 1583 | CP82: 5618 | CQ82: 2091 | CR82: 0.1546955927 | CS82: 0.549008111 | CT82: 0.2043389035
A83: 80 | B83: 当麻町 | C83: 2474 | D83: 4685 | E83: 4934 | F83: 9619 | H83: 3.88803557 | I83: 1968 | J83: 6456 | K83: 1195 | L83: 0.2045950723 | M83: 0.6711716395 | N83: 0.1242332883 | O83: 2487 | P83: 4334 | Q83: 4710 | R83: 9044 | S83: -0.05977752365 | T83: 3.636509851 | U83: 1607 | V83: 6040 | W83: 1397 | X83: 0.1776868642 | Y83: 0.6678460858 | Z83: 0.15446705 | AA83: 2438 | AB83: 4000 | AC83: 4383 | AD83: 8383 | AE83: -0.07308712959 | AF83: 3.438474159 | AG83: 1296 | AH83: 5468 | AI83: 1619 | AJ83: 0.1545985924 | AK83: 0.6522724562 | AL83: 0.1931289514 | AM83: 2490 | AN83: 3734 | AO83: 4159 | AP83: 7893 | AQ83: -0.0584516283 | AR83: 3.169879518 | AS83: 1030 | AT83: 4999 | AU83: 1864 | AV83: 0.1304953756 | AW83: 0.6333460028 | AX83: 0.2361586216 | AY83: 2657 | AZ83: 3617 | BA83: 4026 | BB83: 7643 | BC83: -0.03167363487 | BD83: 2.876552503 | BE83: 913 | BF83: 4612 | BG83: 2118 | BH83: 0.1194557111 | BI83: 0.6034279733 | BJ83: 0.2771163156 | BK83: 2784 | BL83: 3490 | BM83: 3983 | BN83: 7473 | BO83: -0.02224257491 | BP83: 2.684267241 | BQ83: 893 | BR83: 4215 | BS83: 2365 | BT83: 0.1194968553 | BU83: 0.5640305098 | BV83: 0.3164726348 | BW83: 2743 | BX83: 3270 | BY83: 3817 | BZ83: 7087 | CA83: -0.05446592352 | CB83: 2.583667517 | CC83: 809 | CD83: 3773 | CE83: 2505 | CF83: 0.1141526739 | CG83: 0.5323832369 | CH83: 0.3534640892 | CI83: 2698 | CJ83: 3076 | CK83: 3613 | CL83: 6689 | CM83: -0.05950067275 | CN83: 2.479243884 | CO83: 809 | CP83: 3773 | CQ83: 2505 | CR83: 0.1209448348 | CS83: 0.5640603977 | CT83: 0.3744954403
A84: 81 | B84: 比布町 | C84: 1541 | D84: 2821 | E84: 2985 | F84: 5806 | H84: 3.767683323 | I84: 1139 | J84: 3964 | K84: 703 | L84: 0.1961763693 | M84: 0.682741991 | N84: 0.1210816397 | O84: 1546 | P84: 2667 | Q84: 2790 | R84: 5457 | S84: -0.0601102308 | T84: 3.529754204 | U84: 987 | V84: 3689 | W84: 781 | X84: 0.1808686091 | Y84: 0.6760124611 | Z84: 0.1431189298 | AA84: 1524 | AB84: 2441 | AC84: 2563 | AD84: 5004 | AE84: -0.08301264431 | AF84: 3.283464567 | AG84: 752 | AH84: 3321 | AI84: 931 | AJ84: 0.1502797762 | AK84: 0.6636690647 | AL84: 0.1860511591 | AM84: 1565 | AN84: 2268 | AO84: 2415 | AP84: 4683 | AQ84: -0.06414868106 | AR84: 2.992332268 | AS84: 600 | AT84: 2962 | AU84: 1121 | AV84: 0.1281229981 | AW84: 0.6325005338 | AX84: 0.2393764681 | AY84: 1636 | AZ84: 2184 | BA84: 2392 | BB84: 4576 | BC84: -0.02284860132 | BD84: 2.797066015 | BE84: 506 | BF84: 2775 | BG84: 1295 | BH84: 0.1105769231 | BI84: 0.6064248252 | BJ84: 0.2829982517 | BK84: 1625 | BL84: 2048 | BM84: 2292 | BN84: 4340 | BO84: -0.05157342657 | BP84: 2.670769231 | BQ84: 455 | BR84: 2474 | BS84: 1411 | BT84: 0.1048387097 | BU84: 0.5700460829 | BV84: 0.3251152074 | BW84: 1639 | BX84: 1913 | BY84: 2129 | BZ84: 4042 | CA84: -0.07372587828 | CB84: 2.466137889 | CC84: 402 | CD84: 2162 | CE84: 1478 | CF84: 0.09945571499 | CG84: 0.5348837209 | CH84: 0.3656605641 | CI84: 1586 | CJ84: 1787 | CK84: 1990 | CL84: 3777 | CM84: -0.07016150384 | CN84: 2.381462799 | CO84: 402 | CP84: 2162 | CQ84: 1478 | CR84: 0.1064336775 | CS84: 0.5724119672 | CT84: 0.3913158591
A85: 82 | B85: 愛別町 | C85: 1686 | D85: 2846 | E85: 2969 | F85: 5815 | H85: 3.448991696 | I85: 1193 | J85: 3923 | K85: 699 | L85: 0.2051590714 | M85: 0.6746345658 | N85: 0.1202063629 | O85: 1628 | P85: 2613 | Q85: 2750 | R85: 5363 | S85: -0.0777300086 | T85: 3.294226044 | U85: 982 | V85: 3569 | W85: 812 | X85: 0.1831064703 | Y85: 0.6654857356 | Z85: 0.1514077941 | AA85: 1494 | AB85: 2250 | AC85: 2485 | AD85: 4735 | AE85: -0.1170986388 | AF85: 3.169344043 | AG85: 712 | AH85: 3127 | AI85: 896 | AJ85: 0.1503695882 | AK85: 0.6604012672 | AL85: 0.1892291447 | AM85: 1476 | AN85: 2040 | AO85: 2282 | AP85: 4322 | AQ85: -0.08722280887 | AR85: 2.928184282 | AS85: 559 | AT85: 2712 | AU85: 1051 | AV85: 0.1293382693 | AW85: 0.6274872744 | AX85: 0.2431744563 | AY85: 1529 | AZ85: 1953 | BA85: 2112 | BB85: 4065 | BC85: -0.05946321148 | BD85: 2.658600392 | BE85: 479 | BF85: 2470 | BG85: 1116 | BH85: 0.1178351784 | BI85: 0.6076260763 | BJ85: 0.2745387454 | BK85: 1458 | BL85: 1757 | BM85: 1982 | BN85: 3739 | BO85: -0.08019680197 | BP85: 2.564471879 | BQ85: 404 | BR85: 2081 | BS85: 1254 | BT85: 0.1080502808 | BU85: 0.5565659267 | BV85: 0.3353837925 | BW85: 1332 | BX85: 1566 | BY85: 1762 | BZ85: 3328 | CA85: -0.1234975962 | CB85: 2.498498498 | CC85: 342 | CD85: 1731 | CE85: 1255 | CF85: 0.1027644231 | CG85: 0.5201322115 | CH85: 0.3771033654 | CI85: 1305 | CJ85: 1393 | CK85: 1583 | CL85: 2976 | CM85: -0.1182795699 | CN85: 2.28045977 | CO85: 342 | CP85: 1731 | CQ85: 1255 | CR85: 0.1149193548 | CS85: 0.5816532258 | CT85: 0.4217069892
A86: 83 | B86: 上川町 | C86: 3562 | D86: 4513 | E86: 4789 | F86: 9302 | H86: 2.611454239 | I86: 1794 | J86: 6602 | K86: 906 | L86: 0.1928617502 | M86: 0.7097398409 | N86: 0.09739840894 | O86: 3264 | P86: 3826 | Q86: 4192 | R86: 8018 | S86: -0.1380348312 | T86: 2.456495098 | U86: 1321 | V86: 5772 | W86: 925 | X86: 0.1647543028 | Y86: 0.7198802694 | Z86: 0.1153654278 | AA86: 2896 | AB86: 3160 | AC86: 3508 | AD86: 6668 | AE86: -0.1683711649 | AF86: 2.302486188 | AG86: 912 | AH86: 4727 | AI86: 1029 | AJ86: 0.1367726455 | AK86: 0.7089082184 | AL86: 0.1543191362 | AM86: 2980 | AN86: 3077 | AO86: 3208 | AP86: 6285 | AQ86: -0.0574385123 | AR86: 2.109060403 | AS86: 696 | AT86: 4346 | AU86: 1243 | AV86: 0.1107398568 | AW86: 0.6914876691 | AX86: 0.1977724741 | AY86: 2853 | AZ86: 2801 | BA86: 2917 | BB86: 5718 | BC86: -0.09021479714 | BD86: 2.004206099 | BE86: 560 | BF86: 3678 | BG86: 1480 | BH86: 0.09793634138 | BI86: 0.6432318993 | BJ86: 0.2588317594 | BK86: 2666 | BL86: 2522 | BM86: 2654 | BN86: 5176 | BO86: -0.09478838755 | BP86: 1.941485371 | BQ86: 496 | BR86: 3045 | BS86: 1633 | BT86: 0.09582689335 | BU86: 0.5882921175 | BV86: 0.3154945904 | BW86: 2303 | BX86: 2158 | BY86: 2374 | BZ86: 4532 | CA86: -0.1421006178 | CB86: 1.967867998 | CC86: 444 | CD86: 2496 | CE86: 1592 | CF86: 0.09796999117 | CG86: 0.5507502207 | CH86: 0.3512797882 | CI86: 2102 | CJ86: 1936 | CK86: 2108 | CL86: 4044 | CM86: -0.1206726014 | CN86: 1.923882017 | CO86: 444 | CP86: 2496 | CQ86: 1592 | CR86: 0.1097922849 | CS86: 0.6172106825 | CT86: 0.393669634
A87: 84 | B87: 東川町 | C87: 2159 | D87: 3764 | E87: 4010 | F87: 7774 | H87: 3.600741084 | I87: 1632 | J87: 5189 | K87: 953 | L87: 0.2099305377 | M87: 0.6674813481 | N87: 0.1225881142 | O87: 2345 | P87: 3765 | Q87: 3995 | R87: 7760 | S87: -0.001800874711 | T87: 3.309168443 | U87: 1413 | V87: 5185 | W87: 1162 | X87: 0.1820876289 | Y87: 0.6681701031 | Z87: 0.149742268 | AA87: 2243 | AB87: 3557 | AC87: 3861 | AD87: 7418 | AE87: -0.04407216495 | AF87: 3.307177887 | AG87: 1167 | AH87: 4925 | AI87: 1326 | AJ87: 0.1573200324 | AK87: 0.6639255864 | AL87: 0.1787543812 | AM87: 2380 | AN87: 3473 | AO87: 3738 | AP87: 7211 | AQ87: -0.02790509571 | AR87: 3.029831933 | AS87: 967 | AT87: 4718 | AU87: 1526 | AV87: 0.1341006795 | AW87: 0.6542781861 | AX87: 0.2116211344 | AY87: 2702 | AZ87: 3694 | BA87: 3977 | BB87: 7671 | BC87: 0.06379142976 | BD87: 2.839008142 | BE87: 1032 | BF87: 4863 | BG87: 1776 | BH87: 0.1345326555 | BI87: 0.6339460305 | BJ87: 0.231521314 | BK87: 2927 | BL87: 3671 | BM87: 4030 | BN87: 7701 | BO87: 0.003910833007 | BP87: 2.631021524 | BQ87: 1032 | BR87: 4709 | BS87: 1960 | BT87: 0.1340085703 | BU87: 0.6114790287 | BV87: 0.254512401 | BW87: 2983 | BX87: 3699 | BY87: 4160 | BZ87: 7859 | CA87: 0.02010433897 | CB87: 2.634596044 | CC87: 1070 | CD87: 4592 | CE87: 2197 | CF87: 0.1361496374 | CG87: 0.5842982568 | CH87: 0.2795521059 | CI87: 3148 | CJ87: 3719 | CK87: 4392 | CL87: 8111 | CM87: 0.03106891875 | CN87: 2.576556544 | CO87: 1070 | CP87: 4592 | CQ87: 2197 | CR87: 0.1319196153 | CS87: 0.5661447417 | CT87: 0.2708667242
A88: 85 | B88: 美瑛町 | C88: 4365 | D88: 7165 | E88: 7661 | F88: 14826 | H88: 3.396563574 | I88: 3116 | J88: 10093 | K88: 1617 | L88: 0.2101713207 | M88: 0.6807635235 | N88: 0.1090651558 | O88: 4191 | P88: 6741 | Q88: 7234 | R88: 13975 | S88: -0.05739916363 | T88: 3.334526366 | U88: 2677 | V88: 9418 | W88: 1880 | X88: 0.1915563506 | Y88: 0.6739177102 | Z88: 0.1345259392 | AA88: 4027 | AB88: 6091 | AC88: 6678 | AD88: 12769 | AE88: -0.08629695886 | AF88: 3.170846784 | AG88: 2089 | AH88: 8460 | AI88: 2220 | AJ88: 0.1635993422 | AK88: 0.6625420941 | AL88: 0.1738585637 | AM88: 4140 | AN88: 5776 | AO88: 6330 | AP88: 12106 | AQ88: -0.05192262511 | AR88: 2.924154589 | AS88: 1633 | AT88: 7822 | AU88: 2651 | AV88: 0.1348917892 | AW88: 0.646125888 | AX88: 0.2189823228 | AY88: 4285 | AZ88: 5643 | BA88: 6259 | BB88: 11902 | BC88: -0.01685114819 | BD88: 2.777596266 | BE88: 1447 | BF88: 7298 | BG88: 3157 | BH88: 0.1215762057 | BI88: 0.6131742564 | BJ88: 0.2652495379 | BK88: 4342 | BL88: 5463 | BM88: 6165 | BN88: 11628 | BO88: -0.02302134095 | BP88: 2.678028558 | BQ88: 1381 | BR88: 6694 | BS88: 3553 | BT88: 0.1187650499 | BU88: 0.5756793946 | BV88: 0.3055555556 | BW88: 4301 | BX88: 5171 | BY88: 5785 | BZ88: 10956 | CA88: -0.06133625411 | CB88: 2.547314578 | CC88: 1265 | CD88: 6025 | CE88: 3666 | CF88: 0.1154618474 | CG88: 0.5499269807 | CH88: 0.334611172 | CI88: 4288 | CJ88: 4826 | CK88: 5466 | CL88: 10292 | CM88: -0.06451612903 | CN88: 2.400186567 | CO88: 1265 | CP88: 6025 | CQ88: 3666 | CR88: 0.1229109988 | CS88: 0.5854061407 | CT88: 0.3561989895
A89: 86 | B89: 上富良野町 | C89: 3827 | D89: 7511 | E89: 6930 | F89: 14441 | H89: 3.77345179 | I89: 3625 | J89: 9653 | K89: 1163 | L89: 0.2510213974 | M89: 0.6684440136 | N89: 0.08053458902 | O89: 3868 | P89: 7328 | Q89: 6799 | R89: 14127 | S89: -0.02174364656 | T89: 3.652275078 | U89: 3167 | V89: 9558 | W89: 1402 | X89: 0.224180647 | Y89: 0.6765767679 | Z89: 0.09924258512 | AA89: 3934 | AB89: 6830 | AC89: 6435 | AD89: 13265 | AE89: -0.06101790897 | AF89: 3.371886121 | AG89: 2654 | AH89: 9025 | AI89: 1586 | AJ89: 0.2000753864 | AK89: 0.6803618545 | AL89: 0.1195627591 | AM89: 4106 | AN89: 6538 | AO89: 6343 | AP89: 12881 | AQ89: -0.02894836035 | AR89: 3.137116415 | AS89: 2216 | AT89: 8753 | AU89: 1912 | AV89: 0.1720363326 | AW89: 0.679527987 | AX89: 0.1484356805 | AY89: 4410 | AZ89: 6478 | BA89: 6331 | BB89: 12809 | BC89: -0.005589628134 | BD89: 2.904535147 | BE89: 2000 | BF89: 8424 | BG89: 2385 | BH89: 0.1561402139 | BI89: 0.657662581 | BJ89: 0.1861972051 | BK89: 4540 | BL89: 6313 | BM89: 6039 | BN89: 12352 | BO89: -0.03567803888 | BP89: 2.720704846 | BQ89: 1762 | BR89: 7857 | BS89: 2733 | BT89: 0.1426489637 | BU89: 0.6360913212 | BV89: 0.221259715 | BW89: 4416 | BX89: 5768 | BY89: 5777 | BZ89: 11545 | CA89: -0.06990038978 | CB89: 2.614356884 | CC89: 1639 | CD89: 6970 | CE89: 2936 | CF89: 0.1419662191 | CG89: 0.6037245561 | CH89: 0.2543092248 | CI89: 4363 | CJ89: 5442 | CK89: 5384 | CL89: 10826 | CM89: -0.06641418807 | CN89: 2.481320193 | CO89: 1639 | CP89: 6970 | CQ89: 2936 | CR89: 0.1513947903 | CS89: 0.6438204323 | CT89: 0.2711989655
A90: 87 | B90: 中富良野町 | C90: 1786 | D90: 3423 | E90: 3616 | F90: 7039 | H90: 3.941209406 | I90: 1463 | J90: 4772 | K90: 804 | L90: 0.207842023 | M90: 0.677937207 | N90: 0.11422077 | O90: 1795 | P90: 3282 | Q90: 3441 | R90: 6723 | S90: -0.04489274045 | T90: 3.7454039 | U90: 1312 | V90: 4489 | W90: 922 | X90: 0.1951509743 | Y90: 0.6677078685 | Z90: 0.1371411572 | AA90: 1793 | AB90: 3029 | AC90: 3302 | AD90: 6331 | AE90: -0.05830730329 | AF90: 3.530953709 | AG90: 1157 | AH90: 4094 | AI90: 1080 | AJ90: 0.18275154 | AK90: 0.6466592955 | AL90: 0.1705891644 | AM90: 1810 | AN90: 2837 | AO90: 3094 | AP90: 5931 | AQ90: -0.06318117201 | AR90: 3.27679558 | AS90: 981 | AT90: 3712 | AU90: 1238 | AV90: 0.1654021244 | AW90: 0.6258641039 | AX90: 0.2087337717 | AY90: 1952 | AZ90: 2789 | BA90: 3044 | BB90: 5833 | BC90: -0.01652335188 | BD90: 2.988217213 | BE90: 899 | BF90: 3513 | BG90: 1421 | BH90: 0.1541230927 | BI90: 0.6022629865 | BJ90: 0.2436139208 | BK90: 2035 | BL90: 2740 | BM90: 2967 | BN90: 5707 | BO90: -0.02160123436 | BP90: 2.804422604 | BQ90: 844 | BR90: 3285 | BS90: 1578 | BT90: 0.1478885579 | BU90: 0.5756089013 | BV90: 0.2765025407 | BW90: 2015 | BX90: 2589 | BY90: 2888 | BZ90: 5477 | CA90: -0.04199379222 | CB90: 2.718114144 | CC90: 772 | CD90: 3096 | CE90: 1609 | CF90: 0.1409530765 | CG90: 0.5652729596 | CH90: 0.2937739638 | CI90: 2025 | CJ90: 2405 | CK90: 2664 | CL90: 5069 | CM90: -0.08048924837 | CN90: 2.503209877 | CO90: 772 | CP90: 3096 | CQ90: 1609 | CR90: 0.1522982837 | CS90: 0.6107713553 | CT90: 0.3174196094
A91: 88 | B91: 南富良野町 | C91: 1630 | D91: 2266 | E91: 2264 | F91: 4530 | H91: 2.779141104 | I91: 905 | J91: 3161 | K91: 464 | L91: 0.1997792494 | M91: 0.6977924945 | N91: 0.1024282561 | O91: 1481 | P91: 1992 | Q91: 1984 | R91: 3976 | S91: -0.1222958057 | T91: 2.684672519 | U91: 674 | V91: 2793 | W91: 509 | X91: 0.1695171026 | Y91: 0.7024647887 | Z91: 0.1280181087 | AA91: 1436 | AB91: 1841 | AC91: 1809 | AD91: 3650 | AE91: -0.08199195171 | AF91: 2.54178273 | AG91: 543 | AH91: 2541 | AI91: 566 | AJ91: 0.1487671233 | AK91: 0.6961643836 | AL91: 0.1550684932 | AM91: 1348 | AN91: 1663 | AO91: 1668 | AP91: 3331 | AQ91: -0.08739726027 | AR91: 2.471068249 | AS91: 492 | AT91: 2170 | AU91: 669 | AV91: 0.1477033924 | AW91: 0.6514560192 | AX91: 0.2008405884 | AY91: 1323 | AZ91: 1632 | BA91: 1604 | BB91: 3236 | BC91: -0.02851996397 | BD91: 2.44595616 | BE91: 452 | BF91: 2004 | BG91: 779 | BH91: 0.1396786156 | BI91: 0.6192830655 | BJ91: 0.2407292954 | BK91: 1220 | BL91: 1513 | BM91: 1434 | BN91: 2947 | BO91: -0.08930778739 | BP91: 2.41557377 | BQ91: 385 | BR91: 1752 | BS91: 810 | BT91: 0.1306413302 | BU91: 0.5945028843 | BV91: 0.2748557855 | BW91: 1199 | BX91: 1401 | BY91: 1413 | BZ91: 2814 | CA91: -0.04726368159 | CB91: 2.346955796 | CC91: 324 | CD91: 1637 | CE91: 853 | CF91: 0.1151385928 | CG91: 0.5817341862 | CH91: 0.303127221 | CI91: 1132 | CJ91: 1273 | CK91: 1282 | CL91: 2555 | CM91: -0.101369863 | CN91: 2.257067138 | CO91: 324 | CP91: 1637 | CQ91: 853 | CR91: 0.1268101761 | CS91: 0.640704501 | CT91: 0.3338551859
A92: 89 | B92: 占冠村 | C92: 632 | D92: 850 | E92: 751 | F92: 1601 | H92: 2.533227848 | I92: 324 | J92: 1137 | K92: 140 | L92: 0.2023735166 | M92: 0.7101811368 | N92: 0.08744534666 | O92: 1114 | P92: 1310 | Q92: 787 | R92: 2097 | S92: 0.309806371 | T92: 1.882405745 | U92: 331 | V92: 1609 | W92: 157 | X92: 0.1578445398 | Y92: 0.7672865999 | Z92: 0.07486886028 | AA92: 1673 | AB92: 1736 | AC92: 985 | AD92: 2721 | AE92: 0.2975679542 | AF92: 1.626419605 | AG92: 336 | AH92: 2181 | AI92: 204 | AJ92: 0.1234840132 | AK92: 0.8015435502 | AL92: 0.0749724366 | AM92: 1170 | AN92: 1144 | AO92: 960 | AP92: 2104 | AQ92: -0.2267548695 | AR92: 1.798290598 | AS92: 282 | AT92: 1588 | AU92: 234 | AV92: 0.1340304183 | AW92: 0.7547528517 | AX92: 0.11121673 | AY92: 1028 | AZ92: 993 | BA92: 880 | BB92: 1873 | BC92: -0.1097908745 | BD92: 1.821984436 | BE92: 229 | BF92: 1355 | BG92: 289 | BH92: 0.122263748 | BI92: 0.7234383342 | BJ92: 0.1542979178 | BK92: 1051 | BL92: 1025 | BM92: 794 | BN92: 1819 | BO92: -0.0288307528 | BP92: 1.730732636 | BQ92: 205 | BR92: 1299 | BS92: 315 | BT92: 0.1126992853 | BU92: 0.7141286421 | BV92: 0.1731720726 | BW92: 794 | BX92: 779 | BY92: 615 | BZ92: 1394 | CA92: -0.3048780488 | CB92: 1.755667506 | CC92: 130 | CD92: 964 | CE92: 294 | CF92: 0.09365994236 | CG92: 0.6945244957 | CH92: 0.211815562 | CI92: 704 | CJ92: 604 | CK92: 607 | CL92: 1211 | CM92: -0.1511147812 | CN92: 1.720170455 | CO92: 130 | CP92: 964 | CQ92: 294 | CR92: 0.1073492981 | CS92: 0.7960363336 | CT92: 0.2427745665
A93: 90 | B93: 和寒町 | C93: 1928 | D93: 3279 | E93: 3417 | F93: 6696 | H93: 3.473029046 | I93: 1419 | J93: 4380 | K93: 897 | L93: 0.2119175627 | M93: 0.6541218638 | N93: 0.1339605735 | O93: 1940 | P93: 3101 | Q93: 3234 | R93: 6335 | S93: -0.05391278375 | T93: 3.265463918 | U93: 1159 | V93: 4144 | W93: 1032 | X93: 0.1829518548 | Y93: 0.6541436464 | Z93: 0.1629044988 | AA93: 1794 | AB93: 2676 | AC93: 2947 | AD93: 5623 | AE93: -0.1123914759 | AF93: 3.134336678 | AG93: 886 | AH93: 3560 | AI93: 1177 | AJ93: 0.157567135 | AK93: 0.6331139961 | AL93: 0.2093188689 | AM93: 1719 | AN93: 2358 | AO93: 2644 | AP93: 5002 | AQ93: -0.1104392673 | AR93: 2.909831297 | AS93: 674 | AT93: 3002 | AU93: 1326 | AV93: 0.1347461016 | AW93: 0.600159936 | AX93: 0.2650939624 | AY93: 1814 | AZ93: 2252 | BA93: 2458 | BB93: 4710 | BC93: -0.05837664934 | BD93: 2.596471885 | BE93: 510 | BF93: 2768 | BG93: 1431 | BH93: 0.1082802548 | BI93: 0.5876857749 | BJ93: 0.3038216561 | BK93: 1646 | BL93: 1970 | BM93: 2268 | BN93: 4238 | BO93: -0.1002123142 | BP93: 2.57472661 | BQ93: 458 | BR93: 2303 | BS93: 1477 | BT93: 0.1080698443 | BU93: 0.543416706 | BV93: 0.3485134497 | BW93: 1601 | BX93: 1757 | BY93: 2075 | BZ93: 3832 | CA93: -0.1059498956 | CB93: 2.39350406 | CC93: 400 | CD93: 1927 | CE93: 1505 | CF93: 0.1043841336 | CG93: 0.5028705637 | CH93: 0.3927453027 | CI93: 1533 | CJ93: 1656 | CK93: 1940 | CL93: 3596 | CM93: -0.06562847608 | CN93: 2.345727332 | CO93: 400 | CP93: 1927 | CQ93: 1505 | CR93: 0.1112347052 | CS93: 0.5358731924 | CT93: 0.4185205784
A94: 91 | B94: 剣淵町 | C94: 1519 | D94: 2649 | E94: 2832 | F94: 5481 | H94: 3.608294931 | I94: 1150 | J94: 3675 | K94: 656 | L94: 0.2098157271 | M94: 0.6704980843 | N94: 0.1196861887 | O94: 1414 | P94: 2422 | Q94: 2689 | R94: 5111 | S94: -0.06750592957 | T94: 3.6145686 | U94: 1011 | V94: 3333 | W94: 767 | X94: 0.197808648 | Y94: 0.6521228722 | Z94: 0.1500684797 | AA94: 1385 | AB94: 2220 | AC94: 2483 | AD94: 4703 | AE94: -0.07982782234 | AF94: 3.39566787 | AG94: 780 | AH94: 2984 | AI94: 934 | AJ94: 0.1658515841 | AK94: 0.6344886243 | AL94: 0.1985966404 | AM94: 1403 | AN94: 2090 | AO94: 2376 | AP94: 4466 | AQ94: -0.05039336594 | AR94: 3.183178902 | AS94: 621 | AT94: 2781 | AU94: 1064 | AV94: 0.1390506046 | AW94: 0.6227048813 | AX94: 0.2382445141 | AY94: 1414 | AZ94: 1982 | BA94: 2176 | BB94: 4158 | BC94: -0.06896551724 | BD94: 2.940594059 | BE94: 516 | BF94: 2482 | BG94: 1160 | BH94: 0.1240981241 | BI94: 0.5969215969 | BJ94: 0.278980279 | BK94: 1422 | BL94: 1920 | BM94: 2032 | BN94: 3952 | BO94: -0.04954304954 | BP94: 2.779184248 | BQ94: 434 | BR94: 2316 | BS94: 1202 | BT94: 0.1098178138 | BU94: 0.5860323887 | BV94: 0.3041497976 | BW94: 1329 | BX94: 1705 | BY94: 1860 | BZ94: 3565 | CA94: -0.1085553997 | CB94: 2.682468021 | CC94: 385 | CD94: 1978 | CE94: 1202 | CF94: 0.1079943899 | CG94: 0.5548387097 | CH94: 0.3371669004 | CI94: 1330 | CJ94: 1567 | CK94: 1661 | CL94: 3228 | CM94: -0.1043990087 | CN94: 2.427067669 | CO94: 385 | CP94: 1978 | CQ94: 1202 | CR94: 0.1192688971 | CS94: 0.6127633209 | CT94: 0.3723667906
A95: 92 | B95: 下川町 | C95: 2351 | D95: 3440 | E95: 3733 | F95: 7173 | H95: 3.05104211 | I95: 1518 | J95: 4904 | K95: 751 | L95: 0.2116269343 | M95: 0.683674892 | N95: 0.1046981737 | O95: 1979 | P95: 2718 | Q95: 3012 | R95: 5730 | S95: -0.2011710581 | T95: 2.895401718 | U95: 1019 | V95: 3861 | W95: 850 | X95: 0.1778359511 | Y95: 0.6738219895 | Z95: 0.1483420593 | AA95: 1848 | AB95: 2391 | AC95: 2674 | AD95: 5065 | AE95: -0.1160558464 | AF95: 2.740800866 | AG95: 744 | AH95: 3313 | AI95: 1008 | AJ95: 0.1468904245 | AK95: 0.6540967423 | AL95: 0.1990128332 | AM95: 1837 | AN95: 2281 | AO95: 2466 | AP95: 4747 | AQ95: -0.06278381046 | AR95: 2.584104518 | AS95: 593 | AT95: 2977 | AU95: 1177 | AV95: 0.1249210027 | AW95: 0.6271329261 | AX95: 0.2479460712 | AY95: 1809 | AZ95: 2121 | BA95: 2292 | BB95: 4413 | BC95: -0.07036022751 | BD95: 2.43946932 | BE95: 473 | BF95: 2624 | BG95: 1316 | BH95: 0.107183322 | BI95: 0.5946068434 | BJ95: 0.2982098346 | BK95: 1771 | BL95: 1970 | BM95: 2176 | BN95: 4146 | BO95: -0.06050305914 | BP95: 2.341050254 | BQ95: 411 | BR95: 2353 | BS95: 1382 | BT95: 0.0991316932 | BU95: 0.5675349735 | BV95: 0.3333333333 | BW95: 1685 | BX95: 1800 | BY95: 1975 | BZ95: 3775 | CA95: -0.0982781457 | CB95: 2.240356083 | CC95: 365 | CD95: 2032 | CE95: 1378 | CF95: 0.09668874172 | CG95: 0.5382781457 | CH95: 0.3650331126 | CI95: 1674 | CJ95: 1718 | CK95: 1829 | CL95: 3547 | CM95: -0.06427967296 | CN95: 2.118876941 | CO95: 365 | CP95: 2032 | CQ95: 1378 | CR95: 0.1029038624 | CS95: 0.5728784889 | CT95: 0.3884973217
A96: 93 | B96: 美深町 | C96: 2647 | D96: 4006 | E96: 4344 | F96: 8350 | H96: 3.154514545 | I96: 1774 | J96: 5582 | K96: 994 | L96: 0.2124550898 | M96: 0.668502994 | N96: 0.1190419162 | O96: 2619 | P96: 3805 | Q96: 4084 | R96: 7889 | S96: -0.05520958084 | T96: 3.012218404 | U96: 1498 | V96: 5279 | W96: 1112 | X96: 0.1898846495 | Y96: 0.6691595893 | Z96: 0.1409557612 | AA96: 2450 | AB96: 3390 | AC96: 3713 | AD96: 7103 | AE96: -0.09963239954 | AF96: 2.899183673 | AG96: 1126 | AH96: 4723 | AI96: 1254 | AJ96: 0.1585245671 | AK96: 0.6649303111 | AL96: 0.1765451218 | AM96: 2379 | AN96: 3127 | AO96: 3413 | AP96: 6540 | AQ96: -0.07926228354 | AR96: 2.749054224 | AS96: 930 | AT96: 4216 | AU96: 1394 | AV96: 0.1422018349 | AW96: 0.644648318 | AX96: 0.2131498471 | AY96: 2324 | AZ96: 2886 | BA96: 3154 | BB96: 6040 | BC96: -0.07645259939 | BD96: 2.598967298 | BE96: 787 | BF96: 3700 | BG96: 1553 | BH96: 0.1302980132 | BI96: 0.6125827815 | BJ96: 0.2571192053 | BK96: 2218 | BL96: 2643 | BM96: 2869 | BN96: 5512 | BO96: -0.08741721854 | BP96: 2.485121731 | BQ96: 631 | BR96: 3175 | BS96: 1706 | BT96: 0.1144775036 | BU96: 0.5760159652 | BV96: 0.3095065312 | BW96: 2194 | BX96: 2513 | BY96: 2665 | BZ96: 5178 | CA96: -0.06450366937 | CB96: 2.360072926 | CC96: 548 | CD96: 2870 | CE96: 1760 | CF96: 0.1058323677 | CG96: 0.5542680572 | CH96: 0.3398995751 | CI96: 2041 | CJ96: 2287 | CK96: 2372 | CL96: 4659 | CM96: -0.1113972956 | CN96: 2.282704557 | CO96: 548 | CP96: 2870 | CQ96: 1760 | CR96: 0.1176218073 | CS96: 0.6160120197 | CT96: 0.3777634686
A97: 94 | B97: 音威子府村 | C97: 774 | D97: 1093 | E97: 1007 | F97: 2100 | H97: 2.713178295 | I97: 406 | J97: 1496 | K97: 198 | L97: 0.1933333333 | M97: 0.7123809524 | N97: 0.09428571429 | O97: 832 | P97: 1144 | Q97: 924 | R97: 2068 | S97: -0.01523809524 | T97: 2.485576923 | U97: 378 | V97: 1478 | W97: 212 | X97: 0.1827852998 | Y97: 0.7147001934 | Z97: 0.1025145068 | AA97: 563 | AB97: 819 | AC97: 765 | AD97: 1584 | AE97: -0.2340425532 | AF97: 2.813499112 | AG97: 292 | AH97: 1086 | AI97: 206 | AJ97: 0.1843434343 | AK97: 0.6856060606 | AL97: 0.1300505051 | AM97: 619 | AN97: 823 | AO97: 657 | AP97: 1480 | AQ97: -0.06565656566 | AR97: 2.39095315 | AS97: 256 | AT97: 980 | AU97: 244 | AV97: 0.172972973 | AW97: 0.6621621622 | AX97: 0.1648648649 | AY97: 569 | AZ97: 721 | BA97: 613 | BB97: 1334 | BC97: -0.09864864865 | BD97: 2.344463972 | BE97: 188 | BF97: 871 | BG97: 275 | BH97: 0.1409295352 | BI97: 0.6529235382 | BJ97: 0.2061469265 | BK97: 457 | BL97: 555 | BM97: 515 | BN97: 1070 | BO97: -0.1979010495 | BP97: 2.341356674 | BQ97: 108 | BR97: 690 | BS97: 272 | BT97: 0.1009345794 | BU97: 0.6448598131 | BV97: 0.2542056075 | BW97: 486 | BX97: 540 | BY97: 455 | BZ97: 995 | CA97: -0.07537688442 | CB97: 2.047325103 | CC97: 53 | CD97: 696 | CE97: 246 | CF97: 0.05326633166 | CG97: 0.6994974874 | CH97: 0.2472361809 | CI97: 405 | CJ97: 435 | CK97: 397 | CL97: 832 | CM97: -0.1959134615 | CN97: 2.054320988 | CO97: 53 | CP97: 696 | CQ97: 246 | CR97: 0.06370192308 | CS97: 0.8365384615 | CT97: 0.2956730769
A98: 95 | B98: 中川町 | C98: 1233 | D98: 1829 | E98: 1730 | F98: 3559 | H98: 2.886455799 | I98: 804 | J98: 2396 | K98: 359 | L98: 0.2259061534 | M98: 0.6732228154 | N98: 0.1008710312 | O98: 1139 | P98: 1635 | Q98: 1600 | R98: 3235 | S98: -0.09103680809 | T98: 2.840210711 | U98: 656 | V98: 2138 | W98: 441 | X98: 0.2027820711 | Y98: 0.6608964451 | Z98: 0.1363214838 | AA98: 1024 | AB98: 1377 | AC98: 1411 | AD98: 2788 | AE98: -0.1381761978 | AF98: 2.72265625 | AG98: 460 | AH98: 1824 | AI98: 499 | AJ98: 0.1649928264 | AK98: 0.6542324247 | AL98: 0.1789813486 | AM98: 1046 | AN98: 1271 | AO98: 1331 | AP98: 2602 | AQ98: -0.06671449067 | AR98: 2.487571702 | AS98: 401 | AT98: 1667 | AU98: 534 | AV98: 0.1541122214 | AW98: 0.64066103 | AX98: 0.2052267487 | AY98: 1076 | AZ98: 1245 | BA98: 1219 | BB98: 2464 | BC98: -0.05303612606 | BD98: 2.289962825 | BE98: 326 | BF98: 1521 | BG98: 617 | BH98: 0.1323051948 | BI98: 0.617288961 | BJ98: 0.2504058442 | BK98: 950 | BL98: 1051 | BM98: 1055 | BN98: 2106 | BO98: -0.1452922078 | BP98: 2.216842105 | BQ98: 244 | BR98: 1199 | BS98: 663 | BT98: 0.1158594492 | BU98: 0.569325736 | BV98: 0.3148148148 | BW98: 926 | BX98: 973 | BY98: 934 | BZ98: 1907 | CA98: -0.1043523859 | CB98: 2.059395248 | CC98: 53 | CD98: 696 | CE98: 246 | CF98: 0.09229155742 | CG98: 0.558993183 | CH98: 0.3487152596 | CI98: 897 | CJ98: 938 | CK98: 829 | CL98: 1767 | CM98: -0.0792303339 | CN98: 1.969899666 | CO98: 53 | CP98: 696 | CQ98: 246 | CR98: 0.02999434069 | CS98: 0.3938879457 | CT98: 0.1392190153
A99: 96 | B99: 幌加内町 | C99: 1397 | D99: 1895 | E99: 1845 | F99: 3740 | H99: 2.677165354 | I99: 687 | J99: 2601 | K99: 452 | L99: 0.1836898396 | M99: 0.6954545455 | N99: 0.120855615 | O99: 1179 | P99: 1582 | Q99: 1600 | R99: 3182 | S99: -0.149197861 | T99: 2.698897371 | U99: 535 | V99: 2126 | W99: 521 | X99: 0.1681332495 | Y99: 0.6681332495 | Z99: 0.1637335009 | AA99: 965 | AB99: 1250 | AC99: 1383 | AD99: 2633 | AE99: -0.1725329981 | AF99: 2.728497409 | AG99: 385 | AH99: 1690 | AI99: 558 | AJ99: 0.1462210406 | AK99: 0.6418533992 | AL99: 0.2119255602 | AM99: 918 | AN99: 1157 | AO99: 1257 | AP99: 2414 | AQ99: -0.08317508545 | AR99: 2.62962963 | AS99: 300 | AT99: 1516 | AU99: 598 | AV99: 0.1242750621 | AW99: 0.628003314 | AX99: 0.2477216239 | AY99: 877 | AZ99: 1072 | BA99: 1145 | BB99: 2217 | BC99: -0.0816072908 | BD99: 2.527936146 | BE99: 228 | BF99: 1339 | BG99: 650 | BH99: 0.1028416779 | BI99: 0.6039693279 | BJ99: 0.2931889941 | BK99: 830 | BL99: 954 | BM99: 998 | BN99: 1952 | BO99: -0.1195308976 | BP99: 2.351807229 | BQ99: 195 | BR99: 1118 | BS99: 638 | BT99: 0.09989754098 | BU99: 0.5727459016 | BV99: 0.3268442623 | BW99: 780 | BX99: 838 | BY99: 872 | BZ99: 1710 | CA99: -0.1415204678 | CB99: 2.192307692 | CC99: 193 | CD99: 897 | CE99: 620 | CF99: 0.1128654971 | CG99: 0.5245614035 | CH99: 0.3625730994 | CI99: 690 | CJ99: 754 | CK99: 771 | CL99: 1525 | CM99: -0.1213114754 | CN99: 2.210144928 | CO99: 193 | CP99: 897 | CQ99: 620 | CR99: 0.126557377 | CS99: 0.5881967213 | CT99: 0.406557377
A100: 97 | B100: 留萌市 | C100: 12001 | D100: 17743 | E100: 18883 | F100: 36626 | H100: 3.051912341 | I100: 9004 | J100: 24675 | K100: 2947 | L100: 0.2458362912 | M100: 0.6737017419 | N100: 0.08046196691 | O100: 12009 | P100: 17249 | Q100: 18293 | R100: 35542 | S100: -0.02959646153 | T100: 2.959613623 | U100: 8065 | V100: 24242 | W100: 3235 | X100: 0.2269146362 | Y100: 0.6820662878 | Z100: 0.09101907602 | AA100: 11716 | AB100: 15722 | AC100: 16707 | AD100: 32429 | AE100: -0.08758651736 | AF100: 2.767924206 | AG100: 6286 | AH100: 22313 | AI100: 3810 | AJ100: 0.1938388479 | AK100: 0.688056986 | AL100: 0.1174874341 | AM100: 11624 | AN100: 14486 | AO100: 15574 | AP100: 30060 | AQ100: -0.07305189799 | AR100: 2.586028906 | AS100: 5000 | AT100: 20516 | AU100: 4544 | AV100: 0.1663339987 | AW100: 0.6825016633 | AX100: 0.151164338 | AY100: 11767 | AZ100: 13679 | BA100: 14646 | BB100: 28325 | BC100: -0.05771789754 | BD100: 2.407155605 | BE100: 4021 | BF100: 19022 | BG100: 5282 | BH100: 0.1419593998 | BI100: 0.6715622242 | BJ100: 0.186478376 | BK100: 11666 | BL100: 12959 | BM100: 13867 | BN100: 26826 | BO100: -0.05292144748 | BP100: 2.299502829 | BQ100: 3400 | BR100: 17205 | BS100: 6221 | BT100: 0.1267427123 | BU100: 0.6413554015 | BV100: 0.2319018862 | BW100: 11044 | BX100: 11679 | BY100: 12778 | BZ100: 24457 | CA100: -0.09686388355 | CB100: 2.214505614 | CC100: 2751 | CD100: 14807 | CE100: 6899 | CF100: 0.1124831337 | CG100: 0.6054299383 | CH100: 0.2820869281 | CI100: 10402 | CJ100: 10516 | CK100: 11705 | CL100: 22221 | CM100: -0.1006255344 | CN100: 2.136223803 | CO100: 2751 | CP100: 14807 | CQ100: 6899 | CR100: 0.1238018091 | CS100: 0.6663516493 | CT100: 0.310472076
A101: 98 | B101: 増毛町 | C101: 2693 | D101: 3895 | E101: 4424 | F101: 8319 | H101: 3.089119941 | I101: 1664 | J101: 5504 | K101: 1151 | L101: 0.2000240414 | M101: 0.6616179829 | N101: 0.1383579757 | O101: 2686 | P101: 3753 | Q101: 4258 | R101: 8011 | S101: -0.03702368073 | T101: 2.982501862 | U101: 1388 | V101: 5268 | W101: 1355 | X101: 0.1732617651 | Y101: 0.6575958058 | Z101: 0.1691424292 | AA101: 2606 | AB101: 3328 | AC101: 3838 | AD101: 7166 | AE101: -0.105479965 | AF101: 2.749808135 | AG101: 1059 | AH101: 4511 | AI101: 1596 | AJ101: 0.1477811889 | AK101: 0.6295004186 | AL101: 0.2227183924 | AM101: 2512 | AN101: 3060 | AO101: 3592 | AP101: 6652 | AQ101: -0.07172760257 | AR101: 2.648089172 | AS101: 897 | AT101: 3908 | AU101: 1847 | AV101: 0.1348466627 | AW101: 0.5874924835 | AX101: 0.2776608539 | AY101: 2461 | AZ101: 2797 | BA101: 3370 | BB101: 6167 | BC101: -0.07291040289 | BD101: 2.505891914 | BE101: 730 | BF101: 3420 | BG101: 2017 | BH101: 0.1183719799 | BI101: 0.5545646181 | BJ101: 0.327063402 | BK101: 2389 | BL101: 2563 | BM101: 3145 | BN101: 5708 | BO101: -0.07442840928 | BP101: 2.389284219 | BQ101: 574 | BR101: 3123 | BS101: 2011 | BT101: 0.1005606167 | BU101: 0.5471268395 | BV101: 0.3523125438 | BW101: 2208 | BX101: 2295 | BY101: 2783 | BZ101: 5078 | CA101: -0.1240645924 | CB101: 2.299818841 | CC101: 479 | CD101: 2658 | CE101: 1941 | CF101: 0.09432847578 | CG101: 0.523434423 | CH101: 0.3822371012 | CI101: 2051 | CJ101: 2024 | CK101: 2473 | CL101: 4497 | CM101: -0.1291972426 | CN101: 2.192588981 | CO101: 479 | CP101: 2658 | CQ101: 1941 | CR101: 0.1065154547 | CS101: 0.5910607071 | CT101: 0.4316210807
A102: 99 | B102: 小平町 | C102: 1984 | D102: 3130 | E102: 3344 | F102: 6474 | H102: 3.263104839 | I102: 1362 | J102: 4237 | K102: 875 | L102: 0.2103799815 | M102: 0.6544640099 | N102: 0.1351560086 | O102: 1953 | P102: 2922 | Q102: 3090 | R102: 6012 | S102: -0.07136237257 | T102: 3.078341014 | U102: 1097 | V102: 3991 | W102: 924 | X102: 0.1824683965 | Y102: 0.6638389887 | Z102: 0.1536926148 | AA102: 1812 | AB102: 2564 | AC102: 2770 | AD102: 5334 | AE102: -0.1127744511 | AF102: 2.943708609 | AG102: 841 | AH102: 3479 | AI102: 1014 | AJ102: 0.1576677915 | AK102: 0.6522309711 | AL102: 0.1901012373 | AM102: 1771 | AN102: 2348 | AO102: 2507 | AP102: 4855 | AQ102: -0.08980127484 | AR102: 2.741389046 | AS102: 663 | AT102: 3084 | AU102: 1108 | AV102: 0.1365602472 | AW102: 0.6352214212 | AX102: 0.2282183316 | AY102: 1773 | AZ102: 2256 | BA102: 2310 | BB102: 4566 | BC102: -0.05952626159 | BD102: 2.575296108 | BE102: 522 | BF102: 2811 | BG102: 1233 | BH102: 0.1143232589 | BI102: 0.6156373193 | BJ102: 0.2700394218 | BK102: 1659 | BL102: 2078 | BM102: 2194 | BN102: 4272 | BO102: -0.06438896189 | BP102: 2.575045208 | BQ102: 428 | BR102: 2516 | BS102: 1328 | BT102: 0.1001872659 | BU102: 0.5889513109 | BV102: 0.3108614232 | BW102: 1512 | BX102: 1789 | BY102: 1928 | BZ102: 3717 | CA102: -0.1493139629 | CB102: 2.458333333 | CC102: 357 | CD102: 2071 | CE102: 1289 | CF102: 0.09604519774 | CG102: 0.5571697606 | CH102: 0.3467850417 | CI102: 1406 | CJ102: 1585 | CK102: 1751 | CL102: 3336 | CM102: -0.1142086331 | CN102: 2.372688478 | CO102: 357 | CP102: 2071 | CQ102: 1289 | CR102: 0.1070143885 | CS102: 0.6208033573 | CT102: 0.3863908873
A103: 100 | B103: 苫前町 | C103: 2028 | D103: 3198 | E103: 3330 | F103: 6528 | H103: 3.218934911 | I103: 1330 | J103: 4343 | K103: 855 | L103: 0.2037377451 | M103: 0.6652879902 | N103: 0.1309742647 | O103: 1922 | P103: 2792 | Q103: 2956 | R103: 5748 | S103: -0.1194852941 | T103: 2.990634755 | U103: 985 | V103: 3866 | W103: 897 | X103: 0.1713639527 | Y103: 0.6725817676 | Z103: 0.1560542797 | AA103: 1862 | AB103: 2529 | AC103: 2722 | AD103: 5251 | AE103: -0.08646485734 | AF103: 2.820085929 | AG103: 743 | AH103: 3448 | AI103: 1060 | AJ103: 0.1414968577 | AK103: 0.6566368311 | AL103: 0.2018663112 | AM103: 1822 | AN103: 2341 | AO103: 2527 | AP103: 4868 | AQ103: -0.07293848791 | AR103: 2.671789243 | AS103: 642 | AT103: 3017 | AU103: 1209 | AV103: 0.1318816763 | AW103: 0.6197617091 | AX103: 0.2483566146 | AY103: 1774 | AZ103: 2243 | BA103: 2402 | BB103: 4645 | BC103: -0.0458093673 | BD103: 2.61837655 | BE103: 592 | BF103: 2734 | BG103: 1319 | BH103: 0.1274488698 | BI103: 0.5885898816 | BJ103: 0.2839612487 | BK103: 1689 | BL103: 1989 | BM103: 2213 | BN103: 4202 | BO103: -0.09537136706 | BP103: 2.487862641 | BQ103: 483 | BR103: 2338 | BS103: 1381 | BT103: 0.1149452642 | BU103: 0.5564017135 | BV103: 0.3286530224 | BW103: 1520 | BX103: 1710 | BY103: 1946 | BZ103: 3656 | CA103: -0.1493435449 | CB103: 2.405263158 | CC103: 392 | CD103: 1927 | CE103: 1337 | CF103: 0.1072210066 | CG103: 0.5270787746 | CH103: 0.3657002188 | CI103: 1420 | CJ103: 1549 | CK103: 1716 | CL103: 3265 | CM103: -0.119754977 | CN103: 2.299295775 | CO103: 392 | CP103: 1927 | CQ103: 1337 | CR103: 0.1200612557 | CS103: 0.5901990812 | CT103: 0.4094946401
A104: 101 | B104: 羽幌町 | C104: 4307 | D104: 6430 | E104: 6824 | F104: 13254 | H104: 3.077315997 | I104: 2972 | J104: 8686 | K104: 1596 | L104: 0.2242341935 | M104: 0.6553493285 | N104: 0.120416478 | O104: 4194 | P104: 5894 | Q104: 6362 | R104: 12256 | S104: -0.07529802324 | T104: 2.922269909 | U104: 2414 | V104: 8053 | W104: 1789 | X104: 0.196964752 | Y104: 0.6570659269 | Z104: 0.1459693211 | AA104: 3971 | AB104: 5202 | AC104: 5742 | AD104: 10944 | AE104: -0.1070496084 | AF104: 2.755980861 | AG104: 1862 | AH104: 7078 | AI104: 2004 | AJ104: 0.1701388889 | AK104: 0.646747076 | AL104: 0.1831140351 | AM104: 3968 | AN104: 4819 | AO104: 5283 | AP104: 10102 | AQ104: -0.0769371345 | AR104: 2.545866935 | AS104: 1461 | AT104: 6367 | AU104: 2274 | AV104: 0.1446248268 | AW104: 0.6302712334 | AX104: 0.2251039398 | AY104: 3854 | AZ104: 4484 | BA104: 4880 | BB104: 9364 | BC104: -0.07305484063 | BD104: 2.429683446 | BE104: 1173 | BF104: 5678 | BG104: 2513 | BH104: 0.1252669799 | BI104: 0.6063648014 | BJ104: 0.2683682187 | BK104: 3698 | BL104: 4144 | BM104: 4596 | BN104: 8740 | BO104: -0.06663818881 | BP104: 2.363439697 | BQ104: 970 | BR104: 5066 | BS104: 2704 | BT104: 0.1109839817 | BU104: 0.5796338673 | BV104: 0.309382151 | BW104: 3534 | BX104: 3777 | BY104: 4187 | BZ104: 7964 | CA104: -0.09743847313 | CB104: 2.253537068 | CC104: 828 | CD104: 4284 | CE104: 2850 | CF104: 0.1039939714 | CG104: 0.5380557649 | CH104: 0.3579502638 | CI104: 3367 | CJ104: 3490 | CK104: 3837 | CL104: 7327 | CM104: -0.0869387198 | CN104: 2.176121176 | CO104: 828 | CP104: 4284 | CQ104: 2850 | CR104: 0.1130066876 | CS104: 0.5846867749 | CT104: 0.3889722943
A105: 102 | B105: 初山別村 | C105: 760 | D105: 1174 | E105: 1270 | F105: 2444 | H105: 3.215789474 | I105: 514 | J105: 1620 | K105: 310 | L105: 0.2103109656 | M105: 0.6628477905 | N105: 0.1268412439 | O105: 748 | P105: 1073 | Q105: 1164 | R105: 2237 | S105: -0.08469721768 | T105: 2.990641711 | U105: 371 | V105: 1506 | W105: 360 | X105: 0.1658471167 | Y105: 0.6732230666 | Z105: 0.1609298167 | AA105: 725 | AB105: 969 | AC105: 1088 | AD105: 2057 | AE105: -0.08046490836 | AF105: 2.837241379 | AG105: 310 | AH105: 1344 | AI105: 403 | AJ105: 0.1507049101 | AK105: 0.6533787069 | AL105: 0.1959163831 | AM105: 721 | AN105: 915 | AO105: 1013 | AP105: 1928 | AQ105: -0.06271268838 | AR105: 2.6740638 | AS105: 260 | AT105: 1194 | AU105: 474 | AV105: 0.1348547718 | AW105: 0.6192946058 | AX105: 0.2458506224 | AY105: 707 | AZ105: 856 | BA105: 908 | BB105: 1764 | BC105: -0.08506224066 | BD105: 2.495049505 | BE105: 229 | BF105: 1023 | BG105: 512 | BH105: 0.1298185941 | BI105: 0.5799319728 | BJ105: 0.2902494331 | BK105: 633 | BL105: 730 | BM105: 781 | BN105: 1511 | BO105: -0.1434240363 | BP105: 2.387045814 | BQ105: 174 | BR105: 848 | BS105: 489 | BT105: 0.1151555261 | BU105: 0.5612177366 | BV105: 0.3236267373 | BW105: 579 | BX105: 663 | BY105: 706 | BZ105: 1369 | CA105: -0.103725347 | CB105: 2.364421416 | CC105: 157 | CD105: 741 | CE105: 471 | CF105: 0.1146822498 | CG105: 0.5412710007 | CH105: 0.3440467495 | CI105: 537 | CJ105: 578 | CK105: 639 | CL105: 1217 | CM105: -0.1248972884 | CN105: 2.266294227 | CO105: 157 | CP105: 741 | CQ105: 471 | CR105: 0.1290057518 | CS105: 0.608874281 | CT105: 0.3870172555
A106: 103 | B106: 遠別町 | C106: 1688 | D106: 2657 | E106: 2718 | F106: 5375 | H106: 3.184241706 | I106: 1208 | J106: 3577 | K106: 590 | L106: 0.224744186 | M106: 0.6654883721 | N106: 0.1097674419 | O106: 1653 | P106: 2413 | Q106: 2487 | R106: 4900 | S106: -0.08837209302 | T106: 2.96430732 | U106: 987 | V106: 3295 | W106: 618 | X106: 0.2014285714 | Y106: 0.6724489796 | Z106: 0.126122449 | AA106: 1558 | AB106: 2171 | AC106: 2243 | AD106: 4414 | AE106: -0.09918367347 | AF106: 2.833119384 | AG106: 806 | AH106: 2903 | AI106: 705 | AJ106: 0.1826008156 | AK106: 0.6576801087 | AL106: 0.1597190757 | AM106: 1453 | AN106: 1897 | AO106: 2015 | AP106: 3912 | AQ106: -0.113729044 | AR106: 2.692360633 | AS106: 601 | AT106: 2478 | AU106: 833 | AV106: 0.1536298569 | AW106: 0.6334355828 | AX106: 0.2129345603 | AY106: 1491 | AZ106: 1824 | BA106: 1859 | BB106: 3683 | BC106: -0.05853783231 | BD106: 2.470154259 | BE106: 489 | BF106: 2247 | BG106: 947 | BH106: 0.1327721966 | BI106: 0.6101004616 | BJ106: 0.2571273418 | BK106: 1405 | BL106: 1691 | BM106: 1730 | BN106: 3421 | BO106: -0.07113765952 | BP106: 2.434875445 | BQ106: 426 | BR106: 1943 | BS106: 1052 | BT106: 0.1245249927 | BU106: 0.567962584 | BV106: 0.3075124233 | BW106: 1304 | BX106: 1510 | BY106: 1574 | BZ106: 3084 | CA106: -0.1092736706 | CB106: 2.365030675 | CC106: 371 | CD106: 1656 | CE106: 1057 | CF106: 0.1202983139 | CG106: 0.5369649805 | CH106: 0.3427367056 | CI106: 1225 | CJ106: 1368 | CK106: 1438 | CL106: 2806 | CM106: -0.09907341411 | CN106: 2.290612245 | CO106: 371 | CP106: 1656 | CQ106: 1057 | CR106: 0.1322166785 | CS106: 0.5901639344 | CT106: 0.3766928011
A107: 104 | B107: 天塩町 | C107: 2207 | D107: 3260 | E107: 3021 | F107: 6281 | H107: 2.845944721 | I107: 1348 | J107: 4307 | K107: 626 | L107: 0.2146155071 | M107: 0.6857188346 | N107: 0.09966565833 | O107: 1919 | P107: 2869 | Q107: 2823 | R107: 5692 | S107: -0.09377487661 | T107: 2.966128192 | U107: 1186 | V107: 3741 | W107: 765 | X107: 0.2083626142 | Y107: 0.6572382291 | Z107: 0.1343991567 | AA107: 1874 | AB107: 2660 | AC107: 2680 | AD107: 5340 | AE107: -0.0618411806 | AF107: 2.849519744 | AG107: 1022 | AH107: 3429 | AI107: 889 | AJ107: 0.1913857678 | AK107: 0.6421348315 | AL107: 0.1664794007 | AM107: 1910 | AN107: 2488 | AO107: 2443 | AP107: 4931 | AQ107: -0.0765917603 | AR107: 2.581675393 | AS107: 787 | AT107: 3180 | AU107: 964 | AV107: 0.1596025147 | AW107: 0.6448996147 | AX107: 0.1954978706 | AY107: 1805 | AZ107: 2300 | BA107: 2242 | BB107: 4542 | BC107: -0.07888866356 | BD107: 2.51634349 | BE107: 653 | BF107: 2860 | BG107: 1029 | BH107: 0.1437692646 | BI107: 0.6296785557 | BJ107: 0.2265521797 | BK107: 1674 | BL107: 1997 | BM107: 2033 | BN107: 4030 | BO107: -0.1127256715 | BP107: 2.407407407 | BQ107: 510 | BR107: 2464 | BS107: 1056 | BT107: 0.1265508685 | BU107: 0.6114143921 | BV107: 0.2620347395 | BW107: 1619 | BX107: 1900 | BY107: 1880 | BZ107: 3780 | CA107: -0.06613756614 | CB107: 2.334774552 | CC107: 453 | CD107: 2275 | CE107: 1052 | CF107: 0.1198412698 | CG107: 0.6018518519 | CH107: 0.2783068783 | CI107: 1502 | CJ107: 1643 | CK107: 1600 | CL107: 3243 | CM107: -0.1655874191 | CN107: 2.159121172 | CO107: 453 | CP107: 2275 | CQ107: 1052 | CR107: 0.1396854764 | CS107: 0.7015109467 | CT107: 0.324390996
A108: 105 | B108: 稚内市 | C108: 17555 | D108: 26397 | E108: 27074 | F108: 53471 | H108: 3.045912845 | I108: 13108 | J108: 36838 | K108: 3525 | L108: 0.2451422266 | M108: 0.6889341886 | N108: 0.06592358475 | O108: 17450 | P108: 25483 | Q108: 26371 | R108: 51854 | S108: -0.03024069122 | T108: 2.971575931 | U108: 11700 | V108: 35998 | W108: 4156 | X108: 0.2256335095 | Y108: 0.6942183824 | Z108: 0.08014810815 | AA108: 17202 | AB108: 23600 | AC108: 24632 | AD108: 48232 | AE108: -0.06984996336 | AF108: 2.803860016 | AG108: 9378 | AH108: 33922 | AI108: 4932 | AJ108: 0.1944352297 | AK108: 0.7033090065 | AL108: 0.1022557638 | AM108: 17638 | AN108: 22559 | AO108: 23195 | AP108: 45754 | AQ108: -0.05137667938 | AR108: 2.594058283 | AS108: 7670 | AT108: 31952 | AU108: 6132 | AV108: 0.1676356166 | AW108: 0.6983433142 | AX108: 0.1340210692 | AY108: 17964 | AZ108: 21658 | BA108: 22116 | BB108: 43774 | BC108: -0.04327490493 | BD108: 2.436762414 | BE108: 6277 | BF108: 29945 | BG108: 7552 | BH108: 0.143395623 | BI108: 0.6840818751 | BJ108: 0.1725225019 | BK108: 17820 | BL108: 20445 | BM108: 21147 | BN108: 41592 | BO108: -0.04984694111 | BP108: 2.334006734 | BQ108: 5393 | BR108: 27568 | BS108: 8631 | BT108: 0.1296643585 | BU108: 0.662819773 | BV108: 0.2075158684 | BW108: 17343 | BX108: 19315 | BY108: 20280 | BZ108: 39595 | CA108: -0.05043566107 | CB108: 2.283053682 | CC108: 4807 | CD108: 25125 | CE108: 9663 | CF108: 0.1214042177 | CG108: 0.6345498169 | CH108: 0.2440459654 | CI108: 16486 | CJ108: 17809 | CK108: 18571 | CL108: 36380 | CM108: -0.08837273227 | CN108: 2.206720854 | CO108: 4807 | CP108: 25125 | CQ108: 9663 | CR108: 0.1321330401 | CS108: 0.690626718 | CT108: 0.2656129742
A109: 106 | B109: 猿払村 | C109: 1123 | D109: 1703 | E109: 1655 | F109: 3358 | H109: 2.990204809 | I109: 722 | J109: 2304 | K109: 332 | L109: 0.2150089339 | M109: 0.6861226921 | N109: 0.09886837403 | O109: 1127 | P109: 1688 | Q109: 1686 | R109: 3374 | S109: 0.004764740917 | T109: 2.99378882 | U109: 692 | V109: 2291 | W109: 391 | X109: 0.2050978068 | Y109: 0.6790160047 | Z109: 0.1158861885 | AA109: 1066 | AB109: 1590 | AC109: 1616 | AD109: 3206 | AE109: -0.04979253112 | AF109: 3.00750469 | AG109: 695 | AH109: 2063 | AI109: 448 | AJ109: 0.2167810356 | AK109: 0.6434809732 | AL109: 0.1397379913 | AM109: 1104 | AN109: 1553 | AO109: 1568 | AP109: 3121 | AQ109: -0.02651278852 | AR109: 2.826992754 | AS109: 641 | AT109: 1934 | AU109: 546 | AV109: 0.2053828901 | AW109: 0.6196731817 | AX109: 0.1749439282 | AY109: 1135 | AZ109: 1469 | BA109: 1511 | BB109: 2980 | BC109: -0.04517782762 | BD109: 2.625550661 | BE109: 527 | BF109: 1843 | BG109: 610 | BH109: 0.1768456376 | BI109: 0.6184563758 | BJ109: 0.2046979866 | BK109: 1221 | BL109: 1411 | BM109: 1529 | BN109: 2940 | BO109: -0.01342281879 | BP109: 2.407862408 | BQ109: 442 | BR109: 1874 | BS109: 624 | BT109: 0.1503401361 | BU109: 0.637414966 | BV109: 0.212244898 | BW109: 1220 | BX109: 1344 | BY109: 1481 | BZ109: 2825 | CA109: -0.0407079646 | CB109: 2.31557377 | CC109: 435 | CD109: 1776 | CE109: 614 | CF109: 0.1539823009 | CG109: 0.6286725664 | CH109: 0.2173451327 | CI109: 1174 | CJ109: 1282 | CK109: 1402 | CL109: 2684 | CM109: -0.05253353204 | CN109: 2.286201022 | CO109: 435 | CP109: 1776 | CQ109: 614 | CR109: 0.162071535 | CS109: 0.6616989568 | CT109: 0.2287630402
A110: 107 | B110: 浜頓別町 | C110: 2148 | D110: 3210 | E110: 3293 | F110: 6503 | H110: 3.027467412 | I110: 1604 | J110: 4426 | K110: 473 | L110: 0.2466553898 | M110: 0.6806089497 | N110: 0.07273566046 | O110: 2086 | P110: 3039 | Q110: 3078 | R110: 6117 | S110: -0.05935721974 | T110: 2.93240652 | U110: 1407 | V110: 4116 | W110: 594 | X110: 0.2300147131 | Y110: 0.6728788622 | Z110: 0.09710642472 | AA110: 1937 | AB110: 2728 | AC110: 2845 | AD110: 5573 | AE110: -0.08893248324 | AF110: 2.877129582 | AG110: 1137 | AH110: 3707 | AI110: 729 | AJ110: 0.2040193791 | AK110: 0.6651713619 | AL110: 0.1308092589 | AM110: 1975 | AN110: 2548 | AO110: 2676 | AP110: 5224 | AQ110: -0.06262336264 | AR110: 2.645063291 | AS110: 908 | AT110: 3459 | AU110: 857 | AV110: 0.17381317 | AW110: 0.662136294 | AX110: 0.164050536 | AY110: 1997 | AZ110: 2428 | BA110: 2529 | BB110: 4957 | BC110: -0.05111026034 | BD110: 2.482223335 | BE110: 738 | BF110: 3221 | BG110: 998 | BH110: 0.1488803712 | BI110: 0.6497881783 | BJ110: 0.2013314505 | BK110: 1960 | BL110: 2182 | BM110: 2400 | BN110: 4582 | BO110: -0.07565059512 | BP110: 2.337755102 | BQ110: 600 | BR110: 2876 | BS110: 1106 | BT110: 0.1309471846 | BU110: 0.627673505 | BV110: 0.2413793103 | BW110: 1868 | BX110: 1959 | BY110: 2209 | BZ110: 4168 | CA110: -0.09932821497 | CB110: 2.231263383 | CC110: 504 | CD110: 2516 | CE110: 1148 | CF110: 0.1209213052 | CG110: 0.603646833 | CH110: 0.2754318618 | CI110: 1845 | CJ110: 1871 | CK110: 2010 | CL110: 3881 | CM110: -0.07395001288 | CN110: 2.103523035 | CO110: 504 | CP110: 2516 | CQ110: 1148 | CR110: 0.1298634373 | CS110: 0.6482865241 | CT110: 0.2958000515
A111: 108 | B111: 中頓別町 | C111: 1320 | D111: 2066 | E111: 2137 | F111: 4203 | H111: 3.184090909 | I111: 947 | J111: 2777 | K111: 479 | L111: 0.225315251 | M111: 0.6607185344 | N111: 0.1139662146 | O111: 1174 | P111: 1749 | Q111: 1861 | R111: 3610 | S111: -0.1410896978 | T111: 3.074957411 | U111: 726 | V111: 2402 | W111: 482 | X111: 0.2011080332 | Y111: 0.6653739612 | Z111: 0.1335180055 | AA111: 1052 | AB111: 1469 | AC111: 1587 | AD111: 3056 | AE111: -0.1534626039 | AF111: 2.904942966 | AG111: 496 | AH111: 1979 | AI111: 581 | AJ111: 0.1623036649 | AK111: 0.647578534 | AL111: 0.190117801 | AM111: 997 | AN111: 1360 | AO111: 1394 | AP111: 2754 | AQ111: -0.09882198953 | AR111: 2.762286861 | AS111: 357 | AT111: 1782 | AU111: 615 | AV111: 0.1296296296 | AW111: 0.6470588235 | AX111: 0.2233115468 | AY111: 970 | AZ111: 1237 | BA111: 1281 | BB111: 2518 | BC111: -0.08569353667 | BD111: 2.595876289 | BE111: 301 | BF111: 1585 | BG111: 632 | BH111: 0.1195393169 | BI111: 0.6294678316 | BJ111: 0.2509928515 | BK111: 927 | BL111: 1119 | BM111: 1170 | BN111: 2289 | BO111: -0.0909451946 | BP111: 2.469255663 | BQ111: 261 | BR111: 1361 | BS111: 667 | BT111: 0.1140235911 | BU111: 0.5945827872 | BV111: 0.2913936217 | BW111: 817 | BX111: 961 | BY111: 1013 | BZ111: 1974 | CA111: -0.1595744681 | CB111: 2.416156671 | CC111: 207 | CD111: 1057 | CE111: 710 | CF111: 0.1048632219 | CG111: 0.5354609929 | CH111: 0.3596757852 | CI111: 775 | CJ111: 869 | CK111: 888 | CL111: 1757 | CM111: -0.1235059761 | CN111: 2.267096774 | CO111: 207 | CP111: 1057 | CQ111: 710 | CR111: 0.1178144565 | CS111: 0.6015936255 | CT111: 0.4040978941
A112: 109 | B112: 枝幸町 | C112: 4348 | D112: 6758 | E112: 6875 | F112: 13633 | H112: 3.135464581 | I112: 3393 | J112: 9027 | K112: 1213 | L112: 0.2488813907 | M112: 0.6621433287 | N112: 0.08897528057 | O112: 4280 | P112: 6370 | Q112: 6562 | R112: 12932 | S112: -0.05141935011 | T112: 3.021495327 | U112: 2888 | V112: 8598 | W112: 1446 | X112: 0.223321992 | Y112: 0.6648623569 | Z112: 0.1118156511 | AA112: 4106 | AB112: 5728 | AC112: 6091 | AD112: 11819 | AE112: -0.08606557377 | AF112: 2.878470531 | AG112: 2315 | AH112: 7821 | AI112: 1683 | AJ112: 0.1958710551 | AK112: 0.6617311109 | AL112: 0.142397834 | AM112: 4097 | AN112: 5398 | AO112: 5746 | AP112: 11144 | AQ112: -0.05711143075 | AR112: 2.720039053 | AS112: 1894 | AT112: 7246 | AU112: 2004 | AV112: 0.1699569275 | AW112: 0.6502153625 | AX112: 0.17982771 | AY112: 4161 | AZ112: 5074 | BA112: 5435 | BB112: 10509 | BC112: -0.05698133525 | BD112: 2.525594809 | BE112: 1560 | BF112: 6638 | BG112: 2311 | BH112: 0.1484441907 | BI112: 0.6316490627 | BJ112: 0.2199067466 | BK112: 4021 | BL112: 4652 | BM112: 5163 | BN112: 9815 | BO112: -0.06603863355 | BP112: 2.440935091 | BQ112: 1373 | BR112: 5977 | BS112: 2465 | BT112: 0.1398879266 | BU112: 0.6089658686 | BV112: 0.2511462048 | BW112: 3952 | BX112: 4313 | BY112: 4812 | BZ112: 9125 | CA112: -0.07030056037 | CB112: 2.30895749 | CC112: 1174 | CD112: 5375 | CE112: 2576 | CF112: 0.1286575342 | CG112: 0.5890410959 | CH112: 0.2823013699 | CI112: 3772 | CJ112: 3983 | CK112: 4454 | CL112: 8437 | CM112: -0.08154557307 | CN112: 2.236744433 | CO112: 955 | CP112: 4291 | CQ112: 1906 | CR112: 0.1131918929 | CS112: 0.5085931018 | CT112: 0.2259096835
A113: 110 | B113: 豊富町 | C113: 2114 | D113: 3338 | E113: 3385 | F113: 6723 | H113: 3.180227058 | I113: 1545 | J113: 4472 | K113: 700 | L113: 0.2298081214 | M113: 0.6651792355 | N113: 0.1041201844 | O113: 2019 | P113: 3104 | Q113: 3210 | R113: 6314 | S113: -0.06083593634 | T113: 3.127290738 | U113: 1411 | V113: 4095 | W113: 808 | X113: 0.2234716503 | Y113: 0.6485587583 | Z113: 0.1279695914 | AA113: 1951 | AB113: 2920 | AC113: 3027 | AD113: 5947 | AE113: -0.05812480203 | AF113: 3.04818042 | AG113: 1218 | AH113: 3763 | AI113: 966 | AJ113: 0.2048091475 | AK113: 0.6327560114 | AL113: 0.1624348411 | AM113: 1915 | AN113: 2690 | AO113: 2814 | AP113: 5504 | AQ113: -0.07449134017 | AR113: 2.874151436 | AS113: 1022 | AT113: 3431 | AU113: 1051 | AV113: 0.1856831395 | AW113: 0.6233648256 | AX113: 0.1909520349 | AY113: 1949 | AZ113: 2546 | BA113: 2674 | BB113: 5220 | BC113: -0.05159883721 | BD113: 2.678296562 | BE113: 792 | BF113: 3259 | BG113: 1169 | BH113: 0.1517241379 | BI113: 0.6243295019 | BJ113: 0.2239463602 | BK113: 1937 | BL113: 2381 | BM113: 2469 | BN113: 4850 | BO113: -0.07088122605 | BP113: 2.503871967 | BQ113: 647 | BR113: 3009 | BS113: 1194 | BT113: 0.1334020619 | BU113: 0.6204123711 | BV113: 0.246185567 | BW113: 1854 | BX113: 2208 | BY113: 2170 | BZ113: 4378 | CA113: -0.1078117862 | CB113: 2.361380798 | CC113: 528 | CD113: 2658 | CE113: 1192 | CF113: 0.1206030151 | CG113: 0.6071265418 | CH113: 0.2722704431 | CI113: 1782 | CJ113: 2037 | CK113: 2017 | CL113: 4054 | CM113: -0.07992106561 | CN113: 2.274971942 | CO113: 528 | CP113: 2658 | CQ113: 1192 | CR113: 0.1302417366 | CS113: 0.655648742 | CT113: 0.2940305871
A114: 111 | B114: 礼文町 | C114: 1804 | D114: 3016 | E114: 2974 | F114: 5990 | H114: 3.320399113 | I114: 1245 | J114: 4008 | K114: 737 | L114: 0.2078464107 | M114: 0.669115192 | N114: 0.1230383973 | O114: 1732 | P114: 2884 | Q114: 2840 | R114: 5724 | S114: -0.04440734558 | T114: 3.304849885 | U114: 1143 | V114: 3826 | W114: 755 | X114: 0.1996855346 | Y114: 0.6684136967 | Z114: 0.1319007687 | AA114: 1669 | AB114: 2552 | AC114: 2569 | AD114: 5121 | AE114: -0.1053459119 | AF114: 3.068304374 | AG114: 900 | AH114: 3419 | AI114: 802 | AJ114: 0.1757469244 | AK114: 0.6676430385 | AL114: 0.1566100371 | AM114: 1707 | AN114: 2172 | AO114: 2203 | AP114: 4375 | AQ114: -0.1456746729 | AR114: 2.562975981 | AS114: 641 | AT114: 2729 | AU114: 1005 | AV114: 0.1465142857 | AW114: 0.6237714286 | AX114: 0.2297142857 | AY114: 1615 | AZ114: 1923 | BA114: 1933 | BB114: 3856 | BC114: -0.1186285714 | BD114: 2.387616099 | BE114: 492 | BF114: 2341 | BG114: 1023 | BH114: 0.127593361 | BI114: 0.6071058091 | BJ114: 0.2653008299 | BK114: 1481 | BL114: 1662 | BM114: 1748 | BN114: 3410 | BO114: -0.1156639004 | BP114: 2.302498312 | BQ114: 386 | BR114: 1998 | BS114: 1026 | BT114: 0.1131964809 | BU114: 0.5859237537 | BV114: 0.3008797654 | BW114: 1445 | BX114: 1532 | BY114: 1546 | BZ114: 3078 | CA114: -0.1078622482 | CB114: 2.130103806 | CC114: 316 | CD114: 1816 | CE114: 946 | CF114: 0.1026640676 | CG114: 0.5899935023 | CH114: 0.3073424301 | CI114: 1353 | CJ114: 1398 | CK114: 1375 | CL114: 2773 | CM114: -0.1099891814 | CN114: 2.049519586 | CO114: 316 | CP114: 1816 | CQ114: 946 | CR114: 0.1139560043 | CS114: 0.6548864046 | CT114: 0.3411467724
A115: 112 | B115: 利尻町 | C115: 1466 | D115: 2847 | E115: 2981 | F115: 5828 | H115: 3.975443383 | I115: 967 | J115: 3911 | K115: 950 | L115: 0.1659231297 | M115: 0.6710706932 | N115: 0.1630061771 | O115: 1504 | P115: 2678 | Q115: 2674 | R115: 5352 | S115: -0.08167467399 | T115: 3.558510638 | U115: 743 | V115: 3652 | W115: 957 | X115: 0.1388266069 | Y115: 0.6823617339 | Z115: 0.1788116592 | AA115: 1421 | AB115: 2326 | AC115: 2388 | AD115: 4714 | AE115: -0.1192077728 | AF115: 3.317382125 | AG115: 564 | AH115: 3046 | AI115: 1104 | AJ115: 0.1196436148 | AK115: 0.6461603734 | AL115: 0.2341960119 | AM115: 1403 | AN115: 2005 | AO115: 2099 | AP115: 4104 | AQ115: -0.1294017819 | AR115: 2.925160371 | AS115: 536 | AT115: 2596 | AU115: 972 | AV115: 0.1306042885 | AW115: 0.6325536062 | AX115: 0.2368421053 | AY115: 1381 | AZ115: 1634 | BA115: 1783 | BB115: 3417 | BC115: -0.1673976608 | BD115: 2.47429399 | BE115: 365 | BF115: 2072 | BG115: 980 | BH115: 0.1068188469 | BI115: 0.6063798654 | BJ115: 0.2868012877 | BK115: 1327 | BL115: 1396 | BM115: 1555 | BN115: 2951 | BO115: -0.1363769388 | BP115: 2.223813112 | BQ115: 300 | BR115: 1656 | BS115: 995 | BT115: 0.1016604541 | BU115: 0.5611657065 | BV115: 0.3371738394 | BW115: 1313 | BX115: 1295 | BY115: 1295 | BZ115: 2590 | CA115: -0.1393822394 | CB115: 1.972581874 | CC115: 241 | CD115: 1465 | CE115: 884 | CF115: 0.09305019305 | CG115: 0.5656370656 | CH115: 0.3413127413 | CI115: 1154 | CJ115: 1122 | CK115: 1181 | CL115: 2303 | CM115: -0.1246200608 | CN115: 1.995667244 | CO115: 241 | CP115: 1465 | CQ115: 884 | CR115: 0.1046461138 | CS115: 0.6361267911 | CT115: 0.3838471559
A116: 113 | B116: 利尻富士町 | C116: 1656 | D116: 2957 | E116: 3071 | F116: 6028 | H116: 3.640096618 | I116: 1454 | J116: 3826 | K116: 748 | L116: 0.2412076974 | M116: 0.6347047113 | N116: 0.1240875912 | O116: 1595 | P116: 2727 | Q116: 2793 | R116: 5520 | S116: -0.08427339084 | T116: 3.460815047 | U116: 1185 | V116: 3450 | W116: 885 | X116: 0.214673913 | Y116: 0.625 | Z116: 0.160326087 | AA116: 1542 | AB116: 2560 | AC116: 2550 | AD116: 5110 | AE116: -0.07427536232 | AF116: 3.31387808 | AG116: 1092 | AH116: 3138 | AI116: 880 | AJ116: 0.2136986301 | AK116: 0.6140900196 | AL116: 0.1722113503 | AM116: 1526 | AN116: 2144 | AO116: 2254 | AP116: 4398 | AQ116: -0.139334638 | AR116: 2.882044561 | AS116: 553 | AT116: 2822 | AU116: 1023 | AV116: 0.1257389723 | AW116: 0.6416552979 | AX116: 0.2326057299 | AY116: 1459 | AZ116: 1705 | BA116: 1831 | BB116: 3536 | BC116: -0.195998181 | BD116: 2.423577793 | BE116: 420 | BF116: 2035 | BG116: 1081 | BH116: 0.1187782805 | BI116: 0.5755090498 | BJ116: 0.3057126697 | BK116: 1429 | BL116: 1562 | BM116: 1677 | BN116: 3239 | BO116: -0.08399321267 | BP116: 2.266620014 | BQ116: 353 | BR116: 1803 | BS116: 1083 | BT116: 0.1089842544 | BU116: 0.5566532881 | BV116: 0.3343624575 | BW116: 1363 | BX116: 1446 | BY116: 1591 | BZ116: 3037 | CA116: -0.06651300626 | CB116: 2.228173147 | CC116: 342 | CD116: 1665 | CE116: 1030 | CF116: 0.1126111294 | CG116: 0.5482383932 | CH116: 0.3391504774 | CI116: 1264 | CJ116: 1321 | CK116: 1466 | CL116: 2787 | CM116: -0.08970218873 | CN116: 2.204905063 | CO116: 342 | CP116: 1665 | CQ116: 1030 | CR116: 0.1227125942 | CS116: 0.597416577 | CT116: 0.3695730176
A117: 114 | B117: 幌延町 | C117: 1499 | D117: 2198 | E117: 2055 | F117: 4253 | H117: 2.837224817 | I117: 928 | J117: 2968 | K117: 357 | L117: 0.2181989184 | M117: 0.6978603339 | N117: 0.08394074771 | O117: 1311 | P117: 1962 | Q117: 1888 | R117: 3850 | S117: -0.09475664237 | T117: 2.93668955 | U117: 868 | V117: 2625 | W117: 357 | X117: 0.2254545455 | Y117: 0.6818181818 | Z117: 0.09272727273 | AA117: 1152 | AB117: 1657 | AC117: 1670 | AD117: 3327 | AE117: -0.1358441558 | AF117: 2.888020833 | AG117: 672 | AH117: 2222 | AI117: 433 | AJ117: 0.2019837692 | AK117: 0.667868951 | AL117: 0.1301472798 | AM117: 1141 | AN117: 1534 | AO117: 1561 | AP117: 3095 | AQ117: -0.06973249173 | AR117: 2.712532866 | AS117: 534 | AT117: 2026 | AU117: 535 | AV117: 0.1725363489 | AW117: 0.6546042003 | AX117: 0.1728594507 | AY117: 1124 | AZ117: 1421 | BA117: 1414 | BB117: 2835 | BC117: -0.08400646204 | BD117: 2.522241993 | BE117: 375 | BF117: 1853 | BG117: 607 | BH117: 0.1322751323 | BI117: 0.6536155203 | BJ117: 0.2141093474 | BK117: 1192 | BL117: 1411 | BM117: 1373 | BN117: 2784 | BO117: -0.01798941799 | BP117: 2.33557047 | BQ117: 354 | BR117: 1797 | BS117: 633 | BT117: 0.1271551724 | BU117: 0.6454741379 | BV117: 0.2273706897 | BW117: 1224 | BX117: 1393 | BY117: 1284 | BZ117: 2677 | CA117: -0.0399701158 | CB117: 2.187091503 | CC117: 328 | CD117: 1738 | CE117: 611 | CF117: 0.1225252148 | CG117: 0.6492342174 | CH117: 0.2282405678 | CI117: 1138 | CJ117: 1279 | CK117: 1168 | CL117: 2447 | CM117: -0.09399264405 | CN117: 2.15026362 | CO117: 328 | CP117: 1738 | CQ117: 611 | CR117: 0.1340416837 | CS117: 0.7102574581 | CT117: 0.2496935022
A118: 115 | B118: 北見市 | C118: 42390 | D118: 63316 | E118: 64913 | F118: 128229 | H118: 3.024982307 | I118: 30458 | J118: 88104 | K118: 9667 | L118: 0.2375281723 | M118: 0.6870832651 | N118: 0.07538856265 | O118: 44588 | P118: 63841 | Q118: 67732 | R118: 131573 | S118: 0.02607834421 | T118: 2.950861218 | U118: 29121 | V118: 90414 | W118: 12019 | X118: 0.2213296041 | Y118: 0.6871774604 | Z118: 0.09134852895 | AA118: 46510 | AB118: 62754 | AC118: 66971 | AD118: 129725 | AE118: -0.01404543485 | AF118: 2.789185121 | AG118: 24521 | AH118: 89596 | AI118: 14758 | AJ118: 0.1890229331 | AK118: 0.6906610137 | AL118: 0.113763731 | AM118: 50452 | AN118: 64037 | AO118: 67507 | AP118: 131544 | AQ118: 0.01402196955 | AR118: 2.607309918 | AS118: 21431 | AT118: 91100 | AU118: 18984 | AV118: 0.1629188713 | AW118: 0.6925439397 | AX118: 0.1443167305 | AY118: 53900 | AZ118: 64137 | BA118: 67988 | BB118: 132125 | BC118: 0.004416773095 | BD118: 2.451298701 | BE118: 19214 | BF118: 89207 | BG118: 23640 | BH118: 0.145422895 | BI118: 0.6751712394 | BJ118: 0.1789214759 | BK118: 55335 | BL118: 62284 | BM118: 67081 | BN118: 129365 | BO118: -0.02088930937 | BP118: 2.33785127 | BQ118: 17248 | BR118: 84113 | BS118: 27983 | BT118: 0.13332818 | BU118: 0.6501990492 | BV118: 0.2163104395 | BW118: 56012 | BX118: 60171 | BY118: 65518 | BZ118: 125689 | CA118: -0.02841572295 | CB118: 2.243965579 | CC118: 15283 | CD118: 78202 | CE118: 31872 | CF118: 0.1215937751 | CG118: 0.622186508 | CH118: 0.2535782765 | CI118: 56202 | CJ118: 58020 | CK118: 63206 | CL118: 121226 | CM118: -0.03681553462 | CN118: 2.156969503 | CO118: 13459 | CP118: 68624 | CQ118: 26223 | CR118: 0.1110240377 | CS118: 0.5660831835 | CT118: 0.2163149819
A119: 116 | B119: 網走市 | C119: 14781 | D119: 22076 | E119: 22701 | F119: 44777 | H119: 3.029362019 | I119: 10673 | J119: 30913 | K119: 3191 | L119: 0.2383589789 | M119: 0.6903767559 | N119: 0.07126426514 | O119: 14810 | P119: 21838 | Q119: 22445 | R119: 44283 | S119: -0.0110324497 | T119: 2.990074274 | U119: 9951 | V119: 30427 | W119: 3905 | X119: 0.2247137728 | Y119: 0.6871034031 | Z119: 0.08818282411 | AA119: 15838 | AB119: 22021 | AC119: 22395 | AD119: 44416 | AE119: 0.003003409886 | AF119: 2.804394494 | AG119: 8570 | AH119: 30945 | AI119: 4901 | AJ119: 0.192948487 | AK119: 0.6967083934 | AL119: 0.1103431196 | AM119: 17469 | AN119: 22279 | AO119: 21897 | AP119: 44176 | AQ119: -0.005403458213 | AR119: 2.528822486 | AS119: 7232 | AT119: 30824 | AU119: 6120 | AV119: 0.1637088012 | AW119: 0.6977544368 | AX119: 0.138536762 | AY119: 18012 | AZ119: 21787 | BA119: 21608 | BB119: 43395 | BC119: -0.01767928287 | BD119: 2.409227182 | BE119: 6214 | BF119: 29859 | BG119: 7322 | BH119: 0.1431962208 | BI119: 0.688074663 | BJ119: 0.1687291163 | BK119: 17982 | BL119: 21204 | BM119: 20841 | BN119: 42045 | BO119: -0.03110957484 | BP119: 2.338171505 | BQ119: 5508 | BR119: 28119 | BS119: 8418 | BT119: 0.1310024973 | BU119: 0.6687834463 | BV119: 0.2002140564 | BW119: 18112 | BX119: 20981 | BY119: 20017 | BZ119: 40998 | CA119: -0.02553783111 | CB119: 2.263582155 | CC119: 5061 | CD119: 26578 | CE119: 9324 | CF119: 0.1235505212 | CG119: 0.6488294314 | CH119: 0.2276200474 | CI119: 18035 | CJ119: 19819 | CK119: 19258 | CL119: 39077 | CM119: -0.04915935205 | CN119: 2.166731356 | CO119: 5061 | CP119: 26578 | CQ119: 9324 | CR119: 0.1295135246 | CS119: 0.6801443304 | CT119: 0.2386058295
A120: 117 | B120: 紋別市 | C120: 11506 | D120: 16621 | E120: 17239 | F120: 33860 | H120: 2.942812446 | I120: 7511 | J120: 23686 | K120: 2663 | L120: 0.2218251624 | M120: 0.699527466 | N120: 0.07864737153 | O120: 11231 | P120: 15625 | Q120: 16538 | R120: 32163 | S120: -0.05011813349 | T120: 2.863769923 | U120: 6592 | V120: 22431 | W120: 3140 | X120: 0.2049560053 | Y120: 0.6974162858 | Z120: 0.09762770886 | AA120: 11766 | AB120: 15269 | AC120: 15809 | AD120: 31078 | AE120: -0.03373441532 | AF120: 2.641339453 | AG120: 5459 | AH120: 21728 | AI120: 3891 | AJ120: 0.175654804 | AK120: 0.6991440891 | AL120: 0.1252011069 | AM120: 12386 | AN120: 14873 | AO120: 15264 | AP120: 30137 | AQ120: -0.03027865371 | AR120: 2.433150331 | AS120: 4574 | AT120: 20780 | AU120: 4783 | AV120: 0.1517735674 | AW120: 0.6895178684 | AX120: 0.1587085642 | AY120: 12085 | AZ120: 13754 | BA120: 14722 | BB120: 28476 | BC120: -0.05511497495 | BD120: 2.356309475 | BE120: 3852 | BF120: 18830 | BG120: 5794 | BH120: 0.1352718078 | BI120: 0.6612586037 | BJ120: 0.2034695884 | BK120: 11670 | BL120: 12516 | BM120: 14116 | BN120: 26632 | BO120: -0.064756286 | BP120: 2.282090831 | BQ120: 3351 | BR120: 16678 | BS120: 6594 | BT120: 0.1258260739 | BU120: 0.6262391108 | BV120: 0.2475968759 | BW120: 11390 | BX120: 11563 | BY120: 13187 | BZ120: 24750 | CA120: -0.07604040404 | CB120: 2.172958736 | CC120: 2774 | CD120: 14855 | CE120: 7103 | CF120: 0.1121623807 | CG120: 0.6006388485 | CH120: 0.2871987708 | CI120: 11127 | CJ120: 10954 | CK120: 12155 | CL120: 23109 | CM120: -0.0710112943 | CN120: 2.076840119 | CO120: 2774 | CP120: 14855 | CQ120: 7103 | CR120: 0.1200398113 | CS120: 0.6428231425 | CT120: 0.3073694232
A121: 118 | B121: 美幌町 | C121: 7969 | D121: 13427 | E121: 13107 | F121: 26534 | H121: 3.329652403 | I121: 6225 | J121: 18167 | K121: 2142 | L121: 0.2346046582 | M121: 0.6846687269 | N121: 0.08072661491 | O121: 8089 | P121: 13405 | Q121: 13281 | R121: 26686 | S121: 0.005728499284 | T121: 3.29904809 | U121: 6054 | V121: 18063 | W121: 2555 | X121: 0.2268605261 | Y121: 0.676871768 | Z121: 0.09574308626 | AA121: 8280 | AB121: 12768 | AC121: 12912 | AD121: 25680 | AE121: -0.03769766919 | AF121: 3.101449275 | AG121: 5135 | AH121: 17502 | AI121: 3043 | AJ121: 0.1999610592 | AK121: 0.6815420561 | AL121: 0.1184968847 | AM121: 8499 | AN121: 12256 | AO121: 12460 | AP121: 24716 | AQ121: -0.03753894081 | AR121: 2.908106836 | AS121: 4279 | AT121: 16582 | AU121: 3847 | AV121: 0.1731267195 | AW121: 0.6709014404 | AX121: 0.1556481631 | AY121: 8760 | AZ121: 11790 | BA121: 12115 | BB121: 23905 | BC121: -0.03281275287 | BD121: 2.728881279 | BE121: 3606 | BF121: 15564 | BG121: 4733 | BH121: 0.1508471031 | BI121: 0.6510771805 | BJ121: 0.1979920519 | BK121: 8883 | BL121: 11127 | BM121: 11692 | BN121: 22819 | BO121: -0.0454298264 | BP121: 2.568839356 | BQ121: 3031 | BR121: 14289 | BS121: 5498 | BT121: 0.1328279066 | BU121: 0.6261887024 | BV121: 0.2409395679 | BW121: 8725 | BX121: 10456 | BY121: 11119 | BZ121: 21575 | CA121: -0.05765932793 | CB121: 2.47277937 | CC121: 2720 | CD121: 12903 | CE121: 5950 | CF121: 0.1260835303 | CG121: 0.598108747 | CH121: 0.2758077226 | CI121: 8626 | CJ121: 9763 | CK121: 10533 | CL121: 20296 | CM121: -0.06301734332 | CN121: 2.352886622 | CO121: 2720 | CP121: 12903 | CQ121: 5950 | CR121: 0.134016555 | CS121: 0.6357410327 | CT121: 0.293161214
A122: 119 | B122: 津別町 | C122: 3002 | D122: 4740 | E122: 4945 | F122: 9685 | H122: 3.226182545 | I122: 2044 | J122: 6703 | K122: 938 | L122: 0.2110480124 | M122: 0.6921011874 | N122: 0.09685080021 | O122: 2917 | P122: 4368 | Q122: 4604 | R122: 8972 | S122: -0.07361899845 | T122: 3.07576277 | U122: 1691 | V122: 6121 | W122: 1160 | X122: 0.1884752564 | Y122: 0.6822336157 | Z122: 0.129291128 | AA122: 2721 | AB122: 3866 | AC122: 4195 | AD122: 8061 | AE122: -0.1015381186 | AF122: 2.962513782 | AG122: 1350 | AH122: 5315 | AI122: 1396 | AJ122: 0.1674730182 | AK122: 0.6593474755 | AL122: 0.1731795063 | AM122: 2651 | AN122: 3532 | AO122: 3848 | AP122: 7380 | AQ122: -0.08448083364 | AR122: 2.783855149 | AS122: 1083 | AT122: 4608 | AU122: 1689 | AV122: 0.1467479675 | AW122: 0.6243902439 | AX122: 0.2288617886 | AY122: 2615 | AZ122: 3249 | BA122: 3540 | BB122: 6789 | BC122: -0.08008130081 | BD122: 2.596175908 | BE122: 901 | BF122: 3987 | BG122: 1901 | BH122: 0.1327146855 | BI122: 0.5872735307 | BJ122: 0.2800117838 | BK122: 2500 | BL122: 2966 | BM122: 3256 | BN122: 6222 | BO122: -0.08351745471 | BP122: 2.4888 | BQ122: 713 | BR122: 3418 | BS122: 2091 | BT122: 0.1145933783 | BU122: 0.5493410479 | BV122: 0.3360655738 | BW122: 2358 | BX122: 2703 | BY122: 2943 | BZ122: 5646 | CA122: -0.1020191286 | CB122: 2.394402036 | CC122: 573 | CD122: 2964 | CE122: 2109 | CF122: 0.101487779 | CG122: 0.5249734325 | CH122: 0.3735387885 | CI122: 2231 | CJ122: 2427 | CK122: 2581 | CL122: 5008 | CM122: -0.1273961661 | CN122: 2.244733303 | CO122: 573 | CP122: 2964 | CQ122: 2109 | CR122: 0.1144169329 | CS122: 0.5918530351 | CT122: 0.4211261981
A123: 120 | B123: 斜里町 | C123: 5248 | D123: 7785 | E123: 8010 | F123: 15795 | H123: 3.009717988 | I123: 3633 | J123: 10824 | K123: 1338 | L123: 0.2300094967 | M123: 0.6852801519 | N123: 0.08471035138 | O123: 5346 | P123: 7844 | Q123: 8111 | R123: 15955 | S123: 0.01012978791 | T123: 2.984474373 | U123: 3514 | V123: 10779 | W123: 1660 | X123: 0.2202444375 | Y123: 0.6755875901 | Z123: 0.1040426199 | AA123: 5202 | AB123: 7393 | AC123: 7789 | AD123: 15182 | AE123: -0.04844876214 | AF123: 2.918492887 | AG123: 3040 | AH123: 10145 | AI123: 1995 | AJ123: 0.2002371229 | AK123: 0.6682255302 | AL123: 0.1314056119 | AM123: 5450 | AN123: 7235 | AO123: 7399 | AP123: 14634 | AQ123: -0.0360953761 | AR123: 2.685137615 | AS123: 2581 | AT123: 9647 | AU123: 2406 | AV123: 0.176370097 | AW123: 0.6592182588 | AX123: 0.1644116441 | AY123: 5636 | AZ123: 6986 | BA123: 7080 | BB123: 14066 | BC123: -0.03881372147 | BD123: 2.495741661 | BE123: 2050 | BF123: 9146 | BG123: 2870 | BH123: 0.1457415043 | BI123: 0.6502203896 | BJ123: 0.2040381061 | BK123: 5703 | BL123: 6707 | BM123: 6724 | BN123: 13431 | BO123: -0.04514431964 | BP123: 2.355076276 | BQ123: 1684 | BR123: 8563 | BS123: 3184 | BT123: 0.1253815799 | BU123: 0.6375549103 | BV123: 0.2370635098 | BW123: 5759 | BX123: 6517 | BY123: 6528 | BZ123: 13045 | CA123: -0.02958988118 | CB123: 2.2651502 | CC123: 1535 | CD123: 8070 | CE123: 3440 | CF123: 0.1176696052 | CG123: 0.6186278268 | CH123: 0.263702568 | CI123: 5547 | CJ123: 6113 | CK123: 6118 | CL123: 12231 | CM123: -0.06655220342 | CN123: 2.204975663 | CO123: 1535 | CP123: 8070 | CQ123: 3440 | CR123: 0.1255007767 | CS123: 0.6597988717 | CT123: 0.281252555
A124: 121 | B124: 清里町 | C124: 2096 | D124: 3318 | E124: 3456 | F124: 6774 | H124: 3.231870229 | I124: 1469 | J124: 4620 | K124: 685 | L124: 0.2168585769 | M124: 0.6820194863 | N124: 0.1011219368 | O124: 2011 | P124: 3112 | Q124: 3243 | R124: 6355 | S124: -0.06185414821 | T124: 3.160119344 | U124: 1246 | V124: 4319 | W124: 790 | X124: 0.1960660897 | Y124: 0.6796223446 | Z124: 0.1243115657 | AA124: 1988 | AB124: 3016 | AC124: 3188 | AD124: 6204 | AE124: -0.02376081825 | AF124: 3.120724346 | AG124: 1077 | AH124: 4138 | AI124: 989 | AJ124: 0.1735976789 | AK124: 0.6669890393 | AL124: 0.1594132818 | AM124: 1938 | AN124: 2763 | AO124: 2942 | AP124: 5705 | AQ124: -0.08043197937 | AR124: 2.94375645 | AS124: 923 | AT124: 3618 | AU124: 1164 | AV124: 0.1617879053 | AW124: 0.6341805434 | AX124: 0.2040315513 | AY124: 1967 | AZ124: 2658 | BA124: 2779 | BB124: 5437 | BC124: -0.04697633655 | BD124: 2.764107778 | BE124: 765 | BF124: 3326 | BG124: 1345 | BH124: 0.1407025933 | BI124: 0.6117344124 | BJ124: 0.2473790693 | BK124: 1869 | BL124: 2436 | BM124: 2589 | BN124: 5025 | BO124: -0.07577708295 | BP124: 2.688603531 | BQ124: 665 | BR124: 2884 | BS124: 1476 | BT124: 0.1323383085 | BU124: 0.5739303483 | BV124: 0.2937313433 | BW124: 1784 | BX124: 2206 | BY124: 2345 | BZ124: 4551 | CA124: -0.1041529334 | CB124: 2.551008969 | CC124: 554 | CD124: 2497 | CE124: 1500 | CF124: 0.1217314876 | CG124: 0.5486706218 | CH124: 0.3295978906 | CI124: 1671 | CJ124: 2049 | CK124: 2172 | CL124: 4221 | CM124: -0.07818052594 | CN124: 2.526032316 | CO124: 554 | CP124: 2497 | CQ124: 1500 | CR124: 0.1312485193 | CS124: 0.5915659796 | CT124: 0.355366027
A125: 122 | B125: 小清水町 | C125: 2272 | D125: 3813 | E125: 4023 | F125: 7836 | H125: 3.448943662 | I125: 1797 | J125: 5256 | K125: 783 | L125: 0.2293261868 | M125: 0.6707503828 | N125: 0.09992343032 | O125: 2175 | P125: 3545 | Q125: 3802 | R125: 7347 | S125: -0.0624042879 | T125: 3.377931034 | U125: 1556 | V125: 4881 | W125: 910 | X125: 0.211787124 | Y125: 0.6643527971 | Z125: 0.1238600789 | AA125: 2090 | AB125: 3270 | AC125: 3488 | AD125: 6758 | AE125: -0.08016877637 | AF125: 3.233492823 | AG125: 1300 | AH125: 4414 | AI125: 1044 | AJ125: 0.1923646049 | AK125: 0.6531518201 | AL125: 0.154483575 | AM125: 2080 | AN125: 3092 | AO125: 3330 | AP125: 6422 | AQ125: -0.04971885173 | AR125: 3.0875 | AS125: 1074 | AT125: 4058 | AU125: 1290 | AV125: 0.1672376207 | AW125: 0.6318903768 | AX125: 0.2008720025 | AY125: 2145 | AZ125: 2934 | BA125: 3192 | BB125: 6126 | BC125: -0.04609156026 | BD125: 2.855944056 | BE125: 902 | BF125: 3717 | BG125: 1506 | BH125: 0.1472412667 | BI125: 0.6067580803 | BJ125: 0.2458374143 | BK125: 2140 | BL125: 2726 | BM125: 3027 | BN125: 5753 | BO125: -0.06088801828 | BP125: 2.688317757 | BQ125: 691 | BR125: 3379 | BS125: 1683 | BT125: 0.1201112463 | BU125: 0.5873457327 | BV125: 0.292543021 | BW125: 2069 | BX125: 2545 | BY125: 2813 | BZ125: 5358 | CA125: -0.07372153789 | CB125: 2.589656839 | CC125: 630 | CD125: 3025 | CE125: 1703 | CF125: 0.117581187 | CG125: 0.5645763345 | CH125: 0.3178424785 | CI125: 2033 | CJ125: 2414 | CK125: 2671 | CL125: 5085 | CM125: -0.05368731563 | CN125: 2.50122971 | CO125: 630 | CP125: 3025 | CQ125: 1703 | CR125: 0.1238938053 | CS125: 0.5948869223 | CT125: 0.334906588
A126: 123 | B126: 訓子府町 | C126: 2057 | D126: 3845 | E126: 3928 | F126: 7773 | H126: 3.778804084 | I126: 1816 | J126: 5172 | K126: 785 | L126: 0.2336292294 | M126: 0.6653801621 | N126: 0.1009906085 | O126: 2069 | P126: 3785 | Q126: 3869 | R126: 7654 | S126: -0.01530940435 | T126: 3.699371677 | U126: 1756 | V126: 4987 | W126: 911 | X126: 0.2294225242 | Y126: 0.6515547426 | Z126: 0.1190227332 | AA126: 1981 | AB126: 3516 | AC126: 3680 | AD126: 7196 | AE126: -0.05983799321 | AF126: 3.632508834 | AG126: 1500 | AH126: 4564 | AI126: 1132 | AJ126: 0.2084491384 | AK126: 0.6342412451 | AL126: 0.1573096165 | AM126: 1991 | AN126: 3290 | AO126: 3446 | AP126: 6736 | AQ126: -0.06392440245 | AR126: 3.38322451 | AS126: 1140 | AT126: 4277 | AU126: 1319 | AV126: 0.169239905 | AW126: 0.6349465558 | AX126: 0.1958135392 | AY126: 2020 | AZ126: 3056 | BA126: 3261 | BB126: 6317 | BC126: -0.06220308789 | BD126: 3.127227723 | BE126: 901 | BF126: 3919 | BG126: 1495 | BH126: 0.1426309957 | BI126: 0.6203894254 | BJ126: 0.2366629729 | BK126: 2039 | BL126: 2876 | BM126: 3105 | BN126: 5981 | BO126: -0.05318980529 | BP126: 2.933300638 | BQ126: 759 | BR126: 3592 | BS126: 1630 | BT126: 0.1269018559 | BU126: 0.6005684668 | BV126: 0.2725296773 | BW126: 1956 | BX126: 2599 | BY126: 2836 | BZ126: 5435 | CA126: -0.1004599816 | CB126: 2.778629857 | CC126: 660 | CD126: 3079 | CE126: 1696 | CF126: 0.1214351426 | CG126: 0.5665133395 | CH126: 0.3120515179 | CI126: 1910 | CJ126: 2412 | CK126: 2688 | CL126: 5100 | CM126: -0.06568627451 | CN126: 2.670157068 | CO126: 660 | CP126: 3079 | CQ126: 1696 | CR126: 0.1294117647 | CS126: 0.6037254902 | CT126: 0.3325490196
A127: 124 | B127: 置戸町 | C127: 2078 | D127: 3178 | E127: 3252 | F127: 6430 | H127: 3.094321463 | I127: 1278 | J127: 4457 | K127: 695 | L127: 0.198755832 | M127: 0.6931570762 | N127: 0.1080870918 | O127: 1774 | P127: 2692 | Q127: 2909 | R127: 5601 | S127: -0.1289269051 | T127: 3.157271702 | U127: 1029 | V127: 3766 | W127: 800 | X127: 0.1837171934 | Y127: 0.6723799322 | Z127: 0.1428316372 | AA127: 1644 | AB127: 2332 | AC127: 2569 | AD127: 4901 | AE127: -0.1249776826 | AF127: 2.981143552 | AG127: 784 | AH127: 3245 | AI127: 872 | AJ127: 0.1599673536 | AK127: 0.6621097735 | AL127: 0.1779228729 | AM127: 1592 | AN127: 2143 | AO127: 2308 | AP127: 4451 | AQ127: -0.09181799633 | AR127: 2.795854271 | AS127: 616 | AT127: 2787 | AU127: 1047 | AV127: 0.1383958661 | AW127: 0.6261514266 | AX127: 0.2352280386 | AY127: 1524 | AZ127: 1928 | BA127: 2182 | BB127: 4110 | BC127: -0.0766119973 | BD127: 2.696850394 | BE127: 468 | BF127: 2479 | BG127: 1163 | BH127: 0.1138686131 | BI127: 0.603163017 | BJ127: 0.2829683698 | BK127: 1455 | BL127: 1732 | BM127: 1967 | BN127: 3699 | BO127: -0.1 | BP127: 2.542268041 | BQ127: 402 | BR127: 2030 | BS127: 1252 | BT127: 0.1086780211 | BU127: 0.5487969722 | BV127: 0.3384698567 | BW127: 1367 | BX127: 1575 | BY127: 1853 | BZ127: 3428 | CA127: -0.07905484247 | CB127: 2.507681053 | CC127: 344 | CD127: 1779 | CE127: 1305 | CF127: 0.1003500583 | CG127: 0.5189614936 | CH127: 0.3806884481 | CI127: 1304 | CJ127: 1424 | CK127: 1668 | CL127: 3092 | CM127: -0.1086675291 | CN127: 2.371165644 | CO127: 344 | CP127: 1779 | CQ127: 1305 | CR127: 0.1112548512 | CS127: 0.5753557568 | CT127: 0.4220569211
A128: 125 | B128: 佐呂間町 | C128: 2589 | D128: 4211 | E128: 4455 | F128: 8666 | H128: 3.347238316 | I128: 1909 | J128: 5701 | K128: 1056 | L128: 0.2202861759 | M128: 0.6578582968 | N128: 0.1218555273 | O128: 2599 | P128: 4074 | Q128: 4315 | R128: 8389 | S128: -0.03196399723 | T128: 3.227779915 | U128: 1790 | V128: 5385 | W128: 1210 | X128: 0.2133746573 | Y128: 0.6419120277 | Z128: 0.1442365002 | AA128: 2524 | AB128: 3746 | AC128: 4055 | AD128: 7801 | AE128: -0.07009178686 | AF128: 3.090729002 | AG128: 1436 | AH128: 5014 | AI128: 1348 | AJ128: 0.1840789642 | AK128: 0.6427381105 | AL128: 0.1727983592 | AM128: 2504 | AN128: 3505 | AO128: 3747 | AP128: 7252 | AQ128: -0.07037559287 | AR128: 2.896166134 | AS128: 1179 | AT128: 4512 | AU128: 1561 | AV128: 0.1625758411 | AW128: 0.6221731936 | AX128: 0.2152509653 | AY128: 2480 | AZ128: 3216 | BA128: 3450 | BB128: 6666 | BC128: -0.08080529509 | BD128: 2.687903226 | BE128: 879 | BF128: 3989 | BG128: 1789 | BH128: 0.1318631863 | BI128: 0.598409841 | BJ128: 0.2683768377 | BK128: 2564 | BL128: 3005 | BM128: 3388 | BN128: 6393 | BO128: -0.04095409541 | BP128: 2.493369735 | BQ128: 772 | BR128: 3746 | BS128: 1875 | BT128: 0.1207570781 | BU128: 0.5859533865 | BV128: 0.2932895354 | BW128: 2415 | BX128: 2766 | BY128: 3126 | BZ128: 5892 | CA128: -0.0850305499 | CB128: 2.439751553 | CC128: 671 | CD128: 3268 | CE128: 1953 | CF128: 0.1138832315 | CG128: 0.5546503734 | CH128: 0.3314663951 | CI128: 2311 | CJ128: 2498 | CK128: 2864 | CL128: 5362 | CM128: -0.09884371503 | CN128: 2.320207702 | CO128: 671 | CP128: 3268 | CQ128: 1953 | CR128: 0.1251398732 | CS128: 0.6094740768 | CT128: 0.364229765
A129: 126 | B129: 遠軽町 | C129: 9744 | D129: 15036 | E129: 15392 | F129: 30428 | H129: 3.1227422 | I129: 6914 | J129: 20563 | K129: 2951 | L129: 0.2272249244 | M129: 0.6757920337 | N129: 0.09698304194 | O129: 9718 | P129: 14483 | Q129: 14961 | R129: 29444 | S129: -0.03233863547 | T129: 3.029841531 | U129: 6110 | V129: 19721 | W129: 3610 | X129: 0.2075125662 | Y129: 0.6697799212 | Z129: 0.1226056242 | AA129: 9418 | AB129: 12891 | AC129: 13844 | AD129: 26735 | AE129: -0.09200516234 | AF129: 2.838713103 | AG129: 4671 | AH129: 17888 | AI129: 4176 | AJ129: 0.1747147933 | AK129: 0.6690854685 | AL129: 0.1561997382 | AM129: 9765 | AN129: 12499 | AO129: 13270 | AP129: 25769 | AQ129: -0.0361324107 | AR129: 2.638914491 | AS129: 3922 | AT129: 16755 | AU129: 5071 | AV129: 0.1521983779 | AW129: 0.6501998525 | AX129: 0.1967868369 | AY129: 10046 | AZ129: 12083 | BA129: 12761 | BB129: 24844 | BC129: -0.03589584384 | BD129: 2.473024089 | BE129: 3421 | BF129: 15436 | BG129: 5980 | BH129: 0.1376992433 | BI129: 0.6213170182 | BJ129: 0.2407019804 | BK129: 9866 | BL129: 11486 | BM129: 12162 | BN129: 23648 | BO129: -0.04814039607 | BP129: 2.396918711 | BQ129: 3075 | BR129: 13967 | BS129: 6597 | BT129: 0.130032138 | BU129: 0.5906207713 | BV129: 0.2789665088 | BW129: 9617 | BX129: 10742 | BY129: 11523 | BZ129: 22265 | CA129: -0.05848274696 | CB129: 2.315171051 | CC129: 2751 | CD129: 12560 | CE129: 6949 | CF129: 0.1235571525 | CG129: 0.5641140804 | CH129: 0.3121041994 | CI129: 9278 | CJ129: 10081 | CK129: 10792 | CL129: 20873 | CM129: -0.0666890241 | CN129: 2.249730545 | CO129: 2275 | CP129: 10151 | CQ129: 5015 | CR129: 0.1089924783 | CS129: 0.4863220428 | CT129: 0.2402625401
A130: 127 | B130: 湧別町 | C130: 4329 | D130: 6911 | E130: 7415 | F130: 14326 | H130: 3.309309309 | I130: 3152 | J130: 9425 | K130: 1749 | L130: 0.2200195449 | M130: 0.6578947368 | N130: 0.1220857183 | O130: 4201 | P130: 6537 | Q130: 7165 | R130: 13702 | S130: -0.04355716878 | T130: 3.26160438 | U130: 2778 | V130: 8927 | W130: 1997 | X130: 0.2027441249 | Y130: 0.6515107284 | Z130: 0.1457451467 | AA130: 4039 | AB130: 6010 | AC130: 6682 | AD130: 12692 | AE130: -0.07371186688 | AF130: 3.142361971 | AG130: 2276 | AH130: 8109 | AI130: 2305 | AJ130: 0.1793255594 | AK130: 0.6389063977 | AL130: 0.1816104633 | AM130: 4107 | AN130: 5718 | AO130: 6324 | AP130: 12042 | AQ130: -0.05121336275 | AR130: 2.932067202 | AS130: 1970 | AT130: 7372 | AU130: 2700 | AV130: 0.1635940874 | AW130: 0.612190666 | AX130: 0.2242152466 | AY130: 4079 | AZ130: 5430 | BA130: 5993 | BB130: 11423 | BC130: -0.05140342136 | BD130: 2.800441285 | BE130: 1679 | BF130: 6748 | BG130: 2996 | BH130: 0.1469841548 | BI130: 0.5907379848 | BJ130: 0.2622778605 | BK130: 4125 | BL130: 5032 | BM130: 5726 | BN130: 10758 | BO130: -0.05821588024 | BP130: 2.608 | BQ130: 1464 | BR130: 6115 | BS130: 3179 | BT130: 0.1360847741 | BU130: 0.5684142034 | BV130: 0.2955010225 | BW130: 4010 | BX130: 4731 | BY130: 5310 | BZ130: 10041 | CA130: -0.06664807585 | CB130: 2.503990025 | CC130: 1226 | CD130: 5582 | CE130: 3233 | CF130: 0.1220993925 | CG130: 0.555920725 | CH130: 0.3219798825 | CI130: 3861 | CJ130: 4378 | CK130: 4853 | CL130: 9231 | CM130: -0.0877478063 | CN130: 2.390831391 | CO130: 634 | CP130: 2931 | CQ130: 1862 | CR130: 0.06868161629 | CS130: 0.3175170621 | CT130: 0.2017116239
A131: 128 | B131: 滝上町 | C131: 2017 | D131: 2768 | E131: 2905 | F131: 5673 | H131: 2.81259296 | I131: 1045 | J131: 3967 | K131: 661 | L131: 0.1842058875 | M131: 0.6992772783 | N131: 0.1165168341 | O131: 1844 | P131: 2429 | Q131: 2597 | R131: 5026 | S131: -0.1140490041 | T131: 2.725596529 | U131: 842 | V131: 3416 | W131: 768 | X131: 0.16752885 | Y131: 0.6796657382 | Z131: 0.1528054119 | AA131: 1733 | AB131: 2183 | AC131: 2316 | AD131: 4499 | AE131: -0.1048547553 | AF131: 2.596076168 | AG131: 690 | AH131: 2894 | AI131: 915 | AJ131: 0.153367415 | AK131: 0.6432540565 | AL131: 0.2033785286 | AM131: 1636 | AN131: 1938 | AO131: 2146 | AP131: 4084 | AQ131: -0.0922427206 | AR131: 2.496332518 | AS131: 547 | AT131: 2460 | AU131: 1077 | AV131: 0.1339373164 | AW131: 0.6023506366 | AX131: 0.263712047 | AY131: 1578 | AZ131: 1811 | BA131: 1988 | BB131: 3799 | BC131: -0.06978452498 | BD131: 2.40747782 | BE131: 436 | BF131: 2205 | BG131: 1158 | BH131: 0.114767044 | BI131: 0.5804158989 | BJ131: 0.3048170571 | BK131: 1478 | BL131: 1573 | BM131: 1793 | BN131: 3366 | BO131: -0.1139773625 | BP131: 2.277401894 | BQ131: 341 | BR131: 1805 | BS131: 1220 | BT131: 0.1013071895 | BU131: 0.536244801 | BV131: 0.3624480095 | BW131: 1376 | BX131: 1429 | BY131: 1599 | BZ131: 3028 | CA131: -0.1116248349 | CB131: 2.200581395 | CC131: 269 | CD131: 1593 | CE131: 1166 | CF131: 0.08883751651 | CG131: 0.5260898283 | CH131: 0.3850726552 | CI131: 1295 | CJ131: 1292 | CK131: 1429 | CL131: 2721 | CM131: -0.1128261669 | CN131: 2.101158301 | CO131: 269 | CP131: 1593 | CQ131: 1166 | CR131: 0.09886071297 | CS131: 0.585446527 | CT131: 0.4285189269
A132: 129 | B132: 興部町 | C132: 2137 | D132: 3246 | E132: 3382 | F132: 6628 | H132: 3.101544221 | I132: 1550 | J132: 4459 | K132: 619 | L132: 0.2338563669 | M132: 0.6727519614 | N132: 0.0933916717 | O132: 2070 | P132: 3115 | Q132: 3205 | R132: 6320 | S132: -0.04646952323 | T132: 3.053140097 | U132: 1344 | V132: 4267 | W132: 708 | X132: 0.2126582278 | Y132: 0.6751582278 | Z132: 0.1120253165 | AA132: 1965 | AB132: 2807 | AC132: 2888 | AD132: 5695 | AE132: -0.09889240506 | AF132: 2.89821883 | AG132: 1052 | AH132: 3800 | AI132: 843 | AJ132: 0.1847234416 | AK132: 0.6672519754 | AL132: 0.148024583 | AM132: 1977 | AN132: 2577 | AO132: 2700 | AP132: 5277 | AQ132: -0.0733977173 | AR132: 2.669195751 | AS132: 871 | AT132: 3425 | AU132: 981 | AV132: 0.165055903 | AW132: 0.6490430169 | AX132: 0.1859010802 | AY132: 1971 | AZ132: 2402 | BA132: 2563 | BB132: 4965 | BC132: -0.05912450256 | BD132: 2.519025875 | BE132: 737 | BF132: 3146 | BG132: 1082 | BH132: 0.1484390735 | BI132: 0.6336354481 | BJ132: 0.2179254783 | BK132: 1929 | BL132: 2207 | BM132: 2382 | BN132: 4589 | BO132: -0.07573011078 | BP132: 2.378952825 | BQ132: 607 | BR132: 2801 | BS132: 1181 | BT132: 0.1322728263 | BU132: 0.6103726302 | BV132: 0.2573545435 | BW132: 1877 | BX132: 2075 | BY132: 2226 | BZ132: 4301 | CA132: -0.06696117182 | CB132: 2.291422483 | CC132: 553 | CD132: 2550 | CE132: 1198 | CF132: 0.1285747501 | CG132: 0.5928853755 | CH132: 0.2785398744 | CI132: 1757 | CJ132: 1895 | CK132: 2014 | CL132: 3909 | CM132: -0.1002814019 | CN132: 2.224815026 | CO132: 553 | CP132: 2550 | CQ132: 1198 | CR132: 0.1414684062 | CS132: 0.6523407521 | CT132: 0.3064722435
A133: 130 | B133: 西興部村 | C133: 562 | D133: 808 | E133: 801 | F133: 1609 | H133: 2.862989324 | I133: 290 | J133: 1083 | K133: 236 | L133: 0.1802361715 | M133: 0.6730888751 | N133: 0.1466749534 | O133: 540 | P133: 735 | Q133: 711 | R133: 1446 | S133: -0.1013051585 | T133: 2.677777778 | U133: 247 | V133: 961 | W133: 238 | X133: 0.1708160443 | Y133: 0.6645919779 | Z133: 0.1645919779 | AA133: 503 | AB133: 631 | AC133: 679 | AD133: 1310 | AE133: -0.09405255878 | AF133: 2.604373757 | AG133: 199 | AH133: 793 | AI133: 318 | AJ133: 0.1519083969 | AK133: 0.6053435115 | AL133: 0.2427480916 | AM133: 498 | AN133: 606 | AO133: 647 | AP133: 1253 | AQ133: -0.04351145038 | AR133: 2.516064257 | AS133: 195 | AT133: 716 | AU133: 342 | AV133: 0.1556264964 | AW133: 0.5714285714 | AX133: 0.2729449322 | AY133: 555 | AZ133: 657 | BA133: 657 | BB133: 1314 | BC133: 0.04868316042 | BD133: 2.367567568 | BE133: 146 | BF133: 782 | BG133: 386 | BH133: 0.1111111111 | BI133: 0.595129376 | BJ133: 0.2937595129 | BK133: 531 | BL133: 590 | BM133: 634 | BN133: 1224 | BO133: -0.06849315068 | BP133: 2.305084746 | BQ133: 130 | BR133: 711 | BS133: 383 | BT133: 0.1062091503 | BU133: 0.5808823529 | BV133: 0.3129084967 | BW133: 516 | BX133: 540 | BY133: 595 | BZ133: 1135 | CA133: -0.07841409692 | CB133: 2.199612403 | CC133: 109 | CD133: 643 | CE133: 383 | CF133: 0.09603524229 | CG133: 0.5665198238 | CH133: 0.3374449339 | CI133: 501 | CJ133: 542 | CK133: 574 | CL133: 1116 | CM133: -0.01702508961 | CN133: 2.22754491 | CO133: 109 | CP133: 643 | CQ133: 383 | CR133: 0.0976702509 | CS133: 0.5761648746 | CT133: 0.3431899642
A134: 131 | B134: 雄武町 | C134: 2337 | D134: 3438 | E134: 3603 | F134: 7041 | H134: 3.01283697 | I134: 1539 | J134: 4795 | K134: 707 | L134: 0.2185769067 | M134: 0.68101122 | N134: 0.1004118733 | O134: 2225 | P134: 3187 | Q134: 3380 | R134: 6567 | S134: -0.06731998296 | T134: 2.951460674 | U134: 1294 | V134: 4436 | W134: 837 | X134: 0.1970458352 | Y134: 0.6754987056 | Z134: 0.1274554591 | AA134: 2170 | AB134: 3061 | AC134: 3296 | AD134: 6357 | AE134: -0.03197807218 | AF134: 2.929493088 | AG134: 1180 | AH134: 4144 | AI134: 1032 | AJ134: 0.1856221488 | AK134: 0.6518798175 | AL134: 0.1623407268 | AM134: 2177 | AN134: 2872 | AO134: 3104 | AP134: 5976 | AQ134: -0.0599339311 | AR134: 2.745062012 | AS134: 972 | AT134: 3780 | AU134: 1224 | AV134: 0.1626506024 | AW134: 0.6325301205 | AX134: 0.2048192771 | AY134: 2287 | AZ134: 2771 | BA134: 3007 | BB134: 5778 | BC134: -0.03313253012 | BD134: 2.52645387 | BE134: 797 | BF134: 3638 | BG134: 1343 | BH134: 0.1379370024 | BI134: 0.6296296296 | BJ134: 0.2324333679 | BK134: 2354 | BL134: 2610 | BM134: 2897 | BN134: 5507 | BO134: -0.04690204223 | BP134: 2.33942226 | BQ134: 656 | BR134: 3452 | BS134: 1399 | BT134: 0.1191211186 | BU134: 0.6268385691 | BV134: 0.2540403123 | BW134: 2228 | BX134: 2345 | BY134: 2594 | BZ134: 4939 | CA134: -0.1150030371 | CB134: 2.216786355 | CC134: 534 | CD134: 2964 | CE134: 1441 | CF134: 0.1081190524 | CG134: 0.6001214821 | CH134: 0.2917594655 | CI134: 2062 | CJ134: 2136 | CK134: 2389 | CL134: 4525 | CM134: -0.09149171271 | CN134: 2.194471387 | CO134: 534 | CP134: 2964 | CQ134: 1441 | CR134: 0.1180110497 | CS134: 0.6550276243 | CT134: 0.3184530387
A135: 132 | B135: 大空町 | C135: 2720 | D135: 4764 | E135: 4801 | F135: 9565 | H135: 3.516544118 | I135: 2200 | J135: 6469 | K135: 896 | L135: 0.2300052274 | M135: 0.6763199164 | N135: 0.09367485625 | O135: 2774 | P135: 4665 | Q135: 4764 | R135: 9429 | S135: -0.01421850497 | T135: 3.399062725 | U135: 2061 | V135: 6260 | W135: 1102 | X135: 0.2185809736 | Y135: 0.6639092162 | Z135: 0.1168734754 | AA135: 2759 | AB135: 4523 | AC135: 4715 | AD135: 9238 | AE135: -0.020256655 | AF135: 3.348314607 | AG135: 1855 | AH135: 6014 | AI135: 1352 | AJ135: 0.2008010392 | AK135: 0.6510067114 | AL135: 0.1463520242 | AM135: 2902 | AN135: 4423 | AO135: 4569 | AP135: 8992 | AQ135: -0.02662914051 | AR135: 3.098552722 | AS135: 1549 | AT135: 5687 | AU135: 1756 | AV135: 0.1722642349 | AW135: 0.6324510676 | AX135: 0.1952846975 | AY135: 3088 | AZ135: 4377 | BA135: 4569 | BB135: 8946 | BC135: -0.005115658363 | BD135: 2.897020725 | BE135: 1395 | BF135: 5501 | BG135: 2050 | BH135: 0.1559356137 | BI135: 0.6149116924 | BJ135: 0.2291526939 | BK135: 3014 | BL135: 4065 | BM135: 4327 | BN135: 8392 | BO135: -0.06192711827 | BP135: 2.784339748 | BQ135: 1201 | BR135: 4957 | BS135: 2234 | BT135: 0.1431124881 | BU135: 0.5906816015 | BV135: 0.2662059104 | BW135: 2967 | BX135: 3840 | BY135: 4093 | BZ135: 7933 | CA135: -0.05469494757 | CB135: 2.673744523 | CC135: 1059 | CD135: 4554 | CE135: 2318 | CF135: 0.1334930039 | CG135: 0.5740577335 | CH135: 0.2921971511 | CI135: 2874 | CJ135: 3552 | CK135: 3808 | CL135: 7360 | CM135: -0.07785326087 | CN135: 2.560890745 | CO135: 744 | CP135: 3156 | CQ135: 1589 | CR135: 0.1010869565 | CS135: 0.4288043478 | CT135: 0.2158967391
A136: 133 | B136: 室蘭市 | C136: 50238 | D136: 74347 | E136: 75852 | F136: 150199 | H136: 2.989748796 | I136: 36927 | J136: 102086 | K136: 11182 | L136: 0.2458538339 | M136: 0.6796716356 | N136: 0.07444789912 | O136: 47743 | P136: 66368 | Q136: 69840 | R136: 136208 | S136: -0.09314975466 | T136: 2.852941793 | U136: 29219 | V136: 93541 | W136: 13448 | X136: 0.2145175026 | Y136: 0.6867511453 | Z136: 0.09873135205 | AA136: 45261 | AB136: 56948 | AC136: 60907 | AD136: 117855 | AE136: -0.1347424527 | AF136: 2.603897395 | AG136: 19767 | AH136: 82259 | AI136: 15591 | AJ136: 0.1677230495 | AK136: 0.6979678418 | AL136: 0.132289678 | AM136: 45999 | AN136: 53573 | AO136: 56193 | AP136: 109766 | AQ136: -0.06863518731 | AR136: 2.386269267 | AS136: 14619 | AT136: 76596 | AU136: 18475 | AV136: 0.1331833172 | AW136: 0.6978117085 | AX136: 0.1683125922 | AY136: 45759 | AZ136: 50024 | BA136: 53254 | BB136: 103278 | BC136: -0.05910755607 | BD136: 2.256998623 | BE136: 12183 | BF136: 68873 | BG136: 22088 | BH136: 0.1179631674 | BI136: 0.6668700014 | BJ136: 0.2138693623 | BK136: 45266 | BL136: 47518 | BM136: 50854 | BN136: 98372 | BO136: -0.04750285637 | BP136: 2.173198427 | BQ136: 11314 | BR136: 61786 | BS136: 25272 | BT136: 0.1150124019 | BU136: 0.6280852275 | BV136: 0.2569023706 | BW136: 45029 | BX136: 46074 | BY136: 48461 | BZ136: 94535 | CA136: -0.04058814196 | CB136: 2.099424815 | CC136: 10484 | CD136: 56279 | CE136: 27699 | CF136: 0.1109864284 | CG136: 0.5957845483 | CH136: 0.2932290233 | CI136: 43616 | CJ136: 43143 | CK136: 45421 | CL136: 88564 | CM136: -0.06742017072 | CN136: 2.030539252 | CO136: 10484 | CP136: 56279 | CQ136: 27699 | CR136: 0.1183776704 | CS136: 0.6354613613 | CT136: 0.3127568764
A137: 134 | B137: 苫小牧市 | C137: 52300 | D137: 76000 | E137: 75967 | F137: 151967 | H137: 2.905678776 | I137: 38770 | J137: 104702 | K137: 8485 | L137: 0.2551211776 | M137: 0.6889785282 | N137: 0.05583449038 | O137: 54438 | P137: 77656 | Q137: 80405 | R137: 158061 | S137: 0.04010081136 | T137: 2.903504905 | U137: 38280 | V137: 108385 | W137: 11394 | X137: 0.2421849792 | Y137: 0.6857162741 | Z137: 0.07208609334 | AA137: 58132 | AB137: 77873 | AC137: 82245 | AD137: 160118 | AE137: 0.01301396296 | AF137: 2.754386568 | AG137: 32969 | AH137: 111589 | AI137: 15020 | AJ137: 0.2059043955 | AK137: 0.6969172735 | AL137: 0.09380581821 | AM137: 65517 | AN137: 82654 | AO137: 86674 | AP137: 169328 | AQ137: 0.05752007894 | AR137: 2.584489522 | AS137: 29799 | AT137: 119164 | AU137: 19847 | AV137: 0.1759838893 | AW137: 0.7037465747 | AX137: 0.1172103846 | AY137: 70368 | AZ137: 84105 | BA137: 87981 | BB137: 172086 | BC137: 0.01628791458 | BD137: 2.445515007 | BE137: 26445 | BF137: 120237 | BG137: 25397 | BH137: 0.1536731634 | BI137: 0.6987029741 | BJ137: 0.1475831852 | BK137: 72845 | BL137: 83935 | BM137: 88823 | BN137: 172758 | BO137: 0.003905024232 | BP137: 2.371583499 | BQ137: 24575 | BR137: 116949 | BS137: 31234 | BT137: 0.1422510101 | BU137: 0.6769527316 | BV137: 0.1807962583 | BW137: 76289 | BX137: 84687 | BY137: 88633 | BZ137: 173320 | CA137: 0.00324255712 | CB137: 2.271887166 | CC137: 23476 | CD137: 113284 | CE137: 36515 | CF137: 0.1354840571 | CG137: 0.6537815611 | CH137: 0.2107343818 | CI137: 78298 | CJ137: 84605 | CK137: 88132 | CL137: 172737 | CM137: -0.003375073088 | CN137: 2.206148305 | CO137: 23476 | CP137: 113284 | CQ137: 36515 | CR137: 0.1359060306 | CS137: 0.6558178039 | CT137: 0.2113907269
A138: 135 | B138: 登別市 | C138: 17866 | D138: 27929 | E138: 28574 | F138: 56503 | H138: 3.162599351 | I138: 13563 | J138: 38911 | K138: 4001 | L138: 0.2400403518 | M138: 0.6886536998 | N138: 0.07081039945 | O138: 19268 | P138: 28557 | Q138: 29813 | R138: 58370 | S138: 0.03304249332 | T138: 3.02937513 | U138: 12365 | V138: 40308 | W138: 5697 | X138: 0.2118382731 | Y138: 0.6905602193 | Z138: 0.09760150762 | AA138: 19539 | AB138: 26827 | AC138: 28744 | AD138: 55571 | AE138: -0.04795271544 | AF138: 2.844106658 | AG138: 9598 | AH138: 38670 | AI138: 7293 | AJ138: 0.172715985 | AK138: 0.6958665491 | AL138: 0.131237516 | AM138: 21259 | AN138: 27525 | AO138: 29367 | AP138: 56892 | AQ138: 0.02377139155 | AR138: 2.676137165 | AS138: 8349 | AT138: 39394 | AU138: 9149 | AV138: 0.1467517401 | AW138: 0.6924347887 | AX138: 0.1608134711 | AY138: 21641 | AZ138: 26115 | BA138: 28646 | BB138: 54761 | BC138: -0.03745693595 | BD138: 2.530428354 | BE138: 7291 | BF138: 36369 | BG138: 11097 | BH138: 0.1331421997 | BI138: 0.664140538 | BJ138: 0.2026442176 | BK138: 21511 | BL138: 25256 | BM138: 27879 | BN138: 53135 | BO138: -0.02969266449 | BP138: 2.470131561 | BQ138: 6509 | BR138: 33561 | BS138: 13065 | BT138: 0.1224992943 | BU138: 0.6316175779 | BV138: 0.2458831279 | BW138: 21717 | BX138: 24514 | BY138: 27012 | BZ138: 51526 | CA138: -0.03122695338 | CB138: 2.372611318 | CC138: 6086 | CD138: 30802 | CE138: 14612 | CF138: 0.1181747573 | CG138: 0.5980970874 | CH138: 0.2837281553 | CI138: 21681 | CJ138: 23533 | CK138: 26092 | CL138: 49625 | CM138: -0.03830730479 | CN138: 2.28887044 | CO138: 6086 | CP138: 30802 | CQ138: 14612 | CR138: 0.1226397985 | CS138: 0.6206952141 | CT138: 0.2944483627
A139: 136 | B139: 伊達市 | C139: 11010 | D139: 17407 | E139: 18902 | F139: 36309 | H139: 3.297820163 | I139: 8433 | J139: 24227 | K139: 3645 | L139: 0.2322564653 | M139: 0.6672450357 | N139: 0.1003883335 | O139: 11674 | P139: 17450 | Q139: 19472 | R139: 36922 | S139: 0.01688286651 | T139: 3.16275484 | U139: 7701 | V139: 24368 | W139: 4853 | X139: 0.2085748334 | Y139: 0.6599859163 | Z139: 0.1314392503 | AA139: 12456 | AB139: 17222 | AC139: 19430 | AD139: 36652 | AE139: -0.007312713287 | AF139: 2.942517662 | AG139: 6368 | AH139: 24424 | AI139: 5860 | AJ139: 0.1737422242 | AK139: 0.6663756412 | AL139: 0.1598821347 | AM139: 13405 | AN139: 17313 | AO139: 19334 | AP139: 36647 | AQ139: -0.0001364182036 | AR139: 2.73383066 | AS139: 5460 | AT139: 24136 | AU139: 7051 | AV139: 0.1489890032 | AW139: 0.6586077987 | AX139: 0.1924031981 | AY139: 14595 | AZ139: 17277 | BA139: 19862 | BB139: 37139 | BC139: 0.01342538271 | BD139: 2.544638575 | BE139: 4783 | BF139: 23636 | BG139: 8718 | BH139: 0.1287864509 | BI139: 0.6364199359 | BJ139: 0.2347397614 | BK139: 14989 | BL139: 17247 | BM139: 19819 | BN139: 37066 | BO139: -0.001965588734 | BP139: 2.472880112 | BQ139: 4615 | BR139: 22437 | BS139: 10014 | BT139: 0.124507635 | BU139: 0.6053256354 | BV139: 0.2701667296 | BW139: 15287 | BX139: 16812 | BY139: 19466 | BZ139: 36278 | CA139: -0.02125937517 | CB139: 2.373127494 | CC139: 4276 | CD139: 20959 | CE139: 11040 | CF139: 0.1178675781 | CG139: 0.5777330614 | CH139: 0.3043166657 | CI139: 15054 | CJ139: 16279 | CK139: 18716 | CL139: 34995 | CM139: -0.03666238034 | CN139: 2.324631327 | CO139: 4144 | CP139: 20212 | CQ139: 10386 | CR139: 0.1184169167 | CS139: 0.577568224 | CT139: 0.296785255
A140: 137 | B140: 豊浦町 | C140: 2007 | D140: 3068 | E140: 3356 | F140: 6424 | H140: 3.20079721 | I140: 1429 | J140: 4118 | K140: 877 | L140: 0.2224470735 | M140: 0.6410336239 | N140: 0.1365193026 | O140: 1977 | P140: 2911 | Q140: 3201 | R140: 6112 | S140: -0.04856787049 | T140: 3.091552858 | U140: 1186 | V140: 3887 | W140: 1039 | X140: 0.1940445026 | Y140: 0.6359620419 | Z140: 0.1699934555 | AA140: 1929 | AB140: 2738 | AC140: 3052 | AD140: 5790 | AE140: -0.05268324607 | AF140: 3.00155521 | AG140: 957 | AH140: 3615 | AI140: 1218 | AJ140: 0.1652849741 | AK140: 0.6243523316 | AL140: 0.2103626943 | AM140: 2698 | AN140: 3158 | AO140: 2963 | AP140: 6121 | AQ140: 0.05716753022 | AR140: 2.268717569 | AS140: 809 | AT140: 3960 | AU140: 1352 | AV140: 0.1321679464 | AW140: 0.6469531122 | AX140: 0.2208789413 | AY140: 2020 | AZ140: 2421 | BA140: 2865 | BB140: 5286 | BC140: -0.1364156184 | BD140: 2.616831683 | BE140: 685 | BF140: 3022 | BG140: 1579 | BH140: 0.1295875899 | BI140: 0.5716988271 | BJ140: 0.298713583 | BK140: 2009 | BL140: 2200 | BM140: 2571 | BN140: 4771 | BO140: -0.0974271661 | BP140: 2.37481334 | BQ140: 536 | BR140: 2703 | BS140: 1532 | BT140: 0.1123454202 | BU140: 0.5665478935 | BV140: 0.3211066862 | BW140: 1944 | BX140: 2101 | BY140: 2427 | BZ140: 4528 | CA140: -0.05366607774 | CB140: 2.329218107 | CC140: 447 | CD140: 2525 | CE140: 1556 | CF140: 0.09871908127 | CG140: 0.5576413428 | CH140: 0.343639576 | CI140: 1973 | CJ140: 2000 | CK140: 2291 | CL140: 4291 | CM140: -0.05523188068 | CN140: 2.174860618 | CO140: 447 | CP140: 2525 | CQ140: 1556 | CR140: 0.1041715218 | CS140: 0.5884409229 | CT140: 0.362619436
A141: 138 | B141: 壮瞥町 | C141: 1308 | D141: 2117 | E141: 2175 | F141: 4292 | H141: 3.281345566 | I141: 851 | J141: 2885 | K141: 556 | L141: 0.1982758621 | M141: 0.6721808015 | N141: 0.1295433364 | O141: 1387 | P141: 2127 | Q141: 2216 | R141: 4343 | S141: 0.01188257223 | T141: 3.131218457 | U141: 752 | V141: 2897 | W141: 694 | X141: 0.1731521989 | Y141: 0.667050426 | Z141: 0.1597973751 | AA141: 1301 | AB141: 1942 | AC141: 2181 | AD141: 4123 | AE141: -0.05065622841 | AF141: 3.169100692 | AG141: 576 | AH141: 2614 | AI141: 933 | AJ141: 0.139704099 | AK141: 0.6340043658 | AL141: 0.2262915353 | AM141: 1325 | AN141: 1853 | AO141: 2013 | AP141: 3866 | AQ141: -0.06233325249 | AR141: 2.917735849 | AS141: 477 | AT141: 2398 | AU141: 991 | AV141: 0.123383342 | AW141: 0.6202793585 | AX141: 0.2563372995 | AY141: 1336 | AZ141: 1777 | BA141: 1971 | BB141: 3748 | BC141: -0.03052250388 | BD141: 2.805389222 | BE141: 412 | BF141: 2181 | BG141: 1155 | BH141: 0.1099252935 | BI141: 0.5819103522 | BJ141: 0.3081643543 | BK141: 1294 | BL141: 1606 | BM141: 1867 | BN141: 3473 | BO141: -0.07337246531 | BP141: 2.683925811 | BQ141: 349 | BR141: 1906 | BS141: 1218 | BT141: 0.1004894904 | BU141: 0.5488050677 | BV141: 0.350705442 | BW141: 1226 | BX141: 1503 | BY141: 1729 | BZ141: 3232 | CA141: -0.07456683168 | CB141: 2.636215334 | CC141: 350 | CD141: 1633 | CE141: 1249 | CF141: 0.1082920792 | CG141: 0.505259901 | CH141: 0.3864480198 | CI141: 1168 | CJ141: 1370 | CK141: 1552 | CL141: 2922 | CM141: -0.106091718 | CN141: 2.501712329 | CO141: 350 | CP141: 1633 | CQ141: 1249 | CR141: 0.1197809719 | CS141: 0.5588637919 | CT141: 0.4274469541
A142: 139 | B142: 白老町 | C142: 7460 | D142: 12071 | E142: 12097 | F142: 24168 | H142: 3.239678284 | I142: 6298 | J142: 15973 | K142: 1894 | L142: 0.260592519 | M142: 0.6609152598 | N142: 0.07836809004 | O142: 7835 | P142: 12005 | Q142: 12348 | R142: 24353 | S142: 0.007654750083 | T142: 3.108232291 | U142: 5545 | V142: 16354 | W142: 2454 | X142: 0.2276926867 | Y142: 0.6715394407 | Z142: 0.1007678725 | AA142: 7964 | AB142: 11314 | AC142: 11915 | AD142: 23229 | AE142: -0.04615447789 | AF142: 2.916750377 | AG142: 4131 | AH142: 15849 | AI142: 3205 | AJ142: 0.1778380473 | AK142: 0.6822936846 | AL142: 0.1379740841 | AM142: 8271 | AN142: 10841 | AO142: 11573 | AP142: 22414 | AQ142: -0.03508545353 | AR142: 2.709950429 | AS142: 3244 | AT142: 15063 | AU142: 4107 | AV142: 0.1447309717 | AW142: 0.6720353351 | AX142: 0.1832336932 | AY142: 8536 | AZ142: 10445 | BA142: 11217 | BB142: 21662 | BC142: -0.03355045953 | BD142: 2.537722587 | BE142: 2771 | BF142: 13879 | BG142: 5008 | BH142: 0.1279198597 | BI142: 0.6407072292 | BJ142: 0.2311882559 | BK142: 8564 | BL142: 10013 | BM142: 10735 | BN142: 20748 | BO142: -0.04219370326 | BP142: 2.422699673 | BQ142: 2339 | BR142: 12526 | BS142: 5883 | BT142: 0.1127337575 | BU142: 0.6037208406 | BV142: 0.283545402 | BW142: 8412 | BX142: 9232 | BY142: 10144 | BZ142: 19376 | CA142: -0.07080924855 | CB142: 2.303376129 | CC142: 1917 | CD142: 10852 | CE142: 6600 | CF142: 0.09897258506 | CG142: 0.5602767309 | CH142: 0.3407506841 | CI142: 7955 | CJ142: 8489 | CK142: 9251 | CL142: 17740 | CM142: -0.09222096956 | CN142: 2.230043997 | CO142: 1917 | CP142: 10852 | CQ142: 6600 | CR142: 0.1080608794 | CS142: 0.6117249154 | CT142: 0.3720405862
A143: 140 | B143: 厚真町 | C143: 1905 | D143: 3403 | E143: 3414 | F143: 6817 | H143: 3.57847769 | I143: 1506 | J143: 4464 | K143: 846 | L143: 0.2209182925 | M143: 0.6548335045 | N143: 0.1241015109 | O143: 1918 | P143: 3307 | Q143: 3296 | R143: 6603 | S143: -0.03139210797 | T143: 3.442648592 | U143: 1313 | V143: 4332 | W143: 958 | X143: 0.198849008 | Y143: 0.6560654248 | Z143: 0.1450855672 | AA143: 2004 | AB143: 3127 | AC143: 3056 | AD143: 6183 | AE143: -0.06360745116 | AF143: 3.085329341 | AG143: 1065 | AH143: 4056 | AI143: 1062 | AJ143: 0.1722464823 | AK143: 0.6559922368 | AL143: 0.1717612809 | AM143: 1911 | AN143: 2835 | AO143: 2899 | AP143: 5734 | AQ143: -0.07261847 | AR143: 3.000523286 | AS143: 936 | AT143: 3549 | AU143: 1249 | AV143: 0.1632368329 | AW143: 0.6189396582 | AX143: 0.2178235089 | AY143: 1980 | AZ143: 2702 | BA143: 2736 | BB143: 5438 | BC143: -0.05162190443 | BD143: 2.746464646 | BE143: 806 | BF143: 3214 | BG143: 1418 | BH143: 0.148216256 | BI143: 0.5910261125 | BJ143: 0.2607576315 | BK143: 2002 | BL143: 2593 | BM143: 2647 | BN143: 5240 | BO143: -0.03641044502 | BP143: 2.617382617 | BQ143: 660 | BR143: 3038 | BS143: 1541 | BT143: 0.1259541985 | BU143: 0.5797709924 | BV143: 0.2940839695 | BW143: 1972 | BX143: 2419 | BY143: 2471 | BZ143: 4890 | CA143: -0.07157464213 | CB143: 2.479716024 | CC143: 554 | CD143: 2751 | CE143: 1585 | CF143: 0.1132924335 | CG143: 0.5625766871 | CH143: 0.3241308793 | CI143: 2126 | CJ143: 2482 | CK143: 2356 | CL143: 4838 | CM143: -0.01074824308 | CN143: 2.275634995 | CO143: 554 | CP143: 2751 | CQ143: 1585 | CR143: 0.1145101282 | CS143: 0.5686233981 | CT143: 0.3276147168
A144: 141 | B144: 洞爺湖町 | C144: 4854 | D144: 6719 | E144: 7682 | F144: 14401 | H144: 2.966831479 | I144: 3199 | J144: 9736 | K144: 1466 | L144: 0.2221373516 | M144: 0.6760641622 | N144: 0.1017984862 | O144: 4827 | P144: 6378 | Q144: 7371 | R144: 13749 | S144: -0.04527463371 | T144: 2.848353014 | U144: 2780 | V144: 9261 | W144: 1708 | X144: 0.2021965234 | Y144: 0.6735762601 | Z144: 0.1242272165 | AA144: 4766 | AB144: 5997 | AC144: 7116 | AD144: 13113 | AE144: -0.04625790967 | AF144: 2.751363827 | AG144: 2262 | AH144: 8630 | AI144: 2221 | AJ144: 0.172500572 | AK144: 0.6581255243 | AL144: 0.1693739038 | AM144: 5096 | AN144: 5897 | AO144: 6908 | AP144: 12805 | AQ144: -0.02348814154 | AR144: 2.512755102 | AS144: 1897 | AT144: 8309 | AU144: 2599 | AV144: 0.1481452558 | AW144: 0.6488871535 | AX144: 0.2029675908 | AY144: 4286 | AZ144: 4976 | BA144: 5646 | BB144: 10622 | BC144: -0.1704802811 | BD144: 2.478301447 | BE144: 1378 | BF144: 6553 | BG144: 2691 | BH144: 0.1297307475 | BI144: 0.6169271324 | BJ144: 0.2533421201 | BK144: 4830 | BL144: 5266 | BM144: 6077 | BN144: 11343 | BO144: 0.06787798908 | BP144: 2.348447205 | BQ144: 1256 | BR144: 6623 | BS144: 3456 | BT144: 0.110729084 | BU144: 0.583884334 | BV144: 0.3046813012 | BW144: 4461 | BX144: 4677 | BY144: 5455 | BZ144: 10132 | CA144: -0.1067618796 | CB144: 2.271239632 | CC144: 1666 | CD144: 9230 | CE144: 5728 | CF144: 0.1644295302 | CG144: 0.9109751283 | CH144: 0.5653375444 | CI144: 4240 | CJ144: 4280 | CK144: 5019 | CL144: 9299 | CM144: -0.08957952468 | CN144: 2.193160377 | CO144: 833 | CP144: 4615 | CQ144: 2864 | CR144: 0.08957952468 | CS144: 0.4962899236 | CT144: 0.3079901065
A145: 142 | B145: 安平町 | C145: 3594 | D145: 5681 | E145: 5577 | F145: 11258 | H145: 3.13244296 | I145: 2609 | J145: 7569 | K145: 1080 | L145: 0.2317463137 | M145: 0.6723219044 | N145: 0.09593178184 | O145: 3506 | P145: 5251 | Q145: 5275 | R145: 10526 | S145: -0.06502042992 | T145: 3.002281803 | U145: 2150 | V145: 7065 | W145: 1311 | X145: 0.2042561277 | Y145: 0.6711951359 | Z145: 0.1245487365 | AA145: 3513 | AB145: 4746 | AC145: 4773 | AD145: 9519 | AE145: -0.09566787004 | AF145: 2.709649872 | AG145: 1533 | AH145: 6548 | AI145: 1438 | AJ145: 0.1610463284 | AK145: 0.6878873831 | AL145: 0.1510662885 | AM145: 3712 | AN145: 4768 | AO145: 4716 | AP145: 9484 | AQ145: -0.003676856813 | AR145: 2.554956897 | AS145: 1360 | AT145: 6290 | AU145: 1834 | AV145: 0.1433994095 | AW145: 0.6632222691 | AX145: 0.1933783214 | AY145: 3829 | AZ145: 4715 | BA145: 4723 | BB145: 9438 | BC145: -0.004850274146 | BD145: 2.464873335 | BE145: 1279 | BF145: 5922 | BG145: 2237 | BH145: 0.1355159992 | BI145: 0.6274634456 | BJ145: 0.2370205552 | BK145: 3788 | BL145: 4556 | BM145: 4575 | BN145: 9131 | BO145: -0.03252807798 | BP145: 2.410506864 | BQ145: 1183 | BR145: 5524 | BS145: 2424 | BT145: 0.1295586464 | BU145: 0.6049720732 | BV145: 0.2654692805 | BW145: 3753 | BX145: 4312 | BY145: 4414 | BZ145: 8726 | CA145: -0.04435439711 | CB145: 2.325073275 | CC145: 1059 | CD145: 5041 | CE145: 2626 | CF145: 0.1213614485 | CG145: 0.5776988311 | CH145: 0.3009397204 | CI145: 3651 | CJ145: 4049 | CK145: 4099 | CL145: 8148 | CM145: -0.07093765341 | CN145: 2.231717338 | CO145: 642 | CP145: 2970 | CQ145: 1403 | CR145: 0.07879234168 | CS145: 0.3645066274 | CT145: 0.1721894944
A146: 143 | B146: むかわ町 | C146: 4639 | D146: 7307 | E146: 7284 | F146: 14591 | H146: 3.145289933 | I146: 3413 | J146: 9798 | K146: 1380 | L146: 0.2339113152 | M146: 0.6715098348 | N146: 0.09457884998 | O146: 4643 | P146: 6997 | Q146: 7071 | R146: 14068 | S146: -0.03584401343 | T146: 3.02993754 | U146: 3037 | V146: 9434 | W146: 1597 | X146: 0.2158800114 | Y146: 0.6705999431 | Z146: 0.1135200455 | AA146: 4402 | AB146: 6249 | AC146: 6622 | AD146: 12871 | AE146: -0.08508672164 | AF146: 2.923898228 | AG146: 2462 | AH146: 8464 | AI146: 1945 | AJ146: 0.1912827286 | AK146: 0.6576023619 | AL146: 0.1511149095 | AM146: 4343 | AN146: 5800 | AO146: 6167 | AP146: 11967 | AQ146: -0.07023541294 | AR146: 2.75546857 | AS146: 1929 | AT146: 7720 | AU146: 2318 | AV146: 0.1611932815 | AW146: 0.6451073786 | AX146: 0.1936993399 | AY146: 4301 | AZ146: 5453 | BA146: 5744 | BB146: 11197 | BC146: -0.0643436116 | BD146: 2.603348059 | BE146: 1632 | BF146: 6895 | BG146: 2670 | BH146: 0.1457533268 | BI146: 0.6157899437 | BJ146: 0.2384567295 | BK146: 4353 | BL146: 5252 | BM146: 5350 | BN146: 10602 | BO146: -0.05313923372 | BP146: 2.435561682 | BQ146: 1309 | BR146: 6381 | BS146: 2912 | BT146: 0.1234672703 | BU146: 0.6018675722 | BV146: 0.2746651575 | BW146: 4127 | BX146: 4811 | BY146: 4935 | BZ146: 9746 | CA146: -0.08073948312 | CB146: 2.361521686 | CC146: 1074 | CD146: 5570 | CE146: 3100 | CF146: 0.110199056 | CG146: 0.5715165196 | CH146: 0.318079212 | CI146: 3784 | CJ146: 4211 | CK146: 4385 | CL146: 8596 | CM146: -0.133783155 | CN146: 2.27167019 | CO146: 710 | CP146: 3674 | CQ146: 1987 | CR146: 0.08259655654 | CS146: 0.4274080968 | CT146: 0.2311540251
A147: 144 | B147: 日高町 | C147: 6008 | D147: 9409 | E147: 9466 | F147: 18875 | H147: 3.141644474 | I147: 4447 | J147: 12625 | K147: 1803 | L147: 0.235602649 | M147: 0.6688741722 | N147: 0.09552317881 | O147: 6240 | P147: 9189 | Q147: 9078 | R147: 18267 | S147: -0.03221192053 | T147: 2.927403846 | U147: 3975 | V147: 12182 | W147: 2110 | X147: 0.2176055181 | Y147: 0.6668856408 | Z147: 0.1155088411 | AA147: 6228 | AB147: 8478 | AC147: 8498 | AD147: 16976 | AE147: -0.07067389281 | AF147: 2.725754656 | AG147: 3261 | AH147: 11277 | AI147: 2438 | AJ147: 0.192094722 | AK147: 0.6642907634 | AL147: 0.1436145146 | AM147: 6655 | AN147: 8417 | AO147: 8139 | AP147: 16556 | AQ147: -0.02474081056 | AR147: 2.487753569 | AS147: 2674 | AT147: 10987 | AU147: 2895 | AV147: 0.1615124426 | AW147: 0.6636264798 | AX147: 0.1748610776 | AY147: 6587 | AZ147: 7971 | BA147: 7812 | BB147: 15783 | BC147: -0.04669002174 | BD147: 2.396083194 | BE147: 2198 | BF147: 10258 | BG147: 3318 | BH147: 0.1392637648 | BI147: 0.6499398087 | BJ147: 0.2102261927 | BK147: 6332 | BL147: 7402 | BM147: 7328 | BN147: 14730 | BO147: -0.06671735412 | BP147: 2.326279217 | BQ147: 1873 | BR147: 9249 | BS147: 3608 | BT147: 0.127155465 | BU147: 0.6279022403 | BV147: 0.2449422946 | BW147: 6064 | BX147: 6785 | BY147: 6830 | BZ147: 13615 | CA147: -0.07569585879 | CB147: 2.245217678 | CC147: 1686 | CD147: 8076 | CE147: 3853 | CF147: 0.1238340066 | CG147: 0.5931692986 | CH147: 0.2829966948 | CI147: 5781 | CJ147: 6174 | CK147: 6204 | CL147: 12378 | CM147: -0.0999353692 | CN147: 2.14115205 | CO147: 1507 | CP147: 7062 | CQ147: 3248 | CR147: 0.121748263 | CS147: 0.5705283568 | CT147: 0.2624010341
A148: 145 | B148: 平取町 | C148: 2690 | D148: 4203 | E148: 4291 | F148: 8494 | H148: 3.157620818 | I148: 2056 | J148: 5503 | K148: 935 | L148: 0.242053214 | M148: 0.6478690841 | N148: 0.1100777019 | O148: 2610 | P148: 3809 | Q148: 3958 | R148: 7767 | S148: -0.08558982811 | T148: 2.975862069 | U148: 1685 | V148: 5085 | W148: 997 | X148: 0.2169434788 | Y148: 0.6546929316 | Z148: 0.1283635895 | AA148: 2596 | AB148: 3596 | AC148: 3756 | AD148: 7352 | AE148: -0.05343118321 | AF148: 2.832049307 | AG148: 1370 | AH148: 4850 | AI148: 1132 | AJ148: 0.186343852 | AK148: 0.6596844396 | AL148: 0.1539717084 | AM148: 2562 | AN148: 3324 | AO148: 3559 | AP148: 6883 | AQ148: -0.0637921654 | AR148: 2.68657299 | AS148: 1160 | AT148: 4402 | AU148: 1321 | AV148: 0.1685311637 | AW148: 0.6395467093 | AX148: 0.191922127 | AY148: 2551 | AZ148: 3141 | BA148: 3362 | BB148: 6503 | BC148: -0.05520848467 | BD148: 2.549196394 | BE148: 989 | BF148: 4016 | BG148: 1498 | BH148: 0.1520836537 | BI148: 0.6175611256 | BJ148: 0.2303552207 | BK148: 2571 | BL148: 2987 | BM148: 3186 | BN148: 6173 | BO148: -0.05074580963 | BP148: 2.40101128 | BQ148: 887 | BR148: 3695 | BS148: 1591 | BT148: 0.1436902641 | BU148: 0.5985744371 | BV148: 0.2577352989 | BW148: 2412 | BX148: 2709 | BY148: 2887 | BZ148: 5596 | CA148: -0.1031093638 | CB148: 2.320066335 | CC148: 719 | CD148: 3263 | CE148: 1614 | CF148: 0.1284846319 | CG148: 0.5830950679 | CH148: 0.2884203002 | CI148: 2373 | CJ148: 2630 | CK148: 2685 | CL148: 5315 | CM148: -0.05286923801 | CN148: 2.239780868 | CO148: 719 | CP148: 3263 | CQ148: 1614 | CR148: 0.1352775165 | CS148: 0.6139228598 | CT148: 0.3036688617
A149: 146 | B149: 新冠町 | C149: 2499 | D149: 3873 | E149: 3761 | F149: 7634 | H149: 3.054821929 | I149: 1734 | J149: 5251 | K149: 649 | L149: 0.2271417343 | M149: 0.6878438564 | N149: 0.08501440922 | O149: 2344 | P149: 3539 | Q149: 3738 | R149: 7277 | S149: -0.04676447472 | T149: 3.104522184 | U149: 1619 | V149: 4879 | W149: 779 | X149: 0.2224817919 | Y149: 0.6704685997 | Z149: 0.1070496084 | AA149: 2292 | AB149: 3349 | AC149: 3598 | AD149: 6947 | AE149: -0.04534835784 | AF149: 3.030977312 | AG149: 1401 | AH149: 4572 | AI149: 974 | AJ149: 0.2016697855 | AK149: 0.6581258097 | AL149: 0.1402044048 | AM149: 2373 | AN149: 3191 | AO149: 3287 | AP149: 6478 | AQ149: -0.06751115589 | AR149: 2.729877792 | AS149: 1071 | AT149: 4199 | AU149: 1208 | AV149: 0.1653288052 | AW149: 0.648193887 | AX149: 0.1864773078 | AY149: 2395 | AZ149: 3019 | BA149: 3185 | BB149: 6204 | BC149: -0.04229700525 | BD149: 2.59039666 | BE149: 896 | BF149: 3952 | BG149: 1356 | BH149: 0.1444229529 | BI149: 0.6370083817 | BJ149: 0.2185686654 | BK149: 2447 | BL149: 2931 | BM149: 3103 | BN149: 6034 | BO149: -0.02740167634 | BP149: 2.465876584 | BQ149: 840 | BR149: 3688 | BS149: 1506 | BT149: 0.1392111369 | BU149: 0.611203182 | BV149: 0.2495856811 | BW149: 2388 | BX149: 2802 | BY149: 2973 | BZ149: 5775 | CA149: -0.04484848485 | CB149: 2.418341709 | CC149: 755 | CD149: 3458 | CE149: 1562 | CF149: 0.1307359307 | CG149: 0.5987878788 | CH149: 0.2704761905 | CI149: 2405 | CJ149: 2717 | CK149: 2875 | CL149: 5592 | CM149: -0.03272532189 | CN149: 2.325155925 | CO149: 755 | CP149: 3458 | CQ149: 1562 | CR149: 0.1350143062 | CS149: 0.6183834049 | CT149: 0.2793276109
A150: 147 | B150: 浦河町 | C150: 6410 | D150: 9538 | E150: 9870 | F150: 19408 | H150: 3.027769111 | I150: 4605 | J150: 12906 | K150: 1897 | L150: 0.2372732894 | M150: 0.664983512 | N150: 0.09774319868 | O150: 6518 | P150: 9224 | Q150: 9584 | R150: 18808 | S150: -0.03091508656 | T150: 2.885547714 | U150: 4193 | V150: 12461 | W150: 2154 | X150: 0.2229370481 | Y150: 0.6625372182 | Z150: 0.1145257337 | AA150: 6502 | AB150: 8648 | AC150: 9214 | AD150: 17862 | AE150: -0.05029774564 | AF150: 2.747154722 | AG150: 3497 | AH150: 11851 | AI150: 2514 | AJ150: 0.1957787482 | AK150: 0.6634755347 | AL150: 0.1407457172 | AM150: 6977 | AN150: 8476 | AO150: 8710 | AP150: 17186 | AQ150: -0.03784570597 | AR150: 2.463236348 | AS150: 2846 | AT150: 11461 | AU150: 2879 | AV150: 0.1655999069 | AW150: 0.6668800186 | AX150: 0.1675200745 | AY150: 6936 | AZ150: 8126 | BA150: 8508 | BB150: 16634 | BC150: -0.03211916676 | BD150: 2.398212226 | BE150: 2506 | BF150: 10868 | BG150: 3260 | BH150: 0.1506552844 | BI150: 0.6533605868 | BJ150: 0.1959841289 | BK150: 6782 | BL150: 7710 | BM150: 7988 | BN150: 15698 | BO150: -0.05627028977 | BP150: 2.314656444 | BQ150: 2232 | BR150: 10023 | BS150: 3443 | BT150: 0.1421837177 | BU150: 0.6384889795 | BV150: 0.2193273028 | BW150: 6358 | BX150: 7064 | BY150: 7325 | BZ150: 14389 | CA150: -0.09097227048 | CB150: 2.263133061 | CC150: 1794 | CD150: 8979 | CE150: 3616 | CF150: 0.1246785739 | CG150: 0.6240183473 | CH150: 0.2513030787 | CI150: 6178 | CJ150: 6368 | CK150: 6707 | CL150: 13075 | CM150: -0.1004971319 | CN150: 2.116380706 | CO150: 1794 | CP150: 8979 | CQ150: 3616 | CR150: 0.137208413 | CS150: 0.6867304015 | CT150: 0.2765583174
A151: 148 | B151: 様似町 | C151: 2513 | D151: 3889 | E151: 4097 | F151: 7986 | H151: 3.17787505 | I151: 1902 | J151: 5312 | K151: 772 | L151: 0.2381667919 | M151: 0.6651640371 | N151: 0.09666917105 | O151: 2449 | P151: 3727 | Q151: 4018 | R151: 7745 | S151: -0.03017781117 | T151: 3.162515312 | U151: 1695 | V151: 5102 | W151: 948 | X151: 0.2188508715 | Y151: 0.6587475791 | Z151: 0.1224015494 | AA151: 2417 | AB151: 3436 | AC151: 3723 | AD151: 7159 | AE151: -0.07566171724 | AF151: 2.961936285 | AG151: 1401 | AH151: 4633 | AI151: 1125 | AJ151: 0.1956977231 | AK151: 0.6471574242 | AL151: 0.1571448526 | AM151: 2375 | AN151: 3171 | AO151: 3515 | AP151: 6686 | AQ151: -0.06607068026 | AR151: 2.815157895 | AS151: 1151 | AT151: 4165 | AU151: 1370 | AV151: 0.1721507628 | AW151: 0.622943464 | AX151: 0.2049057733 | AY151: 2403 | AZ151: 2965 | BA151: 3245 | BB151: 6210 | BC151: -0.07119353874 | BD151: 2.584269663 | BE151: 891 | BF151: 3831 | BG151: 1488 | BH151: 0.1434782609 | BI151: 0.6169082126 | BJ151: 0.2396135266 | BK151: 2334 | BL151: 2729 | BM151: 2982 | BN151: 5711 | BO151: -0.08035426731 | BP151: 2.446872322 | BQ151: 697 | BR151: 3439 | BS151: 1575 | BT151: 0.122045176 | BU151: 0.6021712485 | BV151: 0.2757835756 | BW151: 2206 | BX151: 2417 | BY151: 2697 | BZ151: 5114 | CA151: -0.1167383653 | CB151: 2.318223028 | CC151: 589 | CD151: 2949 | CE151: 1576 | CF151: 0.1151740321 | CG151: 0.5766523269 | CH151: 0.308173641 | CI151: 2044 | CJ151: 2139 | CK151: 2379 | CL151: 4518 | CM151: -0.1319167773 | CN151: 2.21037182 | CO151: 589 | CP151: 2949 | CQ151: 1576 | CR151: 0.1303674192 | CS151: 0.6527224436 | CT151: 0.3488269146
A152: 149 | B152: えりも町 | C152: 2133 | D152: 3746 | E152: 3774 | F152: 7520 | H152: 3.525550867 | I152: 1915 | J152: 4836 | K152: 769 | L152: 0.2546542553 | M152: 0.6430851064 | N152: 0.1022606383 | O152: 2164 | P152: 3723 | Q152: 3733 | R152: 7456 | S152: -0.008510638298 | T152: 3.445471349 | U152: 1801 | V152: 4787 | W152: 868 | X152: 0.2415504292 | Y152: 0.6420332618 | Z152: 0.116416309 | AA152: 2112 | AB152: 3438 | AC152: 3596 | AD152: 7034 | AE152: -0.05659871245 | AF152: 3.330492424 | AG152: 1526 | AH152: 4514 | AI152: 994 | AJ152: 0.216946261 | AK152: 0.6417401194 | AL152: 0.1413136196 | AM152: 2146 | AN152: 3354 | AO152: 3457 | AP152: 6811 | AQ152: -0.0317031561 | AR152: 3.173811743 | AS152: 1236 | AT152: 4390 | AU152: 1185 | AV152: 0.1814711496 | AW152: 0.644545588 | AX152: 0.1739832624 | AY152: 2161 | AZ152: 3100 | BA152: 3148 | BB152: 6248 | BC152: -0.08266040229 | BD152: 2.891254049 | BE152: 1018 | BF152: 3908 | BG152: 1322 | BH152: 0.1629321383 | BI152: 0.6254801536 | BJ152: 0.2115877081 | BK152: 2101 | BL152: 2863 | BM152: 2933 | BN152: 5796 | BO152: -0.07234314981 | BP152: 2.75868634 | BQ152: 884 | BR152: 3569 | BS152: 1343 | BT152: 0.1525189786 | BU152: 0.6157694962 | BV152: 0.2317115252 | BW152: 2036 | BX152: 2698 | BY152: 2715 | BZ152: 5413 | CA152: -0.0707555884 | CB152: 2.658644401 | CC152: 767 | CD152: 3330 | CE152: 1316 | CF152: 0.1416959172 | CG152: 0.6151856641 | CH152: 0.2431184186 | CI152: 1929 | CJ152: 2449 | CK152: 2457 | CL152: 4906 | CM152: -0.1033428455 | CN152: 2.543286677 | CO152: 767 | CP152: 3330 | CQ152: 1316 | CR152: 0.1563391765 | CS152: 0.6787607012 | CT152: 0.2682429678
A153: 150 | B153: 新ひだか町 | C153: 10852 | D153: 16664 | E153: 16526 | F153: 33190 | H153: 3.058422411 | I153: 8191 | J153: 22167 | K153: 2831 | L153: 0.2467912022 | M153: 0.6678818921 | N153: 0.08529677614 | O153: 10985 | P153: 16254 | Q153: 16356 | R153: 32610 | S153: -0.01747514312 | T153: 2.968593537 | U153: 7591 | V153: 21766 | W153: 3253 | X153: 0.2327813554 | Y153: 0.6674639681 | Z153: 0.09975467648 | AA153: 10608 | AB153: 14744 | AC153: 15518 | AD153: 30262 | AE153: -0.07200245324 | AF153: 2.85275264 | AG153: 6150 | AH153: 20275 | AI153: 3837 | AJ153: 0.2032251669 | AK153: 0.6699821558 | AL153: 0.1267926773 | AM153: 11072 | AN153: 14266 | AO153: 15071 | AP153: 29337 | AQ153: -0.03056638689 | AR153: 2.649656792 | AS153: 5106 | AT153: 19586 | AU153: 4645 | AV153: 0.174046426 | AW153: 0.6676210928 | AX153: 0.1583324812 | AY153: 11454 | AZ153: 13854 | BA153: 14584 | BB153: 28438 | BC153: -0.03064389679 | BD153: 2.482800768 | BE153: 4275 | BF153: 18357 | BG153: 5806 | BH153: 0.1503270272 | BI153: 0.6455095295 | BJ153: 0.2041634433 | BK153: 11429 | BL153: 13282 | BM153: 13983 | BN153: 27265 | BO153: -0.04124762642 | BP153: 2.38559804 | BQ153: 3819 | BR153: 16845 | BS153: 6601 | BT153: 0.1400696864 | BU153: 0.6178250504 | BV153: 0.2421052632 | BW153: 11015 | BX153: 12310 | BY153: 13109 | BZ153: 25419 | CA153: -0.06770584999 | CB153: 2.307671357 | CC153: 3244 | CD153: 15202 | CE153: 6973 | CF153: 0.1276210709 | CG153: 0.5980565719 | CH153: 0.2743223573 | CI153: 10443 | CJ153: 11188 | CK153: 12043 | CL153: 23231 | CM153: -0.09418449486 | CN153: 2.224552332 | CO153: 2767 | CP153: 12668 | CQ153: 5430 | CR153: 0.1191080883 | CS153: 0.5453058413 | CT153: 0.2337393999
A154: 151 | B154: 帯広市 | C154: 51451 | D154: 75628 | E154: 78233 | F154: 153861 | H154: 2.990437504 | I154: 37274 | J154: 106374 | K154: 10213 | L154: 0.2422576221 | M154: 0.6913642833 | N154: 0.06637809451 | O154: 56027 | P154: 79721 | Q154: 83211 | R154: 162932 | S154: 0.05895581076 | T154: 2.908097881 | U154: 36588 | V154: 113687 | W154: 12657 | X154: 0.2245599391 | Y154: 0.6977573466 | Z154: 0.07768271426 | AA154: 60431 | AB154: 81027 | AC154: 86357 | AD154: 167384 | AE154: 0.02732428252 | AF154: 2.769836673 | AG154: 32959 | AH154: 118509 | AI154: 15915 | AJ154: 0.1969065144 | AK154: 0.708006739 | AL154: 0.09508077236 | AM154: 66687 | AN154: 83079 | AO154: 88636 | AP154: 171715 | AQ154: 0.02587463557 | AR154: 2.574939643 | AS154: 29845 | AT154: 121096 | AU154: 20741 | AV154: 0.1738054334 | AW154: 0.7052150365 | AX154: 0.1207873511 | AY154: 70894 | AZ154: 83705 | BA154: 89325 | BB154: 173030 | BC154: 0.007658038028 | BD154: 2.440686095 | BE154: 27077 | BF154: 119343 | BG154: 26450 | BH154: 0.1564873143 | BI154: 0.6897243253 | BJ154: 0.1528636653 | BK154: 73629 | BL154: 81906 | BM154: 88674 | BN154: 170580 | BO154: -0.01415939432 | BP154: 2.316750194 | BQ154: 23868 | BR154: 114343 | BS154: 32364 | BT154: 0.139922617 | BU154: 0.6703189119 | BV154: 0.1897291593 | BW154: 75474 | BX154: 80584 | BY154: 87473 | BZ154: 168057 | CA154: -0.01501276353 | CB154: 2.226687336 | CC154: 21472 | CD154: 109040 | CE154: 37544 | CF154: 0.1277669348 | CG154: 0.6488313419 | CH154: 0.2234017232 | CI154: 77707 | CJ154: 80994 | CK154: 88333 | CL154: 169327 | CM154: 0.007500280522 | CN154: 2.179044359 | CO154: 21472 | CP154: 109040 | CQ154: 37544 | CR154: 0.1268078924 | CS154: 0.643961093 | CT154: 0.2217248283
A155: 152 | B155: 音更町 | C155: 9184 | D155: 15160 | E155: 15974 | F155: 31134 | H155: 3.390026132 | I155: 7420 | J155: 21061 | K155: 2653 | L155: 0.2383246611 | M155: 0.6764630308 | N155: 0.08521230809 | O155: 10188 | P155: 16531 | Q155: 17439 | R155: 33970 | S155: 0.09109012655 | T155: 3.33431488 | U155: 7720 | V155: 22727 | W155: 3523 | X155: 0.2272593465 | Y155: 0.6690314984 | Z155: 0.1037091551 | AA155: 10947 | AB155: 16253 | AC155: 17724 | AD155: 33977 | AE155: 0.0002060641743 | AF155: 3.103772723 | AG155: 6599 | AH155: 22899 | AI155: 4451 | AJ155: 0.1942196192 | AK155: 0.6739559114 | AL155: 0.1310003826 | AM155: 12898 | AN155: 17784 | AO155: 19744 | AP155: 37528 | AQ155: 0.1045118757 | AR155: 2.909598387 | AS155: 6600 | AT155: 25202 | AU155: 5726 | AV155: 0.1758686847 | AW155: 0.6715519079 | AX155: 0.1525794074 | AY155: 14262 | AZ155: 18538 | BA155: 20663 | BB155: 39201 | BC155: 0.0445800469 | BD155: 2.74863273 | BE155: 6355 | BF155: 25711 | BG155: 7076 | BH155: 0.1621132114 | BI155: 0.6558761256 | BJ155: 0.1805055993 | BK155: 16021 | BL155: 20080 | BM155: 22372 | BN155: 42452 | BO155: 0.08293155787 | BP155: 2.649772174 | BQ155: 6948 | BR155: 26729 | BS155: 8736 | BT155: 0.1636672006 | BU155: 0.6296287572 | BV155: 0.2057853576 | BW155: 17660 | BX155: 21295 | BY155: 23790 | BZ155: 45085 | CA155: 0.05840079849 | CB155: 2.552944507 | CC155: 7213 | CD155: 27537 | CE155: 10295 | CF155: 0.1601287601 | CG155: 0.6113220113 | CH155: 0.2285492285 | CI155: 18019 | CJ155: 21080 | CK155: 23727 | CL155: 44807 | CM155: -0.006204387707 | CN155: 2.486652977 | CO155: 7213 | CP155: 27537 | CQ155: 10295 | CR155: 0.1609793113 | CS155: 0.6145691521 | CT155: 0.2297632066
A156: 153 | B156: 士幌町 | C156: 2107 | D156: 3485 | E156: 3494 | F156: 6979 | H156: 3.312292359 | I156: 1499 | J156: 4672 | K156: 808 | L156: 0.2147872188 | M156: 0.6694368821 | N156: 0.1157758991 | O156: 2066 | P156: 3441 | Q156: 3603 | R156: 7044 | S156: 0.009313655251 | T156: 3.409486931 | U156: 1533 | V156: 4573 | W156: 938 | X156: 0.2176320273 | Y156: 0.6492049972 | Z156: 0.1331629756 | AA156: 2131 | AB156: 3462 | AC156: 3687 | AD156: 7149 | AE156: 0.01490630324 | AF156: 3.354763022 | AG156: 1468 | AH156: 4579 | AI156: 1102 | AJ156: 0.2053434047 | AK156: 0.6405091621 | AL156: 0.1541474332 | AM156: 2208 | AN156: 3374 | AO156: 3636 | AP156: 7010 | AQ156: -0.01944327878 | AR156: 3.174818841 | AS156: 1302 | AT156: 4377 | AU156: 1331 | AV156: 0.1857346648 | AW156: 0.6243937233 | AX156: 0.189871612 | AY156: 2271 | AZ156: 3278 | BA156: 3561 | BB156: 6839 | BC156: -0.02439372325 | BD156: 3.011448701 | BE156: 1054 | BF156: 4231 | BG156: 1541 | BH156: 0.1541160988 | BI156: 0.6186576985 | BJ156: 0.22532534 | BK156: 2409 | BL156: 3223 | BM156: 3532 | BN156: 6755 | BO156: -0.01228249744 | BP156: 2.804068078 | BQ156: 940 | BR156: 4119 | BS156: 1696 | BT156: 0.1391561806 | BU156: 0.6097705403 | BV156: 0.2510732791 | BW156: 2458 | BX156: 3063 | BY156: 3353 | BZ156: 6416 | CA156: -0.05283665835 | CB156: 2.610252238 | CC156: 911 | CD156: 3774 | CE156: 1731 | CF156: 0.1419887781 | CG156: 0.5882169576 | CH156: 0.2697942643 | CI156: 2479 | CJ156: 2939 | CK156: 3193 | CL156: 6132 | CM156: -0.04631441618 | CN156: 2.473578056 | CO156: 911 | CP156: 3774 | CQ156: 1731 | CR156: 0.1485649054 | CS156: 0.6154598826 | CT156: 0.2822896282
A157: 154 | B157: 上士幌町 | C157: 2401 | D157: 3730 | E157: 3841 | F157: 7571 | H157: 3.153269471 | I157: 1749 | J157: 5133 | K157: 689 | L157: 0.2310130762 | M157: 0.6779817726 | N157: 0.09100515123 | O157: 2393 | P157: 3462 | Q157: 3580 | R157: 7042 | S157: -0.06987187954 | T157: 2.942749687 | U157: 1394 | V157: 4840 | W157: 808 | X157: 0.1979551264 | Y157: 0.687304743 | Z157: 0.1147401306 | AA157: 2213 | AB157: 3103 | AC157: 3277 | AD157: 6380 | AE157: -0.09400738427 | AF157: 2.882964302 | AG157: 1161 | AH157: 4233 | AI157: 986 | AJ157: 0.1819749216 | AK157: 0.6634796238 | AL157: 0.1545454545 | AM157: 2191 | AN157: 2861 | AO157: 3075 | AP157: 5936 | AQ157: -0.06959247649 | AR157: 2.709265176 | AS157: 931 | AT157: 3843 | AU157: 1162 | AV157: 0.1568396226 | AW157: 0.6474056604 | AX157: 0.195754717 | AY157: 2233 | AZ157: 2699 | BA157: 2935 | BB157: 5634 | BC157: -0.05087601078 | BD157: 2.523063144 | BE157: 746 | BF157: 3519 | BG157: 1364 | BH157: 0.1324103656 | BI157: 0.624600639 | BJ157: 0.2421015264 | BK157: 2215 | BL157: 2515 | BM157: 2714 | BN157: 5229 | BO157: -0.07188498403 | BP157: 2.360722348 | BQ157: 612 | BR157: 3045 | BS157: 1572 | BT157: 0.1170395869 | BU157: 0.5823293173 | BV157: 0.3006310958 | BW157: 2225 | BX157: 2462 | BY157: 2618 | BZ157: 5080 | CA157: -0.02933070866 | CB157: 2.283146067 | CC157: 609 | CD157: 2836 | CE157: 1633 | CF157: 0.1199291059 | CG157: 0.5584875935 | CH157: 0.3215833005 | CI157: 2177 | CJ157: 2300 | CK157: 2465 | CL157: 4765 | CM157: -0.06610703043 | CN157: 2.188791915 | CO157: 609 | CP157: 2836 | CQ157: 1633 | CR157: 0.1278069255 | CS157: 0.5951731375 | CT157: 0.3427072403
A158: 155 | B158: 鹿追町 | C158: 1984 | D158: 3445 | E158: 3299 | F158: 6744 | H158: 3.399193548 | I158: 1570 | J158: 4500 | K158: 674 | L158: 0.2327995255 | M158: 0.6672597865 | N158: 0.09994068802 | O158: 1953 | P158: 3327 | Q158: 3153 | R158: 6480 | S158: -0.03914590747 | T158: 3.31797235 | U158: 1466 | V158: 4278 | W158: 736 | X158: 0.2262345679 | Y158: 0.6601851852 | Z158: 0.1135802469 | AA158: 1893 | AB158: 3225 | AC158: 3082 | AD158: 6307 | AE158: -0.02669753086 | AF158: 3.331748547 | AG158: 1354 | AH158: 4100 | AI158: 853 | AJ158: 0.2146820993 | AK158: 0.6500713493 | AL158: 0.1352465515 | AM158: 1984 | AN158: 3089 | AO158: 3000 | AP158: 6089 | AQ158: -0.0345647693 | AR158: 3.069052419 | AS158: 1188 | AT158: 3896 | AU158: 1005 | AV158: 0.1951059287 | AW158: 0.6398423386 | AX158: 0.1650517326 | AY158: 2079 | AZ158: 2974 | BA158: 2936 | BB158: 5910 | BC158: -0.02939727377 | BD158: 2.842712843 | BE158: 1029 | BF158: 3700 | BG158: 1181 | BH158: 0.1741116751 | BI158: 0.6260575296 | BJ158: 0.1998307953 | BK158: 2216 | BL158: 2932 | BM158: 2944 | BN158: 5876 | BO158: -0.005752961083 | BP158: 2.651624549 | BQ158: 869 | BR158: 3627 | BS158: 1380 | BT158: 0.1478897209 | BU158: 0.6172566372 | BV158: 0.2348536419 | BW158: 2270 | BX158: 2822 | BY158: 2880 | BZ158: 5702 | CA158: -0.03051560856 | CB158: 2.511894273 | CC158: 809 | CD158: 3415 | CE158: 1478 | CF158: 0.1418800421 | CG158: 0.5989126622 | CH158: 0.2592072957 | CI158: 2258 | CJ158: 2718 | CK158: 2824 | CL158: 5542 | CM158: -0.02887044388 | CN158: 2.454384411 | CO158: 809 | CP158: 3415 | CQ158: 1478 | CR158: 0.1459761819 | CS158: 0.6162035366 | CT158: 0.2666907254
A159: 156 | B159: 新得町 | C159: 3336 | D159: 4823 | E159: 4679 | F159: 9502 | H159: 2.848321343 | I159: 2055 | J159: 6556 | K159: 891 | L159: 0.2162702589 | M159: 0.6899600084 | N159: 0.09376973269 | O159: 3216 | P159: 4498 | Q159: 4510 | R159: 9008 | S159: -0.05198905494 | T159: 2.800995025 | U159: 1786 | V159: 6125 | W159: 1097 | X159: 0.198268206 | Y159: 0.6799511545 | Z159: 0.1217806394 | AA159: 3259 | AB159: 4172 | AC159: 4240 | AD159: 8412 | AE159: -0.0661634103 | AF159: 2.581159865 | AG159: 1437 | AH159: 5674 | AI159: 1301 | AJ159: 0.1708273894 | AK159: 0.674512601 | AL159: 0.1546600095 | AM159: 3183 | AN159: 3858 | AO159: 3964 | AP159: 7822 | AQ159: -0.07013789824 | AR159: 2.457430097 | AS159: 1169 | AT159: 5071 | AU159: 1582 | AV159: 0.1494502685 | AW159: 0.6482996676 | AX159: 0.2022500639 | AY159: 3311 | AZ159: 3781 | BA159: 3876 | BB159: 7657 | BC159: -0.02109434927 | BD159: 2.312594382 | BE159: 966 | BF159: 4851 | BG159: 1840 | BH159: 0.1261590701 | BI159: 0.6335379391 | BJ159: 0.2403029907 | BK159: 3280 | BL159: 3569 | BM159: 3674 | BN159: 7243 | BO159: -0.05406817291 | BP159: 2.208231707 | BQ159: 848 | BR159: 4355 | BS159: 2040 | BT159: 0.1170785586 | BU159: 0.6012701919 | BV159: 0.2816512495 | BW159: 3106 | BX159: 3320 | BY159: 3333 | BZ159: 6653 | CA159: -0.08868179769 | CB159: 2.141983258 | CC159: 693 | CD159: 3849 | CE159: 2111 | CF159: 0.1041635352 | CG159: 0.5785359988 | CH159: 0.317300466 | CI159: 3043 | CJ159: 3123 | CK159: 3165 | CL159: 6288 | CM159: -0.05804707379 | CN159: 2.06638186 | CO159: 693 | CP159: 3849 | CQ159: 2111 | CR159: 0.1102099237 | CS159: 0.6121183206 | CT159: 0.3357188295
A160: 157 | B160: 清水町 | C160: 3969 | D160: 6643 | E160: 6709 | F160: 13352 | H160: 3.364071555 | I160: 3024 | J160: 8927 | K160: 1401 | L160: 0.2264829239 | M160: 0.6685889754 | N160: 0.1049281007 | O160: 4104 | P160: 6596 | Q160: 6685 | R160: 13281 | S160: -0.005317555422 | T160: 3.236111111 | U160: 2741 | V160: 8914 | W160: 1626 | X160: 0.2063850614 | Y160: 0.6711843988 | Z160: 0.1224305399 | AA160: 3850 | AB160: 5908 | AC160: 6125 | AD160: 12033 | AE160: -0.09396882765 | AF160: 3.125454545 | AG160: 2158 | AH160: 7961 | AI160: 1912 | AJ160: 0.1793401479 | AK160: 0.6615972742 | AL160: 0.1588963683 | AM160: 3898 | AN160: 5532 | AO160: 5793 | AP160: 11325 | AQ160: -0.05883819496 | AR160: 2.90533607 | AS160: 1860 | AT160: 7231 | AU160: 2234 | AV160: 0.1642384106 | AW160: 0.6384988962 | AX160: 0.1972626932 | AY160: 4072 | AZ160: 5315 | BA160: 5673 | BB160: 10988 | BC160: -0.02975717439 | BD160: 2.698428291 | BE160: 1588 | BF160: 6750 | BG160: 2650 | BH160: 0.144521296 | BI160: 0.6143065162 | BJ160: 0.2411721878 | BK160: 4122 | BL160: 5087 | BM160: 5377 | BN160: 10464 | BO160: -0.04768838733 | BP160: 2.538573508 | BQ160: 1327 | BR160: 6228 | BS160: 2909 | BT160: 0.1268157492 | BU160: 0.5951834862 | BV160: 0.2780007645 | BW160: 4097 | BX160: 4811 | BY160: 5150 | BZ160: 9961 | CA160: -0.05049693806 | CB160: 2.431291189 | CC160: 1160 | CD160: 5722 | CE160: 3077 | CF160: 0.116477558 | CG160: 0.5745556783 | CH160: 0.3089667637 | CI160: 4131 | CJ160: 4683 | CK160: 4916 | CL160: 9599 | CM160: -0.03771226169 | CN160: 2.323650448 | CO160: 1160 | CP160: 5722 | CQ160: 3077 | CR160: 0.1208459215 | CS160: 0.5961037608 | CT160: 0.3205542244
A161: 158 | B161: 芽室町 | C161: 4846 | D161: 8214 | E161: 8366 | F161: 16580 | H161: 3.421378456 | I161: 3983 | J161: 10966 | K161: 1631 | L161: 0.2402291918 | M161: 0.6613992762 | N161: 0.09837153197 | O161: 4939 | P161: 8212 | Q161: 8519 | R161: 16731 | S161: 0.009107358263 | T161: 3.38752784 | U161: 3911 | V161: 10899 | W161: 1921 | X161: 0.2337576953 | Y161: 0.6514254976 | Z161: 0.1148168071 | AA161: 5097 | AB161: 8093 | AC161: 8484 | AD161: 16577 | AE161: -0.009204470743 | AF161: 3.252305278 | AG161: 3435 | AH161: 10842 | AI161: 2238 | AJ161: 0.2072148157 | AK161: 0.6540387284 | AL161: 0.1350063341 | AM161: 5432 | AN161: 8011 | AO161: 8593 | AP161: 16604 | AQ161: 0.001628762744 | AR161: 3.056701031 | AS161: 3035 | AT161: 10866 | AU161: 2703 | AV161: 0.1827872802 | AW161: 0.6544206215 | AX161: 0.1627920983 | AY161: 6051 | AZ161: 8415 | BA161: 9171 | BB161: 17586 | BC161: 0.05914237533 | BD161: 2.90629648 | BE161: 2997 | BF161: 11283 | BG161: 3306 | BH161: 0.170419652 | BI161: 0.6415899011 | BJ161: 0.1879904469 | BK161: 6623 | BL161: 8751 | BM161: 9549 | BN161: 18300 | BO161: 0.04060047765 | BP161: 2.763098294 | BQ161: 3019 | BR161: 11353 | BS161: 3926 | BT161: 0.1649726776 | BU161: 0.6203825137 | BV161: 0.2145355191 | BW161: 7089 | BX161: 9023 | BY161: 9882 | BZ161: 18905 | CA161: 0.03200211584 | CB161: 2.66680773 | CC161: 3080 | CD161: 11458 | CE161: 4361 | CF161: 0.1629715858 | CG161: 0.6062754643 | CH161: 0.2307529499 | CI161: 7169 | CJ161: 8773 | CK161: 9711 | CL161: 18484 | CM161: -0.02277645531 | CN161: 2.578323337 | CO161: 3080 | CP161: 11458 | CQ161: 4361 | CR161: 0.1666305994 | CS161: 0.6198874702 | CT161: 0.2359337806
A162: 159 | B162: 中札内村 | C162: 1139 | D162: 1915 | E162: 1870 | F162: 3785 | H162: 3.32309043 | I162: 856 | J162: 2580 | K162: 349 | L162: 0.2261558785 | M162: 0.6816380449 | N162: 0.09220607662 | O162: 1313 | P162: 2100 | Q162: 2001 | R162: 4101 | S162: 0.08348745046 | T162: 3.123381569 | U162: 791 | V162: 2891 | W162: 419 | X162: 0.1928797854 | Y162: 0.7049500122 | Z162: 0.1021702024 | AA162: 1474 | AB162: 2257 | AC162: 2020 | AD162: 4277 | AE162: 0.04291636186 | AF162: 2.901628223 | AG162: 781 | AH162: 3002 | AI162: 492 | AJ162: 0.1826046294 | AK162: 0.7018938508 | AL162: 0.1150339023 | AM162: 1495 | AN162: 2279 | AO162: 2040 | AP162: 4319 | AQ162: 0.009819967267 | AR162: 2.888963211 | AS162: 708 | AT162: 2937 | AU162: 674 | AV162: 0.1639268349 | AW162: 0.6800185228 | AX162: 0.1560546423 | AY162: 1426 | AZ162: 2077 | BA162: 2039 | BB162: 4116 | BC162: -0.04700162075 | BD162: 2.886395512 | BE162: 643 | BF162: 2685 | BG162: 788 | BH162: 0.1562196307 | BI162: 0.6523323615 | BJ162: 0.1914480078 | BK162: 1465 | BL162: 1963 | BM162: 2020 | BN162: 3983 | BO162: -0.03231292517 | BP162: 2.718771331 | BQ162: 574 | BR162: 2503 | BS162: 906 | BT162: 0.144112478 | BU162: 0.6284207884 | BV162: 0.2274667336 | BW162: 1570 | BX162: 1963 | BY162: 2043 | BZ162: 4006 | CA162: 0.005741387918 | CB162: 2.551592357 | CC162: 526 | CD162: 2482 | CE162: 998 | CF162: 0.1313030454 | CG162: 0.619570644 | CH162: 0.2491263105 | CI162: 1609 | CJ162: 1932 | CK162: 2034 | CL162: 3966 | CM162: -0.01008572869 | CN162: 2.464885022 | CO162: 526 | CP162: 2482 | CQ162: 998 | CR162: 0.1326273323 | CS162: 0.6258194655 | CT162: 0.2516389309
A163: 160 | B163: 更別村 | C163: 1022 | D163: 1784 | E163: 1840 | F163: 3624 | H163: 3.545988258 | I163: 771 | J163: 2515 | K163: 338 | L163: 0.2127483444 | M163: 0.6939845475 | N163: 0.09326710817 | O163: 1012 | P163: 1762 | Q163: 1809 | R163: 3571 | S163: -0.01462472406 | T163: 3.528656126 | U163: 742 | V163: 2454 | W163: 375 | X163: 0.2077849342 | Y163: 0.6872024643 | Z163: 0.1050126015 | AA163: 1003 | AB163: 1669 | AC163: 1764 | AD163: 3433 | AE163: -0.03864463736 | AF163: 3.422731805 | AG163: 699 | AH163: 2298 | AI163: 436 | AJ163: 0.2036120012 | AK163: 0.6693853772 | AL163: 0.1270026216 | AM163: 1043 | AN163: 1638 | AO163: 1712 | AP163: 3350 | AQ163: -0.02417710457 | AR163: 3.211888782 | AS163: 641 | AT163: 2111 | AU163: 598 | AV163: 0.1913432836 | AW163: 0.6301492537 | AX163: 0.1785074627 | AY163: 1093 | AZ163: 1618 | BA163: 1673 | BB163: 3291 | BC163: -0.0176119403 | BD163: 3.010978957 | BE163: 597 | BF163: 1978 | BG163: 716 | BH163: 0.1814038286 | BI163: 0.6010331206 | BJ163: 0.2175630507 | BK163: 1190 | BL163: 1645 | BM163: 1681 | BN163: 3326 | BO163: 0.01063506533 | BP163: 2.794957983 | BQ163: 548 | BR163: 1945 | BS163: 833 | BT163: 0.1647624775 | BU163: 0.5847865304 | BV163: 0.2504509922 | BW163: 1274 | BX163: 1699 | BY163: 1692 | BZ163: 3391 | CA163: 0.01916838691 | CB163: 2.661695447 | CC163: 484 | CD163: 1999 | CE163: 908 | CF163: 0.1427307579 | CG163: 0.5895016219 | CH163: 0.2677676202 | CI163: 1239 | CJ163: 1567 | CK163: 1618 | CL163: 3185 | CM163: -0.06467817896 | CN163: 2.570621469 | CO163: 484 | CP163: 1999 | CQ163: 908 | CR163: 0.1519623234 | CS163: 0.6276295133 | CT163: 0.2850863422
A164: 161 | B164: 大樹町 | C164: 2513 | D164: 4133 | E164: 4223 | F164: 8356 | H164: 3.325109431 | I164: 2057 | J164: 5480 | K164: 819 | L164: 0.2461704165 | M164: 0.65581618 | N164: 0.09801340354 | O164: 2511 | P164: 4023 | Q164: 4095 | R164: 8118 | S164: -0.02848252753 | T164: 3.23297491 | U164: 1840 | V164: 5336 | W164: 942 | X164: 0.226656812 | Y164: 0.6573047549 | Z164: 0.1160384331 | AA164: 2395 | AB164: 3649 | AC164: 3834 | AD164: 7483 | AE164: -0.07822123676 | AF164: 3.124425887 | AG164: 1495 | AH164: 4889 | AI164: 1099 | AJ164: 0.199786182 | AK164: 0.6533475879 | AL164: 0.1468662301 | AM164: 2498 | AN164: 3493 | AO164: 3582 | AP164: 7075 | AQ164: -0.0545235868 | AR164: 2.832265813 | AS164: 1210 | AT164: 4494 | AU164: 1371 | AV164: 0.171024735 | AW164: 0.6351943463 | AX164: 0.1937809187 | AY164: 2560 | AZ164: 3264 | BA164: 3447 | BB164: 6711 | BC164: -0.05144876325 | BD164: 2.621484375 | BE164: 976 | BF164: 4167 | BG164: 1568 | BH164: 0.1454328714 | BI164: 0.6209208762 | BJ164: 0.2336462524 | BK164: 2560 | BL164: 3065 | BM164: 3342 | BN164: 6407 | BO164: -0.04529876322 | BP164: 2.502734375 | BQ164: 839 | BR164: 3840 | BS164: 1728 | BT164: 0.1309505229 | BU164: 0.599344467 | BV164: 0.2697050101 | BW164: 2533 | BX164: 2873 | BY164: 3104 | BZ164: 5977 | CA164: -0.07194244604 | CB164: 2.359652586 | CC164: 724 | CD164: 3435 | CE164: 1818 | CF164: 0.1211310022 | CG164: 0.5747030283 | CH164: 0.3041659695 | CI164: 2534 | CJ164: 2810 | CK164: 2928 | CL164: 5738 | CM164: -0.0416521436 | CN164: 2.264404104 | CO164: 724 | CP164: 3435 | CQ164: 1818 | CR164: 0.1261763681 | CS164: 0.5986406413 | CT164: 0.3168351342
